Workbook

Sheet INTRO
B2: Formulaire de Rapport Commun v.3.1
B4: Le but de ce formulaire de rapport commun - disponible sous forme de fichier Excel - est de mettre à disposition des autorités sanitaires nationales et des gestionnaires de données un outil standardisé qui réponde aux défis, facilite l'intégration et par conséquent contribue à améliorer la gestion de programme. Ce formulaire tend à standardiser le rapport de résultats des programmes nationaux, améliore la disponibilité et la coordination des données de chimioprévention à travers les Bureaux des Régions de l'Organisation mondiale de la Santé. Les autorités nationales sont priées de compléter ce formulaire et de le soumettre à l'Organisation mondiale de la Santé avant le 15 août de l'année en cours pour rapporter les données des activités de chimioprévention mises en oeuvre l'année précédente.
B6: Structure de l'application (feuilles de travail) :
B8: INTRO | C8: Cette feuille contient des instructions pour compléter le formulaire de rapport commun et des informations sur le statut de la chimioprévention pour les maladies d'endémie du pays.
B9: COUNTRY_INFO | C9: Cette feuille contient des informations sur la structure administrative du pays, la population par groupe d'âge, le statut d'endémicité pour chaque maladie, la population devant être traitée par chimioprévention, les interventions prévues et les interventions mises en oeuvre.
B10: MDA1, MDA2, MDA3, T1, T2 et T3 | C10: Ces feuilles contiennent des informations sur l'endémicité des districts ciblés pour le traitement aux médicaments spécifiques pour la chimioprévention, les plans de traitement, et le nombre de personnes traitées par groupe d'âge.
B11: DISTRICT | C11: Cette feuille contient un résumé sur les personnes traitées, par maladie, au niveau de mise en oeuvre. Si les données par genre (sexe) sont disponibles, merci de les saisir.
B12: SUMMARY | C12: Cette feuille contient un résumé sur les personnes traitées, par maladie et par type d'intervention de chimioprévention. Avant de générer le rapport (exécuter macro), veuillez sélectionner la maladie pour laquelle vous souhaitez un rapport. Veuillez suivre le même processus pour générer les divers rapports. Cette feuille doit être imprimée et soumise comme formulaire de rapport commun (voir les instructions pour la soumission du formulaire sous la feuille SUMMARY).
B14: Instructions pour la saisie des données
B16: La plupart des cellules des feuilles de travail mentionnées ci-dessus contiennent des formules calculées automatiquement en fonction du protocole de traitement recommandé par l'OMS pour chaque maladie. Voir : http://www.who.int/neglected_diseases/preventive_chemotherapy/pct_manual/en/index.html
B18: Veuillez entrer vos données dans les cellules en fonction de leur code de couleur :
C20: Blanc - la cellule n'est pas protégée. Veuillez entrer la valeur de l'indicateur demandé.
C22: Jaune - la cellule est protégée et inclut le nom de l'indicateur. Aucune entrée de données requise.
C24: Orange - la cellule n'est pas protégée et contient un menu déroulant. Veuillez sélectionner la valeur dans le menu déroulant.
C27: Vert - la cellule n'est pas protégée et contient des formules. Veuillez changer la valeur indiquée uniquement si vos données sont différentes de celles calculées automatiquement.
C30: Bleu - la cellule est protégée et contient des formules. Aucune entrée de données requise.
B32: Données pays
B34: PAYS | E34: CÔTE D'IVOIRE
B36: Année de rapport des données | E36: 2019
B38: Le pays est-il endémique à la filariose lymphatique (FL) ? | E38: Endémique
B40: Le pays est-il endémique à l'onchocercose (ONCHO) ? | E40: Endémique
B42: Le pays est-il endémique aux géohelminthiases (STH) ? | E42: Endémique
B44: Le pays est-il endémique à la schistosomiase (SCH) ? | E44: Endémique
B46: Combien d'unités administratives compte le pays ? | E46: 83
B47: Si les données démographiques par groupe d'âge ne sont pas disponibles au second niveau administratif, veuillez entrer la proportion (%) de population, par groupe d'âge, du pays. Si les données sont disponibles, veuillez laisser les cellules vierges.
B48: 1-4 ans | C48: Enfants d'âge pré-scolaire (EAPréS) | E48: 0.12
B49: 5-14 ans | C49: Enfants d'âge scolaire (EAS) | E49: 0.24
B50: 15 ans et plus | C50: Adultes | E50: 0.6

Sheet COUNTRY_INFO
A1: INFORMATIONS PAYS
A2: Structure administrative, population par groupe d'âge, statut d'endémicité, interventions planifiées et interventions mises en oeuvre
A4: TOTAL | D4: =SUM(D$9:D$997) -> 25892948 | E4: =SUM(E$9:E$997) -> 3107153 | F4: =SUM(F$9:F$997) -> 6214302 | G4: =SUM(G$9:G$997) -> 15535771 | L4: =SUM(L$9:L$997) -> 21713670 | M4: =SUM(M$9:M$997) -> 3829278 | N4: =SUM(N$9:N$997) -> 2280850 | O4: =SUM(O$9:O$997) -> 4599701.07
A6: Structure administrative du pays | D6: Population | H6: Endémicité | L6: Population nécessitant la CP | P6: Nombre de tournées de traitement prévues pour l'année | T6: Mise en oeuvre de la chimioprévention | V6: Cliquer ci-dessous pour voir la stratégie recommandée
A7: Pays | B7: Région/Département | C7: District | D7: Total | E7: EAPréS | F7: EAS | G7: Adultes | H7: FL | I7: Oncho | J7: STH | K7: SCH | L7: FL | M7: Oncho | N7: STH | O7: SCH | P7: FL | Q7: Oncho | R7: STH | S7: SCH | T7: TOURNEE 1 | U7: TOURNEE 2 | X7: IU_ID | Y7: IU_Name
A9: =IF(INTRO!$E$34<>0,INTRO!$E$34,"") -> CÔTE D'IVOIRE | B9: ABIDJAN 1 GRANDS PONTS | C9: ADJAME-PLATEAU-ATTECOUBE | D9: 727577 | E9: =IF(INTRO!$E$48="","",ROUND($D9*INTRO!$E$48,0)) -> 87309 | F9: =IF(INTRO!$E$49="","",ROUND($D9*INTRO!$E$49,0)) -> 174618 | G9: =IF(INTRO!$E$50="","",ROUND($D9*INTRO!$E$50,0)) -> 436546 | H9: 0 | I9: 0 | J9: 1 | K9: 2 | L9: =IF(INTRO!$E$38="Endémique", IF($H9>0, IF($H9=4,"Inconnu", IF($H9=99,"Interrompu", $D9)), 0),"Non requis") -> 0 | M9: 0 | N9: =IF(INTRO!$E$42="Endémique", IF(AND($J9>1,$J9<5), IF($J9=4, "Inconnu", E9+F9), 0),"Non requis") -> 0 | O9: =IF(INTRO!$E$44="Endémique", IF(AND($K9>0,$K9<5), IF($K9=4,"Inconnu", IF($K9=1, $F9*0.33, IF($K9=2, $F9*0.5+$G9*0.2, SUM(F9:G9)))), 0),"Non requis") -> 174618.2 | P9: 0 | Q9: 0 | R9: 0 | S9: 0 | W9: T2 | X9: 15329 | Y9: ADJAME-PLATEAU-ATTECOUBE
A10: =IF(INTRO!$E$34<>0,INTRO!$E$34,"") -> CÔTE D'IVOIRE | B10: ABIDJAN 1 GRANDS PONTS | C10: DABOU | D10: 168885 | E10: =IF(INTRO!$E$48="","",ROUND($D10*INTRO!$E$48,0)) -> 20266 | F10: =IF(INTRO!$E$49="","",ROUND($D10*INTRO!$E$49,0)) -> 40532 | G10: =IF(INTRO!$E$50="","",ROUND($D10*INTRO!$E$50,0)) -> 101331 | H10: 1 | I10: 1 | J10: 2 | K10: 1 | L10: =IF(INTRO!$E$38="Endémique", IF($H10>0, IF($H10=4,"Inconnu", IF($H10=99,"Interrompu", $D10)), 0),"Non requis") -> 168885 | M10: 84210 | N10: =IF(INTRO!$E$42="Endémique", IF(AND($J10>1,$J10<5), IF($J10=4, "Inconnu", E10+F10), 0),"Non requis") -> 60798 | O10: =IF(INTRO!$E$44="Endémique", IF(AND($K10>0,$K10<5), IF($K10=4,"Inconnu", IF($K10=1, $F10*0.33, IF($K10=2, $F10*0.5+$G10*0.2, SUM(F10:G10)))), 0),"Non requis") -> 13375.56 | P10: 1 | Q10: 1 | R10: 1 | S10: 0 | T10: MDA1 (IVM+ALB) | V10: MDA 1 | W10: T2 | X10: 15330 | Y10: DABOU
A11: =IF(INTRO!$E$34<>0,INTRO!$E$34,"") -> CÔTE D'IVOIRE | B11: ABIDJAN 1 GRANDS PONTS | C11: GRAND-LAHOU | D11: 171647 | E11: =IF(INTRO!$E$48="","",ROUND($D11*INTRO!$E$48,0)) -> 20598 | F11: =IF(INTRO!$E$49="","",ROUND($D11*INTRO!$E$49,0)) -> 41195 | G11: =IF(INTRO!$E$50="","",ROUND($D11*INTRO!$E$50,0)) -> 102988 | H11: 1 | I11: 0 | J11: 2 | K11: 1 | L11: =IF(INTRO!$E$38="Endémique", IF($H11>0, IF($H11=4,"Inconnu", IF($H11=99,"Interrompu", $D11)), 0),"Non requis") -> 171647 | M11: 0 | N11: =IF(INTRO!$E$42="Endémique", IF(AND($J11>1,$J11<5), IF($J11=4, "Inconnu", E11+F11), 0),"Non requis") -> 61793 | O11: =IF(INTRO!$E$44="Endémique", IF(AND($K11>0,$K11<5), IF($K11=4,"Inconnu", IF($K11=1, $F11*0.33, IF($K11=2, $F11*0.5+$G11*0.2, SUM(F11:G11)))), 0),"Non requis") -> 13594.35 | P11: 1 | Q11: 0 | R11: 1 | S11: 0 | T11: MDA1 (IVM+ALB) | V11: MDA 1 | W11: T2 | X11: 15331 | Y11: GRAND-LAHOU
A12: =IF(INTRO!$E$34<>0,INTRO!$E$34,"") -> CÔTE D'IVOIRE | B12: ABIDJAN 1 GRANDS PONTS | C12: JACQUEVILLE | D12: 63876 | E12: =IF(INTRO!$E$48="","",ROUND($D12*INTRO!$E$48,0)) -> 7665 | F12: =IF(INTRO!$E$49="","",ROUND($D12*INTRO!$E$49,0)) -> 15330 | G12: =IF(INTRO!$E$50="","",ROUND($D12*INTRO!$E$50,0)) -> 38326 | H12: 1 | I12: 0 | J12: 2 | K12: 1 | L12: =IF(INTRO!$E$38="Endémique", IF($H12>0, IF($H12=4,"Inconnu", IF($H12=99,"Interrompu", $D12)), 0),"Non requis") -> 63876 | M12: 0 | N12: =IF(INTRO!$E$42="Endémique", IF(AND($J12>1,$J12<5), IF($J12=4, "Inconnu", E12+F12), 0),"Non requis") -> 22995 | O12: =IF(INTRO!$E$44="Endémique", IF(AND($K12>0,$K12<5), IF($K12=4,"Inconnu", IF($K12=1, $F12*0.33, IF($K12=2, $F12*0.5+$G12*0.2, SUM(F12:G12)))), 0),"Non requis") -> 5058.9 | P12: 1 | Q12: 0 | R12: 1 | S12: 0 | T12: MDA1 (IVM+ALB) | V12: MDA 1 | W12: T2 | X12: 15332 | Y12: JACQUEVILLE
A13: =IF(INTRO!$E$34<>0,INTRO!$E$34,"") -> CÔTE D'IVOIRE | B13: ABIDJAN 1 GRANDS PONTS | C13: YOPOUGON EST | D13: 810369 | E13: =IF(INTRO!$E$48="","",ROUND($D13*INTRO!$E$48,0)) -> 97244 | F13: =IF(INTRO!$E$49="","",ROUND($D13*INTRO!$E$49,0)) -> 194489 | G13: =IF(INTRO!$E$50="","",ROUND($D13*INTRO!$E$50,0)) -> 486221 | H13: 1 | I13: 0 | J13: 1 | K13: 1 | L13: =IF(INTRO!$E$38="Endémique", IF($H13>0, IF($H13=4,"Inconnu", IF($H13=99,"Interrompu", $D13)), 0),"Non requis") -> 810369 | M13: 0 | N13: =IF(INTRO!$E$42="Endémique", IF(AND($J13>1,$J13<5), IF($J13=4, "Inconnu", E13+F13), 0),"Non requis") -> 0 | O13: =IF(INTRO!$E$44="Endémique", IF(AND($K13>0,$K13<5), IF($K13=4,"Inconnu", IF($K13=1, $F13*0.33, IF($K13=2, $F13*0.5+$G13*0.2, SUM(F13:G13)))), 0),"Non requis") -> 64181.37 | P13: 1 | Q13: 0 | R13: 0 | S13: 0 | T13: MDA1 (IVM+ALB) | V13: MDA 1 | W13: T2 | X13: 15333 | Y13: YOPOUGON EST
A14: =IF(INTRO!$E$34<>0,INTRO!$E$34,"") -> CÔTE D'IVOIRE | B14: ABIDJAN 1 GRANDS PONTS | C14: YOPOUGON OUEST | D14: 468756 | E14: =IF(INTRO!$E$48="","",ROUND($D14*INTRO!$E$48,0)) -> 56251 | F14: =IF(INTRO!$E$49="","",ROUND($D14*INTRO!$E$49,0)) -> 112501 | G14: =IF(INTRO!$E$50="","",ROUND($D14*INTRO!$E$50,0)) -> 281254 | H14: 1 | I14: 0 | J14: 1 | K14: 1 | L14: =IF(INTRO!$E$38="Endémique", IF($H14>0, IF($H14=4,"Inconnu", IF($H14=99,"Interrompu", $D14)), 0),"Non requis") -> 468756 | M14: 0 | N14: =IF(INTRO!$E$42="Endémique", IF(AND($J14>1,$J14<5), IF($J14=4, "Inconnu", E14+F14), 0),"Non requis") -> 0 | O14: =IF(INTRO!$E$44="Endémique", IF(AND($K14>0,$K14<5), IF($K14=4,"Inconnu", IF($K14=1, $F14*0.33, IF($K14=2, $F14*0.5+$G14*0.2, SUM(F14:G14)))), 0),"Non requis") -> 37125.33 | P14: 1 | Q14: 0 | R14: 0 | S14: 0 | T14: MDA1 (IVM+ALB) | V14: MDA 1 | W14: T2 | X14: 15334 | Y14: YOPOUGON OUEST
A15: =IF(INTRO!$E$34<>0,INTRO!$E$34,"") -> CÔTE D'IVOIRE | B15: ABIDJAN 2 | C15: ABOBO EST | D15: 701508 | E15: =IF(INTRO!$E$48="","",ROUND($D15*INTRO!$E$48,0)) -> 84181 | F15: =IF(INTRO!$E$49="","",ROUND($D15*INTRO!$E$49,0)) -> 168362 | G15: =IF(INTRO!$E$50="","",ROUND($D15*INTRO!$E$50,0)) -> 420905 | H15: 0 | I15: 0 | J15: 1 | K15: 1 | L15: =IF(INTRO!$E$38="Endémique", IF($H15>0, IF($H15=4,"Inconnu", IF($H15=99,"Interrompu", $D15)), 0),"Non requis") -> 0 | M15: 0 | N15: =IF(INTRO!$E$42="Endémique", IF(AND($J15>1,$J15<5), IF($J15=4, "Inconnu", E15+F15), 0),"Non requis") -> 0 | O15: =IF(INTRO!$E$44="Endémique", IF(AND($K15>0,$K15<5), IF($K15=4,"Inconnu", IF($K15=1, $F15*0.33, IF($K15=2, $F15*0.5+$G15*0.2, SUM(F15:G15)))), 0),"Non requis") -> 55559.46 | P15: 0 | Q15: 0 | R15: 0 | S15: 0 | W15: T2 | X15: 15335 | Y15: ABOBO EST
A16: =IF(INTRO!$E$34<>0,INTRO!$E$34,"") -> CÔTE D'IVOIRE | B16: ABIDJAN 2 | C16: ABOBO OUEST | D16: 467668 | E16: =IF(INTRO!$E$48="","",ROUND($D16*INTRO!$E$48,0)) -> 56120 | F16: =IF(INTRO!$E$49="","",ROUND($D16*INTRO!$E$49,0)) -> 112240 | G16: =IF(INTRO!$E$50="","",ROUND($D16*INTRO!$E$50,0)) -> 280601 | H16: 0 | I16: 0 | J16: 1 | K16: 1 | L16: =IF(INTRO!$E$38="Endémique", IF($H16>0, IF($H16=4,"Inconnu", IF($H16=99,"Interrompu", $D16)), 0),"Non requis") -> 0 | M16: 0 | N16: =IF(INTRO!$E$42="Endémique", IF(AND($J16>1,$J16<5), IF($J16=4, "Inconnu", E16+F16), 0),"Non requis") -> 0 | O16: =IF(INTRO!$E$44="Endémique", IF(AND($K16>0,$K16<5), IF($K16=4,"Inconnu", IF($K16=1, $F16*0.33, IF($K16=2, $F16*0.5+$G16*0.2, SUM(F16:G16)))), 0),"Non requis") -> 37039.2 | P16: 0 | Q16: 0 | R16: 0 | S16: 0 | W16: T2 | X16: 15336 | Y16: ABOBO OUEST
A17: =IF(INTRO!$E$34<>0,INTRO!$E$34,"") -> CÔTE D'IVOIRE | B17: ABIDJAN 2 | C17: ANYAMA | D17: 186956 | E17: =IF(INTRO!$E$48="","",ROUND($D17*INTRO!$E$48,0)) -> 22435 | F17: =IF(INTRO!$E$49="","",ROUND($D17*INTRO!$E$49,0)) -> 44869 | G17: =IF(INTRO!$E$50="","",ROUND($D17*INTRO!$E$50,0)) -> 112174 | H17: 0 | I17: 0 | J17: 1 | K17: 2 | L17: =IF(INTRO!$E$38="Endémique", IF($H17>0, IF($H17=4,"Inconnu", IF($H17=99,"Interrompu", $D17)), 0),"Non requis") -> 0 | M17: 0 | N17: =IF(INTRO!$E$42="Endémique", IF(AND($J17>1,$J17<5), IF($J17=4, "Inconnu", E17+F17), 0),"Non requis") -> 0 | O17: =IF(INTRO!$E$44="Endémique", IF(AND($K17>0,$K17<5), IF($K17=4,"Inconnu", IF($K17=1, $F17*0.33, IF($K17=2, $F17*0.5+$G17*0.2, SUM(F17:G17)))), 0),"Non requis") -> 44869.3 | P17: 0 | Q17: 0 | R17: 0 | S17: 0 | W17: T2 | X17: 15337 | Y17: ANYAMA
A18: =IF(INTRO!$E$34<>0,INTRO!$E$34,"") -> CÔTE D'IVOIRE | B18: ABIDJAN 2 | C18: COCODY-BINGERVILLE | D18: 610731 | E18: =IF(INTRO!$E$48="","",ROUND($D18*INTRO!$E$48,0)) -> 73288 | F18: =IF(INTRO!$E$49="","",ROUND($D18*INTRO!$E$49,0)) -> 146575 | G18: =IF(INTRO!$E$50="","",ROUND($D18*INTRO!$E$50,0)) -> 366439 | H18: 1 | I18: 0 | J18: 1 | K18: 1 | L18: =IF(INTRO!$E$38="Endémique", IF($H18>0, IF($H18=4,"Inconnu", IF($H18=99,"Interrompu", $D18)), 0),"Non requis") -> 610731 | M18: 0 | N18: =IF(INTRO!$E$42="Endémique", IF(AND($J18>1,$J18<5), IF($J18=4, "Inconnu", E18+F18), 0),"Non requis") -> 0 | O18: =IF(INTRO!$E$44="Endémique", IF(AND($K18>0,$K18<5), IF($K18=4,"Inconnu", IF($K18=1, $F18*0.33, IF($K18=2, $F18*0.5+$G18*0.2, SUM(F18:G18)))), 0),"Non requis") -> 48369.75 | P18: 1 | Q18: 0 | R18: 0 | S18: 0 | T18: MDA1 (IVM+ALB) | V18: MDA 1 | W18: T2 | X18: 15338 | Y18: COCODY-BINGERVILLE
A19: =IF(INTRO!$E$34<>0,INTRO!$E$34,"") -> CÔTE D'IVOIRE | B19: ABIDJAN 2 | C19: KOUMASSI-PORT BOUET-VRIDI | D19: 966701 | E19: =IF(INTRO!$E$48="","",ROUND($D19*INTRO!$E$48,0)) -> 116004 | F19: =IF(INTRO!$E$49="","",ROUND($D19*INTRO!$E$49,0)) -> 232008 | G19: =IF(INTRO!$E$50="","",ROUND($D19*INTRO!$E$50,0)) -> 580021 | H19: 0 | I19: 0 | J19: 1 | K19: 1 | L19: =IF(INTRO!$E$38="Endémique", IF($H19>0, IF($H19=4,"Inconnu", IF($H19=99,"Interrompu", $D19)), 0),"Non requis") -> 0 | M19: 0 | N19: =IF(INTRO!$E$42="Endémique", IF(AND($J19>1,$J19<5), IF($J19=4, "Inconnu", E19+F19), 0),"Non requis") -> 0 | O19: =IF(INTRO!$E$44="Endémique", IF(AND($K19>0,$K19<5), IF($K19=4,"Inconnu", IF($K19=1, $F19*0.33, IF($K19=2, $F19*0.5+$G19*0.2, SUM(F19:G19)))), 0),"Non requis") -> 76562.64 | P19: 0 | Q19: 0 | R19: 0 | S19: 0 | W19: T2 | X19: 15339 | Y19: KOUMASSI-PORT BOUET-VRIDI
A20: =IF(INTRO!$E$34<>0,INTRO!$E$34,"") -> CÔTE D'IVOIRE | B20: ABIDJAN 2 | C20: MARCORY-TREICHVILLE | D20: 399798 | E20: =IF(INTRO!$E$48="","",ROUND($D20*INTRO!$E$48,0)) -> 47976 | F20: =IF(INTRO!$E$49="","",ROUND($D20*INTRO!$E$49,0)) -> 95952 | G20: =IF(INTRO!$E$50="","",ROUND($D20*INTRO!$E$50,0)) -> 239879 | H20: 0 | I20: 0 | J20: 1 | K20: 1 | L20: =IF(INTRO!$E$38="Endémique", IF($H20>0, IF($H20=4,"Inconnu", IF($H20=99,"Interrompu", $D20)), 0),"Non requis") -> 0 | M20: 0 | N20: =IF(INTRO!$E$42="Endémique", IF(AND($J20>1,$J20<5), IF($J20=4, "Inconnu", E20+F20), 0),"Non requis") -> 0 | O20: =IF(INTRO!$E$44="Endémique", IF(AND($K20>0,$K20<5), IF($K20=4,"Inconnu", IF($K20=1, $F20*0.33, IF($K20=2, $F20*0.5+$G20*0.2, SUM(F20:G20)))), 0),"Non requis") -> 31664.16 | P20: 0 | Q20: 0 | R20: 0 | S20: 0 | W20: T2 | X20: 15340 | Y20: MARCORY-TREICHVILLE
A21: =IF(INTRO!$E$34<>0,INTRO!$E$34,"") -> CÔTE D'IVOIRE | B21: AGNEBY-TIASSA-ME | C21: ADZOPE | D21: 219526 | E21: =IF(INTRO!$E$48="","",ROUND($D21*INTRO!$E$48,0)) -> 26343 | F21: =IF(INTRO!$E$49="","",ROUND($D21*INTRO!$E$49,0)) -> 52686 | G21: =IF(INTRO!$E$50="","",ROUND($D21*INTRO!$E$50,0)) -> 131716 | H21: 1 | I21: 1 | J21: 1 | K21: 2 | L21: =IF(INTRO!$E$38="Endémique", IF($H21>0, IF($H21=4,"Inconnu", IF($H21=99,"Interrompu", $D21)), 0),"Non requis") -> 219526 | M21: 4071 | N21: =IF(INTRO!$E$42="Endémique", IF(AND($J21>1,$J21<5), IF($J21=4, "Inconnu", E21+F21), 0),"Non requis") -> 0 | O21: =IF(INTRO!$E$44="Endémique", IF(AND($K21>0,$K21<5), IF($K21=4,"Inconnu", IF($K21=1, $F21*0.33, IF($K21=2, $F21*0.5+$G21*0.2, SUM(F21:G21)))), 0),"Non requis") -> 52686.2 | P21: 1 | Q21: 1 | R21: 0 | S21: 0 | T21: MDA1 (IVM+ALB) | V21: MDA 1 | W21: T2 | X21: 15341 | Y21: ADZOPE
A22: =IF(INTRO!$E$34<>0,INTRO!$E$34,"") -> CÔTE D'IVOIRE | B22: AGNEBY-TIASSA-ME | C22: AGBOVILLE | D22: 331366 | E22: =IF(INTRO!$E$48="","",ROUND($D22*INTRO!$E$48,0)) -> 39764 | F22: =IF(INTRO!$E$49="","",ROUND($D22*INTRO!$E$49,0)) -> 79528 | G22: =IF(INTRO!$E$50="","",ROUND($D22*INTRO!$E$50,0)) -> 198820 | H22: 1 | I22: 1 | J22: 1 | K22: 2 | L22: =IF(INTRO!$E$38="Endémique", IF($H22>0, IF($H22=4,"Inconnu", IF($H22=99,"Interrompu", $D22)), 0),"Non requis") -> 331366 | M22: 0 | N22: =IF(INTRO!$E$42="Endémique", IF(AND($J22>1,$J22<5), IF($J22=4, "Inconnu", E22+F22), 0),"Non requis") -> 0 | O22: =IF(INTRO!$E$44="Endémique", IF(AND($K22>0,$K22<5), IF($K22=4,"Inconnu", IF($K22=1, $F22*0.33, IF($K22=2, $F22*0.5+$G22*0.2, SUM(F22:G22)))), 0),"Non requis") -> 79528 | P22: 1 | Q22: 1 | R22: 0 | S22: 0 | T22: MDA1 (IVM+ALB) | V22: MDA 1 | W22: T2 | X22: 15342 | Y22: AGBOVILLE
A23: =IF(INTRO!$E$34<>0,INTRO!$E$34,"") -> CÔTE D'IVOIRE | B23: AGNEBY-TIASSA-ME | C23: AKOUPE | D23: 221555 | E23: =IF(INTRO!$E$48="","",ROUND($D23*INTRO!$E$48,0)) -> 26587 | F23: =IF(INTRO!$E$49="","",ROUND($D23*INTRO!$E$49,0)) -> 53173 | G23: =IF(INTRO!$E$50="","",ROUND($D23*INTRO!$E$50,0)) -> 132933 | H23: 1 | I23: 1 | J23: 1 | K23: 2 | L23: =IF(INTRO!$E$38="Endémique", IF($H23>0, IF($H23=4,"Inconnu", IF($H23=99,"Interrompu", $D23)), 0),"Non requis") -> 221555 | M23: 34833 | N23: =IF(INTRO!$E$42="Endémique", IF(AND($J23>1,$J23<5), IF($J23=4, "Inconnu", E23+F23), 0),"Non requis") -> 0 | O23: =IF(INTRO!$E$44="Endémique", IF(AND($K23>0,$K23<5), IF($K23=4,"Inconnu", IF($K23=1, $F23*0.33, IF($K23=2, $F23*0.5+$G23*0.2, SUM(F23:G23)))), 0),"Non requis") -> 53173.1 | P23: 1 | Q23: 1 | R23: 0 | S23: 0 | T23: MDA1 (IVM+ALB) | V23: MDA 1 | W23: T2 | X23: 15343 | Y23: AKOUPE
A24: =IF(INTRO!$E$34<>0,INTRO!$E$34,"") -> CÔTE D'IVOIRE | B24: AGNEBY-TIASSA-ME | C24: ALEPE | D24: 142794 | E24: =IF(INTRO!$E$48="","",ROUND($D24*INTRO!$E$48,0)) -> 17135 | F24: =IF(INTRO!$E$49="","",ROUND($D24*INTRO!$E$49,0)) -> 34271 | G24: =IF(INTRO!$E$50="","",ROUND($D24*INTRO!$E$50,0)) -> 85676 | H24: 1 | I24: 1 | J24: 1 | K24: 1 | L24: =IF(INTRO!$E$38="Endémique", IF($H24>0, IF($H24=4,"Inconnu", IF($H24=99,"Interrompu", $D24)), 0),"Non requis") -> 142794 | M24: 41575 | N24: =IF(INTRO!$E$42="Endémique", IF(AND($J24>1,$J24<5), IF($J24=4, "Inconnu", E24+F24), 0),"Non requis") -> 0 | O24: =IF(INTRO!$E$44="Endémique", IF(AND($K24>0,$K24<5), IF($K24=4,"Inconnu", IF($K24=1, $F24*0.33, IF($K24=2, $F24*0.5+$G24*0.2, SUM(F24:G24)))), 0),"Non requis") -> 11309.43 | P24: 1 | Q24: 1 | R24: 0 | S24: 0 | T24: MDA1 (IVM+ALB) | V24: MDA 1 | W24: T2 | X24: 15344 | Y24: ALEPE
A25: =IF(INTRO!$E$34<>0,INTRO!$E$34,"") -> CÔTE D'IVOIRE | B25: AGNEBY-TIASSA-ME | C25: SIKENSI | D25: 88978 | E25: =IF(INTRO!$E$48="","",ROUND($D25*INTRO!$E$48,0)) -> 10677 | F25: =IF(INTRO!$E$49="","",ROUND($D25*INTRO!$E$49,0)) -> 21355 | G25: =IF(INTRO!$E$50="","",ROUND($D25*INTRO!$E$50,0)) -> 53387 | H25: 1 | I25: 1 | J25: 2 | K25: 2 | L25: =IF(INTRO!$E$38="Endémique", IF($H25>0, IF($H25=4,"Inconnu", IF($H25=99,"Interrompu", $D25)), 0),"Non requis") -> 88978 | M25: 0 | N25: =IF(INTRO!$E$42="Endémique", IF(AND($J25>1,$J25<5), IF($J25=4, "Inconnu", E25+F25), 0),"Non requis") -> 32032 | O25: =IF(INTRO!$E$44="Endémique", IF(AND($K25>0,$K25<5), IF($K25=4,"Inconnu", IF($K25=1, $F25*0.33, IF($K25=2, $F25*0.5+$G25*0.2, SUM(F25:G25)))), 0),"Non requis") -> 21354.9 | P25: 1 | Q25: 1 | R25: 1 | S25: 0 | T25: MDA1 (IVM+ALB) | V25: MDA 1 | W25: T2 | X25: 15345 | Y25: SIKENSI
A26: =IF(INTRO!$E$34<>0,INTRO!$E$34,"") -> CÔTE D'IVOIRE | B26: AGNEBY-TIASSA-ME | C26: TIASSALE | D26: 276931 | E26: =IF(INTRO!$E$48="","",ROUND($D26*INTRO!$E$48,0)) -> 33232 | F26: =IF(INTRO!$E$49="","",ROUND($D26*INTRO!$E$49,0)) -> 66463 | G26: =IF(INTRO!$E$50="","",ROUND($D26*INTRO!$E$50,0)) -> 166159 | H26: 1 | I26: 1 | J26: 2 | K26: 2 | L26: =IF(INTRO!$E$38="Endémique", IF($H26>0, IF($H26=4,"Inconnu", IF($H26=99,"Interrompu", $D26)), 0),"Non requis") -> 276931 | M26: 151470 | N26: =IF(INTRO!$E$42="Endémique", IF(AND($J26>1,$J26<5), IF($J26=4, "Inconnu", E26+F26), 0),"Non requis") -> 99695 | O26: =IF(INTRO!$E$44="Endémique", IF(AND($K26>0,$K26<5), IF($K26=4,"Inconnu", IF($K26=1, $F26*0.33, IF($K26=2, $F26*0.5+$G26*0.2, SUM(F26:G26)))), 0),"Non requis") -> 66463.3 | P26: 1 | Q26: 1 | R26: 1 | S26: 1 | T26: MDA1 (IVM+ALB) | U26: T2 (PZQ) | V26: MDA 1 | W26: T2 | X26: 15346 | Y26: TIASSALE
A27: =IF(INTRO!$E$34<>0,INTRO!$E$34,"") -> CÔTE D'IVOIRE | B27: BELIER | C27: DIDIEVI | D27: 98031 | E27: =IF(INTRO!$E$48="","",ROUND($D27*INTRO!$E$48,0)) -> 11764 | F27: =IF(INTRO!$E$49="","",ROUND($D27*INTRO!$E$49,0)) -> 23527 | G27: =IF(INTRO!$E$50="","",ROUND($D27*INTRO!$E$50,0)) -> 58819 | H27: 1 | I27: 1 | J27: 2 | K27: 2 | L27: =IF(INTRO!$E$38="Endémique", IF($H27>0, IF($H27=4,"Inconnu", IF($H27=99,"Interrompu", $D27)), 0),"Non requis") -> 98031 | M27: 21677 | N27: =IF(INTRO!$E$42="Endémique", IF(AND($J27>1,$J27<5), IF($J27=4, "Inconnu", E27+F27), 0),"Non requis") -> 35291 | O27: =IF(INTRO!$E$44="Endémique", IF(AND($K27>0,$K27<5), IF($K27=4,"Inconnu", IF($K27=1, $F27*0.33, IF($K27=2, $F27*0.5+$G27*0.2, SUM(F27:G27)))), 0),"Non requis") -> 23527.3 | P27: 1 | Q27: 1 | R27: 1 | S27: 0 | T27: MDA1 (IVM+ALB) | V27: MDA 1 | W27: T2 | X27: 15347 | Y27: DIDIEVI
A28: =IF(INTRO!$E$34<>0,INTRO!$E$34,"") -> CÔTE D'IVOIRE | B28: BELIER | C28: TIEBISSOU | D28: 103618 | E28: =IF(INTRO!$E$48="","",ROUND($D28*INTRO!$E$48,0)) -> 12434 | F28: =IF(INTRO!$E$49="","",ROUND($D28*INTRO!$E$49,0)) -> 24868 | G28: =IF(INTRO!$E$50="","",ROUND($D28*INTRO!$E$50,0)) -> 62171 | H28: 1 | I28: 1 | J28: 2 | K28: 2 | L28: =IF(INTRO!$E$38="Endémique", IF($H28>0, IF($H28=4,"Inconnu", IF($H28=99,"Interrompu", $D28)), 0),"Non requis") -> 103618 | M28: 26841 | N28: =IF(INTRO!$E$42="Endémique", IF(AND($J28>1,$J28<5), IF($J28=4, "Inconnu", E28+F28), 0),"Non requis") -> 37302 | O28: =IF(INTRO!$E$44="Endémique", IF(AND($K28>0,$K28<5), IF($K28=4,"Inconnu", IF($K28=1, $F28*0.33, IF($K28=2, $F28*0.5+$G28*0.2, SUM(F28:G28)))), 0),"Non requis") -> 24868.2 | P28: 1 | Q28: 1 | R28: 1 | S28: 1 | T28: MDA1 (IVM+ALB) | U28: T2 (PZQ) | V28: MDA 1 | W28: T2 | X28: 15348 | Y28: TIEBISSOU
A29: =IF(INTRO!$E$34<>0,INTRO!$E$34,"") -> CÔTE D'IVOIRE | B29: BELIER | C29: TOUMODI | D29: 170656 | E29: =IF(INTRO!$E$48="","",ROUND($D29*INTRO!$E$48,0)) -> 20479 | F29: =IF(INTRO!$E$49="","",ROUND($D29*INTRO!$E$49,0)) -> 40957 | G29: =IF(INTRO!$E$50="","",ROUND($D29*INTRO!$E$50,0)) -> 102394 | H29: 1 | I29: 1 | J29: 2 | K29: 2 | L29: =IF(INTRO!$E$38="Endémique", IF($H29>0, IF($H29=4,"Inconnu", IF($H29=99,"Interrompu", $D29)), 0),"Non requis") -> 170656 | M29: 61858 | N29: =IF(INTRO!$E$42="Endémique", IF(AND($J29>1,$J29<5), IF($J29=4, "Inconnu", E29+F29), 0),"Non requis") -> 61436 | O29: =IF(INTRO!$E$44="Endémique", IF(AND($K29>0,$K29<5), IF($K29=4,"Inconnu", IF($K29=1, $F29*0.33, IF($K29=2, $F29*0.5+$G29*0.2, SUM(F29:G29)))), 0),"Non requis") -> 40957.3 | P29: 1 | Q29: 1 | R29: 1 | S29: 0 | T29: MDA1 (IVM+ALB) | V29: MDA 1 | W29: T2 | X29: 15349 | Y29: TOUMODI
A30: =IF(INTRO!$E$34<>0,INTRO!$E$34,"") -> CÔTE D'IVOIRE | B30: BELIER | C30: YAMOUSSOUKRO | D30: 403363 | E30: =IF(INTRO!$E$48="","",ROUND($D30*INTRO!$E$48,0)) -> 48404 | F30: =IF(INTRO!$E$49="","",ROUND($D30*INTRO!$E$49,0)) -> 96807 | G30: =IF(INTRO!$E$50="","",ROUND($D30*INTRO!$E$50,0)) -> 242018 | H30: 1 | I30: 1 | J30: 2 | K30: 2 | L30: =IF(INTRO!$E$38="Endémique", IF($H30>0, IF($H30=4,"Inconnu", IF($H30=99,"Interrompu", $D30)), 0),"Non requis") -> 403363 | M30: 35558 | N30: =IF(INTRO!$E$42="Endémique", IF(AND($J30>1,$J30<5), IF($J30=4, "Inconnu", E30+F30), 0),"Non requis") -> 145211 | O30: =IF(INTRO!$E$44="Endémique", IF(AND($K30>0,$K30<5), IF($K30=4,"Inconnu", IF($K30=1, $F30*0.33, IF($K30=2, $F30*0.5+$G30*0.2, SUM(F30:G30)))), 0),"Non requis") -> 96807.1 | P30: 1 | Q30: 1 | R30: 1 | S30: 1 | T30: MDA1 (IVM+ALB) | U30: T2 (PZQ) | V30: MDA 1 | W30: T2 | X30: 15350 | Y30: YAMOUSSOUKRO
A31: =IF(INTRO!$E$34<>0,INTRO!$E$34,"") -> CÔTE D'IVOIRE | B31: BOUKANI-GONTOUGO | C31: BONDOUKOU | D31: 442326 | E31: =IF(INTRO!$E$48="","",ROUND($D31*INTRO!$E$48,0)) -> 53079 | F31: =IF(INTRO!$E$49="","",ROUND($D31*INTRO!$E$49,0)) -> 106158 | G31: =IF(INTRO!$E$50="","",ROUND($D31*INTRO!$E$50,0)) -> 265396 | H31: 1 | I31: 1 | J31: 1 | K31: 1 | L31: =IF(INTRO!$E$38="Endémique", IF($H31>0, IF($H31=4,"Inconnu", IF($H31=99,"Interrompu", $D31)), 0),"Non requis") -> 442326 | M31: 67077 | N31: =IF(INTRO!$E$42="Endémique", IF(AND($J31>1,$J31<5), IF($J31=4, "Inconnu", E31+F31), 0),"Non requis") -> 0 | O31: =IF(INTRO!$E$44="Endémique", IF(AND($K31>0,$K31<5), IF($K31=4,"Inconnu", IF($K31=1, $F31*0.33, IF($K31=2, $F31*0.5+$G31*0.2, SUM(F31:G31)))), 0),"Non requis") -> 35032.14 | P31: 1 | Q31: 1 | R31: 0 | S31: 0 | T31: MDA1 (IVM+ALB) | V31: MDA 1 | W31: T2 | X31: 15351 | Y31: BONDOUKOU
A32: =IF(INTRO!$E$34<>0,INTRO!$E$34,"") -> CÔTE D'IVOIRE | B32: BOUKANI-GONTOUGO | C32: BOUNA | D32: 252562 | E32: =IF(INTRO!$E$48="","",ROUND($D32*INTRO!$E$48,0)) -> 30307 | F32: =IF(INTRO!$E$49="","",ROUND($D32*INTRO!$E$49,0)) -> 60615 | G32: =IF(INTRO!$E$50="","",ROUND($D32*INTRO!$E$50,0)) -> 151537 | H32: 1 | I32: 1 | J32: 1 | K32: 2 | L32: =IF(INTRO!$E$38="Endémique", IF($H32>0, IF($H32=4,"Inconnu", IF($H32=99,"Interrompu", $D32)), 0),"Non requis") -> 252562 | M32: 27907 | N32: =IF(INTRO!$E$42="Endémique", IF(AND($J32>1,$J32<5), IF($J32=4, "Inconnu", E32+F32), 0),"Non requis") -> 0 | O32: =IF(INTRO!$E$44="Endémique", IF(AND($K32>0,$K32<5), IF($K32=4,"Inconnu", IF($K32=1, $F32*0.33, IF($K32=2, $F32*0.5+$G32*0.2, SUM(F32:G32)))), 0),"Non requis") -> 60614.9 | P32: 1 | Q32: 1 | R32: 0 | S32: 1 | T32: MDA1 (IVM+ALB) | U32: T2 (PZQ) | V32: MDA 1 | W32: T2 | X32: 15352 | Y32: BOUNA
A33: =IF(INTRO!$E$34<>0,INTRO!$E$34,"") -> CÔTE D'IVOIRE | B33: BOUKANI-GONTOUGO | C33: NASSIAN | D33: 50515 | E33: =IF(INTRO!$E$48="","",ROUND($D33*INTRO!$E$48,0)) -> 6062 | F33: =IF(INTRO!$E$49="","",ROUND($D33*INTRO!$E$49,0)) -> 12124 | G33: =IF(INTRO!$E$50="","",ROUND($D33*INTRO!$E$50,0)) -> 30309 | H33: 1 | I33: 1 | J33: 2 | K33: 0 | L33: =IF(INTRO!$E$38="Endémique", IF($H33>0, IF($H33=4,"Inconnu", IF($H33=99,"Interrompu", $D33)), 0),"Non requis") -> 50515 | M33: 0 | N33: =IF(INTRO!$E$42="Endémique", IF(AND($J33>1,$J33<5), IF($J33=4, "Inconnu", E33+F33), 0),"Non requis") -> 18186 | O33: =IF(INTRO!$E$44="Endémique", IF(AND($K33>0,$K33<5), IF($K33=4,"Inconnu", IF($K33=1, $F33*0.33, IF($K33=2, $F33*0.5+$G33*0.2, SUM(F33:G33)))), 0),"Non requis") -> 0 | P33: 1 | Q33: 1 | R33: 1 | S33: 0 | T33: MDA1 (IVM+ALB) | V33: MDA 1 | X33: 15353 | Y33: NASSIAN
A34: =IF(INTRO!$E$34<>0,INTRO!$E$34,"") -> CÔTE D'IVOIRE | B34: BOUKANI-GONTOUGO | C34: TANDA | D34: 314525 | E34: =IF(INTRO!$E$48="","",ROUND($D34*INTRO!$E$48,0)) -> 37743 | F34: =IF(INTRO!$E$49="","",ROUND($D34*INTRO!$E$49,0)) -> 75486 | G34: =IF(INTRO!$E$50="","",ROUND($D34*INTRO!$E$50,0)) -> 188715 | H34: 1 | I34: 1 | J34: 2 | K34: 0 | L34: =IF(INTRO!$E$38="Endémique", IF($H34>0, IF($H34=4,"Inconnu", IF($H34=99,"Interrompu", $D34)), 0),"Non requis") -> 314525 | M34: 55737 | N34: =IF(INTRO!$E$42="Endémique", IF(AND($J34>1,$J34<5), IF($J34=4, "Inconnu", E34+F34), 0),"Non requis") -> 113229 | O34: =IF(INTRO!$E$44="Endémique", IF(AND($K34>0,$K34<5), IF($K34=4,"Inconnu", IF($K34=1, $F34*0.33, IF($K34=2, $F34*0.5+$G34*0.2, SUM(F34:G34)))), 0),"Non requis") -> 0 | P34: 1 | Q34: 1 | R34: 1 | S34: 0 | T34: MDA1 (IVM+ALB) | V34: MDA 1 | X34: 15354 | Y34: TANDA
A35: =IF(INTRO!$E$34<>0,INTRO!$E$34,"") -> CÔTE D'IVOIRE | B35: CAVALLY-GUEMON | C35: BANGOLO | D35: 360885 | E35: =IF(INTRO!$E$48="","",ROUND($D35*INTRO!$E$48,0)) -> 43306 | F35: =IF(INTRO!$E$49="","",ROUND($D35*INTRO!$E$49,0)) -> 86612 | G35: =IF(INTRO!$E$50="","",ROUND($D35*INTRO!$E$50,0)) -> 216531 | H35: 1 | I35: 1 | J35: 1 | K35: 3 | L35: =IF(INTRO!$E$38="Endémique", IF($H35>0, IF($H35=4,"Inconnu", IF($H35=99,"Interrompu", $D35)), 0),"Non requis") -> 360885 | M35: 23239 | N35: =IF(INTRO!$E$42="Endémique", IF(AND($J35>1,$J35<5), IF($J35=4, "Inconnu", E35+F35), 0),"Non requis") -> 0 | O35: =IF(INTRO!$E$44="Endémique", IF(AND($K35>0,$K35<5), IF($K35=4,"Inconnu", IF($K35=1, $F35*0.33, IF($K35=2, $F35*0.5+$G35*0.2, SUM(F35:G35)))), 0),"Non requis") -> 303143 | P35: 1 | Q35: 1 | R35: 0 | S35: 1 | T35: MDA1 (IVM+ALB) | U35: T2 (PZQ) | V35: MDA 1 | W35: T2 | X35: 15355 | Y35: BANGOLO
A36: =IF(INTRO!$E$34<>0,INTRO!$E$34,"") -> CÔTE D'IVOIRE | B36: CAVALLY-GUEMON | C36: BLOLEQUIN | D36: 139914 | E36: =IF(INTRO!$E$48="","",ROUND($D36*INTRO!$E$48,0)) -> 16790 | F36: =IF(INTRO!$E$49="","",ROUND($D36*INTRO!$E$49,0)) -> 33579 | G36: =IF(INTRO!$E$50="","",ROUND($D36*INTRO!$E$50,0)) -> 83948 | H36: 1 | I36: 1 | J36: 1 | K36: 2 | L36: =IF(INTRO!$E$38="Endémique", IF($H36>0, IF($H36=4,"Inconnu", IF($H36=99,"Interrompu", $D36)), 0),"Non requis") -> 139914 | M36: 24554 | N36: =IF(INTRO!$E$42="Endémique", IF(AND($J36>1,$J36<5), IF($J36=4, "Inconnu", E36+F36), 0),"Non requis") -> 0 | O36: =IF(INTRO!$E$44="Endémique", IF(AND($K36>0,$K36<5), IF($K36=4,"Inconnu", IF($K36=1, $F36*0.33, IF($K36=2, $F36*0.5+$G36*0.2, SUM(F36:G36)))), 0),"Non requis") -> 33579.1 | P36: 1 | Q36: 1 | R36: 0 | S36: 1 | T36: MDA1 (IVM+ALB) | U36: T2 (PZQ) | V36: MDA 1 | W36: T2 | X36: 15356 | Y36: BLOLEQUIN
A37: =IF(INTRO!$E$34<>0,INTRO!$E$34,"") -> CÔTE D'IVOIRE | B37: CAVALLY-GUEMON | C37: DUEKOUE | D37: 462999 | E37: =IF(INTRO!$E$48="","",ROUND($D37*INTRO!$E$48,0)) -> 55560 | F37: =IF(INTRO!$E$49="","",ROUND($D37*INTRO!$E$49,0)) -> 111120 | G37: =IF(INTRO!$E$50="","",ROUND($D37*INTRO!$E$50,0)) -> 277799 | H37: 1 | I37: 1 | J37: 1 | K37: 2 | L37: =IF(INTRO!$E$38="Endémique", IF($H37>0, IF($H37=4,"Inconnu", IF($H37=99,"Interrompu", $D37)), 0),"Non requis") -> 462999 | M37: 74391 | N37: =IF(INTRO!$E$42="Endémique", IF(AND($J37>1,$J37<5), IF($J37=4, "Inconnu", E37+F37), 0),"Non requis") -> 0 | O37: =IF(INTRO!$E$44="Endémique", IF(AND($K37>0,$K37<5), IF($K37=4,"Inconnu", IF($K37=1, $F37*0.33, IF($K37=2, $F37*0.5+$G37*0.2, SUM(F37:G37)))), 0),"Non requis") -> 111119.8 | P37: 1 | Q37: 1 | R37: 0 | S37: 0 | T37: MDA1 (IVM+ALB) | V37: MDA 1 | W37: T2 | X37: 15357 | Y37: DUEKOUE
A38: =IF(INTRO!$E$34<>0,INTRO!$E$34,"") -> CÔTE D'IVOIRE | B38: CAVALLY-GUEMON | C38: GUIGLO | D38: 317220 | E38: =IF(INTRO!$E$48="","",ROUND($D38*INTRO!$E$48,0)) -> 38066 | F38: =IF(INTRO!$E$49="","",ROUND($D38*INTRO!$E$49,0)) -> 76133 | G38: =IF(INTRO!$E$50="","",ROUND($D38*INTRO!$E$50,0)) -> 190332 | H38: 1 | I38: 1 | J38: 1 | K38: 2 | L38: =IF(INTRO!$E$38="Endémique", IF($H38>0, IF($H38=4,"Inconnu", IF($H38=99,"Interrompu", $D38)), 0),"Non requis") -> 317220 | M38: 12939 | N38: =IF(INTRO!$E$42="Endémique", IF(AND($J38>1,$J38<5), IF($J38=4, "Inconnu", E38+F38), 0),"Non requis") -> 0 | O38: =IF(INTRO!$E$44="Endémique", IF(AND($K38>0,$K38<5), IF($K38=4,"Inconnu", IF($K38=1, $F38*0.33, IF($K38=2, $F38*0.5+$G38*0.2, SUM(F38:G38)))), 0),"Non requis") -> 76132.9 | P38: 1 | Q38: 1 | R38: 0 | S38: 0 | T38: MDA1 (IVM+ALB) | V38: MDA 1 | W38: T2 | X38: 15358 | Y38: GUIGLO
A39: =IF(INTRO!$E$34<>0,INTRO!$E$34,"") -> CÔTE D'IVOIRE | B39: CAVALLY-GUEMON | C39: KOUIBLY | D39: 222906 | E39: =IF(INTRO!$E$48="","",ROUND($D39*INTRO!$E$48,0)) -> 26749 | F39: =IF(INTRO!$E$49="","",ROUND($D39*INTRO!$E$49,0)) -> 53497 | G39: =IF(INTRO!$E$50="","",ROUND($D39*INTRO!$E$50,0)) -> 133744 | H39: 1 | I39: 1 | J39: 1 | K39: 2 | L39: =IF(INTRO!$E$38="Endémique", IF($H39>0, IF($H39=4,"Inconnu", IF($H39=99,"Interrompu", $D39)), 0),"Non requis") -> 222906 | M39: 48289 | N39: =IF(INTRO!$E$42="Endémique", IF(AND($J39>1,$J39<5), IF($J39=4, "Inconnu", E39+F39), 0),"Non requis") -> 0 | O39: =IF(INTRO!$E$44="Endémique", IF(AND($K39>0,$K39<5), IF($K39=4,"Inconnu", IF($K39=1, $F39*0.33, IF($K39=2, $F39*0.5+$G39*0.2, SUM(F39:G39)))), 0),"Non requis") -> 53497.3 | P39: 1 | Q39: 1 | R39: 0 | S39: 0 | T39: MDA1 (IVM+ALB) | V39: MDA 1 | W39: T2 | X39: 15359 | Y39: KOUIBLY
A40: =IF(INTRO!$E$34<>0,INTRO!$E$34,"") -> CÔTE D'IVOIRE | B40: CAVALLY-GUEMON | C40: TOULEPLEU | D40: 64652 | E40: =IF(INTRO!$E$48="","",ROUND($D40*INTRO!$E$48,0)) -> 7758 | F40: =IF(INTRO!$E$49="","",ROUND($D40*INTRO!$E$49,0)) -> 15516 | G40: =IF(INTRO!$E$50="","",ROUND($D40*INTRO!$E$50,0)) -> 38791 | H40: 1 | I40: 1 | J40: 1 | K40: 2 | L40: =IF(INTRO!$E$38="Endémique", IF($H40>0, IF($H40=4,"Inconnu", IF($H40=99,"Interrompu", $D40)), 0),"Non requis") -> 64652 | M40: 28707 | N40: =IF(INTRO!$E$42="Endémique", IF(AND($J40>1,$J40<5), IF($J40=4, "Inconnu", E40+F40), 0),"Non requis") -> 0 | O40: =IF(INTRO!$E$44="Endémique", IF(AND($K40>0,$K40<5), IF($K40=4,"Inconnu", IF($K40=1, $F40*0.33, IF($K40=2, $F40*0.5+$G40*0.2, SUM(F40:G40)))), 0),"Non requis") -> 15516.2 | P40: 1 | Q40: 1 | R40: 0 | S40: 0 | T40: MDA1 (IVM+ALB) | V40: MDA 1 | W40: T2 | X40: 15360 | Y40: TOULEPLEU
A41: =IF(INTRO!$E$34<>0,INTRO!$E$34,"") -> CÔTE D'IVOIRE | B41: GBEKE | C41: BEOUMI | D41: 174930 | E41: =IF(INTRO!$E$48="","",ROUND($D41*INTRO!$E$48,0)) -> 20992 | F41: =IF(INTRO!$E$49="","",ROUND($D41*INTRO!$E$49,0)) -> 41983 | G41: =IF(INTRO!$E$50="","",ROUND($D41*INTRO!$E$50,0)) -> 104958 | H41: 1 | I41: 1 | J41: 1 | K41: 1 | L41: =IF(INTRO!$E$38="Endémique", IF($H41>0, IF($H41=4,"Inconnu", IF($H41=99,"Interrompu", $D41)), 0),"Non requis") -> 174930 | M41: 13523 | N41: =IF(INTRO!$E$42="Endémique", IF(AND($J41>1,$J41<5), IF($J41=4, "Inconnu", E41+F41), 0),"Non requis") -> 0 | O41: =IF(INTRO!$E$44="Endémique", IF(AND($K41>0,$K41<5), IF($K41=4,"Inconnu", IF($K41=1, $F41*0.33, IF($K41=2, $F41*0.5+$G41*0.2, SUM(F41:G41)))), 0),"Non requis") -> 13854.39 | P41: 1 | Q41: 1 | R41: 0 | S41: 1 | T41: MDA1 (IVM+ALB) | U41: T2 (PZQ) | V41: MDA 1 | W41: T2 | X41: 15361 | Y41: BEOUMI
A42: =IF(INTRO!$E$34<>0,INTRO!$E$34,"") -> CÔTE D'IVOIRE | B42: GBEKE | C42: BOUAKE NORD-EST | D42: 293425 | E42: =IF(INTRO!$E$48="","",ROUND($D42*INTRO!$E$48,0)) -> 35211 | F42: =IF(INTRO!$E$49="","",ROUND($D42*INTRO!$E$49,0)) -> 70422 | G42: =IF(INTRO!$E$50="","",ROUND($D42*INTRO!$E$50,0)) -> 176055 | H42: 1 | I42: 1 | J42: 2 | K42: 1 | L42: =IF(INTRO!$E$38="Endémique", IF($H42>0, IF($H42=4,"Inconnu", IF($H42=99,"Interrompu", $D42)), 0),"Non requis") -> 293425 | M42: 23152 | N42: =IF(INTRO!$E$42="Endémique", IF(AND($J42>1,$J42<5), IF($J42=4, "Inconnu", E42+F42), 0),"Non requis") -> 105633 | O42: =IF(INTRO!$E$44="Endémique", IF(AND($K42>0,$K42<5), IF($K42=4,"Inconnu", IF($K42=1, $F42*0.33, IF($K42=2, $F42*0.5+$G42*0.2, SUM(F42:G42)))), 0),"Non requis") -> 23239.26 | P42: 1 | Q42: 1 | R42: 1 | S42: 1 | T42: MDA1 (IVM+ALB) | U42: T2 (PZQ) | V42: MDA 1 | W42: T2 | X42: 15362 | Y42: BOUAKE NORD-EST
A43: =IF(INTRO!$E$34<>0,INTRO!$E$34,"") -> CÔTE D'IVOIRE | B43: GBEKE | C43: BOUAKE NORD-OUEST | D43: 300861 | E43: =IF(INTRO!$E$48="","",ROUND($D43*INTRO!$E$48,0)) -> 36103 | F43: =IF(INTRO!$E$49="","",ROUND($D43*INTRO!$E$49,0)) -> 72207 | G43: =IF(INTRO!$E$50="","",ROUND($D43*INTRO!$E$50,0)) -> 180517 | H43: 1 | I43: 1 | J43: 1 | K43: 2 | L43: =IF(INTRO!$E$38="Endémique", IF($H43>0, IF($H43=4,"Inconnu", IF($H43=99,"Interrompu", $D43)), 0),"Non requis") -> 300861 | M43: 0 | N43: =IF(INTRO!$E$42="Endémique", IF(AND($J43>1,$J43<5), IF($J43=4, "Inconnu", E43+F43), 0),"Non requis") -> 0 | O43: =IF(INTRO!$E$44="Endémique", IF(AND($K43>0,$K43<5), IF($K43=4,"Inconnu", IF($K43=1, $F43*0.33, IF($K43=2, $F43*0.5+$G43*0.2, SUM(F43:G43)))), 0),"Non requis") -> 72206.9 | P43: 1 | Q43: 1 | R43: 0 | S43: 1 | T43: MDA1 (IVM+ALB) | U43: T2 (PZQ) | V43: MDA 1 | W43: T2 | X43: 15363 | Y43: BOUAKE NORD-OUEST
A44: =IF(INTRO!$E$34<>0,INTRO!$E$34,"") -> CÔTE D'IVOIRE | B44: GBEKE | C44: BOUAKE SUD | D44: 270259 | E44: =IF(INTRO!$E$48="","",ROUND($D44*INTRO!$E$48,0)) -> 32431 | F44: =IF(INTRO!$E$49="","",ROUND($D44*INTRO!$E$49,0)) -> 64862 | G44: =IF(INTRO!$E$50="","",ROUND($D44*INTRO!$E$50,0)) -> 162155 | H44: 1 | I44: 0 | J44: 1 | K44: 1 | L44: =IF(INTRO!$E$38="Endémique", IF($H44>0, IF($H44=4,"Inconnu", IF($H44=99,"Interrompu", $D44)), 0),"Non requis") -> 270259 | M44: 0 | N44: =IF(INTRO!$E$42="Endémique", IF(AND($J44>1,$J44<5), IF($J44=4, "Inconnu", E44+F44), 0),"Non requis") -> 0 | O44: =IF(INTRO!$E$44="Endémique", IF(AND($K44>0,$K44<5), IF($K44=4,"Inconnu", IF($K44=1, $F44*0.33, IF($K44=2, $F44*0.5+$G44*0.2, SUM(F44:G44)))), 0),"Non requis") -> 21404.46 | P44: 1 | Q44: 0 | R44: 0 | S44: 1 | T44: MDA1 (IVM+ALB) | U44: T2 (PZQ) | V44: MDA 1 | W44: T2 | X44: 15364 | Y44: BOUAKE SUD
A45: =IF(INTRO!$E$34<>0,INTRO!$E$34,"") -> CÔTE D'IVOIRE | B45: GBEKE | C45: SAKASSOU | D45: 107229 | E45: =IF(INTRO!$E$48="","",ROUND($D45*INTRO!$E$48,0)) -> 12867 | F45: =IF(INTRO!$E$49="","",ROUND($D45*INTRO!$E$49,0)) -> 25735 | G45: =IF(INTRO!$E$50="","",ROUND($D45*INTRO!$E$50,0)) -> 64337 | H45: 1 | I45: 1 | J45: 2 | K45: 2 | L45: =IF(INTRO!$E$38="Endémique", IF($H45>0, IF($H45=4,"Inconnu", IF($H45=99,"Interrompu", $D45)), 0),"Non requis") -> 107229 | M45: 0 | N45: =IF(INTRO!$E$42="Endémique", IF(AND($J45>1,$J45<5), IF($J45=4, "Inconnu", E45+F45), 0),"Non requis") -> 38602 | O45: =IF(INTRO!$E$44="Endémique", IF(AND($K45>0,$K45<5), IF($K45=4,"Inconnu", IF($K45=1, $F45*0.33, IF($K45=2, $F45*0.5+$G45*0.2, SUM(F45:G45)))), 0),"Non requis") -> 25734.9 | P45: 1 | Q45: 1 | R45: 1 | S45: 1 | T45: MDA1 (IVM+ALB) | U45: T2 (PZQ) | V45: MDA 1 | W45: T2 | X45: 15365 | Y45: SAKASSOU
A46: =IF(INTRO!$E$34<>0,INTRO!$E$34,"") -> CÔTE D'IVOIRE | B46: GBOKLE-NAWA-SAN-PEDRO | C46: GUEYO | D46: 94926 | E46: =IF(INTRO!$E$48="","",ROUND($D46*INTRO!$E$48,0)) -> 11391 | F46: =IF(INTRO!$E$49="","",ROUND($D46*INTRO!$E$49,0)) -> 22782 | G46: =IF(INTRO!$E$50="","",ROUND($D46*INTRO!$E$50,0)) -> 56956 | H46: 1 | I46: 1 | J46: 1 | K46: 2 | L46: =IF(INTRO!$E$38="Endémique", IF($H46>0, IF($H46=4,"Inconnu", IF($H46=99,"Interrompu", $D46)), 0),"Non requis") -> 94926 | M46: 48446 | N46: =IF(INTRO!$E$42="Endémique", IF(AND($J46>1,$J46<5), IF($J46=4, "Inconnu", E46+F46), 0),"Non requis") -> 0 | O46: =IF(INTRO!$E$44="Endémique", IF(AND($K46>0,$K46<5), IF($K46=4,"Inconnu", IF($K46=1, $F46*0.33, IF($K46=2, $F46*0.5+$G46*0.2, SUM(F46:G46)))), 0),"Non requis") -> 22782.2 | P46: 1 | Q46: 1 | R46: 0 | S46: 0 | T46: MDA1 (IVM+ALB) | V46: MDA 1 | W46: T2 | X46: 15366 | Y46: GUEYO
A47: =IF(INTRO!$E$34<>0,INTRO!$E$34,"") -> CÔTE D'IVOIRE | B47: GBOKLE-NAWA-SAN-PEDRO | C47: SAN PEDRO | D47: 715981 | E47: =IF(INTRO!$E$48="","",ROUND($D47*INTRO!$E$48,0)) -> 85918 | F47: =IF(INTRO!$E$49="","",ROUND($D47*INTRO!$E$49,0)) -> 171835 | G47: =IF(INTRO!$E$50="","",ROUND($D47*INTRO!$E$50,0)) -> 429589 | H47: 1 | I47: 0 | J47: 1 | K47: 2 | L47: =IF(INTRO!$E$38="Endémique", IF($H47>0, IF($H47=4,"Inconnu", IF($H47=99,"Interrompu", $D47)), 0),"Non requis") -> 715981 | M47: 0 | N47: =IF(INTRO!$E$42="Endémique", IF(AND($J47>1,$J47<5), IF($J47=4, "Inconnu", E47+F47), 0),"Non requis") -> 0 | O47: =IF(INTRO!$E$44="Endémique", IF(AND($K47>0,$K47<5), IF($K47=4,"Inconnu", IF($K47=1, $F47*0.33, IF($K47=2, $F47*0.5+$G47*0.2, SUM(F47:G47)))), 0),"Non requis") -> 171835.3 | P47: 1 | Q47: 0 | R47: 0 | S47: 0 | T47: MDA1 (IVM+ALB) | V47: MDA 1 | W47: T2 | X47: 15367 | Y47: SAN PEDRO
A48: =IF(INTRO!$E$34<>0,INTRO!$E$34,"") -> CÔTE D'IVOIRE | B48: GBOKLE-NAWA-SAN-PEDRO | C48: SASSANDRA | D48: 339748 | E48: =IF(INTRO!$E$48="","",ROUND($D48*INTRO!$E$48,0)) -> 40770 | F48: =IF(INTRO!$E$49="","",ROUND($D48*INTRO!$E$49,0)) -> 81540 | G48: =IF(INTRO!$E$50="","",ROUND($D48*INTRO!$E$50,0)) -> 203849 | H48: 1 | I48: 1 | J48: 1 | K48: 2 | L48: =IF(INTRO!$E$38="Endémique", IF($H48>0, IF($H48=4,"Inconnu", IF($H48=99,"Interrompu", $D48)), 0),"Non requis") -> 339748 | M48: 153412 | N48: =IF(INTRO!$E$42="Endémique", IF(AND($J48>1,$J48<5), IF($J48=4, "Inconnu", E48+F48), 0),"Non requis") -> 0 | O48: =IF(INTRO!$E$44="Endémique", IF(AND($K48>0,$K48<5), IF($K48=4,"Inconnu", IF($K48=1, $F48*0.33, IF($K48=2, $F48*0.5+$G48*0.2, SUM(F48:G48)))), 0),"Non requis") -> 81539.8 | P48: 1 | Q48: 1 | R48: 0 | S48: 0 | T48: MDA1 (IVM+ALB) | V48: MDA 1 | W48: T2 | X48: 15368 | Y48: SASSANDRA
A49: =IF(INTRO!$E$34<>0,INTRO!$E$34,"") -> CÔTE D'IVOIRE | B49: GBOKLE-NAWA-SAN-PEDRO | C49: SOUBRE | D49: 1185855 | E49: =IF(INTRO!$E$48="","",ROUND($D49*INTRO!$E$48,0)) -> 142303 | F49: =IF(INTRO!$E$49="","",ROUND($D49*INTRO!$E$49,0)) -> 284605 | G49: =IF(INTRO!$E$50="","",ROUND($D49*INTRO!$E$50,0)) -> 711513 | H49: 1 | I49: 1 | J49: 1 | K49: 2 | L49: =IF(INTRO!$E$38="Endémique", IF($H49>0, IF($H49=4,"Inconnu", IF($H49=99,"Interrompu", $D49)), 0),"Non requis") -> 1185855 | M49: 274753 | N49: =IF(INTRO!$E$42="Endémique", IF(AND($J49>1,$J49<5), IF($J49=4, "Inconnu", E49+F49), 0),"Non requis") -> 0 | O49: =IF(INTRO!$E$44="Endémique", IF(AND($K49>0,$K49<5), IF($K49=4,"Inconnu", IF($K49=1, $F49*0.33, IF($K49=2, $F49*0.5+$G49*0.2, SUM(F49:G49)))), 0),"Non requis") -> 284605.1 | P49: 1 | Q49: 1 | R49: 0 | S49: 0 | T49: MDA1 (IVM+ALB) | V49: MDA 1 | W49: T2 | X49: 15369 | Y49: SOUBRE
A50: =IF(INTRO!$E$34<>0,INTRO!$E$34,"") -> CÔTE D'IVOIRE | B50: GBOKLE-NAWA-SAN-PEDRO | C50: TABOU | D50: 221786 | E50: =IF(INTRO!$E$48="","",ROUND($D50*INTRO!$E$48,0)) -> 26614 | F50: =IF(INTRO!$E$49="","",ROUND($D50*INTRO!$E$49,0)) -> 53229 | G50: =IF(INTRO!$E$50="","",ROUND($D50*INTRO!$E$50,0)) -> 133072 | H50: 1 | I50: 1 | J50: 2 | K50: 2 | L50: =IF(INTRO!$E$38="Endémique", IF($H50>0, IF($H50=4,"Inconnu", IF($H50=99,"Interrompu", $D50)), 0),"Non requis") -> 221786 | M50: 56412 | N50: =IF(INTRO!$E$42="Endémique", IF(AND($J50>1,$J50<5), IF($J50=4, "Inconnu", E50+F50), 0),"Non requis") -> 79843 | O50: =IF(INTRO!$E$44="Endémique", IF(AND($K50>0,$K50<5), IF($K50=4,"Inconnu", IF($K50=1, $F50*0.33, IF($K50=2, $F50*0.5+$G50*0.2, SUM(F50:G50)))), 0),"Non requis") -> 53228.9 | P50: 1 | Q50: 1 | R50: 1 | S50: 0 | T50: MDA1 (IVM+ALB) | V50: MDA 1 | W50: T2 | X50: 15370 | Y50: TABOU
A51: =IF(INTRO!$E$34<>0,INTRO!$E$34,"") -> CÔTE D'IVOIRE | B51: GOH | C51: GAGNOA | D51: 683018 | E51: =IF(INTRO!$E$48="","",ROUND($D51*INTRO!$E$48,0)) -> 81962 | F51: =IF(INTRO!$E$49="","",ROUND($D51*INTRO!$E$49,0)) -> 163924 | G51: =IF(INTRO!$E$50="","",ROUND($D51*INTRO!$E$50,0)) -> 409811 | H51: 1 | I51: 1 | J51: 1 | K51: 2 | L51: =IF(INTRO!$E$38="Endémique", IF($H51>0, IF($H51=4,"Inconnu", IF($H51=99,"Interrompu", $D51)), 0),"Non requis") -> 683018 | M51: 0 | N51: =IF(INTRO!$E$42="Endémique", IF(AND($J51>1,$J51<5), IF($J51=4, "Inconnu", E51+F51), 0),"Non requis") -> 0 | O51: =IF(INTRO!$E$44="Endémique", IF(AND($K51>0,$K51<5), IF($K51=4,"Inconnu", IF($K51=1, $F51*0.33, IF($K51=2, $F51*0.5+$G51*0.2, SUM(F51:G51)))), 0),"Non requis") -> 163924.2 | P51: 1 | Q51: 1 | R51: 0 | S51: 0 | T51: MDA1 (IVM+ALB) | V51: MDA 1 | W51: T2 | X51: 15371 | Y51: GAGNOA
A52: =IF(INTRO!$E$34<>0,INTRO!$E$34,"") -> CÔTE D'IVOIRE | B52: GOH | C52: OUME | D52: 310849 | E52: =IF(INTRO!$E$48="","",ROUND($D52*INTRO!$E$48,0)) -> 37302 | F52: =IF(INTRO!$E$49="","",ROUND($D52*INTRO!$E$49,0)) -> 74604 | G52: =IF(INTRO!$E$50="","",ROUND($D52*INTRO!$E$50,0)) -> 186509 | H52: 1 | I52: 1 | J52: 1 | K52: 2 | L52: =IF(INTRO!$E$38="Endémique", IF($H52>0, IF($H52=4,"Inconnu", IF($H52=99,"Interrompu", $D52)), 0),"Non requis") -> 310849 | M52: 28031 | N52: =IF(INTRO!$E$42="Endémique", IF(AND($J52>1,$J52<5), IF($J52=4, "Inconnu", E52+F52), 0),"Non requis") -> 0 | O52: =IF(INTRO!$E$44="Endémique", IF(AND($K52>0,$K52<5), IF($K52=4,"Inconnu", IF($K52=1, $F52*0.33, IF($K52=2, $F52*0.5+$G52*0.2, SUM(F52:G52)))), 0),"Non requis") -> 74603.8 | P52: 1 | Q52: 1 | R52: 0 | S52: 0 | T52: MDA1 (IVM+ALB) | V52: MDA 1 | W52: T2 | X52: 15372 | Y52: OUME
A53: =IF(INTRO!$E$34<>0,INTRO!$E$34,"") -> CÔTE D'IVOIRE | B53: HAMBOL | C53: DABAKALA | D53: 214689 | E53: =IF(INTRO!$E$48="","",ROUND($D53*INTRO!$E$48,0)) -> 25763 | F53: =IF(INTRO!$E$49="","",ROUND($D53*INTRO!$E$49,0)) -> 51525 | G53: =IF(INTRO!$E$50="","",ROUND($D53*INTRO!$E$50,0)) -> 128813 | H53: 1 | I53: 1 | J53: 1 | K53: 1 | L53: =IF(INTRO!$E$38="Endémique", IF($H53>0, IF($H53=4,"Inconnu", IF($H53=99,"Interrompu", $D53)), 0),"Non requis") -> 214689 | M53: 21932 | N53: =IF(INTRO!$E$42="Endémique", IF(AND($J53>1,$J53<5), IF($J53=4, "Inconnu", E53+F53), 0),"Non requis") -> 0 | O53: =IF(INTRO!$E$44="Endémique", IF(AND($K53>0,$K53<5), IF($K53=4,"Inconnu", IF($K53=1, $F53*0.33, IF($K53=2, $F53*0.5+$G53*0.2, SUM(F53:G53)))), 0),"Non requis") -> 17003.25 | P53: 1 | Q53: 1 | R53: 0 | S53: 1 | T53: MDA1 (IVM+ALB) | U53: T2 (PZQ) | V53: MDA 1 | W53: T2 | X53: 15373 | Y53: DABAKALA
A54: =IF(INTRO!$E$34<>0,INTRO!$E$34,"") -> CÔTE D'IVOIRE | B54: HAMBOL | C54: KATIOLA | D54: 121276 | E54: =IF(INTRO!$E$48="","",ROUND($D54*INTRO!$E$48,0)) -> 14553 | F54: =IF(INTRO!$E$49="","",ROUND($D54*INTRO!$E$49,0)) -> 29106 | G54: =IF(INTRO!$E$50="","",ROUND($D54*INTRO!$E$50,0)) -> 72766 | H54: 1 | I54: 1 | J54: 1 | K54: 2 | L54: =IF(INTRO!$E$38="Endémique", IF($H54>0, IF($H54=4,"Inconnu", IF($H54=99,"Interrompu", $D54)), 0),"Non requis") -> 121276 | M54: 14857 | N54: =IF(INTRO!$E$42="Endémique", IF(AND($J54>1,$J54<5), IF($J54=4, "Inconnu", E54+F54), 0),"Non requis") -> 0 | O54: =IF(INTRO!$E$44="Endémique", IF(AND($K54>0,$K54<5), IF($K54=4,"Inconnu", IF($K54=1, $F54*0.33, IF($K54=2, $F54*0.5+$G54*0.2, SUM(F54:G54)))), 0),"Non requis") -> 29106.2 | P54: 1 | Q54: 1 | R54: 0 | S54: 1 | T54: MDA1 (IVM+ALB) | U54: T2 (PZQ) | V54: MDA 1 | W54: T2 | X54: 15374 | Y54: KATIOLA
A55: =IF(INTRO!$E$34<>0,INTRO!$E$34,"") -> CÔTE D'IVOIRE | B55: HAMBOL | C55: NIAKARA | D55: 151802 | E55: =IF(INTRO!$E$48="","",ROUND($D55*INTRO!$E$48,0)) -> 18216 | F55: =IF(INTRO!$E$49="","",ROUND($D55*INTRO!$E$49,0)) -> 36432 | G55: =IF(INTRO!$E$50="","",ROUND($D55*INTRO!$E$50,0)) -> 91081 | H55: 1 | I55: 1 | J55: 1 | K55: 1 | L55: =IF(INTRO!$E$38="Endémique", IF($H55>0, IF($H55=4,"Inconnu", IF($H55=99,"Interrompu", $D55)), 0),"Non requis") -> 151802 | M55: 14369 | N55: =IF(INTRO!$E$42="Endémique", IF(AND($J55>1,$J55<5), IF($J55=4, "Inconnu", E55+F55), 0),"Non requis") -> 0 | O55: =IF(INTRO!$E$44="Endémique", IF(AND($K55>0,$K55<5), IF($K55=4,"Inconnu", IF($K55=1, $F55*0.33, IF($K55=2, $F55*0.5+$G55*0.2, SUM(F55:G55)))), 0),"Non requis") -> 12022.56 | P55: 1 | Q55: 1 | R55: 0 | S55: 1 | T55: MDA1 (IVM+ALB) | U55: T2 (PZQ) | V55: MDA 1 | W55: T2 | X55: 15375 | Y55: NIAKARA
A56: =IF(INTRO!$E$34<>0,INTRO!$E$34,"") -> CÔTE D'IVOIRE | B56: HAUT SASSANDRA | C56: DALOA | D56: 796516 | E56: =IF(INTRO!$E$48="","",ROUND($D56*INTRO!$E$48,0)) -> 95582 | F56: =IF(INTRO!$E$49="","",ROUND($D56*INTRO!$E$49,0)) -> 191164 | G56: =IF(INTRO!$E$50="","",ROUND($D56*INTRO!$E$50,0)) -> 477910 | H56: 1 | I56: 1 | J56: 1 | K56: 1 | L56: =IF(INTRO!$E$38="Endémique", IF($H56>0, IF($H56=4,"Inconnu", IF($H56=99,"Interrompu", $D56)), 0),"Non requis") -> 796516 | M56: 50939 | N56: =IF(INTRO!$E$42="Endémique", IF(AND($J56>1,$J56<5), IF($J56=4, "Inconnu", E56+F56), 0),"Non requis") -> 0 | O56: =IF(INTRO!$E$44="Endémique", IF(AND($K56>0,$K56<5), IF($K56=4,"Inconnu", IF($K56=1, $F56*0.33, IF($K56=2, $F56*0.5+$G56*0.2, SUM(F56:G56)))), 0),"Non requis") -> 63084.12 | P56: 1 | Q56: 1 | R56: 0 | S56: 0 | T56: MDA1 (IVM+ALB) | V56: MDA 1 | W56: T2 | X56: 15376 | Y56: DALOA
A57: =IF(INTRO!$E$34<>0,INTRO!$E$34,"") -> CÔTE D'IVOIRE | B57: HAUT SASSANDRA | C57: ISSIA | D57: 371970 | E57: =IF(INTRO!$E$48="","",ROUND($D57*INTRO!$E$48,0)) -> 44636 | F57: =IF(INTRO!$E$49="","",ROUND($D57*INTRO!$E$49,0)) -> 89273 | G57: =IF(INTRO!$E$50="","",ROUND($D57*INTRO!$E$50,0)) -> 223182 | H57: 1 | I57: 1 | J57: 2 | K57: 2 | L57: =IF(INTRO!$E$38="Endémique", IF($H57>0, IF($H57=4,"Inconnu", IF($H57=99,"Interrompu", $D57)), 0),"Non requis") -> 371970 | M57: 0 | N57: =IF(INTRO!$E$42="Endémique", IF(AND($J57>1,$J57<5), IF($J57=4, "Inconnu", E57+F57), 0),"Non requis") -> 133909 | O57: =IF(INTRO!$E$44="Endémique", IF(AND($K57>0,$K57<5), IF($K57=4,"Inconnu", IF($K57=1, $F57*0.33, IF($K57=2, $F57*0.5+$G57*0.2, SUM(F57:G57)))), 0),"Non requis") -> 89272.9 | P57: 1 | Q57: 1 | R57: 1 | S57: 1 | T57: MDA1 (IVM+ALB) | U57: T2 (PZQ) | V57: MDA 1 | W57: T2 | X57: 15377 | Y57: ISSIA
A58: =IF(INTRO!$E$34<>0,INTRO!$E$34,"") -> CÔTE D'IVOIRE | B58: HAUT SASSANDRA | C58: VAVOUA | D58: 454792 | E58: =IF(INTRO!$E$48="","",ROUND($D58*INTRO!$E$48,0)) -> 54575 | F58: =IF(INTRO!$E$49="","",ROUND($D58*INTRO!$E$49,0)) -> 109150 | G58: =IF(INTRO!$E$50="","",ROUND($D58*INTRO!$E$50,0)) -> 272875 | H58: 1 | I58: 1 | J58: 2 | K58: 1 | L58: =IF(INTRO!$E$38="Endémique", IF($H58>0, IF($H58=4,"Inconnu", IF($H58=99,"Interrompu", $D58)), 0),"Non requis") -> 454792 | M58: 45370 | N58: =IF(INTRO!$E$42="Endémique", IF(AND($J58>1,$J58<5), IF($J58=4, "Inconnu", E58+F58), 0),"Non requis") -> 163725 | O58: =IF(INTRO!$E$44="Endémique", IF(AND($K58>0,$K58<5), IF($K58=4,"Inconnu", IF($K58=1, $F58*0.33, IF($K58=2, $F58*0.5+$G58*0.2, SUM(F58:G58)))), 0),"Non requis") -> 36019.5 | P58: 1 | Q58: 1 | R58: 1 | S58: 0 | T58: MDA1 (IVM+ALB) | V58: MDA 1 | W58: T2 | X58: 15378 | Y58: VAVOUA
A59: =IF(INTRO!$E$34<>0,INTRO!$E$34,"") -> CÔTE D'IVOIRE | B59: INDENIE-DJUABLIN | C59: ABENGOUROU | D59: 381327 | E59: =IF(INTRO!$E$48="","",ROUND($D59*INTRO!$E$48,0)) -> 45759 | F59: =IF(INTRO!$E$49="","",ROUND($D59*INTRO!$E$49,0)) -> 91518 | G59: =IF(INTRO!$E$50="","",ROUND($D59*INTRO!$E$50,0)) -> 228796 | H59: 1 | I59: 1 | J59: 1 | K59: 2 | L59: =IF(INTRO!$E$38="Endémique", IF($H59>0, IF($H59=4,"Inconnu", IF($H59=99,"Interrompu", $D59)), 0),"Non requis") -> 381327 | M59: 40265 | N59: =IF(INTRO!$E$42="Endémique", IF(AND($J59>1,$J59<5), IF($J59=4, "Inconnu", E59+F59), 0),"Non requis") -> 0 | O59: =IF(INTRO!$E$44="Endémique", IF(AND($K59>0,$K59<5), IF($K59=4,"Inconnu", IF($K59=1, $F59*0.33, IF($K59=2, $F59*0.5+$G59*0.2, SUM(F59:G59)))), 0),"Non requis") -> 91518.2 | P59: 1 | Q59: 1 | R59: 0 | S59: 1 | T59: MDA1 (IVM+ALB) | U59: T2 (PZQ) | V59: MDA 1 | W59: T2 | X59: 15379 | Y59: ABENGOUROU
A60: =IF(INTRO!$E$34<>0,INTRO!$E$34,"") -> CÔTE D'IVOIRE | B60: INDENIE-DJUABLIN | C60: AGNIBILEKRO | D60: 190794 | E60: =IF(INTRO!$E$48="","",ROUND($D60*INTRO!$E$48,0)) -> 22895 | F60: =IF(INTRO!$E$49="","",ROUND($D60*INTRO!$E$49,0)) -> 45791 | G60: =IF(INTRO!$E$50="","",ROUND($D60*INTRO!$E$50,0)) -> 114476 | H60: 1 | I60: 1 | J60: 1 | K60: 1 | L60: =IF(INTRO!$E$38="Endémique", IF($H60>0, IF($H60=4,"Inconnu", IF($H60=99,"Interrompu", $D60)), 0),"Non requis") -> 190794 | M60: 23742 | N60: =IF(INTRO!$E$42="Endémique", IF(AND($J60>1,$J60<5), IF($J60=4, "Inconnu", E60+F60), 0),"Non requis") -> 0 | O60: =IF(INTRO!$E$44="Endémique", IF(AND($K60>0,$K60<5), IF($K60=4,"Inconnu", IF($K60=1, $F60*0.33, IF($K60=2, $F60*0.5+$G60*0.2, SUM(F60:G60)))), 0),"Non requis") -> 15111.03 | P60: 1 | Q60: 1 | R60: 0 | S60: 0 | T60: MDA1 (IVM+ALB) | V60: MDA 1 | W60: T2 | X60: 15380 | Y60: AGNIBILEKRO
A61: =IF(INTRO!$E$34<>0,INTRO!$E$34,"") -> CÔTE D'IVOIRE | B61: INDENIE-DJUABLIN | C61: BETTIE | D61: 63634 | E61: =IF(INTRO!$E$48="","",ROUND($D61*INTRO!$E$48,0)) -> 7636 | F61: =IF(INTRO!$E$49="","",ROUND($D61*INTRO!$E$49,0)) -> 15272 | G61: =IF(INTRO!$E$50="","",ROUND($D61*INTRO!$E$50,0)) -> 38180 | H61: 1 | I61: 1 | J61: 1 | K61: 1 | L61: =IF(INTRO!$E$38="Endémique", IF($H61>0, IF($H61=4,"Inconnu", IF($H61=99,"Interrompu", $D61)), 0),"Non requis") -> 63634 | M61: 16527 | N61: =IF(INTRO!$E$42="Endémique", IF(AND($J61>1,$J61<5), IF($J61=4, "Inconnu", E61+F61), 0),"Non requis") -> 0 | O61: =IF(INTRO!$E$44="Endémique", IF(AND($K61>0,$K61<5), IF($K61=4,"Inconnu", IF($K61=1, $F61*0.33, IF($K61=2, $F61*0.5+$G61*0.2, SUM(F61:G61)))), 0),"Non requis") -> 5039.76 | P61: 1 | Q61: 1 | R61: 0 | S61: 0 | T61: MDA1 (IVM+ALB) | V61: MDA 1 | W61: T2 | X61: 15381 | Y61: BETTIE
A62: =IF(INTRO!$E$34<>0,INTRO!$E$34,"") -> CÔTE D'IVOIRE | B62: KABADOUGOU-BAFING-FOLON | C62: MINIGNAN | D62: 109371 | E62: =IF(INTRO!$E$48="","",ROUND($D62*INTRO!$E$48,0)) -> 13125 | F62: =IF(INTRO!$E$49="","",ROUND($D62*INTRO!$E$49,0)) -> 26249 | G62: =IF(INTRO!$E$50="","",ROUND($D62*INTRO!$E$50,0)) -> 65623 | H62: 0 | I62: 1 | J62: 1 | K62: 1 | L62: =IF(INTRO!$E$38="Endémique", IF($H62>0, IF($H62=4,"Inconnu", IF($H62=99,"Interrompu", $D62)), 0),"Non requis") -> 0 | M62: 109371 | N62: =IF(INTRO!$E$42="Endémique", IF(AND($J62>1,$J62<5), IF($J62=4, "Inconnu", E62+F62), 0),"Non requis") -> 0 | O62: =IF(INTRO!$E$44="Endémique", IF(AND($K62>0,$K62<5), IF($K62=4,"Inconnu", IF($K62=1, $F62*0.33, IF($K62=2, $F62*0.5+$G62*0.2, SUM(F62:G62)))), 0),"Non requis") -> 8662.17 | P62: 0 | Q62: 1 | R62: 0 | S62: 0 | T62: MDA3 (IVM) | V62: MDA 3 | W62: T2 | X62: 15382 | Y62: MINIGNAN
A63: =IF(INTRO!$E$34<>0,INTRO!$E$34,"") -> CÔTE D'IVOIRE | B63: KABADOUGOU-BAFING-FOLON | C63: ODIENNE | D63: 219352 | E63: =IF(INTRO!$E$48="","",ROUND($D63*INTRO!$E$48,0)) -> 26322 | F63: =IF(INTRO!$E$49="","",ROUND($D63*INTRO!$E$49,0)) -> 52644 | G63: =IF(INTRO!$E$50="","",ROUND($D63*INTRO!$E$50,0)) -> 131611 | H63: 1 | I63: 1 | J63: 1 | K63: 2 | L63: =IF(INTRO!$E$38="Endémique", IF($H63>0, IF($H63=4,"Inconnu", IF($H63=99,"Interrompu", $D63)), 0),"Non requis") -> 219352 | M63: 78125 | N63: =IF(INTRO!$E$42="Endémique", IF(AND($J63>1,$J63<5), IF($J63=4, "Inconnu", E63+F63), 0),"Non requis") -> 0 | O63: =IF(INTRO!$E$44="Endémique", IF(AND($K63>0,$K63<5), IF($K63=4,"Inconnu", IF($K63=1, $F63*0.33, IF($K63=2, $F63*0.5+$G63*0.2, SUM(F63:G63)))), 0),"Non requis") -> 52644.2 | P63: 1 | Q63: 1 | R63: 0 | S63: 1 | T63: MDA1 (IVM+ALB) | U63: T2 (PZQ) | V63: MDA 1 | W63: T2 | X63: 15383 | Y63: ODIENNE
A64: =IF(INTRO!$E$34<>0,INTRO!$E$34,"") -> CÔTE D'IVOIRE | B64: KABADOUGOU-BAFING-FOLON | C64: TOUBA | D64: 207649 | E64: =IF(INTRO!$E$48="","",ROUND($D64*INTRO!$E$48,0)) -> 24918 | F64: =IF(INTRO!$E$49="","",ROUND($D64*INTRO!$E$49,0)) -> 49836 | G64: =IF(INTRO!$E$50="","",ROUND($D64*INTRO!$E$50,0)) -> 124589 | H64: 1 | I64: 1 | J64: 2 | K64: 3 | L64: =IF(INTRO!$E$38="Endémique", IF($H64>0, IF($H64=4,"Inconnu", IF($H64=99,"Interrompu", $D64)), 0),"Non requis") -> 207649 | M64: 77309 | N64: =IF(INTRO!$E$42="Endémique", IF(AND($J64>1,$J64<5), IF($J64=4, "Inconnu", E64+F64), 0),"Non requis") -> 74754 | O64: =IF(INTRO!$E$44="Endémique", IF(AND($K64>0,$K64<5), IF($K64=4,"Inconnu", IF($K64=1, $F64*0.33, IF($K64=2, $F64*0.5+$G64*0.2, SUM(F64:G64)))), 0),"Non requis") -> 174425 | P64: 1 | Q64: 1 | R64: 1 | S64: 1 | T64: MDA1 (IVM+ALB) | U64: T2 (PZQ) | V64: MDA 1 | W64: T2 | X64: 15384 | Y64: TOUBA
A65: =IF(INTRO!$E$34<>0,INTRO!$E$34,"") -> CÔTE D'IVOIRE | B65: LOH-DJIBOUA | C65: DIVO | D65: 456240 | E65: =IF(INTRO!$E$48="","",ROUND($D65*INTRO!$E$48,0)) -> 54749 | F65: =IF(INTRO!$E$49="","",ROUND($D65*INTRO!$E$49,0)) -> 109498 | G65: =IF(INTRO!$E$50="","",ROUND($D65*INTRO!$E$50,0)) -> 273744 | H65: 1 | I65: 1 | J65: 1 | K65: 2 | L65: =IF(INTRO!$E$38="Endémique", IF($H65>0, IF($H65=4,"Inconnu", IF($H65=99,"Interrompu", $D65)), 0),"Non requis") -> 456240 | M65: 159690 | N65: =IF(INTRO!$E$42="Endémique", IF(AND($J65>1,$J65<5), IF($J65=4, "Inconnu", E65+F65), 0),"Non requis") -> 0 | O65: =IF(INTRO!$E$44="Endémique", IF(AND($K65>0,$K65<5), IF($K65=4,"Inconnu", IF($K65=1, $F65*0.33, IF($K65=2, $F65*0.5+$G65*0.2, SUM(F65:G65)))), 0),"Non requis") -> 109497.8 | P65: 1 | Q65: 1 | R65: 0 | S65: 0 | T65: MDA1 (IVM+ALB) | V65: MDA 1 | W65: T2 | X65: 15385 | Y65: DIVO
A66: =IF(INTRO!$E$34<>0,INTRO!$E$34,"") -> CÔTE D'IVOIRE | B66: LOH-DJIBOUA | C66: FRESCO | D66: 114912 | E66: =IF(INTRO!$E$48="","",ROUND($D66*INTRO!$E$48,0)) -> 13789 | F66: =IF(INTRO!$E$49="","",ROUND($D66*INTRO!$E$49,0)) -> 27579 | G66: =IF(INTRO!$E$50="","",ROUND($D66*INTRO!$E$50,0)) -> 68947 | H66: 1 | I66: 1 | J66: 2 | K66: 2 | L66: =IF(INTRO!$E$38="Endémique", IF($H66>0, IF($H66=4,"Inconnu", IF($H66=99,"Interrompu", $D66)), 0),"Non requis") -> 114912 | M66: 13311 | N66: =IF(INTRO!$E$42="Endémique", IF(AND($J66>1,$J66<5), IF($J66=4, "Inconnu", E66+F66), 0),"Non requis") -> 41368 | O66: =IF(INTRO!$E$44="Endémique", IF(AND($K66>0,$K66<5), IF($K66=4,"Inconnu", IF($K66=1, $F66*0.33, IF($K66=2, $F66*0.5+$G66*0.2, SUM(F66:G66)))), 0),"Non requis") -> 27578.9 | P66: 1 | Q66: 1 | R66: 1 | S66: 0 | T66: MDA1 (IVM+ALB) | V66: MDA 1 | W66: T2 | X66: 15386 | Y66: FRESCO
A67: =IF(INTRO!$E$34<>0,INTRO!$E$34,"") -> CÔTE D'IVOIRE | B67: LOH-DJIBOUA | C67: GUITRY | D67: 170448 | E67: =IF(INTRO!$E$48="","",ROUND($D67*INTRO!$E$48,0)) -> 20454 | F67: =IF(INTRO!$E$49="","",ROUND($D67*INTRO!$E$49,0)) -> 40908 | G67: =IF(INTRO!$E$50="","",ROUND($D67*INTRO!$E$50,0)) -> 102269 | H67: 1 | I67: 1 | J67: 1 | K67: 2 | L67: =IF(INTRO!$E$38="Endémique", IF($H67>0, IF($H67=4,"Inconnu", IF($H67=99,"Interrompu", $D67)), 0),"Non requis") -> 170448 | M67: 0 | N67: =IF(INTRO!$E$42="Endémique", IF(AND($J67>1,$J67<5), IF($J67=4, "Inconnu", E67+F67), 0),"Non requis") -> 0 | O67: =IF(INTRO!$E$44="Endémique", IF(AND($K67>0,$K67<5), IF($K67=4,"Inconnu", IF($K67=1, $F67*0.33, IF($K67=2, $F67*0.5+$G67*0.2, SUM(F67:G67)))), 0),"Non requis") -> 40907.8 | P67: 1 | Q67: 1 | R67: 0 | S67: 0 | T67: MDA1 (IVM+ALB) | V67: MDA 1 | W67: T2 | X67: 15411 | Y67: GUITRY
A68: =IF(INTRO!$E$34<>0,INTRO!$E$34,"") -> CÔTE D'IVOIRE | B68: LOH-DJIBOUA | C68: LAKOTA | D68: 229378 | E68: =IF(INTRO!$E$48="","",ROUND($D68*INTRO!$E$48,0)) -> 27525 | F68: =IF(INTRO!$E$49="","",ROUND($D68*INTRO!$E$49,0)) -> 55051 | G68: =IF(INTRO!$E$50="","",ROUND($D68*INTRO!$E$50,0)) -> 137627 | H68: 1 | I68: 1 | J68: 1 | K68: 2 | L68: =IF(INTRO!$E$38="Endémique", IF($H68>0, IF($H68=4,"Inconnu", IF($H68=99,"Interrompu", $D68)), 0),"Non requis") -> 229378 | M68: 89987 | N68: =IF(INTRO!$E$42="Endémique", IF(AND($J68>1,$J68<5), IF($J68=4, "Inconnu", E68+F68), 0),"Non requis") -> 0 | O68: =IF(INTRO!$E$44="Endémique", IF(AND($K68>0,$K68<5), IF($K68=4,"Inconnu", IF($K68=1, $F68*0.33, IF($K68=2, $F68*0.5+$G68*0.2, SUM(F68:G68)))), 0),"Non requis") -> 55050.9 | P68: 1 | Q68: 1 | R68: 0 | S68: 0 | T68: MDA1 (IVM+ALB) | V68: MDA 1 | W68: T2 | X68: 15387 | Y68: LAKOTA
A69: =IF(INTRO!$E$34<>0,INTRO!$E$34,"") -> CÔTE D'IVOIRE | B69: MARAHOUE | C69: BOUAFLE | D69: 464739 | E69: =IF(INTRO!$E$48="","",ROUND($D69*INTRO!$E$48,0)) -> 55769 | F69: =IF(INTRO!$E$49="","",ROUND($D69*INTRO!$E$49,0)) -> 111537 | G69: =IF(INTRO!$E$50="","",ROUND($D69*INTRO!$E$50,0)) -> 278843 | H69: 1 | I69: 1 | J69: 1 | K69: 1 | L69: =IF(INTRO!$E$38="Endémique", IF($H69>0, IF($H69=4,"Inconnu", IF($H69=99,"Interrompu", $D69)), 0),"Non requis") -> 464739 | M69: 35043 | N69: =IF(INTRO!$E$42="Endémique", IF(AND($J69>1,$J69<5), IF($J69=4, "Inconnu", E69+F69), 0),"Non requis") -> 0 | O69: =IF(INTRO!$E$44="Endémique", IF(AND($K69>0,$K69<5), IF($K69=4,"Inconnu", IF($K69=1, $F69*0.33, IF($K69=2, $F69*0.5+$G69*0.2, SUM(F69:G69)))), 0),"Non requis") -> 36807.21 | P69: 1 | Q69: 1 | R69: 0 | S69: 1 | T69: MDA1 (IVM+ALB) | U69: T2 (PZQ) | V69: MDA 1 | W69: T2 | X69: 15388 | Y69: BOUAFLE
A70: =IF(INTRO!$E$34<>0,INTRO!$E$34,"") -> CÔTE D'IVOIRE | B70: MARAHOUE | C70: SINFRA | D70: 270006 | E70: =IF(INTRO!$E$48="","",ROUND($D70*INTRO!$E$48,0)) -> 32401 | F70: =IF(INTRO!$E$49="","",ROUND($D70*INTRO!$E$49,0)) -> 64801 | G70: =IF(INTRO!$E$50="","",ROUND($D70*INTRO!$E$50,0)) -> 162004 | H70: 1 | I70: 0 | J70: 2 | K70: 2 | L70: =IF(INTRO!$E$38="Endémique", IF($H70>0, IF($H70=4,"Inconnu", IF($H70=99,"Interrompu", $D70)), 0),"Non requis") -> 270006 | M70: 0 | N70: =IF(INTRO!$E$42="Endémique", IF(AND($J70>1,$J70<5), IF($J70=4, "Inconnu", E70+F70), 0),"Non requis") -> 97202 | O70: =IF(INTRO!$E$44="Endémique", IF(AND($K70>0,$K70<5), IF($K70=4,"Inconnu", IF($K70=1, $F70*0.33, IF($K70=2, $F70*0.5+$G70*0.2, SUM(F70:G70)))), 0),"Non requis") -> 64801.3 | P70: 1 | Q70: 0 | R70: 1 | S70: 0 | T70: MDA1 (IVM+ALB) | V70: MDA 1 | W70: T2 | X70: 15389 | Y70: SINFRA
A71: =IF(INTRO!$E$34<>0,INTRO!$E$34,"") -> CÔTE D'IVOIRE | B71: MARAHOUE | C71: ZUENOULA | D71: 243497 | E71: =IF(INTRO!$E$48="","",ROUND($D71*INTRO!$E$48,0)) -> 29220 | F71: =IF(INTRO!$E$49="","",ROUND($D71*INTRO!$E$49,0)) -> 58439 | G71: =IF(INTRO!$E$50="","",ROUND($D71*INTRO!$E$50,0)) -> 146098 | H71: 1 | I71: 1 | J71: 1 | K71: 1 | L71: =IF(INTRO!$E$38="Endémique", IF($H71>0, IF($H71=4,"Inconnu", IF($H71=99,"Interrompu", $D71)), 0),"Non requis") -> 243497 | M71: 85170 | N71: =IF(INTRO!$E$42="Endémique", IF(AND($J71>1,$J71<5), IF($J71=4, "Inconnu", E71+F71), 0),"Non requis") -> 0 | O71: =IF(INTRO!$E$44="Endémique", IF(AND($K71>0,$K71<5), IF($K71=4,"Inconnu", IF($K71=1, $F71*0.33, IF($K71=2, $F71*0.5+$G71*0.2, SUM(F71:G71)))), 0),"Non requis") -> 19284.87 | P71: 1 | Q71: 1 | R71: 0 | S71: 1 | T71: MDA1 (IVM+ALB) | U71: T2 (PZQ) | V71: MDA 1 | W71: T2 | X71: 15390 | Y71: ZUENOULA
A72: =IF(INTRO!$E$34<>0,INTRO!$E$34,"") -> CÔTE D'IVOIRE | B72: N'ZI-IFOU | C72: BOCANDA | D72: 177559 | E72: =IF(INTRO!$E$48="","",ROUND($D72*INTRO!$E$48,0)) -> 21307 | F72: =IF(INTRO!$E$49="","",ROUND($D72*INTRO!$E$49,0)) -> 42614 | G72: =IF(INTRO!$E$50="","",ROUND($D72*INTRO!$E$50,0)) -> 106535 | H72: 0 | I72: 1 | J72: 2 | K72: 1 | L72: =IF(INTRO!$E$38="Endémique", IF($H72>0, IF($H72=4,"Inconnu", IF($H72=99,"Interrompu", $D72)), 0),"Non requis") -> 0 | M72: 177559 | N72: =IF(INTRO!$E$42="Endémique", IF(AND($J72>1,$J72<5), IF($J72=4, "Inconnu", E72+F72), 0),"Non requis") -> 63921 | O72: =IF(INTRO!$E$44="Endémique", IF(AND($K72>0,$K72<5), IF($K72=4,"Inconnu", IF($K72=1, $F72*0.33, IF($K72=2, $F72*0.5+$G72*0.2, SUM(F72:G72)))), 0),"Non requis") -> 14062.62 | P72: 0 | Q72: 1 | R72: 1 | S72: 0 | T72: MDA3 (IVM) | U72: T3 (ALB/MBD) | V72: MDA 1 | W72: T2 | X72: 15391 | Y72: BOCANDA
A73: =IF(INTRO!$E$34<>0,INTRO!$E$34,"") -> CÔTE D'IVOIRE | B73: N'ZI-IFOU | C73: BONGOUANOU | D73: 400006 | E73: =IF(INTRO!$E$48="","",ROUND($D73*INTRO!$E$48,0)) -> 48001 | F73: =IF(INTRO!$E$49="","",ROUND($D73*INTRO!$E$49,0)) -> 96001 | G73: =IF(INTRO!$E$50="","",ROUND($D73*INTRO!$E$50,0)) -> 240004 | H73: 1 | I73: 1 | J73: 2 | K73: 1 | L73: =IF(INTRO!$E$38="Endémique", IF($H73>0, IF($H73=4,"Inconnu", IF($H73=99,"Interrompu", $D73)), 0),"Non requis") -> 400006 | M73: 29485 | N73: =IF(INTRO!$E$42="Endémique", IF(AND($J73>1,$J73<5), IF($J73=4, "Inconnu", E73+F73), 0),"Non requis") -> 144002 | O73: =IF(INTRO!$E$44="Endémique", IF(AND($K73>0,$K73<5), IF($K73=4,"Inconnu", IF($K73=1, $F73*0.33, IF($K73=2, $F73*0.5+$G73*0.2, SUM(F73:G73)))), 0),"Non requis") -> 31680.33 | P73: 1 | Q73: 1 | R73: 1 | S73: 0 | T73: MDA1 (IVM+ALB) | V73: MDA 1 | W73: T2 | X73: 15392 | Y73: BONGOUANOU
A74: =IF(INTRO!$E$34<>0,INTRO!$E$34,"") -> CÔTE D'IVOIRE | B74: N'ZI-IFOU | C74: DAOUKRO | D74: 180466 | E74: =IF(INTRO!$E$48="","",ROUND($D74*INTRO!$E$48,0)) -> 21656 | F74: =IF(INTRO!$E$49="","",ROUND($D74*INTRO!$E$49,0)) -> 43312 | G74: =IF(INTRO!$E$50="","",ROUND($D74*INTRO!$E$50,0)) -> 108280 | H74: 1 | I74: 1 | J74: 2 | K74: 2 | L74: =IF(INTRO!$E$38="Endémique", IF($H74>0, IF($H74=4,"Inconnu", IF($H74=99,"Interrompu", $D74)), 0),"Non requis") -> 180466 | M74: 47293 | N74: =IF(INTRO!$E$42="Endémique", IF(AND($J74>1,$J74<5), IF($J74=4, "Inconnu", E74+F74), 0),"Non requis") -> 64968 | O74: =IF(INTRO!$E$44="Endémique", IF(AND($K74>0,$K74<5), IF($K74=4,"Inconnu", IF($K74=1, $F74*0.33, IF($K74=2, $F74*0.5+$G74*0.2, SUM(F74:G74)))), 0),"Non requis") -> 43312 | P74: 1 | Q74: 1 | R74: 1 | S74: 1 | T74: MDA1 (IVM+ALB) | U74: T2 (PZQ) | V74: MDA 1 | W74: T2 | X74: 15393 | Y74: DAOUKRO
A75: =IF(INTRO!$E$34<>0,INTRO!$E$34,"") -> CÔTE D'IVOIRE | B75: N'ZI-IFOU | C75: DIMBOKRO | D75: 103293 | E75: =IF(INTRO!$E$48="","",ROUND($D75*INTRO!$E$48,0)) -> 12395 | F75: =IF(INTRO!$E$49="","",ROUND($D75*INTRO!$E$49,0)) -> 24790 | G75: =IF(INTRO!$E$50="","",ROUND($D75*INTRO!$E$50,0)) -> 61976 | H75: 1 | I75: 1 | J75: 2 | K75: 2 | L75: =IF(INTRO!$E$38="Endémique", IF($H75>0, IF($H75=4,"Inconnu", IF($H75=99,"Interrompu", $D75)), 0),"Non requis") -> 103293 | M75: 37975 | N75: =IF(INTRO!$E$42="Endémique", IF(AND($J75>1,$J75<5), IF($J75=4, "Inconnu", E75+F75), 0),"Non requis") -> 37185 | O75: =IF(INTRO!$E$44="Endémique", IF(AND($K75>0,$K75<5), IF($K75=4,"Inconnu", IF($K75=1, $F75*0.33, IF($K75=2, $F75*0.5+$G75*0.2, SUM(F75:G75)))), 0),"Non requis") -> 24790.2 | P75: 1 | Q75: 1 | R75: 1 | S75: 1 | T75: MDA1 (IVM+ALB) | U75: T2 (PZQ) | V75: MDA 1 | W75: T2 | X75: 15394 | Y75: DIMBOKRO
A76: =IF(INTRO!$E$34<>0,INTRO!$E$34,"") -> CÔTE D'IVOIRE | B76: N'ZI-IFOU | C76: M'BAHIAKRO | D76: 90490 | E76: =IF(INTRO!$E$48="","",ROUND($D76*INTRO!$E$48,0)) -> 10859 | F76: =IF(INTRO!$E$49="","",ROUND($D76*INTRO!$E$49,0)) -> 21718 | G76: =IF(INTRO!$E$50="","",ROUND($D76*INTRO!$E$50,0)) -> 54294 | H76: 1 | I76: 1 | J76: 1 | K76: 2 | L76: =IF(INTRO!$E$38="Endémique", IF($H76>0, IF($H76=4,"Inconnu", IF($H76=99,"Interrompu", $D76)), 0),"Non requis") -> 90490 | M76: 40392 | N76: =IF(INTRO!$E$42="Endémique", IF(AND($J76>1,$J76<5), IF($J76=4, "Inconnu", E76+F76), 0),"Non requis") -> 0 | O76: =IF(INTRO!$E$44="Endémique", IF(AND($K76>0,$K76<5), IF($K76=4,"Inconnu", IF($K76=1, $F76*0.33, IF($K76=2, $F76*0.5+$G76*0.2, SUM(F76:G76)))), 0),"Non requis") -> 21717.8 | P76: 1 | Q76: 1 | R76: 0 | S76: 1 | T76: MDA1 (IVM+ALB) | U76: T2 (PZQ) | V76: MDA 1 | W76: T2 | X76: 15395 | Y76: M'BAHIAKRO
A77: =IF(INTRO!$E$34<>0,INTRO!$E$34,"") -> CÔTE D'IVOIRE | B77: N'ZI-IFOU | C77: PRIKRO | D77: 82574 | E77: =IF(INTRO!$E$48="","",ROUND($D77*INTRO!$E$48,0)) -> 9909 | F77: =IF(INTRO!$E$49="","",ROUND($D77*INTRO!$E$49,0)) -> 19818 | G77: =IF(INTRO!$E$50="","",ROUND($D77*INTRO!$E$50,0)) -> 49544 | H77: 1 | I77: 1 | J77: 2 | K77: 2 | L77: =IF(INTRO!$E$38="Endémique", IF($H77>0, IF($H77=4,"Inconnu", IF($H77=99,"Interrompu", $D77)), 0),"Non requis") -> 82574 | M77: 45723 | N77: =IF(INTRO!$E$42="Endémique", IF(AND($J77>1,$J77<5), IF($J77=4, "Inconnu", E77+F77), 0),"Non requis") -> 29727 | O77: =IF(INTRO!$E$44="Endémique", IF(AND($K77>0,$K77<5), IF($K77=4,"Inconnu", IF($K77=1, $F77*0.33, IF($K77=2, $F77*0.5+$G77*0.2, SUM(F77:G77)))), 0),"Non requis") -> 19817.8 | P77: 1 | Q77: 1 | R77: 1 | S77: 1 | T77: MDA1 (IVM+ALB) | U77: T2 (PZQ) | V77: MDA 1 | W77: T2 | X77: 15396 | Y77: PRIKRO
A78: =IF(INTRO!$E$34<>0,INTRO!$E$34,"") -> CÔTE D'IVOIRE | B78: PORO-TCHOLOGO-BAGOUE | C78: BOUNDIALI | D78: 291860 | E78: =IF(INTRO!$E$48="","",ROUND($D78*INTRO!$E$48,0)) -> 35023 | F78: =IF(INTRO!$E$49="","",ROUND($D78*INTRO!$E$49,0)) -> 70046 | G78: =IF(INTRO!$E$50="","",ROUND($D78*INTRO!$E$50,0)) -> 175116 | H78: 1 | I78: 1 | J78: 1 | K78: 1 | L78: =IF(INTRO!$E$38="Endémique", IF($H78>0, IF($H78=4,"Inconnu", IF($H78=99,"Interrompu", $D78)), 0),"Non requis") -> 291860 | M78: 4499 | N78: =IF(INTRO!$E$42="Endémique", IF(AND($J78>1,$J78<5), IF($J78=4, "Inconnu", E78+F78), 0),"Non requis") -> 0 | O78: =IF(INTRO!$E$44="Endémique", IF(AND($K78>0,$K78<5), IF($K78=4,"Inconnu", IF($K78=1, $F78*0.33, IF($K78=2, $F78*0.5+$G78*0.2, SUM(F78:G78)))), 0),"Non requis") -> 23115.18 | P78: 1 | Q78: 1 | R78: 0 | S78: 0 | T78: MDA1 (IVM+ALB) | V78: MDA 1 | W78: T2 | X78: 15397 | Y78: BOUNDIALI
A79: =IF(INTRO!$E$34<>0,INTRO!$E$34,"") -> CÔTE D'IVOIRE | B79: PORO-TCHOLOGO-BAGOUE | C79: FERKESSEDOUGOU | D79: 262265 | E79: =IF(INTRO!$E$48="","",ROUND($D79*INTRO!$E$48,0)) -> 31472 | F79: =IF(INTRO!$E$49="","",ROUND($D79*INTRO!$E$49,0)) -> 62944 | G79: =IF(INTRO!$E$50="","",ROUND($D79*INTRO!$E$50,0)) -> 157359 | H79: 1 | I79: 1 | J79: 2 | K79: 1 | L79: =IF(INTRO!$E$38="Endémique", IF($H79>0, IF($H79=4,"Inconnu", IF($H79=99,"Interrompu", $D79)), 0),"Non requis") -> 262265 | M79: 16897 | N79: =IF(INTRO!$E$42="Endémique", IF(AND($J79>1,$J79<5), IF($J79=4, "Inconnu", E79+F79), 0),"Non requis") -> 94416 | O79: =IF(INTRO!$E$44="Endémique", IF(AND($K79>0,$K79<5), IF($K79=4,"Inconnu", IF($K79=1, $F79*0.33, IF($K79=2, $F79*0.5+$G79*0.2, SUM(F79:G79)))), 0),"Non requis") -> 20771.52 | P79: 1 | Q79: 1 | R79: 1 | S79: 0 | T79: MDA1 (IVM+ALB) | V79: MDA 1 | W79: T2 | X79: 15398 | Y79: FERKESSEDOUGOU
A80: =IF(INTRO!$E$34<>0,INTRO!$E$34,"") -> CÔTE D'IVOIRE | B80: PORO-TCHOLOGO-BAGOUE | C80: KORHOGO | D80: 934442 | E80: =IF(INTRO!$E$48="","",ROUND($D80*INTRO!$E$48,0)) -> 112133 | F80: =IF(INTRO!$E$49="","",ROUND($D80*INTRO!$E$49,0)) -> 224266 | G80: =IF(INTRO!$E$50="","",ROUND($D80*INTRO!$E$50,0)) -> 560665 | H80: 1 | I80: 1 | J80: 1 | K80: 1 | L80: =IF(INTRO!$E$38="Endémique", IF($H80>0, IF($H80=4,"Inconnu", IF($H80=99,"Interrompu", $D80)), 0),"Non requis") -> 934442 | M80: 42794 | N80: =IF(INTRO!$E$42="Endémique", IF(AND($J80>1,$J80<5), IF($J80=4, "Inconnu", E80+F80), 0),"Non requis") -> 0 | O80: =IF(INTRO!$E$44="Endémique", IF(AND($K80>0,$K80<5), IF($K80=4,"Inconnu", IF($K80=1, $F80*0.33, IF($K80=2, $F80*0.5+$G80*0.2, SUM(F80:G80)))), 0),"Non requis") -> 74007.78 | P80: 1 | Q80: 1 | R80: 0 | S80: 0 | T80: MDA1 (IVM+ALB) | V80: MDA 1 | W80: T2 | X80: 15399 | Y80: KOROGHO
A81: =IF(INTRO!$E$34<>0,INTRO!$E$34,"") -> CÔTE D'IVOIRE | B81: PORO-TCHOLOGO-BAGOUE | C81: OUANGOLODOUGOU | D81: 268587 | E81: =IF(INTRO!$E$48="","",ROUND($D81*INTRO!$E$48,0)) -> 32230 | F81: =IF(INTRO!$E$49="","",ROUND($D81*INTRO!$E$49,0)) -> 64461 | G81: =IF(INTRO!$E$50="","",ROUND($D81*INTRO!$E$50,0)) -> 161152 | H81: 1 | I81: 1 | J81: 1 | K81: 1 | L81: =IF(INTRO!$E$38="Endémique", IF($H81>0, IF($H81=4,"Inconnu", IF($H81=99,"Interrompu", $D81)), 0),"Non requis") -> 268587 | M81: 39420 | N81: =IF(INTRO!$E$42="Endémique", IF(AND($J81>1,$J81<5), IF($J81=4, "Inconnu", E81+F81), 0),"Non requis") -> 0 | O81: =IF(INTRO!$E$44="Endémique", IF(AND($K81>0,$K81<5), IF($K81=4,"Inconnu", IF($K81=1, $F81*0.33, IF($K81=2, $F81*0.5+$G81*0.2, SUM(F81:G81)))), 0),"Non requis") -> 21272.13 | P81: 1 | Q81: 1 | R81: 0 | S81: 0 | T81: MDA1 (IVM+ALB) | V81: MDA 1 | W81: T2 | X81: 15400 | Y81: OUANGOLODOUGOU
A82: =IF(INTRO!$E$34<>0,INTRO!$E$34,"") -> CÔTE D'IVOIRE | B82: PORO-TCHOLOGO-BAGOUE | C82: TENGRELA | D82: 134321 | E82: =IF(INTRO!$E$48="","",ROUND($D82*INTRO!$E$48,0)) -> 16119 | F82: =IF(INTRO!$E$49="","",ROUND($D82*INTRO!$E$49,0)) -> 32237 | G82: =IF(INTRO!$E$50="","",ROUND($D82*INTRO!$E$50,0)) -> 80593 | H82: 1 | I82: 0 | J82: 1 | K82: 1 | L82: =IF(INTRO!$E$38="Endémique", IF($H82>0, IF($H82=4,"Inconnu", IF($H82=99,"Interrompu", $D82)), 0),"Non requis") -> 134321 | M82: 0 | N82: =IF(INTRO!$E$42="Endémique", IF(AND($J82>1,$J82<5), IF($J82=4, "Inconnu", E82+F82), 0),"Non requis") -> 0 | O82: =IF(INTRO!$E$44="Endémique", IF(AND($K82>0,$K82<5), IF($K82=4,"Inconnu", IF($K82=1, $F82*0.33, IF($K82=2, $F82*0.5+$G82*0.2, SUM(F82:G82)))), 0),"Non requis") -> 10638.21 | P82: 1 | Q82: 0 | R82: 0 | S82: 0 | T82: MDA1 (IVM+ALB) | V82: MDA 1 | W82: T2 | X82: 15401 | Y82: TENGRELA
A83: =IF(INTRO!$E$34<>0,INTRO!$E$34,"") -> CÔTE D'IVOIRE | B83: SUD-COMOE | C83: ABOISSO | D83: 349228 | E83: =IF(INTRO!$E$48="","",ROUND($D83*INTRO!$E$48,0)) -> 41907 | F83: =IF(INTRO!$E$49="","",ROUND($D83*INTRO!$E$49,0)) -> 83815 | G83: =IF(INTRO!$E$50="","",ROUND($D83*INTRO!$E$50,0)) -> 209537 | H83: 1 | I83: 1 | J83: 1 | K83: 2 | L83: =IF(INTRO!$E$38="Endémique", IF($H83>0, IF($H83=4,"Inconnu", IF($H83=99,"Interrompu", $D83)), 0),"Non requis") -> 349228 | M83: 141167 | N83: =IF(INTRO!$E$42="Endémique", IF(AND($J83>1,$J83<5), IF($J83=4, "Inconnu", E83+F83), 0),"Non requis") -> 0 | O83: =IF(INTRO!$E$44="Endémique", IF(AND($K83>0,$K83<5), IF($K83=4,"Inconnu", IF($K83=1, $F83*0.33, IF($K83=2, $F83*0.5+$G83*0.2, SUM(F83:G83)))), 0),"Non requis") -> 83814.9 | P83: 1 | Q83: 1 | R83: 0 | S83: 1 | T83: MDA1 (IVM+ALB) | U83: T2 (PZQ) | V83: MDA 1 | W83: T2 | X83: 15402 | Y83: ABOISSO
A84: =IF(INTRO!$E$34<>0,INTRO!$E$34,"") -> CÔTE D'IVOIRE | B84: SUD-COMOE | C84: ADIAKE | D84: 176629 | E84: =IF(INTRO!$E$48="","",ROUND($D84*INTRO!$E$48,0)) -> 21195 | F84: =IF(INTRO!$E$49="","",ROUND($D84*INTRO!$E$49,0)) -> 42391 | G84: =IF(INTRO!$E$50="","",ROUND($D84*INTRO!$E$50,0)) -> 105977 | H84: 1 | I84: 1 | J84: 1 | K84: 1 | L84: =IF(INTRO!$E$38="Endémique", IF($H84>0, IF($H84=4,"Inconnu", IF($H84=99,"Interrompu", $D84)), 0),"Non requis") -> 176629 | M84: 20420 | N84: =IF(INTRO!$E$42="Endémique", IF(AND($J84>1,$J84<5), IF($J84=4, "Inconnu", E84+F84), 0),"Non requis") -> 0 | O84: =IF(INTRO!$E$44="Endémique", IF(AND($K84>0,$K84<5), IF($K84=4,"Inconnu", IF($K84=1, $F84*0.33, IF($K84=2, $F84*0.5+$G84*0.2, SUM(F84:G84)))), 0),"Non requis") -> 13989.03 | P84: 1 | Q84: 1 | R84: 0 | S84: 1 | T84: MDA1 (IVM+ALB) | U84: T2 (PZQ) | V84: MDA 1 | W84: T2 | X84: 15403 | Y84: ADIAKE
A85: =IF(INTRO!$E$34<>0,INTRO!$E$34,"") -> CÔTE D'IVOIRE | B85: SUD-COMOE | C85: GRAND-BASSAM | D85: 203132 | E85: =IF(INTRO!$E$48="","",ROUND($D85*INTRO!$E$48,0)) -> 24376 | F85: =IF(INTRO!$E$49="","",ROUND($D85*INTRO!$E$49,0)) -> 48752 | G85: =IF(INTRO!$E$50="","",ROUND($D85*INTRO!$E$50,0)) -> 121879 | H85: 1 | I85: 1 | J85: 2 | K85: 1 | L85: =IF(INTRO!$E$38="Endémique", IF($H85>0, IF($H85=4,"Inconnu", IF($H85=99,"Interrompu", $D85)), 0),"Non requis") -> 203132 | M85: 11875 | N85: =IF(INTRO!$E$42="Endémique", IF(AND($J85>1,$J85<5), IF($J85=4, "Inconnu", E85+F85), 0),"Non requis") -> 73128 | O85: =IF(INTRO!$E$44="Endémique", IF(AND($K85>0,$K85<5), IF($K85=4,"Inconnu", IF($K85=1, $F85*0.33, IF($K85=2, $F85*0.5+$G85*0.2, SUM(F85:G85)))), 0),"Non requis") -> 16088.16 | P85: 1 | Q85: 1 | R85: 1 | S85: 1 | T85: MDA1 (IVM+ALB) | U85: T2 (PZQ) | V85: MDA 1 | W85: T2 | X85: 15404 | Y85: GRAND-BASSAM
A86: =IF(INTRO!$E$34<>0,INTRO!$E$34,"") -> CÔTE D'IVOIRE | B86: TONKPI | C86: BIANKOUMA | D86: 222535 | E86: =IF(INTRO!$E$48="","",ROUND($D86*INTRO!$E$48,0)) -> 26704 | F86: =IF(INTRO!$E$49="","",ROUND($D86*INTRO!$E$49,0)) -> 53408 | G86: =IF(INTRO!$E$50="","",ROUND($D86*INTRO!$E$50,0)) -> 133521 | H86: 1 | I86: 1 | J86: 2 | K86: 2 | L86: =IF(INTRO!$E$38="Endémique", IF($H86>0, IF($H86=4,"Inconnu", IF($H86=99,"Interrompu", $D86)), 0),"Non requis") -> 222535 | M86: 28529 | N86: =IF(INTRO!$E$42="Endémique", IF(AND($J86>1,$J86<5), IF($J86=4, "Inconnu", E86+F86), 0),"Non requis") -> 80112 | O86: =IF(INTRO!$E$44="Endémique", IF(AND($K86>0,$K86<5), IF($K86=4,"Inconnu", IF($K86=1, $F86*0.33, IF($K86=2, $F86*0.5+$G86*0.2, SUM(F86:G86)))), 0),"Non requis") -> 53408.2 | P86: 1 | Q86: 1 | R86: 1 | S86: 0 | T86: MDA1 (IVM+ALB) | V86: MDA 1 | W86: T2 | X86: 15405 | Y86: BIANKOUMA
A87: =IF(INTRO!$E$34<>0,INTRO!$E$34,"") -> CÔTE D'IVOIRE | B87: TONKPI | C87: DANANE | D87: 303054 | E87: =IF(INTRO!$E$48="","",ROUND($D87*INTRO!$E$48,0)) -> 36366 | F87: =IF(INTRO!$E$49="","",ROUND($D87*INTRO!$E$49,0)) -> 72733 | G87: =IF(INTRO!$E$50="","",ROUND($D87*INTRO!$E$50,0)) -> 181832 | H87: 1 | I87: 1 | J87: 1 | K87: 2 | L87: =IF(INTRO!$E$38="Endémique", IF($H87>0, IF($H87=4,"Inconnu", IF($H87=99,"Interrompu", $D87)), 0),"Non requis") -> 303054 | M87: 115971 | N87: =IF(INTRO!$E$42="Endémique", IF(AND($J87>1,$J87<5), IF($J87=4, "Inconnu", E87+F87), 0),"Non requis") -> 0 | O87: =IF(INTRO!$E$44="Endémique", IF(AND($K87>0,$K87<5), IF($K87=4,"Inconnu", IF($K87=1, $F87*0.33, IF($K87=2, $F87*0.5+$G87*0.2, SUM(F87:G87)))), 0),"Non requis") -> 72732.9 | P87: 1 | Q87: 1 | R87: 0 | S87: 0 | T87: MDA1 (IVM+ALB) | V87: MDA 1 | W87: T2 | X87: 15406 | Y87: DANANE
A88: =IF(INTRO!$E$34<>0,INTRO!$E$34,"") -> CÔTE D'IVOIRE | B88: TONKPI | C88: MAN | D88: 379078 | E88: =IF(INTRO!$E$48="","",ROUND($D88*INTRO!$E$48,0)) -> 45489 | F88: =IF(INTRO!$E$49="","",ROUND($D88*INTRO!$E$49,0)) -> 90979 | G88: =IF(INTRO!$E$50="","",ROUND($D88*INTRO!$E$50,0)) -> 227447 | H88: 1 | I88: 1 | J88: 1 | K88: 2 | L88: =IF(INTRO!$E$38="Endémique", IF($H88>0, IF($H88=4,"Inconnu", IF($H88=99,"Interrompu", $D88)), 0),"Non requis") -> 379078 | M88: 127712 | N88: =IF(INTRO!$E$42="Endémique", IF(AND($J88>1,$J88<5), IF($J88=4, "Inconnu", E88+F88), 0),"Non requis") -> 0 | O88: =IF(INTRO!$E$44="Endémique", IF(AND($K88>0,$K88<5), IF($K88=4,"Inconnu", IF($K88=1, $F88*0.33, IF($K88=2, $F88*0.5+$G88*0.2, SUM(F88:G88)))), 0),"Non requis") -> 90978.9 | P88: 1 | Q88: 1 | R88: 0 | S88: 0 | T88: MDA1 (IVM+ALB) | V88: MDA 1 | W88: T2 | X88: 15407 | Y88: MAN
A89: =IF(INTRO!$E$34<>0,INTRO!$E$34,"") -> CÔTE D'IVOIRE | B89: TONKPI | C89: ZOUAN-HOUNIEN | D89: 221302 | E89: =IF(INTRO!$E$48="","",ROUND($D89*INTRO!$E$48,0)) -> 26556 | F89: =IF(INTRO!$E$49="","",ROUND($D89*INTRO!$E$49,0)) -> 53112 | G89: =IF(INTRO!$E$50="","",ROUND($D89*INTRO!$E$50,0)) -> 132781 | H89: 1 | I89: 1 | J89: 1 | K89: 3 | L89: =IF(INTRO!$E$38="Endémique", IF($H89>0, IF($H89=4,"Inconnu", IF($H89=99,"Interrompu", $D89)), 0),"Non requis") -> 221302 | M89: 76027 | N89: =IF(INTRO!$E$42="Endémique", IF(AND($J89>1,$J89<5), IF($J89=4, "Inconnu", E89+F89), 0),"Non requis") -> 0 | O89: =IF(INTRO!$E$44="Endémique", IF(AND($K89>0,$K89<5), IF($K89=4,"Inconnu", IF($K89=1, $F89*0.33, IF($K89=2, $F89*0.5+$G89*0.2, SUM(F89:G89)))), 0),"Non requis") -> 185893 | P89: 1 | Q89: 1 | R89: 0 | S89: 1 | T89: MDA1 (IVM+ALB) | U89: T2 (PZQ) | V89: MDA 1 | W89: T2 | X89: 15408 | Y89: ZOUAN-HOUNIEN
A90: =IF(INTRO!$E$34<>0,INTRO!$E$34,"") -> CÔTE D'IVOIRE | B90: WORODOUGOU-BERE | C90: MANKONO | D90: 442140 | E90: =IF(INTRO!$E$48="","",ROUND($D90*INTRO!$E$48,0)) -> 53057 | F90: =IF(INTRO!$E$49="","",ROUND($D90*INTRO!$E$49,0)) -> 106114 | G90: =IF(INTRO!$E$50="","",ROUND($D90*INTRO!$E$50,0)) -> 265284 | H90: 0 | I90: 1 | J90: 2 | K90: 1 | L90: =IF(INTRO!$E$38="Endémique", IF($H90>0, IF($H90=4,"Inconnu", IF($H90=99,"Interrompu", $D90)), 0),"Non requis") -> 0 | M90: 442140 | N90: =IF(INTRO!$E$42="Endémique", IF(AND($J90>1,$J90<5), IF($J90=4, "Inconnu", E90+F90), 0),"Non requis") -> 159171 | O90: =IF(INTRO!$E$44="Endémique", IF(AND($K90>0,$K90<5), IF($K90=4,"Inconnu", IF($K90=1, $F90*0.33, IF($K90=2, $F90*0.5+$G90*0.2, SUM(F90:G90)))), 0),"Non requis") -> 35017.62 | P90: 0 | Q90: 1 | R90: 1 | S90: 0 | T90: MDA3 (IVM) | U90: T3 (ALB/MBD) | V90: MDA 1 | W90: T2 | X90: 15409 | Y90: MANKONO
A91: =IF(INTRO!$E$34<>0,INTRO!$E$34,"") -> CÔTE D'IVOIRE | B91: WORODOUGOU-BERE | C91: SEGUELA | D91: 308934 | E91: =IF(INTRO!$E$48="","",ROUND($D91*INTRO!$E$48,0)) -> 37072 | F91: =IF(INTRO!$E$49="","",ROUND($D91*INTRO!$E$49,0)) -> 74144 | G91: =IF(INTRO!$E$50="","",ROUND($D91*INTRO!$E$50,0)) -> 185360 | H91: 1 | I91: 1 | J91: 2 | K91: 1 | L91: =IF(INTRO!$E$38="Endémique", IF($H91>0, IF($H91=4,"Inconnu", IF($H91=99,"Interrompu", $D91)), 0),"Non requis") -> 308934 | M91: 84731 | N91: =IF(INTRO!$E$42="Endémique", IF(AND($J91>1,$J91<5), IF($J91=4, "Inconnu", E91+F91), 0),"Non requis") -> 111216 | O91: =IF(INTRO!$E$44="Endémique", IF(AND($K91>0,$K91<5), IF($K91=4,"Inconnu", IF($K91=1, $F91*0.33, IF($K91=2, $F91*0.5+$G91*0.2, SUM(F91:G91)))), 0),"Non requis") -> 24467.52 | P91: 1 | Q91: 1 | R91: 1 | S91: 0 | T91: MDA1 (IVM+ALB) | V91: MDA 1 | W91: T2 | X91: 15410 | Y91: SEGUELA

Sheet MDA1
A1: MDA 1 - Ivermectine (IVM) et Albendazole (ALB)
A2: Structure administrative, population nécessitant une chimioprévention par groupe d'âge, population traitée par groupe d'âge et couverture
A4: TOTAL | G4: =SUM(G$9:G$997) -> 4994148 | H4: =SUM(H$9:H$997) -> 12376790 | I4: =SUM(I$9:I$997) -> 17370938 | K4: =SUM(K$9:K$997) -> 4571205.714 | L4: =SUM(L$9:L$997) -> 11428013.57 | M4: =SUM(M$9:M$997) -> 15999219 | O4: =IF(G4<>0, IF(K4/G4*100=0, "-", K4/G4*100), " ") -> 91.53124245 | P4: =IF(H4<>0, IF(L4/H4*100=0, "-", L4/H4*100), " ") -> 92.3342286 | Q4: =IF(I4<>0, IF(M4/I4*100=0, "-", M4/I4*100), " ") -> 92.10336828
A6: Structure administrative du pays | D6: Mise en oeuvre de la CP | E6: Date | F6: Population ciblée pour MDA 1 | J6: Population traitée | N6: Couverture du Programme (%)
A7: Pays | B7: Région/Département | C7: District | F7: EAPréS | G7: EAS | H7: Adultes | I7: Total | J7: EAPréS | K7: EAS | L7: Adultes | M7: Total | N7: EAPréS | O7: EAS | P7: Adultes | Q7: Total
A9: =IF(COUNTRY_INFO!A9=0," ",COUNTRY_INFO!A9) -> CÔTE D'IVOIRE | B9: =IF(COUNTRY_INFO!B9=0," ",COUNTRY_INFO!B9) -> ABIDJAN 1 GRANDS PONTS | C9: =IF(COUNTRY_INFO!C9=0," ",COUNTRY_INFO!C9) -> ADJAME-PLATEAU-ATTECOUBE | D9: =IF(COUNTRY_INFO!$T$9:$T$997="MDA1 (IVM+ALB)", COUNTRY_INFO!$T$9:$T$997, " ") ->  | O9: =IF(G9<>0, IF(K9/G9*100=0, "-", K9/G9*100), " ") ->  | P9: =IF(H9<>0, IF(L9/H9*100=0, "-", L9/H9*100), " ") ->  | Q9: =IF(I9<>0, IF(M9/I9*100=0, "-", M9/I9*100), " ") -> 
A10: =IF(COUNTRY_INFO!A10=0," ",COUNTRY_INFO!A10) -> CÔTE D'IVOIRE | B10: =IF(COUNTRY_INFO!B10=0," ",COUNTRY_INFO!B10) -> ABIDJAN 1 GRANDS PONTS | C10: =IF(COUNTRY_INFO!C10=0," ",COUNTRY_INFO!C10) -> DABOU | D10: =IF(COUNTRY_INFO!$T$9:$T$997="MDA1 (IVM+ALB)", COUNTRY_INFO!$T$9:$T$997, " ") -> MDA1 (IVM+ALB) | E10: Avril 2019 | G10: =I10-H10 -> 38844 | H10: =ROUND(COUNTRY_INFO!G10*0.95,0) -> 96264 | I10: 135108 | K10: 36561.42857 | L10: 91403.57143 | M10: 127965 | O10: 94.12374774 | P10: =IF(H10<>0, IF(L10/H10*100=0, "-", L10/H10*100), " ") -> 94.95093849 | Q10: =IF(I10<>0, IF(M10/I10*100=0, "-", M10/I10*100), " ") -> 94.71311839
A11: =IF(COUNTRY_INFO!A11=0," ",COUNTRY_INFO!A11) -> CÔTE D'IVOIRE | B11: =IF(COUNTRY_INFO!B11=0," ",COUNTRY_INFO!B11) -> ABIDJAN 1 GRANDS PONTS | C11: =IF(COUNTRY_INFO!C11=0," ",COUNTRY_INFO!C11) -> GRAND-LAHOU | D11: =IF(COUNTRY_INFO!$T$9:$T$997="MDA1 (IVM+ALB)", COUNTRY_INFO!$T$9:$T$997, " ") -> MDA1 (IVM+ALB) | E11: Avril 2019 | G11: =I11-H11 -> 39479 | H11: =ROUND(COUNTRY_INFO!G11*0.95,0) -> 97839 | I11: 137318 | K11: 35329.71429 | L11: 88324.28571 | M11: 123654 | O11: 89.48989155 | P11: 90.2751313 | Q11: 90.04937444
A12: =IF(COUNTRY_INFO!A12=0," ",COUNTRY_INFO!A12) -> CÔTE D'IVOIRE | B12: =IF(COUNTRY_INFO!B12=0," ",COUNTRY_INFO!B12) -> ABIDJAN 1 GRANDS PONTS | C12: =IF(COUNTRY_INFO!C12=0," ",COUNTRY_INFO!C12) -> JACQUEVILLE | D12: =IF(COUNTRY_INFO!$T$9:$T$997="MDA1 (IVM+ALB)", COUNTRY_INFO!$T$9:$T$997, " ") -> MDA1 (IVM+ALB) | E12: Avril 2019 | G12: =I12-H12 -> 14691 | H12: =ROUND(COUNTRY_INFO!G12*0.95,0) -> 36410 | I12: 51101 | K12: 13497.71429 | L12: 33744.28571 | M12: 47242 | O12: 91.87743711 | P12: 92.67862047 | Q12: 92.44828868
A13: =IF(COUNTRY_INFO!A13=0," ",COUNTRY_INFO!A13) -> CÔTE D'IVOIRE | B13: =IF(COUNTRY_INFO!B13=0," ",COUNTRY_INFO!B13) -> ABIDJAN 1 GRANDS PONTS | C13: =IF(COUNTRY_INFO!C13=0," ",COUNTRY_INFO!C13) -> YOPOUGON EST | D13: =IF(COUNTRY_INFO!$T$9:$T$997="MDA1 (IVM+ALB)", COUNTRY_INFO!$T$9:$T$997, " ") -> MDA1 (IVM+ALB) | E13: Avril 2019 | G13: =I13-H13 -> 186385 | H13: =ROUND(COUNTRY_INFO!G13*0.95,0) -> 461910 | I13: 648295 | K13: 167953.4286 | L13: 419883.5714 | M13: 587837 | O13: 90.11102212 | P13: 90.90159802 | Q13: 90.67430722
A14: =IF(COUNTRY_INFO!A14=0," ",COUNTRY_INFO!A14) -> CÔTE D'IVOIRE | B14: =IF(COUNTRY_INFO!B14=0," ",COUNTRY_INFO!B14) -> ABIDJAN 1 GRANDS PONTS | C14: =IF(COUNTRY_INFO!C14=0," ",COUNTRY_INFO!C14) -> YOPOUGON OUEST | D14: =IF(COUNTRY_INFO!$T$9:$T$997="MDA1 (IVM+ALB)", COUNTRY_INFO!$T$9:$T$997, " ") -> MDA1 (IVM+ALB) | E14: Avril 2019 | G14: =I14-H14 -> 107814 | H14: =ROUND(COUNTRY_INFO!G14*0.95,0) -> 267191 | I14: 375005 | K14: 99957.71429 | L14: 249894.2857 | M14: 349852 | O14: 92.71311173 | P14: 93.52646074 | Q14: 93.29262277
A15: =IF(COUNTRY_INFO!A15=0," ",COUNTRY_INFO!A15) -> CÔTE D'IVOIRE | B15: =IF(COUNTRY_INFO!B15=0," ",COUNTRY_INFO!B15) -> ABIDJAN 2 | C15: =IF(COUNTRY_INFO!C15=0," ",COUNTRY_INFO!C15) -> ABOBO EST | D15: =IF(COUNTRY_INFO!$T$9:$T$997="MDA1 (IVM+ALB)", COUNTRY_INFO!$T$9:$T$997, " ") -> 
A16: =IF(COUNTRY_INFO!A16=0," ",COUNTRY_INFO!A16) -> CÔTE D'IVOIRE | B16: =IF(COUNTRY_INFO!B16=0," ",COUNTRY_INFO!B16) -> ABIDJAN 2 | C16: =IF(COUNTRY_INFO!C16=0," ",COUNTRY_INFO!C16) -> ABOBO OUEST | D16: =IF(COUNTRY_INFO!$T$9:$T$997="MDA1 (IVM+ALB)", COUNTRY_INFO!$T$9:$T$997, " ") -> 
A17: =IF(COUNTRY_INFO!A17=0," ",COUNTRY_INFO!A17) -> CÔTE D'IVOIRE | B17: =IF(COUNTRY_INFO!B17=0," ",COUNTRY_INFO!B17) -> ABIDJAN 2 | C17: =IF(COUNTRY_INFO!C17=0," ",COUNTRY_INFO!C17) -> ANYAMA | D17: =IF(COUNTRY_INFO!$T$9:$T$997="MDA1 (IVM+ALB)", COUNTRY_INFO!$T$9:$T$997, " ") -> 
A18: =IF(COUNTRY_INFO!A18=0," ",COUNTRY_INFO!A18) -> CÔTE D'IVOIRE | B18: =IF(COUNTRY_INFO!B18=0," ",COUNTRY_INFO!B18) -> ABIDJAN 2 | C18: =IF(COUNTRY_INFO!C18=0," ",COUNTRY_INFO!C18) -> COCODY-BINGERVILLE | D18: =IF(COUNTRY_INFO!$T$9:$T$997="MDA1 (IVM+ALB)", COUNTRY_INFO!$T$9:$T$997, " ") -> MDA1 (IVM+ALB) | E18: Avril 2019 | G18: =I18-H18 -> 140468 | H18: =ROUND(COUNTRY_INFO!G18*0.95,0) -> 348117 | I18: 488585 | K18: 134345.1429 | L18: 335862.8571 | M18: 470208 | O18: 95.64110179 | P18: 96.47987807 | Q18: 96.23873021
A19: =IF(COUNTRY_INFO!A19=0," ",COUNTRY_INFO!A19) -> CÔTE D'IVOIRE | B19: =IF(COUNTRY_INFO!B19=0," ",COUNTRY_INFO!B19) -> ABIDJAN 2 | C19: =IF(COUNTRY_INFO!C19=0," ",COUNTRY_INFO!C19) -> KOUMASSI-PORT BOUET-VRIDI | D19: =IF(COUNTRY_INFO!$T$9:$T$997="MDA1 (IVM+ALB)", COUNTRY_INFO!$T$9:$T$997, " ") -> 
A20: =IF(COUNTRY_INFO!A20=0," ",COUNTRY_INFO!A20) -> CÔTE D'IVOIRE | B20: =IF(COUNTRY_INFO!B20=0," ",COUNTRY_INFO!B20) -> ABIDJAN 2 | C20: =IF(COUNTRY_INFO!C20=0," ",COUNTRY_INFO!C20) -> MARCORY-TREICHVILLE | D20: =IF(COUNTRY_INFO!$T$9:$T$997="MDA1 (IVM+ALB)", COUNTRY_INFO!$T$9:$T$997, " ") -> 
A21: =IF(COUNTRY_INFO!A21=0," ",COUNTRY_INFO!A21) -> CÔTE D'IVOIRE | B21: =IF(COUNTRY_INFO!B21=0," ",COUNTRY_INFO!B21) -> AGNEBY-TIASSA-ME | C21: =IF(COUNTRY_INFO!C21=0," ",COUNTRY_INFO!C21) -> ADZOPE | D21: =IF(COUNTRY_INFO!$T$9:$T$997="MDA1 (IVM+ALB)", COUNTRY_INFO!$T$9:$T$997, " ") -> MDA1 (IVM+ALB) | E21: Avril 2019 | G21: =I21-H21 -> 50491 | H21: =ROUND(COUNTRY_INFO!G21*0.95,0) -> 125130 | I21: 175621 | K21: 45234 | L21: 113085 | M21: 158319 | O21: 89.58824345 | P21: 90.37401103 | Q21: 90.14810302
A22: =IF(COUNTRY_INFO!A22=0," ",COUNTRY_INFO!A22) -> CÔTE D'IVOIRE | B22: =IF(COUNTRY_INFO!B22=0," ",COUNTRY_INFO!B22) -> AGNEBY-TIASSA-ME | C22: =IF(COUNTRY_INFO!C22=0," ",COUNTRY_INFO!C22) -> AGBOVILLE | D22: =IF(COUNTRY_INFO!$T$9:$T$997="MDA1 (IVM+ALB)", COUNTRY_INFO!$T$9:$T$997, " ") -> MDA1 (IVM+ALB) | E22: Avril 2019 | G22: 76214 | H22: =ROUND(COUNTRY_INFO!G22*0.95,0) -> 188879 | I22: 265093 | K22: 61649.71429 | L22: 154124.2857 | M22: 215774 | O22: 80.89027513 | P22: 81.59948206 | Q22: 81.3955857
A23: =IF(COUNTRY_INFO!A23=0," ",COUNTRY_INFO!A23) -> CÔTE D'IVOIRE | B23: =IF(COUNTRY_INFO!B23=0," ",COUNTRY_INFO!B23) -> AGNEBY-TIASSA-ME | C23: =IF(COUNTRY_INFO!C23=0," ",COUNTRY_INFO!C23) -> AKOUPE | D23: =IF(COUNTRY_INFO!$T$9:$T$997="MDA1 (IVM+ALB)", COUNTRY_INFO!$T$9:$T$997, " ") -> MDA1 (IVM+ALB) | E23: Avril 2019 | G23: 50958 | H23: =ROUND(COUNTRY_INFO!G23*0.95,0) -> 126286 | I23: 177244 | K23: 42904.28571 | L23: 107260.7143 | M23: 150165 | O23: 84.1953878 | P23: 84.93476259 | Q23: 84.72219088
A24: =IF(COUNTRY_INFO!A24=0," ",COUNTRY_INFO!A24) -> CÔTE D'IVOIRE | B24: =IF(COUNTRY_INFO!B24=0," ",COUNTRY_INFO!B24) -> AGNEBY-TIASSA-ME | C24: =IF(COUNTRY_INFO!C24=0," ",COUNTRY_INFO!C24) -> ALEPE | D24: =IF(COUNTRY_INFO!$T$9:$T$997="MDA1 (IVM+ALB)", COUNTRY_INFO!$T$9:$T$997, " ") -> MDA1 (IVM+ALB) | E24: Avril 2019 | G24: 32843 | H24: =ROUND(COUNTRY_INFO!G24*0.95,0) -> 81392 | I24: 114235 | K24: 27823.14286 | L24: 69557.85714 | M24: 97381 | O24: 84.71559497 | P24: 85.460312 | Q24: 85.246203
A25: =IF(COUNTRY_INFO!A25=0," ",COUNTRY_INFO!A25) -> CÔTE D'IVOIRE | B25: =IF(COUNTRY_INFO!B25=0," ",COUNTRY_INFO!B25) -> AGNEBY-TIASSA-ME | C25: =IF(COUNTRY_INFO!C25=0," ",COUNTRY_INFO!C25) -> SIKENSI | D25: =IF(COUNTRY_INFO!$T$9:$T$997="MDA1 (IVM+ALB)", COUNTRY_INFO!$T$9:$T$997, " ") -> MDA1 (IVM+ALB) | E25: Avril 2019 | G25: 20464 | H25: =ROUND(COUNTRY_INFO!G25*0.95,0) -> 50718 | I25: 71182 | K25: 18433.42857 | L25: 46083.57143 | M25: 64517 | O25: 90.07734837 | P25: 90.86235938 | Q25: 90.63667781
A26: =IF(COUNTRY_INFO!A26=0," ",COUNTRY_INFO!A26) -> CÔTE D'IVOIRE | B26: =IF(COUNTRY_INFO!B26=0," ",COUNTRY_INFO!B26) -> AGNEBY-TIASSA-ME | C26: =IF(COUNTRY_INFO!C26=0," ",COUNTRY_INFO!C26) -> TIASSALE | D26: =IF(COUNTRY_INFO!$T$9:$T$997="MDA1 (IVM+ALB)", COUNTRY_INFO!$T$9:$T$997, " ") -> MDA1 (IVM+ALB) | E26: Avril 2019 | G26: 63694 | H26: =ROUND(COUNTRY_INFO!G26*0.95,0) -> 157851 | I26: 221545 | K26: 59468.28571 | L26: 148670.7143 | M26: 208139 | O26: 93.36560071 | P26: 94.18420807 | Q26: 93.94885915
A27: =IF(COUNTRY_INFO!A27=0," ",COUNTRY_INFO!A27) -> CÔTE D'IVOIRE | B27: =IF(COUNTRY_INFO!B27=0," ",COUNTRY_INFO!B27) -> BELIER | C27: =IF(COUNTRY_INFO!C27=0," ",COUNTRY_INFO!C27) -> DIDIEVI | D27: =IF(COUNTRY_INFO!$T$9:$T$997="MDA1 (IVM+ALB)", COUNTRY_INFO!$T$9:$T$997, " ") -> MDA1 (IVM+ALB) | E27: Avril 2019 | G27: 22547 | H27: =ROUND(COUNTRY_INFO!G27*0.95,0) -> 55878 | I27: 78425 | K27: 20508 | L27: 51270 | M27: 71778 | O27: 90.95666829 | P27: 91.7534629 | Q27: 91.52438636
A28: =IF(COUNTRY_INFO!A28=0," ",COUNTRY_INFO!A28) -> CÔTE D'IVOIRE | B28: =IF(COUNTRY_INFO!B28=0," ",COUNTRY_INFO!B28) -> BELIER | C28: =IF(COUNTRY_INFO!C28=0," ",COUNTRY_INFO!C28) -> TIEBISSOU | D28: =IF(COUNTRY_INFO!$T$9:$T$997="MDA1 (IVM+ALB)", COUNTRY_INFO!$T$9:$T$997, " ") -> MDA1 (IVM+ALB) | E28: Avril 2019 | G28: 23832 | H28: =ROUND(COUNTRY_INFO!G28*0.95,0) -> 59062 | I28: 82894 | K28: 21218.28571 | L28: 53045.71429 | M28: 74264 | O28: 89.03275308 | P28: 89.81360991 | Q28: 89.58911381
A29: =IF(COUNTRY_INFO!A29=0," ",COUNTRY_INFO!A29) -> CÔTE D'IVOIRE | B29: =IF(COUNTRY_INFO!B29=0," ",COUNTRY_INFO!B29) -> BELIER | C29: =IF(COUNTRY_INFO!C29=0," ",COUNTRY_INFO!C29) -> TOUMODI | D29: =IF(COUNTRY_INFO!$T$9:$T$997="MDA1 (IVM+ALB)", COUNTRY_INFO!$T$9:$T$997, " ") -> MDA1 (IVM+ALB) | E29: Avril 2019 | G29: 39251 | H29: =ROUND(COUNTRY_INFO!G29*0.95,0) -> 97274 | I29: 136525 | K29: 36998.57143 | L29: 92496.42857 | M29: 129495 | O29: 94.26147468 | P29: 95.08854223 | Q29: 94.85075993
A30: =IF(COUNTRY_INFO!A30=0," ",COUNTRY_INFO!A30) -> CÔTE D'IVOIRE | B30: =IF(COUNTRY_INFO!B30=0," ",COUNTRY_INFO!B30) -> BELIER | C30: =IF(COUNTRY_INFO!C30=0," ",COUNTRY_INFO!C30) -> YAMOUSSOUKRO | D30: =IF(COUNTRY_INFO!$T$9:$T$997="MDA1 (IVM+ALB)", COUNTRY_INFO!$T$9:$T$997, " ") -> MDA1 (IVM+ALB) | E30: Avril 2019 | G30: 92773 | H30: =ROUND(COUNTRY_INFO!G30*0.95,0) -> 229917 | I30: 322690 | K30: 83148.57143 | L30: 207871.4286 | M30: 291020 | O30: 89.62583018 | P30: 90.41150875 | Q30: 90.18562707
A31: =IF(COUNTRY_INFO!A31=0," ",COUNTRY_INFO!A31) -> CÔTE D'IVOIRE | B31: =IF(COUNTRY_INFO!B31=0," ",COUNTRY_INFO!B31) -> BOUKANI-GONTOUGO | C31: =IF(COUNTRY_INFO!C31=0," ",COUNTRY_INFO!C31) -> BONDOUKOU | D31: =IF(COUNTRY_INFO!$T$9:$T$997="MDA1 (IVM+ALB)", COUNTRY_INFO!$T$9:$T$997, " ") -> MDA1 (IVM+ALB) | E31: Avril 2019 | G31: 101735 | H31: =ROUND(COUNTRY_INFO!G31*0.95,0) -> 252126 | I31: 353861 | K31: 91175.14286 | L31: 227937.8571 | M31: 319113 | O31: 89.62023183 | P31: 90.40632745 | Q31: 90.18032504
A32: =IF(COUNTRY_INFO!A32=0," ",COUNTRY_INFO!A32) -> CÔTE D'IVOIRE | B32: =IF(COUNTRY_INFO!B32=0," ",COUNTRY_INFO!B32) -> BOUKANI-GONTOUGO | C32: =IF(COUNTRY_INFO!C32=0," ",COUNTRY_INFO!C32) -> BOUNA | D32: =IF(COUNTRY_INFO!$T$9:$T$997="MDA1 (IVM+ALB)", COUNTRY_INFO!$T$9:$T$997, " ") -> MDA1 (IVM+ALB) | E32: Avril 2019 | G32: 58090 | H32: =ROUND(COUNTRY_INFO!G32*0.95,0) -> 143960 | I32: 202050 | K32: 52830.85714 | L32: 132077.1429 | M32: 184908 | O32: 90.94656076 | P32: 91.74572302 | Q32: 91.5159614
A33: =IF(COUNTRY_INFO!A33=0," ",COUNTRY_INFO!A33) -> CÔTE D'IVOIRE | B33: =IF(COUNTRY_INFO!B33=0," ",COUNTRY_INFO!B33) -> BOUKANI-GONTOUGO | C33: =IF(COUNTRY_INFO!C33=0," ",COUNTRY_INFO!C33) -> NASSIAN | D33: =IF(COUNTRY_INFO!$T$9:$T$997="MDA1 (IVM+ALB)", COUNTRY_INFO!$T$9:$T$997, " ") -> MDA1 (IVM+ALB) | E33: Avril 2019 | G33: 11618 | H33: =ROUND(COUNTRY_INFO!G33*0.95,0) -> 28794 | I33: 40412 | K33: 10536.28571 | L33: 26340.71429 | M33: 36877 | O33: 90.68932445 | P33: 91.4798718 | Q33: 91.25259824
A34: =IF(COUNTRY_INFO!A34=0," ",COUNTRY_INFO!A34) -> CÔTE D'IVOIRE | B34: =IF(COUNTRY_INFO!B34=0," ",COUNTRY_INFO!B34) -> BOUKANI-GONTOUGO | C34: =IF(COUNTRY_INFO!C34=0," ",COUNTRY_INFO!C34) -> TANDA | D34: =IF(COUNTRY_INFO!$T$9:$T$997="MDA1 (IVM+ALB)", COUNTRY_INFO!$T$9:$T$997, " ") -> MDA1 (IVM+ALB) | E34: Avril 2019 | G34: 72341 | H34: =ROUND(COUNTRY_INFO!G34*0.95,0) -> 179279 | I34: 251620 | K34: 64866.28571 | L34: 162165.7143 | M34: 227032 | O34: 89.66738878 | P34: 90.45438355 | Q34: 90.22812177
A35: =IF(COUNTRY_INFO!A35=0," ",COUNTRY_INFO!A35) -> CÔTE D'IVOIRE | B35: =IF(COUNTRY_INFO!B35=0," ",COUNTRY_INFO!B35) -> CAVALLY-GUEMON | C35: =IF(COUNTRY_INFO!C35=0," ",COUNTRY_INFO!C35) -> BANGOLO | D35: =IF(COUNTRY_INFO!$T$9:$T$997="MDA1 (IVM+ALB)", COUNTRY_INFO!$T$9:$T$997, " ") -> MDA1 (IVM+ALB) | E35: Avril 2019 | G35: 83004 | H35: =ROUND(COUNTRY_INFO!G35*0.95,0) -> 205704 | I35: 288708 | K35: 76857.42857 | L35: 192143.5714 | M35: 269001 | O35: 92.59484913 | P35: 93.40779539 | Q35: 93.17407207
A36: =IF(COUNTRY_INFO!A36=0," ",COUNTRY_INFO!A36) -> CÔTE D'IVOIRE | B36: =IF(COUNTRY_INFO!B36=0," ",COUNTRY_INFO!B36) -> CAVALLY-GUEMON | C36: =IF(COUNTRY_INFO!C36=0," ",COUNTRY_INFO!C36) -> BLOLEQUIN | D36: =IF(COUNTRY_INFO!$T$9:$T$997="MDA1 (IVM+ALB)", COUNTRY_INFO!$T$9:$T$997, " ") -> MDA1 (IVM+ALB) | E36: Avril 2019 | G36: 32180 | H36: =ROUND(COUNTRY_INFO!G36*0.95,0) -> 79751 | I36: 111931 | K36: 31664.28571 | L36: 79160.71429 | M36: 110825 | O36: 98.39740744 | P36: 99.25983911 | Q36: 99.01189125
A37: =IF(COUNTRY_INFO!A37=0," ",COUNTRY_INFO!A37) -> CÔTE D'IVOIRE | B37: =IF(COUNTRY_INFO!B37=0," ",COUNTRY_INFO!B37) -> CAVALLY-GUEMON | C37: =IF(COUNTRY_INFO!C37=0," ",COUNTRY_INFO!C37) -> DUEKOUE | D37: =IF(COUNTRY_INFO!$T$9:$T$997="MDA1 (IVM+ALB)", COUNTRY_INFO!$T$9:$T$997, " ") -> MDA1 (IVM+ALB) | E37: Avril 2019 | G37: 106490 | H37: =ROUND(COUNTRY_INFO!G37*0.95,0) -> 263909 | I37: 370399 | K37: 97787.14286 | L37: 244467.8571 | M37: 342255 | O37: 91.82753578 | P37: 92.63339149 | Q37: 92.40170735
A38: =IF(COUNTRY_INFO!A38=0," ",COUNTRY_INFO!A38) -> CÔTE D'IVOIRE | B38: =IF(COUNTRY_INFO!B38=0," ",COUNTRY_INFO!B38) -> CAVALLY-GUEMON | C38: =IF(COUNTRY_INFO!C38=0," ",COUNTRY_INFO!C38) -> GUIGLO | D38: =IF(COUNTRY_INFO!$T$9:$T$997="MDA1 (IVM+ALB)", COUNTRY_INFO!$T$9:$T$997, " ") -> MDA1 (IVM+ALB) | E38: Avril 2019 | G38: 72961 | H38: =ROUND(COUNTRY_INFO!G38*0.95,0) -> 180815 | I38: 253776 | K38: 69367.14286 | L38: 173417.8571 | M38: 242785 | O38: 95.07427647 | P38: 95.90899933 | Q38: 95.66901519
A39: =IF(COUNTRY_INFO!A39=0," ",COUNTRY_INFO!A39) -> CÔTE D'IVOIRE | B39: =IF(COUNTRY_INFO!B39=0," ",COUNTRY_INFO!B39) -> CAVALLY-GUEMON | C39: =IF(COUNTRY_INFO!C39=0," ",COUNTRY_INFO!C39) -> KOUIBLY | D39: =IF(COUNTRY_INFO!$T$9:$T$997="MDA1 (IVM+ALB)", COUNTRY_INFO!$T$9:$T$997, " ") -> MDA1 (IVM+ALB) | E39: Avril 2019 | G39: 51268 | H39: =ROUND(COUNTRY_INFO!G39*0.95,0) -> 127057 | I39: 178325 | K39: 47584.85714 | L39: 118962.1429 | M39: 166547 | O39: 92.81590299 | P39: 93.62895618 | Q39: 93.39520538
A40: =IF(COUNTRY_INFO!A40=0," ",COUNTRY_INFO!A40) -> CÔTE D'IVOIRE | B40: =IF(COUNTRY_INFO!B40=0," ",COUNTRY_INFO!B40) -> CAVALLY-GUEMON | C40: =IF(COUNTRY_INFO!C40=0," ",COUNTRY_INFO!C40) -> TOULEPLEU | D40: =IF(COUNTRY_INFO!$T$9:$T$997="MDA1 (IVM+ALB)", COUNTRY_INFO!$T$9:$T$997, " ") -> MDA1 (IVM+ALB) | E40: Avril 2019 | G40: 14871 | H40: =ROUND(COUNTRY_INFO!G40*0.95,0) -> 36851 | I40: 51722 | K40: 13996 | L40: 34990 | M40: 48986 | O40: 94.11606482 | P40: 94.94993352 | Q40: 94.71018135
A41: =IF(COUNTRY_INFO!A41=0," ",COUNTRY_INFO!A41) -> CÔTE D'IVOIRE | B41: =IF(COUNTRY_INFO!B41=0," ",COUNTRY_INFO!B41) -> GBEKE | C41: =IF(COUNTRY_INFO!C41=0," ",COUNTRY_INFO!C41) -> BEOUMI | D41: =IF(COUNTRY_INFO!$T$9:$T$997="MDA1 (IVM+ALB)", COUNTRY_INFO!$T$9:$T$997, " ") -> MDA1 (IVM+ALB) | E41: Avril 2019 | G41: 40234 | H41: =ROUND(COUNTRY_INFO!G41*0.95,0) -> 99710 | I41: 139944 | K41: 32828.28571 | L41: 82070.71429 | M41: 114899 | O41: =IF(G41<>0, IF(K41/G41*100=0, "-", K41/G41*100), " ") -> 81.59339294 | P41: 82.30941158 | Q41: 82.10355571
A42: =IF(COUNTRY_INFO!A42=0," ",COUNTRY_INFO!A42) -> CÔTE D'IVOIRE | B42: =IF(COUNTRY_INFO!B42=0," ",COUNTRY_INFO!B42) -> GBEKE | C42: =IF(COUNTRY_INFO!C42=0," ",COUNTRY_INFO!C42) -> BOUAKE NORD-EST | D42: =IF(COUNTRY_INFO!$T$9:$T$997="MDA1 (IVM+ALB)", COUNTRY_INFO!$T$9:$T$997, " ") -> MDA1 (IVM+ALB) | E42: Avril 2019 | G42: 67488 | H42: =ROUND(COUNTRY_INFO!G42*0.95,0) -> 167252 | I42: 234740 | K42: 66620.28571 | L42: 166550.7143 | M42: 233171 | O42: 98.71426878 | P42: =IF(H42<>0, IF(L42/H42*100=0, "-", L42/H42*100), " ") -> 99.58070115 | Q42: =IF(I42<>0, IF(M42/I42*100=0, "-", M42/I42*100), " ") -> 99.33160092
A43: =IF(COUNTRY_INFO!A43=0," ",COUNTRY_INFO!A43) -> CÔTE D'IVOIRE | B43: =IF(COUNTRY_INFO!B43=0," ",COUNTRY_INFO!B43) -> GBEKE | C43: =IF(COUNTRY_INFO!C43=0," ",COUNTRY_INFO!C43) -> BOUAKE NORD-OUEST | D43: =IF(COUNTRY_INFO!$T$9:$T$997="MDA1 (IVM+ALB)", COUNTRY_INFO!$T$9:$T$997, " ") -> MDA1 (IVM+ALB) | E43: Avril 2019 | G43: 69198 | H43: =ROUND(COUNTRY_INFO!G43*0.95,0) -> 171491 | I43: 240689 | K43: 63619.42857 | L43: 159048.5714 | M43: 222668 | O43: 91.9382476 | P43: 92.74455886 | Q43: 92.51274466
A44: =IF(COUNTRY_INFO!A44=0," ",COUNTRY_INFO!A44) -> CÔTE D'IVOIRE | B44: =IF(COUNTRY_INFO!B44=0," ",COUNTRY_INFO!B44) -> GBEKE | C44: =IF(COUNTRY_INFO!C44=0," ",COUNTRY_INFO!C44) -> BOUAKE SUD | D44: =IF(COUNTRY_INFO!$T$9:$T$997="MDA1 (IVM+ALB)", COUNTRY_INFO!$T$9:$T$997, " ") -> MDA1 (IVM+ALB) | E44: Avril 2019 | G44: 62160 | H44: =ROUND(COUNTRY_INFO!G44*0.95,0) -> 154047 | I44: 216207 | K44: 59546.28571 | L44: 148865.7143 | M44: 208412 | O44: 95.79518294 | P44: 96.63655526 | Q44: 96.39465882
A45: =IF(COUNTRY_INFO!A45=0," ",COUNTRY_INFO!A45) -> CÔTE D'IVOIRE | B45: =IF(COUNTRY_INFO!B45=0," ",COUNTRY_INFO!B45) -> GBEKE | C45: =IF(COUNTRY_INFO!C45=0," ",COUNTRY_INFO!C45) -> SAKASSOU | D45: =IF(COUNTRY_INFO!$T$9:$T$997="MDA1 (IVM+ALB)", COUNTRY_INFO!$T$9:$T$997, " ") -> MDA1 (IVM+ALB) | E45: Avril 2019 | G45: 24663 | H45: =ROUND(COUNTRY_INFO!G45*0.95,0) -> 61120 | I45: 85783 | K45: 22164.85714 | L45: 55412.14286 | M45: 77577 | O45: 89.87088814 | P45: 90.6612285 | Q45: 90.43400208
A46: =IF(COUNTRY_INFO!A46=0," ",COUNTRY_INFO!A46) -> CÔTE D'IVOIRE | B46: =IF(COUNTRY_INFO!B46=0," ",COUNTRY_INFO!B46) -> GBOKLE-NAWA-SAN-PEDRO | C46: =IF(COUNTRY_INFO!C46=0," ",COUNTRY_INFO!C46) -> GUEYO | D46: =IF(COUNTRY_INFO!$T$9:$T$997="MDA1 (IVM+ALB)", COUNTRY_INFO!$T$9:$T$997, " ") -> MDA1 (IVM+ALB) | E46: Avril 2019 | G46: 21833 | H46: =ROUND(COUNTRY_INFO!G46*0.95,0) -> 54108 | I46: 75941 | K46: 21732.57143 | L46: 54331.42857 | M46: 76064 | O46: 99.54001479 | P46: 100.4129308 | Q46: 100.1619678
A47: =IF(COUNTRY_INFO!A47=0," ",COUNTRY_INFO!A47) -> CÔTE D'IVOIRE | B47: =IF(COUNTRY_INFO!B47=0," ",COUNTRY_INFO!B47) -> GBOKLE-NAWA-SAN-PEDRO | C47: =IF(COUNTRY_INFO!C47=0," ",COUNTRY_INFO!C47) -> SAN PEDRO | D47: =IF(COUNTRY_INFO!$T$9:$T$997="MDA1 (IVM+ALB)", COUNTRY_INFO!$T$9:$T$997, " ") -> MDA1 (IVM+ALB) | E47: Avril 2019 | G47: 164675 | H47: =ROUND(COUNTRY_INFO!G47*0.95,0) -> 408110 | I47: 572785 | K47: 152225.4286 | L47: 380563.5714 | M47: 532789 | O47: 92.43991412 | P47: 93.25024416 | Q47: 93.01727524
A48: =IF(COUNTRY_INFO!A48=0," ",COUNTRY_INFO!A48) -> CÔTE D'IVOIRE | B48: =IF(COUNTRY_INFO!B48=0," ",COUNTRY_INFO!B48) -> GBOKLE-NAWA-SAN-PEDRO | C48: =IF(COUNTRY_INFO!C48=0," ",COUNTRY_INFO!C48) -> SASSANDRA | D48: =IF(COUNTRY_INFO!$T$9:$T$997="MDA1 (IVM+ALB)", COUNTRY_INFO!$T$9:$T$997, " ") -> MDA1 (IVM+ALB) | E48: Avril 2019 | G48: 78141 | H48: =ROUND(COUNTRY_INFO!G48*0.95,0) -> 193657 | I48: 271798 | K48: 72414 | L48: 181035 | M48: 253449 | O48: 92.67094099 | P48: 93.48229085 | Q48: 93.24903053
A49: =IF(COUNTRY_INFO!A49=0," ",COUNTRY_INFO!A49) -> CÔTE D'IVOIRE | B49: =IF(COUNTRY_INFO!B49=0," ",COUNTRY_INFO!B49) -> GBOKLE-NAWA-SAN-PEDRO | C49: =IF(COUNTRY_INFO!C49=0," ",COUNTRY_INFO!C49) -> SOUBRE | D49: =IF(COUNTRY_INFO!$T$9:$T$997="MDA1 (IVM+ALB)", COUNTRY_INFO!$T$9:$T$997, " ") -> MDA1 (IVM+ALB) | E49: Avril 2019 | G49: 272748 | H49: =ROUND(COUNTRY_INFO!G49*0.95,0) -> 675937 | I49: 948685 | K49: 259382.2857 | L49: 648455.7143 | M49: 907838 | O49: 95.09961052 | P49: 95.93434215 | Q49: 95.69435587
A50: =IF(COUNTRY_INFO!A50=0," ",COUNTRY_INFO!A50) -> CÔTE D'IVOIRE | B50: =IF(COUNTRY_INFO!B50=0," ",COUNTRY_INFO!B50) -> GBOKLE-NAWA-SAN-PEDRO | C50: =IF(COUNTRY_INFO!C50=0," ",COUNTRY_INFO!C50) -> TABOU | D50: =IF(COUNTRY_INFO!$T$9:$T$997="MDA1 (IVM+ALB)", COUNTRY_INFO!$T$9:$T$997, " ") -> MDA1 (IVM+ALB) | E50: Avril 2019 | G50: 51011 | H50: =ROUND(COUNTRY_INFO!G50*0.95,0) -> 126418 | I50: 177429 | K50: 51374.57143 | L50: 128436.4286 | M50: 179811 | O50: 100.7127314 | P50: 101.5966307 | Q50: 101.3425088
A51: =IF(COUNTRY_INFO!A51=0," ",COUNTRY_INFO!A51) -> CÔTE D'IVOIRE | B51: =IF(COUNTRY_INFO!B51=0," ",COUNTRY_INFO!B51) -> GOH | C51: =IF(COUNTRY_INFO!C51=0," ",COUNTRY_INFO!C51) -> GAGNOA | D51: =IF(COUNTRY_INFO!$T$9:$T$997="MDA1 (IVM+ALB)", COUNTRY_INFO!$T$9:$T$997, " ") -> MDA1 (IVM+ALB) | E51: Avril 2019 | G51: 157094 | H51: =ROUND(COUNTRY_INFO!G51*0.95,0) -> 389320 | I51: 546414 | K51: 127106.2857 | L51: 317765.7143 | M51: 444872 | O51: 80.91097414 | P51: 81.6207013 | Q51: 81.41665477
A52: =IF(COUNTRY_INFO!A52=0," ",COUNTRY_INFO!A52) -> CÔTE D'IVOIRE | B52: =IF(COUNTRY_INFO!B52=0," ",COUNTRY_INFO!B52) -> GOH | C52: =IF(COUNTRY_INFO!C52=0," ",COUNTRY_INFO!C52) -> OUME | D52: =IF(COUNTRY_INFO!$T$9:$T$997="MDA1 (IVM+ALB)", COUNTRY_INFO!$T$9:$T$997, " ") -> MDA1 (IVM+ALB) | E52: Avril 2019 | G52: 71495 | H52: =ROUND(COUNTRY_INFO!G52*0.95,0) -> 177184 | I52: 248679 | K52: 66004 | L52: 165010 | M52: 231014 | O52: 92.31974264 | P52: 93.12917645 | Q52: 92.89646492
A53: =IF(COUNTRY_INFO!A53=0," ",COUNTRY_INFO!A53) -> CÔTE D'IVOIRE | B53: =IF(COUNTRY_INFO!B53=0," ",COUNTRY_INFO!B53) -> HAMBOL | C53: =IF(COUNTRY_INFO!C53=0," ",COUNTRY_INFO!C53) -> DABAKALA | D53: =IF(COUNTRY_INFO!$T$9:$T$997="MDA1 (IVM+ALB)", COUNTRY_INFO!$T$9:$T$997, " ") -> MDA1 (IVM+ALB) | E53: Avril 2019 | G53: 49379 | H53: =ROUND(COUNTRY_INFO!G53*0.95,0) -> 122372 | I53: 171751 | K53: 45747.42857 | L53: 114368.5714 | M53: 160116 | O53: 92.64551443 | P53: 93.45975503 | Q53: 93.22565807
A54: =IF(COUNTRY_INFO!A54=0," ",COUNTRY_INFO!A54) -> CÔTE D'IVOIRE | B54: =IF(COUNTRY_INFO!B54=0," ",COUNTRY_INFO!B54) -> HAMBOL | C54: =IF(COUNTRY_INFO!C54=0," ",COUNTRY_INFO!C54) -> KATIOLA | D54: =IF(COUNTRY_INFO!$T$9:$T$997="MDA1 (IVM+ALB)", COUNTRY_INFO!$T$9:$T$997, " ") -> MDA1 (IVM+ALB) | E54: Avril 2019 | G54: 27893 | H54: =ROUND(COUNTRY_INFO!G54*0.95,0) -> 69128 | I54: 97021 | K54: 25838.57143 | L54: 64596.42857 | M54: 90435 | O54: 92.63460879 | P54: 93.4446658 | Q54: 93.21177889
A55: =IF(COUNTRY_INFO!A55=0," ",COUNTRY_INFO!A55) -> CÔTE D'IVOIRE | B55: =IF(COUNTRY_INFO!B55=0," ",COUNTRY_INFO!B55) -> HAMBOL | C55: =IF(COUNTRY_INFO!C55=0," ",COUNTRY_INFO!C55) -> NIAKARA | D55: =IF(COUNTRY_INFO!$T$9:$T$997="MDA1 (IVM+ALB)", COUNTRY_INFO!$T$9:$T$997, " ") -> MDA1 (IVM+ALB) | E55: Avril 2019 | G55: 34915 | H55: =ROUND(COUNTRY_INFO!G55*0.95,0) -> 86527 | I55: 121442 | K55: 28537.71429 | L55: 71344.28571 | M55: 99882 | O55: 81.73482539 | P55: 82.45320618 | Q55: 82.24666919
A56: =IF(COUNTRY_INFO!A56=0," ",COUNTRY_INFO!A56) -> CÔTE D'IVOIRE | B56: =IF(COUNTRY_INFO!B56=0," ",COUNTRY_INFO!B56) -> HAUT SASSANDRA | C56: =IF(COUNTRY_INFO!C56=0," ",COUNTRY_INFO!C56) -> DALOA | D56: =IF(COUNTRY_INFO!$T$9:$T$997="MDA1 (IVM+ALB)", COUNTRY_INFO!$T$9:$T$997, " ") -> MDA1 (IVM+ALB) | E56: Avril 2019 | G56: 183198 | H56: =ROUND(COUNTRY_INFO!G56*0.95,0) -> 454015 | I56: 637213 | K56: 157272 | L56: 393180 | M56: 550452 | O56: 85.84809878 | P56: 86.60066297 | Q56: 86.38430164
A57: =IF(COUNTRY_INFO!A57=0," ",COUNTRY_INFO!A57) -> CÔTE D'IVOIRE | B57: =IF(COUNTRY_INFO!B57=0," ",COUNTRY_INFO!B57) -> HAUT SASSANDRA | C57: =IF(COUNTRY_INFO!C57=0," ",COUNTRY_INFO!C57) -> ISSIA | D57: =IF(COUNTRY_INFO!$T$9:$T$997="MDA1 (IVM+ALB)", COUNTRY_INFO!$T$9:$T$997, " ") -> MDA1 (IVM+ALB) | E57: Avril 2019 | G57: 85553 | H57: =ROUND(COUNTRY_INFO!G57*0.95,0) -> 212023 | I57: 297576 | K57: 80586 | L57: 201465 | M57: 282051 | O57: 94.19424217 | P57: 95.02035157 | Q57: 94.78284539
A58: =IF(COUNTRY_INFO!A58=0," ",COUNTRY_INFO!A58) -> CÔTE D'IVOIRE | B58: =IF(COUNTRY_INFO!B58=0," ",COUNTRY_INFO!B58) -> HAUT SASSANDRA | C58: =IF(COUNTRY_INFO!C58=0," ",COUNTRY_INFO!C58) -> VAVOUA | D58: =IF(COUNTRY_INFO!$T$9:$T$997="MDA1 (IVM+ALB)", COUNTRY_INFO!$T$9:$T$997, " ") -> MDA1 (IVM+ALB) | E58: Avril 2019 | G58: 104603 | H58: =ROUND(COUNTRY_INFO!G58*0.95,0) -> 259231 | I58: 363834 | K58: 95942.85714 | L58: 239857.1429 | M58: 335800 | O58: 91.72094217 | P58: 92.52641191 | Q58: 92.29483776
A59: =IF(COUNTRY_INFO!A59=0," ",COUNTRY_INFO!A59) -> CÔTE D'IVOIRE | B59: =IF(COUNTRY_INFO!B59=0," ",COUNTRY_INFO!B59) -> INDENIE-DJUABLIN | C59: =IF(COUNTRY_INFO!C59=0," ",COUNTRY_INFO!C59) -> ABENGOUROU | D59: =IF(COUNTRY_INFO!$T$9:$T$997="MDA1 (IVM+ALB)", COUNTRY_INFO!$T$9:$T$997, " ") -> MDA1 (IVM+ALB) | E59: Avril 2019 | G59: 87706 | H59: =ROUND(COUNTRY_INFO!G59*0.95,0) -> 217356 | I59: 305062 | K59: 84093.42857 | L59: 210233.5714 | M59: 294327 | O59: 95.88104414 | P59: 96.7231507 | Q59: 96.4810432
A60: =IF(COUNTRY_INFO!A60=0," ",COUNTRY_INFO!A60) -> CÔTE D'IVOIRE | B60: =IF(COUNTRY_INFO!B60=0," ",COUNTRY_INFO!B60) -> INDENIE-DJUABLIN | C60: =IF(COUNTRY_INFO!C60=0," ",COUNTRY_INFO!C60) -> AGNIBILEKRO | D60: =IF(COUNTRY_INFO!$T$9:$T$997="MDA1 (IVM+ALB)", COUNTRY_INFO!$T$9:$T$997, " ") -> MDA1 (IVM+ALB) | E60: Avril 2019 | G60: 43883 | H60: =ROUND(COUNTRY_INFO!G60*0.95,0) -> 108752 | I60: 152635 | K60: 40616.85714 | L60: 101542.1429 | M60: 142159 | O60: 92.55715686 | P60: 93.37036823 | Q60: 93.13656763
A61: =IF(COUNTRY_INFO!A61=0," ",COUNTRY_INFO!A61) -> CÔTE D'IVOIRE | B61: =IF(COUNTRY_INFO!B61=0," ",COUNTRY_INFO!B61) -> INDENIE-DJUABLIN | C61: =IF(COUNTRY_INFO!C61=0," ",COUNTRY_INFO!C61) -> BETTIE | D61: =IF(COUNTRY_INFO!$T$9:$T$997="MDA1 (IVM+ALB)", COUNTRY_INFO!$T$9:$T$997, " ") -> MDA1 (IVM+ALB) | E61: Avril 2019 | G61: 14636 | H61: =ROUND(COUNTRY_INFO!G61*0.95,0) -> 36271 | I61: 50907 | K61: 13675.42857 | L61: 34188.57143 | M61: 47864 | O61: 93.43692656 | P61: 94.25869546 | Q61: 94.02243306
A62: =IF(COUNTRY_INFO!A62=0," ",COUNTRY_INFO!A62) -> CÔTE D'IVOIRE | B62: =IF(COUNTRY_INFO!B62=0," ",COUNTRY_INFO!B62) -> KABADOUGOU-BAFING-FOLON | C62: =IF(COUNTRY_INFO!C62=0," ",COUNTRY_INFO!C62) -> MINIGNAN | D62: =IF(COUNTRY_INFO!$T$9:$T$997="MDA1 (IVM+ALB)", COUNTRY_INFO!$T$9:$T$997, " ") -> 
A63: =IF(COUNTRY_INFO!A63=0," ",COUNTRY_INFO!A63) -> CÔTE D'IVOIRE | B63: =IF(COUNTRY_INFO!B63=0," ",COUNTRY_INFO!B63) -> KABADOUGOU-BAFING-FOLON | C63: =IF(COUNTRY_INFO!C63=0," ",COUNTRY_INFO!C63) -> ODIENNE | D63: =IF(COUNTRY_INFO!$T$9:$T$997="MDA1 (IVM+ALB)", COUNTRY_INFO!$T$9:$T$997, " ") -> MDA1 (IVM+ALB) | E63: Avril 2019 | G63: =I63-H63 -> 50452 | H63: =ROUND(COUNTRY_INFO!G63*0.95,0) -> 125030 | I63: 175482 | K63: 45132.57143 | L63: 112831.4286 | M63: 157964 | O63: 89.45645649 | P63: 90.24348442 | Q63: 90.01720974
A64: =IF(COUNTRY_INFO!A64=0," ",COUNTRY_INFO!A64) -> CÔTE D'IVOIRE | B64: =IF(COUNTRY_INFO!B64=0," ",COUNTRY_INFO!B64) -> KABADOUGOU-BAFING-FOLON | C64: =IF(COUNTRY_INFO!C64=0," ",COUNTRY_INFO!C64) -> TOUBA | D64: =IF(COUNTRY_INFO!$T$9:$T$997="MDA1 (IVM+ALB)", COUNTRY_INFO!$T$9:$T$997, " ") -> MDA1 (IVM+ALB) | E64: Avril 2019 | G64: 47759 | H64: =ROUND(COUNTRY_INFO!G64*0.95,0) -> 118360 | I64: 166119 | K64: 43445.71429 | L64: 108614.2857 | M64: 152060 | O64: 90.96864316 | P64: 91.76604065 | Q64: 91.53678989
A65: =IF(COUNTRY_INFO!A65=0," ",COUNTRY_INFO!A65) -> CÔTE D'IVOIRE | B65: =IF(COUNTRY_INFO!B65=0," ",COUNTRY_INFO!B65) -> LOH-DJIBOUA | C65: =IF(COUNTRY_INFO!C65=0," ",COUNTRY_INFO!C65) -> DIVO | D65: =IF(COUNTRY_INFO!$T$9:$T$997="MDA1 (IVM+ALB)", COUNTRY_INFO!$T$9:$T$997, " ") -> MDA1 (IVM+ALB) | E65: Avril 2019 | G65: 104935 | H65: =ROUND(COUNTRY_INFO!G65*0.95,0) -> 260057 | I65: 364992 | K65: 104227.7143 | L65: 260569.2857 | M65: 364797 | O65: 99.32597731 | P65: 100.1969898 | Q65: 99.94657417
A66: =IF(COUNTRY_INFO!A66=0," ",COUNTRY_INFO!A66) -> CÔTE D'IVOIRE | B66: =IF(COUNTRY_INFO!B66=0," ",COUNTRY_INFO!B66) -> LOH-DJIBOUA | C66: =IF(COUNTRY_INFO!C66=0," ",COUNTRY_INFO!C66) -> FRESCO | D66: =IF(COUNTRY_INFO!$T$9:$T$997="MDA1 (IVM+ALB)", COUNTRY_INFO!$T$9:$T$997, " ") -> MDA1 (IVM+ALB) | E66: Avril 2019 | G66: 26430 | H66: =ROUND(COUNTRY_INFO!G66*0.95,0) -> 65500 | I66: 91930 | K66: 24769.42857 | L66: 61923.57143 | M66: 86693 | O66: 93.71709637 | P66: 94.53980371 | Q66: 94.30327423
A67: =IF(COUNTRY_INFO!A67=0," ",COUNTRY_INFO!A67) -> CÔTE D'IVOIRE | B67: =IF(COUNTRY_INFO!B67=0," ",COUNTRY_INFO!B67) -> LOH-DJIBOUA | C67: =IF(COUNTRY_INFO!C67=0," ",COUNTRY_INFO!C67) -> GUITRY | D67: =IF(COUNTRY_INFO!$T$9:$T$997="MDA1 (IVM+ALB)", COUNTRY_INFO!$T$9:$T$997, " ") -> MDA1 (IVM+ALB) | E67: Avril 2019 | G67: 39202 | H67: =ROUND(COUNTRY_INFO!G67*0.95,0) -> 97156 | I67: 136358 | K67: 36210 | L67: 90525 | M67: 126735 | O67: 92.36773634 | P67: 93.17489398 | Q67: 92.94284164
A68: =IF(COUNTRY_INFO!A68=0," ",COUNTRY_INFO!A68) -> CÔTE D'IVOIRE | B68: =IF(COUNTRY_INFO!B68=0," ",COUNTRY_INFO!B68) -> LOH-DJIBOUA | C68: =IF(COUNTRY_INFO!C68=0," ",COUNTRY_INFO!C68) -> LAKOTA | D68: =IF(COUNTRY_INFO!$T$9:$T$997="MDA1 (IVM+ALB)", COUNTRY_INFO!$T$9:$T$997, " ") -> MDA1 (IVM+ALB) | E68: Avril 2019 | G68: 52756 | H68: =ROUND(COUNTRY_INFO!G68*0.95,0) -> 130746 | I68: 183502 | K68: 43424 | L68: 108560 | M68: 151984 | O68: 82.31101676 | P68: 83.03122084 | Q68: 82.8241654
A69: =IF(COUNTRY_INFO!A69=0," ",COUNTRY_INFO!A69) -> CÔTE D'IVOIRE | B69: =IF(COUNTRY_INFO!B69=0," ",COUNTRY_INFO!B69) -> MARAHOUE | C69: =IF(COUNTRY_INFO!C69=0," ",COUNTRY_INFO!C69) -> BOUAFLE | D69: =IF(COUNTRY_INFO!$T$9:$T$997="MDA1 (IVM+ALB)", COUNTRY_INFO!$T$9:$T$997, " ") -> MDA1 (IVM+ALB) | E69: Avril 2019 | G69: 106890 | H69: =ROUND(COUNTRY_INFO!G69*0.95,0) -> 264901 | I69: 371791 | K69: 100357.4286 | L69: 250893.5714 | M69: 351251 | O69: 93.88851022 | P69: 94.71220246 | Q69: 94.47539074
A70: =IF(COUNTRY_INFO!A70=0," ",COUNTRY_INFO!A70) -> CÔTE D'IVOIRE | B70: =IF(COUNTRY_INFO!B70=0," ",COUNTRY_INFO!B70) -> MARAHOUE | C70: =IF(COUNTRY_INFO!C70=0," ",COUNTRY_INFO!C70) -> SINFRA | D70: =IF(COUNTRY_INFO!$T$9:$T$997="MDA1 (IVM+ALB)", COUNTRY_INFO!$T$9:$T$997, " ") -> MDA1 (IVM+ALB) | E70: Avril 2019 | G70: 62101 | H70: =ROUND(COUNTRY_INFO!G70*0.95,0) -> 153904 | I70: 216005 | K70: 55570 | L70: 138925 | M70: 194495 | O70: 89.48326114 | P70: 90.26730949 | Q70: 90.04189718
A71: =IF(COUNTRY_INFO!A71=0," ",COUNTRY_INFO!A71) -> CÔTE D'IVOIRE | B71: =IF(COUNTRY_INFO!B71=0," ",COUNTRY_INFO!B71) -> MARAHOUE | C71: =IF(COUNTRY_INFO!C71=0," ",COUNTRY_INFO!C71) -> ZUENOULA | D71: =IF(COUNTRY_INFO!$T$9:$T$997="MDA1 (IVM+ALB)", COUNTRY_INFO!$T$9:$T$997, " ") -> MDA1 (IVM+ALB) | E71: Avril 2019 | G71: 56005 | H71: =ROUND(COUNTRY_INFO!G71*0.95,0) -> 138793 | I71: 194798 | K71: 51868 | L71: 129670 | M71: 181538 | O71: 92.61315954 | P71: 93.42690193 | Q71: 93.19294859
A72: =IF(COUNTRY_INFO!A72=0," ",COUNTRY_INFO!A72) -> CÔTE D'IVOIRE | B72: =IF(COUNTRY_INFO!B72=0," ",COUNTRY_INFO!B72) -> N'ZI-IFOU | C72: =IF(COUNTRY_INFO!C72=0," ",COUNTRY_INFO!C72) -> BOCANDA | D72: =IF(COUNTRY_INFO!$T$9:$T$997="MDA1 (IVM+ALB)", COUNTRY_INFO!$T$9:$T$997, " ") ->  | O72: =IF(G72<>0, IF(K72/G72*100=0, "-", K72/G72*100), " ") ->  | P72: =IF(H72<>0, IF(L72/H72*100=0, "-", L72/H72*100), " ") ->  | Q72: =IF(I72<>0, IF(M72/I72*100=0, "-", M72/I72*100), " ") -> 
A73: =IF(COUNTRY_INFO!A73=0," ",COUNTRY_INFO!A73) -> CÔTE D'IVOIRE | B73: =IF(COUNTRY_INFO!B73=0," ",COUNTRY_INFO!B73) -> N'ZI-IFOU | C73: =IF(COUNTRY_INFO!C73=0," ",COUNTRY_INFO!C73) -> BONGOUANOU | D73: =IF(COUNTRY_INFO!$T$9:$T$997="MDA1 (IVM+ALB)", COUNTRY_INFO!$T$9:$T$997, " ") -> MDA1 (IVM+ALB) | E73: Avril 2019 | G73: =I73-H73 -> 92001 | H73: =ROUND(COUNTRY_INFO!G73*0.95,0) -> 228004 | I73: 320005 | K73: 87376.28571 | L73: 218440.7143 | M73: 305817 | O73: 94.97319129 | P73: 95.80565003 | Q73: 95.56631928
A74: =IF(COUNTRY_INFO!A74=0," ",COUNTRY_INFO!A74) -> CÔTE D'IVOIRE | B74: =IF(COUNTRY_INFO!B74=0," ",COUNTRY_INFO!B74) -> N'ZI-IFOU | C74: =IF(COUNTRY_INFO!C74=0," ",COUNTRY_INFO!C74) -> DAOUKRO | D74: =IF(COUNTRY_INFO!$T$9:$T$997="MDA1 (IVM+ALB)", COUNTRY_INFO!$T$9:$T$997, " ") -> MDA1 (IVM+ALB) | E74: Avril 2019 | G74: 41507 | H74: =ROUND(COUNTRY_INFO!G74*0.95,0) -> 102866 | I74: 144373 | K74: 38170.28571 | L74: 95425.71429 | M74: 133596 | O74: 91.96108058 | P74: 92.76701173 | Q74: 92.53530785
A75: =IF(COUNTRY_INFO!A75=0," ",COUNTRY_INFO!A75) -> CÔTE D'IVOIRE | B75: =IF(COUNTRY_INFO!B75=0," ",COUNTRY_INFO!B75) -> N'ZI-IFOU | C75: =IF(COUNTRY_INFO!C75=0," ",COUNTRY_INFO!C75) -> DIMBOKRO | D75: =IF(COUNTRY_INFO!$T$9:$T$997="MDA1 (IVM+ALB)", COUNTRY_INFO!$T$9:$T$997, " ") -> MDA1 (IVM+ALB) | E75: Avril 2019 | G75: 23757 | H75: =ROUND(COUNTRY_INFO!G75*0.95,0) -> 58877 | I75: 82634 | K75: 21550.28571 | L75: 53875.71429 | M75: 75426 | O75: 90.71130915 | P75: 91.50553575 | Q75: 91.27719825
A76: =IF(COUNTRY_INFO!A76=0," ",COUNTRY_INFO!A76) -> CÔTE D'IVOIRE | B76: =IF(COUNTRY_INFO!B76=0," ",COUNTRY_INFO!B76) -> N'ZI-IFOU | C76: =IF(COUNTRY_INFO!C76=0," ",COUNTRY_INFO!C76) -> M'BAHIAKRO | D76: =IF(COUNTRY_INFO!$T$9:$T$997="MDA1 (IVM+ALB)", COUNTRY_INFO!$T$9:$T$997, " ") -> MDA1 (IVM+ALB) | E76: Avril 2019 | G76: 20813 | H76: =ROUND(COUNTRY_INFO!G76*0.95,0) -> 51579 | I76: 72392 | K76: 18973.71429 | L76: 47434.28571 | M76: 66408 | O76: 91.16280347 | P76: 91.96433765 | Q76: 91.73389325
A77: =IF(COUNTRY_INFO!A77=0," ",COUNTRY_INFO!A77) -> CÔTE D'IVOIRE | B77: =IF(COUNTRY_INFO!B77=0," ",COUNTRY_INFO!B77) -> N'ZI-IFOU | C77: =IF(COUNTRY_INFO!C77=0," ",COUNTRY_INFO!C77) -> PRIKRO | D77: =IF(COUNTRY_INFO!$T$9:$T$997="MDA1 (IVM+ALB)", COUNTRY_INFO!$T$9:$T$997, " ") -> MDA1 (IVM+ALB) | E77: Avril 2019 | G77: 18992 | H77: =ROUND(COUNTRY_INFO!G77*0.95,0) -> 47067 | I77: 66059 | K77: 17035.71429 | L77: 42589.28571 | M77: 59625 | O77: 89.69942231 | P77: 90.48651011 | Q77: 90.26022192
A78: =IF(COUNTRY_INFO!A78=0," ",COUNTRY_INFO!A78) -> CÔTE D'IVOIRE | B78: =IF(COUNTRY_INFO!B78=0," ",COUNTRY_INFO!B78) -> PORO-TCHOLOGO-BAGOUE | C78: =IF(COUNTRY_INFO!C78=0," ",COUNTRY_INFO!C78) -> BOUNDIALI | D78: =IF(COUNTRY_INFO!$T$9:$T$997="MDA1 (IVM+ALB)", COUNTRY_INFO!$T$9:$T$997, " ") -> MDA1 (IVM+ALB) | E78: Avril 2019 | G78: 67128 | H78: =ROUND(COUNTRY_INFO!G78*0.95,0) -> 166360 | I78: 233488 | K78: 58562.57143 | L78: 146406.4286 | M78: 204969 | O78: 87.24015527 | P78: 88.00578779 | Q78: 87.78566779
A79: =IF(COUNTRY_INFO!A79=0," ",COUNTRY_INFO!A79) -> CÔTE D'IVOIRE | B79: =IF(COUNTRY_INFO!B79=0," ",COUNTRY_INFO!B79) -> PORO-TCHOLOGO-BAGOUE | C79: =IF(COUNTRY_INFO!C79=0," ",COUNTRY_INFO!C79) -> FERKESSEDOUGOU | D79: =IF(COUNTRY_INFO!$T$9:$T$997="MDA1 (IVM+ALB)", COUNTRY_INFO!$T$9:$T$997, " ") -> MDA1 (IVM+ALB) | E79: Avril 2019 | G79: 60321 | H79: =ROUND(COUNTRY_INFO!G79*0.95,0) -> 149491 | I79: 209812 | K79: 52876 | L79: 132190 | M79: 185066 | O79: 87.65769798 | P79: 88.42672803 | Q79: 88.20563171
A80: =IF(COUNTRY_INFO!A80=0," ",COUNTRY_INFO!A80) -> CÔTE D'IVOIRE | B80: =IF(COUNTRY_INFO!B80=0," ",COUNTRY_INFO!B80) -> PORO-TCHOLOGO-BAGOUE | C80: =IF(COUNTRY_INFO!C80=0," ",COUNTRY_INFO!C80) -> KORHOGO | D80: =IF(COUNTRY_INFO!$T$9:$T$997="MDA1 (IVM+ALB)", COUNTRY_INFO!$T$9:$T$997, " ") -> MDA1 (IVM+ALB) | E80: Avril 2019 | G80: 214921 | H80: =ROUND(COUNTRY_INFO!G80*0.95,0) -> 532632 | I80: 747553 | K80: 208004.5714 | L80: 520010.7143 | M80: 728015 | O80: 96.781874 | P80: 97.6303929 | Q80: 97.38640605
A81: =IF(COUNTRY_INFO!A81=0," ",COUNTRY_INFO!A81) -> CÔTE D'IVOIRE | B81: =IF(COUNTRY_INFO!B81=0," ",COUNTRY_INFO!B81) -> PORO-TCHOLOGO-BAGOUE | C81: =IF(COUNTRY_INFO!C81=0," ",COUNTRY_INFO!C81) -> OUANGOLODOUGOU | D81: =IF(COUNTRY_INFO!$T$9:$T$997="MDA1 (IVM+ALB)", COUNTRY_INFO!$T$9:$T$997, " ") -> MDA1 (IVM+ALB) | E81: Avril 2019 | G81: 61776 | H81: =ROUND(COUNTRY_INFO!G81*0.95,0) -> 153094 | I81: 214870 | K81: 54534.57143 | L81: 136336.4286 | M81: 190871 | O81: 88.27792578 | P81: 89.05406389 | Q81: 88.83092102
A82: =IF(COUNTRY_INFO!A82=0," ",COUNTRY_INFO!A82) -> CÔTE D'IVOIRE | B82: =IF(COUNTRY_INFO!B82=0," ",COUNTRY_INFO!B82) -> PORO-TCHOLOGO-BAGOUE | C82: =IF(COUNTRY_INFO!C82=0," ",COUNTRY_INFO!C82) -> TENGRELA | D82: =IF(COUNTRY_INFO!$T$9:$T$997="MDA1 (IVM+ALB)", COUNTRY_INFO!$T$9:$T$997, " ") -> MDA1 (IVM+ALB) | E82: Avril 2019 | G82: 30894 | H82: =ROUND(COUNTRY_INFO!G82*0.95,0) -> 76563 | I82: 107457 | K82: 28479.71429 | L82: 71199.28571 | M82: 99679 | O82: 92.1852602 | P82: 92.99437811 | Q82: 92.76175587
A83: =IF(COUNTRY_INFO!A83=0," ",COUNTRY_INFO!A83) -> CÔTE D'IVOIRE | B83: =IF(COUNTRY_INFO!B83=0," ",COUNTRY_INFO!B83) -> SUD-COMOE | C83: =IF(COUNTRY_INFO!C83=0," ",COUNTRY_INFO!C83) -> ABOISSO | D83: =IF(COUNTRY_INFO!$T$9:$T$997="MDA1 (IVM+ALB)", COUNTRY_INFO!$T$9:$T$997, " ") -> MDA1 (IVM+ALB) | E83: Avril 2019 | G83: 80322 | H83: =ROUND(COUNTRY_INFO!G83*0.95,0) -> 199060 | I83: 279382 | K83: 73880.28571 | L83: 184700.7143 | M83: 258581 | O83: 91.98013709 | P83: 92.78645347 | Q83: 92.55463845
A84: =IF(COUNTRY_INFO!A84=0," ",COUNTRY_INFO!A84) -> CÔTE D'IVOIRE | B84: =IF(COUNTRY_INFO!B84=0," ",COUNTRY_INFO!B84) -> SUD-COMOE | C84: =IF(COUNTRY_INFO!C84=0," ",COUNTRY_INFO!C84) -> ADIAKE | D84: =IF(COUNTRY_INFO!$T$9:$T$997="MDA1 (IVM+ALB)", COUNTRY_INFO!$T$9:$T$997, " ") -> MDA1 (IVM+ALB) | E84: Avril 2019 | G84: 40625 | H84: =ROUND(COUNTRY_INFO!G84*0.95,0) -> 100678 | I84: 141303 | K84: 36452.57143 | L84: 91131.42857 | M84: 127584 | O84: 89.72940659 | P84: 90.51771844 | Q84: 90.29107662
A85: =IF(COUNTRY_INFO!A85=0," ",COUNTRY_INFO!A85) -> CÔTE D'IVOIRE | B85: =IF(COUNTRY_INFO!B85=0," ",COUNTRY_INFO!B85) -> SUD-COMOE | C85: =IF(COUNTRY_INFO!C85=0," ",COUNTRY_INFO!C85) -> GRAND-BASSAM | D85: =IF(COUNTRY_INFO!$T$9:$T$997="MDA1 (IVM+ALB)", COUNTRY_INFO!$T$9:$T$997, " ") -> MDA1 (IVM+ALB) | E85: Avril 2019 | G85: 46721 | H85: =ROUND(COUNTRY_INFO!G85*0.95,0) -> 115785 | I85: 162506 | K85: 43572.57143 | L85: 108931.4286 | M85: 152504 | O85: 93.26121322 | P85: 94.0807778 | Q85: 93.84515033
A86: =IF(COUNTRY_INFO!A86=0," ",COUNTRY_INFO!A86) -> CÔTE D'IVOIRE | B86: =IF(COUNTRY_INFO!B86=0," ",COUNTRY_INFO!B86) -> TONKPI | C86: =IF(COUNTRY_INFO!C86=0," ",COUNTRY_INFO!C86) -> BIANKOUMA | D86: =IF(COUNTRY_INFO!$T$9:$T$997="MDA1 (IVM+ALB)", COUNTRY_INFO!$T$9:$T$997, " ") -> MDA1 (IVM+ALB) | E86: Avril 2019 | G86: 51183 | H86: =ROUND(COUNTRY_INFO!G86*0.95,0) -> 126845 | I86: 178028 | K86: 46384.85714 | L86: 115962.1429 | M86: 162347 | O86: 90.62551461 | P86: 91.42034992 | Q86: 91.19183499
A87: =IF(COUNTRY_INFO!A87=0," ",COUNTRY_INFO!A87) -> CÔTE D'IVOIRE | B87: =IF(COUNTRY_INFO!B87=0," ",COUNTRY_INFO!B87) -> TONKPI | C87: =IF(COUNTRY_INFO!C87=0," ",COUNTRY_INFO!C87) -> DANANE | D87: =IF(COUNTRY_INFO!$T$9:$T$997="MDA1 (IVM+ALB)", COUNTRY_INFO!$T$9:$T$997, " ") -> MDA1 (IVM+ALB) | E87: Avril 2019 | G87: 69703 | H87: =ROUND(COUNTRY_INFO!G87*0.95,0) -> 172740 | I87: 242443 | K87: 62225.42857 | L87: 155563.5714 | M87: 217789 | O87: 89.27223874 | P87: 90.05648456 | Q87: 89.83101183
A88: =IF(COUNTRY_INFO!A88=0," ",COUNTRY_INFO!A88) -> CÔTE D'IVOIRE | B88: =IF(COUNTRY_INFO!B88=0," ",COUNTRY_INFO!B88) -> TONKPI | C88: =IF(COUNTRY_INFO!C88=0," ",COUNTRY_INFO!C88) -> MAN | D88: =IF(COUNTRY_INFO!$T$9:$T$997="MDA1 (IVM+ALB)", COUNTRY_INFO!$T$9:$T$997, " ") -> MDA1 (IVM+ALB) | E88: Avril 2019 | G88: 87187 | H88: =ROUND(COUNTRY_INFO!G88*0.95,0) -> 216075 | I88: 303262 | K88: 79010.85714 | L88: 197527.1429 | M88: 276538 | O88: 90.62229133 | P88: 91.41600965 | Q88: 91.18781779
A89: =IF(COUNTRY_INFO!A89=0," ",COUNTRY_INFO!A89) -> CÔTE D'IVOIRE | B89: =IF(COUNTRY_INFO!B89=0," ",COUNTRY_INFO!B89) -> TONKPI | C89: =IF(COUNTRY_INFO!C89=0," ",COUNTRY_INFO!C89) -> ZOUAN-HOUNIEN | D89: =IF(COUNTRY_INFO!$T$9:$T$997="MDA1 (IVM+ALB)", COUNTRY_INFO!$T$9:$T$997, " ") -> MDA1 (IVM+ALB) | E89: Avril 2019 | G89: 50900 | H89: =ROUND(COUNTRY_INFO!G89*0.95,0) -> 126142 | I89: 177042 | K89: 47727.42857 | L89: 119318.5714 | M89: 167046 | O89: 93.76705024 | P89: 94.59067672 | Q89: 94.35388213
A90: =IF(COUNTRY_INFO!A90=0," ",COUNTRY_INFO!A90) -> CÔTE D'IVOIRE | B90: =IF(COUNTRY_INFO!B90=0," ",COUNTRY_INFO!B90) -> WORODOUGOU-BERE | C90: =IF(COUNTRY_INFO!C90=0," ",COUNTRY_INFO!C90) -> MANKONO | D90: =IF(COUNTRY_INFO!$T$9:$T$997="MDA1 (IVM+ALB)", COUNTRY_INFO!$T$9:$T$997, " ") -> 
A91: =IF(COUNTRY_INFO!A91=0," ",COUNTRY_INFO!A91) -> CÔTE D'IVOIRE | B91: =IF(COUNTRY_INFO!B91=0," ",COUNTRY_INFO!B91) -> WORODOUGOU-BERE | C91: =IF(COUNTRY_INFO!C91=0," ",COUNTRY_INFO!C91) -> SEGUELA | D91: =IF(COUNTRY_INFO!$T$9:$T$997="MDA1 (IVM+ALB)", COUNTRY_INFO!$T$9:$T$997, " ") -> MDA1 (IVM+ALB) | E91: Avril 2019 | G91: =I91-H91 -> 71055 | H91: =ROUND(COUNTRY_INFO!G91*0.95,0) -> 176092 | I91: 247147 | K91: 62357.71429 | L91: 155894.2857 | M91: 218252 | O91: 87.75978367 | P91: 88.53002164 | Q91: 88.30857749

Sheet MDA2 (hidden)
A1: MDA 2 - Diethylcarbamazine (DEC) + Albendazole (ALB)
A2: Structure administrative, population nécessitant une chimioprévention par groupe d'âge, population traitée par groupe d'âge et couverture
A4: TOTAL | F4: =SUM(F$9:F$1000) -> 0 | G4: =SUM(G$9:G$1000) -> 0 | H4: 0 | I4: 0 | J4: 0 | K4: 0 | L4: 0 | M4: 0 | N4: =IF(F4<>0, IF(J4/F4*100=0, "-", J4/F4*100), " ") ->  | O4: =IF(G4<>0, IF(K4/G4*100=0, "-", K4/G4*100), " ") ->  | P4: =IF(H4<>0, IF(L4/H4*100=0, "-", L4/H4*100), " ") ->  | Q4: =IF(I4<>0, IF(M4/I4*100=0, "-", M4/I4*100), " ") -> 
A6: Structure administrative du pays | D6: Mise en oeuvre de la CP | E6: Date | F6: Population ciblée pour MDA 2 | J6: Population traitée | N6: Couverture du Programme (%)
A7: Pays | B7: Région/Département | C7: District | F7: EAPréS | G7: EAS | H7: Adultes | I7: Total | J7: EAPréS | K7: EAS | L7: Adultes | M7: Total | N7: EAPréS | O7: EAS | P7: Adultes | Q7: Total
A9: =IF(COUNTRY_INFO!A9=0," ",COUNTRY_INFO!A9) -> CÔTE D'IVOIRE | B9: =IF(COUNTRY_INFO!B9=0," ",COUNTRY_INFO!B9) -> ABIDJAN 1 GRANDS PONTS | C9: =IF(COUNTRY_INFO!C9=0," ",COUNTRY_INFO!C9) -> ADJAME-PLATEAU-ATTECOUBE | D9: =IF(COUNTRY_INFO!$T$9:$T$997="MDA2 (DEC+ALB)", COUNTRY_INFO!$T$9:$T$997, " ") ->  | I9: =SUM(F9:H9) -> 0 | M9: =SUM(J9:L9) -> 0 | N9: =IF(F9<>0, IF(J9/F9*100=0, "-", J9/F9*100), " ") ->  | O9: =IF(G9<>0, IF(K9/G9*100=0, "-", K9/G9*100), " ") ->  | P9: =IF(H9<>0, IF(L9/H9*100=0, "-", L9/H9*100), " ") ->  | Q9: =IF(I9<>0, IF(M9/I9*100=0, "-", M9/I9*100), " ") -> 
A10: =IF(COUNTRY_INFO!A10=0," ",COUNTRY_INFO!A10) -> CÔTE D'IVOIRE | B10: =IF(COUNTRY_INFO!B10=0," ",COUNTRY_INFO!B10) -> ABIDJAN 1 GRANDS PONTS | C10: =IF(COUNTRY_INFO!C10=0," ",COUNTRY_INFO!C10) -> DABOU | D10: =IF(COUNTRY_INFO!$T$9:$T$997="MDA2 (DEC+ALB)", COUNTRY_INFO!$T$9:$T$997, " ") ->  | I10: =SUM(F10:H10) -> 0 | M10: =SUM(J10:L10) -> 0 | N10: =IF(F10<>0, IF(J10/F10*100=0, "-", J10/F10*100), " ") ->  | O10: =IF(G10<>0, IF(K10/G10*100=0, "-", K10/G10*100), " ") ->  | P10: =IF(H10<>0, IF(L10/H10*100=0, "-", L10/H10*100), " ") ->  | Q10: =IF(I10<>0, IF(M10/I10*100=0, "-", M10/I10*100), " ") -> 
A11: =IF(COUNTRY_INFO!A11=0," ",COUNTRY_INFO!A11) -> CÔTE D'IVOIRE | B11: =IF(COUNTRY_INFO!B11=0," ",COUNTRY_INFO!B11) -> ABIDJAN 1 GRANDS PONTS | C11: =IF(COUNTRY_INFO!C11=0," ",COUNTRY_INFO!C11) -> GRAND-LAHOU | D11: =IF(COUNTRY_INFO!$T$9:$T$997="MDA2 (DEC+ALB)", COUNTRY_INFO!$T$9:$T$997, " ") ->  | I11: 0 | M11: 0
A12: =IF(COUNTRY_INFO!A12=0," ",COUNTRY_INFO!A12) -> CÔTE D'IVOIRE | B12: =IF(COUNTRY_INFO!B12=0," ",COUNTRY_INFO!B12) -> ABIDJAN 1 GRANDS PONTS | C12: =IF(COUNTRY_INFO!C12=0," ",COUNTRY_INFO!C12) -> JACQUEVILLE | D12: =IF(COUNTRY_INFO!$T$9:$T$997="MDA2 (DEC+ALB)", COUNTRY_INFO!$T$9:$T$997, " ") ->  | I12: 0 | M12: 0
A13: =IF(COUNTRY_INFO!A13=0," ",COUNTRY_INFO!A13) -> CÔTE D'IVOIRE | B13: =IF(COUNTRY_INFO!B13=0," ",COUNTRY_INFO!B13) -> ABIDJAN 1 GRANDS PONTS | C13: =IF(COUNTRY_INFO!C13=0," ",COUNTRY_INFO!C13) -> YOPOUGON EST | D13: =IF(COUNTRY_INFO!$T$9:$T$997="MDA2 (DEC+ALB)", COUNTRY_INFO!$T$9:$T$997, " ") ->  | I13: 0 | M13: 0
A14: =IF(COUNTRY_INFO!A14=0," ",COUNTRY_INFO!A14) -> CÔTE D'IVOIRE | B14: =IF(COUNTRY_INFO!B14=0," ",COUNTRY_INFO!B14) -> ABIDJAN 1 GRANDS PONTS | C14: =IF(COUNTRY_INFO!C14=0," ",COUNTRY_INFO!C14) -> YOPOUGON OUEST | D14: =IF(COUNTRY_INFO!$T$9:$T$997="MDA2 (DEC+ALB)", COUNTRY_INFO!$T$9:$T$997, " ") ->  | I14: 0 | M14: 0
A15: =IF(COUNTRY_INFO!A15=0," ",COUNTRY_INFO!A15) -> CÔTE D'IVOIRE | B15: =IF(COUNTRY_INFO!B15=0," ",COUNTRY_INFO!B15) -> ABIDJAN 2 | C15: =IF(COUNTRY_INFO!C15=0," ",COUNTRY_INFO!C15) -> ABOBO EST | D15: =IF(COUNTRY_INFO!$T$9:$T$997="MDA2 (DEC+ALB)", COUNTRY_INFO!$T$9:$T$997, " ") ->  | I15: 0 | M15: 0
A16: =IF(COUNTRY_INFO!A16=0," ",COUNTRY_INFO!A16) -> CÔTE D'IVOIRE | B16: =IF(COUNTRY_INFO!B16=0," ",COUNTRY_INFO!B16) -> ABIDJAN 2 | C16: =IF(COUNTRY_INFO!C16=0," ",COUNTRY_INFO!C16) -> ABOBO OUEST | D16: =IF(COUNTRY_INFO!$T$9:$T$997="MDA2 (DEC+ALB)", COUNTRY_INFO!$T$9:$T$997, " ") ->  | I16: 0 | M16: 0
A17: =IF(COUNTRY_INFO!A17=0," ",COUNTRY_INFO!A17) -> CÔTE D'IVOIRE | B17: =IF(COUNTRY_INFO!B17=0," ",COUNTRY_INFO!B17) -> ABIDJAN 2 | C17: =IF(COUNTRY_INFO!C17=0," ",COUNTRY_INFO!C17) -> ANYAMA | D17: =IF(COUNTRY_INFO!$T$9:$T$997="MDA2 (DEC+ALB)", COUNTRY_INFO!$T$9:$T$997, " ") ->  | I17: 0 | M17: 0
A18: =IF(COUNTRY_INFO!A18=0," ",COUNTRY_INFO!A18) -> CÔTE D'IVOIRE | B18: =IF(COUNTRY_INFO!B18=0," ",COUNTRY_INFO!B18) -> ABIDJAN 2 | C18: =IF(COUNTRY_INFO!C18=0," ",COUNTRY_INFO!C18) -> COCODY-BINGERVILLE | D18: =IF(COUNTRY_INFO!$T$9:$T$997="MDA2 (DEC+ALB)", COUNTRY_INFO!$T$9:$T$997, " ") ->  | I18: 0 | M18: 0
A19: =IF(COUNTRY_INFO!A19=0," ",COUNTRY_INFO!A19) -> CÔTE D'IVOIRE | B19: =IF(COUNTRY_INFO!B19=0," ",COUNTRY_INFO!B19) -> ABIDJAN 2 | C19: =IF(COUNTRY_INFO!C19=0," ",COUNTRY_INFO!C19) -> KOUMASSI-PORT BOUET-VRIDI | D19: =IF(COUNTRY_INFO!$T$9:$T$997="MDA2 (DEC+ALB)", COUNTRY_INFO!$T$9:$T$997, " ") ->  | I19: 0 | M19: 0
A20: =IF(COUNTRY_INFO!A20=0," ",COUNTRY_INFO!A20) -> CÔTE D'IVOIRE | B20: =IF(COUNTRY_INFO!B20=0," ",COUNTRY_INFO!B20) -> ABIDJAN 2 | C20: =IF(COUNTRY_INFO!C20=0," ",COUNTRY_INFO!C20) -> MARCORY-TREICHVILLE | D20: =IF(COUNTRY_INFO!$T$9:$T$997="MDA2 (DEC+ALB)", COUNTRY_INFO!$T$9:$T$997, " ") ->  | I20: 0 | M20: 0
A21: =IF(COUNTRY_INFO!A21=0," ",COUNTRY_INFO!A21) -> CÔTE D'IVOIRE | B21: =IF(COUNTRY_INFO!B21=0," ",COUNTRY_INFO!B21) -> AGNEBY-TIASSA-ME | C21: =IF(COUNTRY_INFO!C21=0," ",COUNTRY_INFO!C21) -> ADZOPE | D21: =IF(COUNTRY_INFO!$T$9:$T$997="MDA2 (DEC+ALB)", COUNTRY_INFO!$T$9:$T$997, " ") ->  | I21: 0 | M21: 0
A22: =IF(COUNTRY_INFO!A22=0," ",COUNTRY_INFO!A22) -> CÔTE D'IVOIRE | B22: =IF(COUNTRY_INFO!B22=0," ",COUNTRY_INFO!B22) -> AGNEBY-TIASSA-ME | C22: =IF(COUNTRY_INFO!C22=0," ",COUNTRY_INFO!C22) -> AGBOVILLE | D22: =IF(COUNTRY_INFO!$T$9:$T$997="MDA2 (DEC+ALB)", COUNTRY_INFO!$T$9:$T$997, " ") ->  | I22: 0 | M22: 0
A23: =IF(COUNTRY_INFO!A23=0," ",COUNTRY_INFO!A23) -> CÔTE D'IVOIRE | B23: =IF(COUNTRY_INFO!B23=0," ",COUNTRY_INFO!B23) -> AGNEBY-TIASSA-ME | C23: =IF(COUNTRY_INFO!C23=0," ",COUNTRY_INFO!C23) -> AKOUPE | D23: =IF(COUNTRY_INFO!$T$9:$T$997="MDA2 (DEC+ALB)", COUNTRY_INFO!$T$9:$T$997, " ") ->  | I23: 0 | M23: 0
A24: =IF(COUNTRY_INFO!A24=0," ",COUNTRY_INFO!A24) -> CÔTE D'IVOIRE | B24: =IF(COUNTRY_INFO!B24=0," ",COUNTRY_INFO!B24) -> AGNEBY-TIASSA-ME | C24: =IF(COUNTRY_INFO!C24=0," ",COUNTRY_INFO!C24) -> ALEPE | D24: =IF(COUNTRY_INFO!$T$9:$T$997="MDA2 (DEC+ALB)", COUNTRY_INFO!$T$9:$T$997, " ") ->  | I24: 0 | M24: 0
A25: =IF(COUNTRY_INFO!A25=0," ",COUNTRY_INFO!A25) -> CÔTE D'IVOIRE | B25: =IF(COUNTRY_INFO!B25=0," ",COUNTRY_INFO!B25) -> AGNEBY-TIASSA-ME | C25: =IF(COUNTRY_INFO!C25=0," ",COUNTRY_INFO!C25) -> SIKENSI | D25: =IF(COUNTRY_INFO!$T$9:$T$997="MDA2 (DEC+ALB)", COUNTRY_INFO!$T$9:$T$997, " ") ->  | I25: 0 | M25: 0
A26: =IF(COUNTRY_INFO!A26=0," ",COUNTRY_INFO!A26) -> CÔTE D'IVOIRE | B26: =IF(COUNTRY_INFO!B26=0," ",COUNTRY_INFO!B26) -> AGNEBY-TIASSA-ME | C26: =IF(COUNTRY_INFO!C26=0," ",COUNTRY_INFO!C26) -> TIASSALE | D26: =IF(COUNTRY_INFO!$T$9:$T$997="MDA2 (DEC+ALB)", COUNTRY_INFO!$T$9:$T$997, " ") ->  | I26: 0 | M26: 0
A27: =IF(COUNTRY_INFO!A27=0," ",COUNTRY_INFO!A27) -> CÔTE D'IVOIRE | B27: =IF(COUNTRY_INFO!B27=0," ",COUNTRY_INFO!B27) -> BELIER | C27: =IF(COUNTRY_INFO!C27=0," ",COUNTRY_INFO!C27) -> DIDIEVI | D27: =IF(COUNTRY_INFO!$T$9:$T$997="MDA2 (DEC+ALB)", COUNTRY_INFO!$T$9:$T$997, " ") ->  | I27: 0 | M27: 0
A28: =IF(COUNTRY_INFO!A28=0," ",COUNTRY_INFO!A28) -> CÔTE D'IVOIRE | B28: =IF(COUNTRY_INFO!B28=0," ",COUNTRY_INFO!B28) -> BELIER | C28: =IF(COUNTRY_INFO!C28=0," ",COUNTRY_INFO!C28) -> TIEBISSOU | D28: =IF(COUNTRY_INFO!$T$9:$T$997="MDA2 (DEC+ALB)", COUNTRY_INFO!$T$9:$T$997, " ") ->  | I28: 0 | M28: 0
A29: =IF(COUNTRY_INFO!A29=0," ",COUNTRY_INFO!A29) -> CÔTE D'IVOIRE | B29: =IF(COUNTRY_INFO!B29=0," ",COUNTRY_INFO!B29) -> BELIER | C29: =IF(COUNTRY_INFO!C29=0," ",COUNTRY_INFO!C29) -> TOUMODI | D29: =IF(COUNTRY_INFO!$T$9:$T$997="MDA2 (DEC+ALB)", COUNTRY_INFO!$T$9:$T$997, " ") ->  | I29: 0 | M29: 0
A30: =IF(COUNTRY_INFO!A30=0," ",COUNTRY_INFO!A30) -> CÔTE D'IVOIRE | B30: =IF(COUNTRY_INFO!B30=0," ",COUNTRY_INFO!B30) -> BELIER | C30: =IF(COUNTRY_INFO!C30=0," ",COUNTRY_INFO!C30) -> YAMOUSSOUKRO | D30: =IF(COUNTRY_INFO!$T$9:$T$997="MDA2 (DEC+ALB)", COUNTRY_INFO!$T$9:$T$997, " ") ->  | I30: 0 | M30: 0
A31: =IF(COUNTRY_INFO!A31=0," ",COUNTRY_INFO!A31) -> CÔTE D'IVOIRE | B31: =IF(COUNTRY_INFO!B31=0," ",COUNTRY_INFO!B31) -> BOUKANI-GONTOUGO | C31: =IF(COUNTRY_INFO!C31=0," ",COUNTRY_INFO!C31) -> BONDOUKOU | D31: =IF(COUNTRY_INFO!$T$9:$T$997="MDA2 (DEC+ALB)", COUNTRY_INFO!$T$9:$T$997, " ") ->  | I31: 0 | M31: 0
A32: =IF(COUNTRY_INFO!A32=0," ",COUNTRY_INFO!A32) -> CÔTE D'IVOIRE | B32: =IF(COUNTRY_INFO!B32=0," ",COUNTRY_INFO!B32) -> BOUKANI-GONTOUGO | C32: =IF(COUNTRY_INFO!C32=0," ",COUNTRY_INFO!C32) -> BOUNA | D32: =IF(COUNTRY_INFO!$T$9:$T$997="MDA2 (DEC+ALB)", COUNTRY_INFO!$T$9:$T$997, " ") ->  | I32: 0 | M32: 0
A33: =IF(COUNTRY_INFO!A33=0," ",COUNTRY_INFO!A33) -> CÔTE D'IVOIRE | B33: =IF(COUNTRY_INFO!B33=0," ",COUNTRY_INFO!B33) -> BOUKANI-GONTOUGO | C33: =IF(COUNTRY_INFO!C33=0," ",COUNTRY_INFO!C33) -> NASSIAN | D33: =IF(COUNTRY_INFO!$T$9:$T$997="MDA2 (DEC+ALB)", COUNTRY_INFO!$T$9:$T$997, " ") ->  | I33: 0 | M33: 0
A34: =IF(COUNTRY_INFO!A34=0," ",COUNTRY_INFO!A34) -> CÔTE D'IVOIRE | B34: =IF(COUNTRY_INFO!B34=0," ",COUNTRY_INFO!B34) -> BOUKANI-GONTOUGO | C34: =IF(COUNTRY_INFO!C34=0," ",COUNTRY_INFO!C34) -> TANDA | D34: =IF(COUNTRY_INFO!$T$9:$T$997="MDA2 (DEC+ALB)", COUNTRY_INFO!$T$9:$T$997, " ") ->  | I34: 0 | M34: 0
A35: =IF(COUNTRY_INFO!A35=0," ",COUNTRY_INFO!A35) -> CÔTE D'IVOIRE | B35: =IF(COUNTRY_INFO!B35=0," ",COUNTRY_INFO!B35) -> CAVALLY-GUEMON | C35: =IF(COUNTRY_INFO!C35=0," ",COUNTRY_INFO!C35) -> BANGOLO | D35: =IF(COUNTRY_INFO!$T$9:$T$997="MDA2 (DEC+ALB)", COUNTRY_INFO!$T$9:$T$997, " ") ->  | I35: 0 | M35: 0
A36: =IF(COUNTRY_INFO!A36=0," ",COUNTRY_INFO!A36) -> CÔTE D'IVOIRE | B36: =IF(COUNTRY_INFO!B36=0," ",COUNTRY_INFO!B36) -> CAVALLY-GUEMON | C36: =IF(COUNTRY_INFO!C36=0," ",COUNTRY_INFO!C36) -> BLOLEQUIN | D36: =IF(COUNTRY_INFO!$T$9:$T$997="MDA2 (DEC+ALB)", COUNTRY_INFO!$T$9:$T$997, " ") ->  | I36: 0 | M36: 0
A37: =IF(COUNTRY_INFO!A37=0," ",COUNTRY_INFO!A37) -> CÔTE D'IVOIRE | B37: =IF(COUNTRY_INFO!B37=0," ",COUNTRY_INFO!B37) -> CAVALLY-GUEMON | C37: =IF(COUNTRY_INFO!C37=0," ",COUNTRY_INFO!C37) -> DUEKOUE | D37: =IF(COUNTRY_INFO!$T$9:$T$997="MDA2 (DEC+ALB)", COUNTRY_INFO!$T$9:$T$997, " ") ->  | I37: 0 | M37: 0
A38: =IF(COUNTRY_INFO!A38=0," ",COUNTRY_INFO!A38) -> CÔTE D'IVOIRE | B38: =IF(COUNTRY_INFO!B38=0," ",COUNTRY_INFO!B38) -> CAVALLY-GUEMON | C38: =IF(COUNTRY_INFO!C38=0," ",COUNTRY_INFO!C38) -> GUIGLO | D38: =IF(COUNTRY_INFO!$T$9:$T$997="MDA2 (DEC+ALB)", COUNTRY_INFO!$T$9:$T$997, " ") ->  | I38: 0 | M38: 0
A39: =IF(COUNTRY_INFO!A39=0," ",COUNTRY_INFO!A39) -> CÔTE D'IVOIRE | B39: =IF(COUNTRY_INFO!B39=0," ",COUNTRY_INFO!B39) -> CAVALLY-GUEMON | C39: =IF(COUNTRY_INFO!C39=0," ",COUNTRY_INFO!C39) -> KOUIBLY | D39: =IF(COUNTRY_INFO!$T$9:$T$997="MDA2 (DEC+ALB)", COUNTRY_INFO!$T$9:$T$997, " ") ->  | I39: 0 | M39: 0
A40: =IF(COUNTRY_INFO!A40=0," ",COUNTRY_INFO!A40) -> CÔTE D'IVOIRE | B40: =IF(COUNTRY_INFO!B40=0," ",COUNTRY_INFO!B40) -> CAVALLY-GUEMON | C40: =IF(COUNTRY_INFO!C40=0," ",COUNTRY_INFO!C40) -> TOULEPLEU | D40: =IF(COUNTRY_INFO!$T$9:$T$997="MDA2 (DEC+ALB)", COUNTRY_INFO!$T$9:$T$997, " ") ->  | I40: 0 | M40: 0
A41: =IF(COUNTRY_INFO!A41=0," ",COUNTRY_INFO!A41) -> CÔTE D'IVOIRE | B41: =IF(COUNTRY_INFO!B41=0," ",COUNTRY_INFO!B41) -> GBEKE | C41: =IF(COUNTRY_INFO!C41=0," ",COUNTRY_INFO!C41) -> BEOUMI | D41: =IF(COUNTRY_INFO!$T$9:$T$997="MDA2 (DEC+ALB)", COUNTRY_INFO!$T$9:$T$997, " ") ->  | I41: 0 | M41: 0
A42: =IF(COUNTRY_INFO!A42=0," ",COUNTRY_INFO!A42) -> CÔTE D'IVOIRE | B42: =IF(COUNTRY_INFO!B42=0," ",COUNTRY_INFO!B42) -> GBEKE | C42: =IF(COUNTRY_INFO!C42=0," ",COUNTRY_INFO!C42) -> BOUAKE NORD-EST | D42: =IF(COUNTRY_INFO!$T$9:$T$997="MDA2 (DEC+ALB)", COUNTRY_INFO!$T$9:$T$997, " ") ->  | I42: 0 | M42: 0
A43: =IF(COUNTRY_INFO!A43=0," ",COUNTRY_INFO!A43) -> CÔTE D'IVOIRE | B43: =IF(COUNTRY_INFO!B43=0," ",COUNTRY_INFO!B43) -> GBEKE | C43: =IF(COUNTRY_INFO!C43=0," ",COUNTRY_INFO!C43) -> BOUAKE NORD-OUEST | D43: =IF(COUNTRY_INFO!$T$9:$T$997="MDA2 (DEC+ALB)", COUNTRY_INFO!$T$9:$T$997, " ") ->  | I43: 0 | M43: 0
A44: =IF(COUNTRY_INFO!A44=0," ",COUNTRY_INFO!A44) -> CÔTE D'IVOIRE | B44: =IF(COUNTRY_INFO!B44=0," ",COUNTRY_INFO!B44) -> GBEKE | C44: =IF(COUNTRY_INFO!C44=0," ",COUNTRY_INFO!C44) -> BOUAKE SUD | D44: =IF(COUNTRY_INFO!$T$9:$T$997="MDA2 (DEC+ALB)", COUNTRY_INFO!$T$9:$T$997, " ") ->  | I44: 0 | M44: 0
A45: =IF(COUNTRY_INFO!A45=0," ",COUNTRY_INFO!A45) -> CÔTE D'IVOIRE | B45: =IF(COUNTRY_INFO!B45=0," ",COUNTRY_INFO!B45) -> GBEKE | C45: =IF(COUNTRY_INFO!C45=0," ",COUNTRY_INFO!C45) -> SAKASSOU | D45: =IF(COUNTRY_INFO!$T$9:$T$997="MDA2 (DEC+ALB)", COUNTRY_INFO!$T$9:$T$997, " ") ->  | I45: 0 | M45: 0
A46: =IF(COUNTRY_INFO!#REF!=0," ",COUNTRY_INFO!#REF!) ->  | B46: =IF(COUNTRY_INFO!#REF!=0," ",COUNTRY_INFO!#REF!) ->  | C46: =IF(COUNTRY_INFO!#REF!=0," ",COUNTRY_INFO!#REF!) ->  | D46: =IF(COUNTRY_INFO!$T$9:$T$997="MDA2 (DEC+ALB)", COUNTRY_INFO!$T$9:$T$997, " ") ->  | I46: 0 | M46: 0
A47: =IF(COUNTRY_INFO!A46=0," ",COUNTRY_INFO!A46) -> CÔTE D'IVOIRE | B47: =IF(COUNTRY_INFO!B46=0," ",COUNTRY_INFO!B46) -> GBOKLE-NAWA-SAN-PEDRO | C47: =IF(COUNTRY_INFO!C46=0," ",COUNTRY_INFO!C46) -> GUEYO | D47: =IF(COUNTRY_INFO!$T$9:$T$997="MDA2 (DEC+ALB)", COUNTRY_INFO!$T$9:$T$997, " ") ->  | I47: 0 | M47: 0
A48: =IF(COUNTRY_INFO!#REF!=0," ",COUNTRY_INFO!#REF!) ->  | B48: =IF(COUNTRY_INFO!#REF!=0," ",COUNTRY_INFO!#REF!) ->  | C48: =IF(COUNTRY_INFO!#REF!=0," ",COUNTRY_INFO!#REF!) ->  | D48: =IF(COUNTRY_INFO!$T$9:$T$997="MDA2 (DEC+ALB)", COUNTRY_INFO!$T$9:$T$997, " ") ->  | I48: 0 | M48: 0
A49: =IF(COUNTRY_INFO!A47=0," ",COUNTRY_INFO!A47) -> CÔTE D'IVOIRE | B49: =IF(COUNTRY_INFO!B47=0," ",COUNTRY_INFO!B47) -> GBOKLE-NAWA-SAN-PEDRO | C49: =IF(COUNTRY_INFO!C47=0," ",COUNTRY_INFO!C47) -> SAN PEDRO | D49: =IF(COUNTRY_INFO!$T$9:$T$997="MDA2 (DEC+ALB)", COUNTRY_INFO!$T$9:$T$997, " ") ->  | I49: 0 | M49: 0
A50: =IF(COUNTRY_INFO!A48=0," ",COUNTRY_INFO!A48) -> CÔTE D'IVOIRE | B50: =IF(COUNTRY_INFO!B48=0," ",COUNTRY_INFO!B48) -> GBOKLE-NAWA-SAN-PEDRO | C50: =IF(COUNTRY_INFO!C48=0," ",COUNTRY_INFO!C48) -> SASSANDRA | D50: =IF(COUNTRY_INFO!$T$9:$T$997="MDA2 (DEC+ALB)", COUNTRY_INFO!$T$9:$T$997, " ") ->  | I50: 0 | M50: 0
A51: =IF(COUNTRY_INFO!A49=0," ",COUNTRY_INFO!A49) -> CÔTE D'IVOIRE | B51: =IF(COUNTRY_INFO!B49=0," ",COUNTRY_INFO!B49) -> GBOKLE-NAWA-SAN-PEDRO | C51: =IF(COUNTRY_INFO!C49=0," ",COUNTRY_INFO!C49) -> SOUBRE | D51: =IF(COUNTRY_INFO!$T$9:$T$997="MDA2 (DEC+ALB)", COUNTRY_INFO!$T$9:$T$997, " ") ->  | I51: 0 | M51: 0
A52: =IF(COUNTRY_INFO!A50=0," ",COUNTRY_INFO!A50) -> CÔTE D'IVOIRE | B52: =IF(COUNTRY_INFO!B50=0," ",COUNTRY_INFO!B50) -> GBOKLE-NAWA-SAN-PEDRO | C52: =IF(COUNTRY_INFO!C50=0," ",COUNTRY_INFO!C50) -> TABOU | D52: =IF(COUNTRY_INFO!$T$9:$T$997="MDA2 (DEC+ALB)", COUNTRY_INFO!$T$9:$T$997, " ") ->  | I52: 0 | M52: 0
A53: =IF(COUNTRY_INFO!A51=0," ",COUNTRY_INFO!A51) -> CÔTE D'IVOIRE | B53: =IF(COUNTRY_INFO!B51=0," ",COUNTRY_INFO!B51) -> GOH | C53: =IF(COUNTRY_INFO!C51=0," ",COUNTRY_INFO!C51) -> GAGNOA | D53: =IF(COUNTRY_INFO!$T$9:$T$997="MDA2 (DEC+ALB)", COUNTRY_INFO!$T$9:$T$997, " ") ->  | I53: 0 | M53: 0
A54: =IF(COUNTRY_INFO!A52=0," ",COUNTRY_INFO!A52) -> CÔTE D'IVOIRE | B54: =IF(COUNTRY_INFO!B52=0," ",COUNTRY_INFO!B52) -> GOH | C54: =IF(COUNTRY_INFO!C52=0," ",COUNTRY_INFO!C52) -> OUME | D54: =IF(COUNTRY_INFO!$T$9:$T$997="MDA2 (DEC+ALB)", COUNTRY_INFO!$T$9:$T$997, " ") ->  | I54: 0 | M54: 0
A55: =IF(COUNTRY_INFO!A53=0," ",COUNTRY_INFO!A53) -> CÔTE D'IVOIRE | B55: =IF(COUNTRY_INFO!B53=0," ",COUNTRY_INFO!B53) -> HAMBOL | C55: =IF(COUNTRY_INFO!C53=0," ",COUNTRY_INFO!C53) -> DABAKALA | D55: =IF(COUNTRY_INFO!$T$9:$T$997="MDA2 (DEC+ALB)", COUNTRY_INFO!$T$9:$T$997, " ") ->  | I55: 0 | M55: 0
A56: =IF(COUNTRY_INFO!A54=0," ",COUNTRY_INFO!A54) -> CÔTE D'IVOIRE | B56: =IF(COUNTRY_INFO!B54=0," ",COUNTRY_INFO!B54) -> HAMBOL | C56: =IF(COUNTRY_INFO!C54=0," ",COUNTRY_INFO!C54) -> KATIOLA | D56: =IF(COUNTRY_INFO!$T$9:$T$997="MDA2 (DEC+ALB)", COUNTRY_INFO!$T$9:$T$997, " ") ->  | I56: 0 | M56: 0
A57: =IF(COUNTRY_INFO!A55=0," ",COUNTRY_INFO!A55) -> CÔTE D'IVOIRE | B57: =IF(COUNTRY_INFO!B55=0," ",COUNTRY_INFO!B55) -> HAMBOL | C57: =IF(COUNTRY_INFO!C55=0," ",COUNTRY_INFO!C55) -> NIAKARA | D57: =IF(COUNTRY_INFO!$T$9:$T$997="MDA2 (DEC+ALB)", COUNTRY_INFO!$T$9:$T$997, " ") ->  | I57: 0 | M57: 0
A58: =IF(COUNTRY_INFO!A56=0," ",COUNTRY_INFO!A56) -> CÔTE D'IVOIRE | B58: =IF(COUNTRY_INFO!B56=0," ",COUNTRY_INFO!B56) -> HAUT SASSANDRA | C58: =IF(COUNTRY_INFO!C56=0," ",COUNTRY_INFO!C56) -> DALOA | D58: =IF(COUNTRY_INFO!$T$9:$T$997="MDA2 (DEC+ALB)", COUNTRY_INFO!$T$9:$T$997, " ") ->  | I58: 0 | M58: 0
A59: =IF(COUNTRY_INFO!A57=0," ",COUNTRY_INFO!A57) -> CÔTE D'IVOIRE | B59: =IF(COUNTRY_INFO!B57=0," ",COUNTRY_INFO!B57) -> HAUT SASSANDRA | C59: =IF(COUNTRY_INFO!C57=0," ",COUNTRY_INFO!C57) -> ISSIA | D59: =IF(COUNTRY_INFO!$T$9:$T$997="MDA2 (DEC+ALB)", COUNTRY_INFO!$T$9:$T$997, " ") ->  | I59: 0 | M59: 0
A60: =IF(COUNTRY_INFO!A58=0," ",COUNTRY_INFO!A58) -> CÔTE D'IVOIRE | B60: =IF(COUNTRY_INFO!B58=0," ",COUNTRY_INFO!B58) -> HAUT SASSANDRA | C60: =IF(COUNTRY_INFO!C58=0," ",COUNTRY_INFO!C58) -> VAVOUA | D60: =IF(COUNTRY_INFO!$T$9:$T$997="MDA2 (DEC+ALB)", COUNTRY_INFO!$T$9:$T$997, " ") ->  | I60: 0 | M60: 0
A61: =IF(COUNTRY_INFO!A59=0," ",COUNTRY_INFO!A59) -> CÔTE D'IVOIRE | B61: =IF(COUNTRY_INFO!B59=0," ",COUNTRY_INFO!B59) -> INDENIE-DJUABLIN | C61: =IF(COUNTRY_INFO!C59=0," ",COUNTRY_INFO!C59) -> ABENGOUROU | D61: =IF(COUNTRY_INFO!$T$9:$T$997="MDA2 (DEC+ALB)", COUNTRY_INFO!$T$9:$T$997, " ") ->  | I61: 0 | M61: 0
A62: =IF(COUNTRY_INFO!A60=0," ",COUNTRY_INFO!A60) -> CÔTE D'IVOIRE | B62: =IF(COUNTRY_INFO!B60=0," ",COUNTRY_INFO!B60) -> INDENIE-DJUABLIN | C62: =IF(COUNTRY_INFO!C60=0," ",COUNTRY_INFO!C60) -> AGNIBILEKRO | D62: =IF(COUNTRY_INFO!$T$9:$T$997="MDA2 (DEC+ALB)", COUNTRY_INFO!$T$9:$T$997, " ") ->  | I62: 0 | M62: 0
A63: =IF(COUNTRY_INFO!A61=0," ",COUNTRY_INFO!A61) -> CÔTE D'IVOIRE | B63: =IF(COUNTRY_INFO!B61=0," ",COUNTRY_INFO!B61) -> INDENIE-DJUABLIN | C63: =IF(COUNTRY_INFO!C61=0," ",COUNTRY_INFO!C61) -> BETTIE | D63: =IF(COUNTRY_INFO!$T$9:$T$997="MDA2 (DEC+ALB)", COUNTRY_INFO!$T$9:$T$997, " ") ->  | I63: 0 | M63: 0
A64: =IF(COUNTRY_INFO!A62=0," ",COUNTRY_INFO!A62) -> CÔTE D'IVOIRE | B64: =IF(COUNTRY_INFO!B62=0," ",COUNTRY_INFO!B62) -> KABADOUGOU-BAFING-FOLON | C64: =IF(COUNTRY_INFO!C62=0," ",COUNTRY_INFO!C62) -> MINIGNAN | D64: =IF(COUNTRY_INFO!$T$9:$T$997="MDA2 (DEC+ALB)", COUNTRY_INFO!$T$9:$T$997, " ") ->  | I64: 0 | M64: 0
A65: =IF(COUNTRY_INFO!A63=0," ",COUNTRY_INFO!A63) -> CÔTE D'IVOIRE | B65: =IF(COUNTRY_INFO!B63=0," ",COUNTRY_INFO!B63) -> KABADOUGOU-BAFING-FOLON | C65: =IF(COUNTRY_INFO!C63=0," ",COUNTRY_INFO!C63) -> ODIENNE | D65: =IF(COUNTRY_INFO!$T$9:$T$997="MDA2 (DEC+ALB)", COUNTRY_INFO!$T$9:$T$997, " ") ->  | I65: 0 | M65: 0
A66: =IF(COUNTRY_INFO!A64=0," ",COUNTRY_INFO!A64) -> CÔTE D'IVOIRE | B66: =IF(COUNTRY_INFO!B64=0," ",COUNTRY_INFO!B64) -> KABADOUGOU-BAFING-FOLON | C66: =IF(COUNTRY_INFO!C64=0," ",COUNTRY_INFO!C64) -> TOUBA | D66: =IF(COUNTRY_INFO!$T$9:$T$997="MDA2 (DEC+ALB)", COUNTRY_INFO!$T$9:$T$997, " ") ->  | I66: 0 | M66: 0
A67: =IF(COUNTRY_INFO!A65=0," ",COUNTRY_INFO!A65) -> CÔTE D'IVOIRE | B67: =IF(COUNTRY_INFO!B65=0," ",COUNTRY_INFO!B65) -> LOH-DJIBOUA | C67: =IF(COUNTRY_INFO!C65=0," ",COUNTRY_INFO!C65) -> DIVO | D67: =IF(COUNTRY_INFO!$T$9:$T$997="MDA2 (DEC+ALB)", COUNTRY_INFO!$T$9:$T$997, " ") ->  | I67: 0 | M67: 0
A68: =IF(COUNTRY_INFO!A66=0," ",COUNTRY_INFO!A66) -> CÔTE D'IVOIRE | B68: =IF(COUNTRY_INFO!B66=0," ",COUNTRY_INFO!B66) -> LOH-DJIBOUA | C68: =IF(COUNTRY_INFO!C66=0," ",COUNTRY_INFO!C66) -> FRESCO | D68: =IF(COUNTRY_INFO!$T$9:$T$997="MDA2 (DEC+ALB)", COUNTRY_INFO!$T$9:$T$997, " ") ->  | I68: 0 | M68: 0
A69: =IF(COUNTRY_INFO!A67=0," ",COUNTRY_INFO!A67) -> CÔTE D'IVOIRE | B69: =IF(COUNTRY_INFO!B67=0," ",COUNTRY_INFO!B67) -> LOH-DJIBOUA | C69: =IF(COUNTRY_INFO!C67=0," ",COUNTRY_INFO!C67) -> GUITRY | D69: =IF(COUNTRY_INFO!$T$9:$T$997="MDA2 (DEC+ALB)", COUNTRY_INFO!$T$9:$T$997, " ") ->  | I69: 0 | M69: 0
A70: =IF(COUNTRY_INFO!A68=0," ",COUNTRY_INFO!A68) -> CÔTE D'IVOIRE | B70: =IF(COUNTRY_INFO!B68=0," ",COUNTRY_INFO!B68) -> LOH-DJIBOUA | C70: =IF(COUNTRY_INFO!C68=0," ",COUNTRY_INFO!C68) -> LAKOTA | D70: =IF(COUNTRY_INFO!$T$9:$T$997="MDA2 (DEC+ALB)", COUNTRY_INFO!$T$9:$T$997, " ") ->  | I70: 0 | M70: 0
A71: =IF(COUNTRY_INFO!A69=0," ",COUNTRY_INFO!A69) -> CÔTE D'IVOIRE | B71: =IF(COUNTRY_INFO!B69=0," ",COUNTRY_INFO!B69) -> MARAHOUE | C71: =IF(COUNTRY_INFO!C69=0," ",COUNTRY_INFO!C69) -> BOUAFLE | D71: =IF(COUNTRY_INFO!$T$9:$T$997="MDA2 (DEC+ALB)", COUNTRY_INFO!$T$9:$T$997, " ") ->  | I71: 0 | M71: 0
A72: =IF(COUNTRY_INFO!A70=0," ",COUNTRY_INFO!A70) -> CÔTE D'IVOIRE | B72: =IF(COUNTRY_INFO!B70=0," ",COUNTRY_INFO!B70) -> MARAHOUE | C72: =IF(COUNTRY_INFO!C70=0," ",COUNTRY_INFO!C70) -> SINFRA | D72: =IF(COUNTRY_INFO!$T$9:$T$997="MDA2 (DEC+ALB)", COUNTRY_INFO!$T$9:$T$997, " ") ->  | I72: 0 | M72: 0
A73: =IF(COUNTRY_INFO!A71=0," ",COUNTRY_INFO!A71) -> CÔTE D'IVOIRE | B73: =IF(COUNTRY_INFO!B71=0," ",COUNTRY_INFO!B71) -> MARAHOUE | C73: =IF(COUNTRY_INFO!C71=0," ",COUNTRY_INFO!C71) -> ZUENOULA | D73: =IF(COUNTRY_INFO!$T$9:$T$997="MDA2 (DEC+ALB)", COUNTRY_INFO!$T$9:$T$997, " ") ->  | I73: 0 | M73: 0
A74: =IF(COUNTRY_INFO!A72=0," ",COUNTRY_INFO!A72) -> CÔTE D'IVOIRE | B74: =IF(COUNTRY_INFO!B72=0," ",COUNTRY_INFO!B72) -> N'ZI-IFOU | C74: =IF(COUNTRY_INFO!C72=0," ",COUNTRY_INFO!C72) -> BOCANDA | D74: =IF(COUNTRY_INFO!$T$9:$T$997="MDA2 (DEC+ALB)", COUNTRY_INFO!$T$9:$T$997, " ") ->  | I74: =SUM(F74:H74) -> 0 | M74: =SUM(J74:L74) -> 0 | N74: =IF(F74<>0, IF(J74/F74*100=0, "-", J74/F74*100), " ") ->  | O74: =IF(G74<>0, IF(K74/G74*100=0, "-", K74/G74*100), " ") ->  | P74: =IF(H74<>0, IF(L74/H74*100=0, "-", L74/H74*100), " ") ->  | Q74: =IF(I74<>0, IF(M74/I74*100=0, "-", M74/I74*100), " ") -> 
A75: =IF(COUNTRY_INFO!A73=0," ",COUNTRY_INFO!A73) -> CÔTE D'IVOIRE | B75: =IF(COUNTRY_INFO!B73=0," ",COUNTRY_INFO!B73) -> N'ZI-IFOU | C75: =IF(COUNTRY_INFO!C73=0," ",COUNTRY_INFO!C73) -> BONGOUANOU | D75: =IF(COUNTRY_INFO!$T$9:$T$997="MDA2 (DEC+ALB)", COUNTRY_INFO!$T$9:$T$997, " ") ->  | I75: 0 | M75: 0
A76: =IF(COUNTRY_INFO!A74=0," ",COUNTRY_INFO!A74) -> CÔTE D'IVOIRE | B76: =IF(COUNTRY_INFO!B74=0," ",COUNTRY_INFO!B74) -> N'ZI-IFOU | C76: =IF(COUNTRY_INFO!C74=0," ",COUNTRY_INFO!C74) -> DAOUKRO | D76: =IF(COUNTRY_INFO!$T$9:$T$997="MDA2 (DEC+ALB)", COUNTRY_INFO!$T$9:$T$997, " ") ->  | I76: 0 | M76: 0
A77: =IF(COUNTRY_INFO!A75=0," ",COUNTRY_INFO!A75) -> CÔTE D'IVOIRE | B77: =IF(COUNTRY_INFO!B75=0," ",COUNTRY_INFO!B75) -> N'ZI-IFOU | C77: =IF(COUNTRY_INFO!C75=0," ",COUNTRY_INFO!C75) -> DIMBOKRO | D77: =IF(COUNTRY_INFO!$T$9:$T$997="MDA2 (DEC+ALB)", COUNTRY_INFO!$T$9:$T$997, " ") ->  | I77: 0 | M77: 0
A78: =IF(COUNTRY_INFO!A76=0," ",COUNTRY_INFO!A76) -> CÔTE D'IVOIRE | B78: =IF(COUNTRY_INFO!B76=0," ",COUNTRY_INFO!B76) -> N'ZI-IFOU | C78: =IF(COUNTRY_INFO!C76=0," ",COUNTRY_INFO!C76) -> M'BAHIAKRO | D78: =IF(COUNTRY_INFO!$T$9:$T$997="MDA2 (DEC+ALB)", COUNTRY_INFO!$T$9:$T$997, " ") ->  | I78: 0 | M78: 0
A79: =IF(COUNTRY_INFO!A77=0," ",COUNTRY_INFO!A77) -> CÔTE D'IVOIRE | B79: =IF(COUNTRY_INFO!B77=0," ",COUNTRY_INFO!B77) -> N'ZI-IFOU | C79: =IF(COUNTRY_INFO!C77=0," ",COUNTRY_INFO!C77) -> PRIKRO | D79: =IF(COUNTRY_INFO!$T$9:$T$997="MDA2 (DEC+ALB)", COUNTRY_INFO!$T$9:$T$997, " ") ->  | I79: 0 | M79: 0
A80: =IF(COUNTRY_INFO!A78=0," ",COUNTRY_INFO!A78) -> CÔTE D'IVOIRE | B80: =IF(COUNTRY_INFO!B78=0," ",COUNTRY_INFO!B78) -> PORO-TCHOLOGO-BAGOUE | C80: =IF(COUNTRY_INFO!C78=0," ",COUNTRY_INFO!C78) -> BOUNDIALI | D80: =IF(COUNTRY_INFO!$T$9:$T$997="MDA2 (DEC+ALB)", COUNTRY_INFO!$T$9:$T$997, " ") ->  | I80: 0 | M80: 0
A81: =IF(COUNTRY_INFO!A79=0," ",COUNTRY_INFO!A79) -> CÔTE D'IVOIRE | B81: =IF(COUNTRY_INFO!B79=0," ",COUNTRY_INFO!B79) -> PORO-TCHOLOGO-BAGOUE | C81: =IF(COUNTRY_INFO!C79=0," ",COUNTRY_INFO!C79) -> FERKESSEDOUGOU | D81: =IF(COUNTRY_INFO!$T$9:$T$997="MDA2 (DEC+ALB)", COUNTRY_INFO!$T$9:$T$997, " ") ->  | I81: 0 | M81: 0
A82: =IF(COUNTRY_INFO!A80=0," ",COUNTRY_INFO!A80) -> CÔTE D'IVOIRE | B82: =IF(COUNTRY_INFO!B80=0," ",COUNTRY_INFO!B80) -> PORO-TCHOLOGO-BAGOUE | C82: =IF(COUNTRY_INFO!C80=0," ",COUNTRY_INFO!C80) -> KORHOGO | D82: =IF(COUNTRY_INFO!$T$9:$T$997="MDA2 (DEC+ALB)", COUNTRY_INFO!$T$9:$T$997, " ") ->  | I82: 0 | M82: 0
A83: =IF(COUNTRY_INFO!#REF!=0," ",COUNTRY_INFO!#REF!) ->  | B83: =IF(COUNTRY_INFO!#REF!=0," ",COUNTRY_INFO!#REF!) ->  | C83: =IF(COUNTRY_INFO!#REF!=0," ",COUNTRY_INFO!#REF!) ->  | D83: =IF(COUNTRY_INFO!$T$9:$T$997="MDA2 (DEC+ALB)", COUNTRY_INFO!$T$9:$T$997, " ") ->  | I83: 0 | M83: 0
A84: =IF(COUNTRY_INFO!A81=0," ",COUNTRY_INFO!A81) -> CÔTE D'IVOIRE | B84: =IF(COUNTRY_INFO!B81=0," ",COUNTRY_INFO!B81) -> PORO-TCHOLOGO-BAGOUE | C84: =IF(COUNTRY_INFO!C81=0," ",COUNTRY_INFO!C81) -> OUANGOLODOUGOU | D84: =IF(COUNTRY_INFO!$T$9:$T$997="MDA2 (DEC+ALB)", COUNTRY_INFO!$T$9:$T$997, " ") ->  | I84: 0 | M84: 0
A85: =IF(COUNTRY_INFO!A82=0," ",COUNTRY_INFO!A82) -> CÔTE D'IVOIRE | B85: =IF(COUNTRY_INFO!B82=0," ",COUNTRY_INFO!B82) -> PORO-TCHOLOGO-BAGOUE | C85: =IF(COUNTRY_INFO!C82=0," ",COUNTRY_INFO!C82) -> TENGRELA | D85: =IF(COUNTRY_INFO!$T$9:$T$997="MDA2 (DEC+ALB)", COUNTRY_INFO!$T$9:$T$997, " ") ->  | I85: 0 | M85: 0
A86: =IF(COUNTRY_INFO!A83=0," ",COUNTRY_INFO!A83) -> CÔTE D'IVOIRE | B86: =IF(COUNTRY_INFO!B83=0," ",COUNTRY_INFO!B83) -> SUD-COMOE | C86: =IF(COUNTRY_INFO!C83=0," ",COUNTRY_INFO!C83) -> ABOISSO | D86: =IF(COUNTRY_INFO!$T$9:$T$997="MDA2 (DEC+ALB)", COUNTRY_INFO!$T$9:$T$997, " ") ->  | I86: 0 | M86: 0
A87: =IF(COUNTRY_INFO!A84=0," ",COUNTRY_INFO!A84) -> CÔTE D'IVOIRE | B87: =IF(COUNTRY_INFO!B84=0," ",COUNTRY_INFO!B84) -> SUD-COMOE | C87: =IF(COUNTRY_INFO!C84=0," ",COUNTRY_INFO!C84) -> ADIAKE | D87: =IF(COUNTRY_INFO!$T$9:$T$997="MDA2 (DEC+ALB)", COUNTRY_INFO!$T$9:$T$997, " ") ->  | I87: 0 | M87: 0
A88: =IF(COUNTRY_INFO!A85=0," ",COUNTRY_INFO!A85) -> CÔTE D'IVOIRE | B88: =IF(COUNTRY_INFO!B85=0," ",COUNTRY_INFO!B85) -> SUD-COMOE | C88: =IF(COUNTRY_INFO!C85=0," ",COUNTRY_INFO!C85) -> GRAND-BASSAM | D88: =IF(COUNTRY_INFO!$T$9:$T$997="MDA2 (DEC+ALB)", COUNTRY_INFO!$T$9:$T$997, " ") ->  | I88: 0 | M88: 0
A89: =IF(COUNTRY_INFO!A86=0," ",COUNTRY_INFO!A86) -> CÔTE D'IVOIRE | B89: =IF(COUNTRY_INFO!B86=0," ",COUNTRY_INFO!B86) -> TONKPI | C89: =IF(COUNTRY_INFO!C86=0," ",COUNTRY_INFO!C86) -> BIANKOUMA | D89: =IF(COUNTRY_INFO!$T$9:$T$997="MDA2 (DEC+ALB)", COUNTRY_INFO!$T$9:$T$997, " ") ->  | I89: 0 | M89: 0
A90: =IF(COUNTRY_INFO!A87=0," ",COUNTRY_INFO!A87) -> CÔTE D'IVOIRE | B90: =IF(COUNTRY_INFO!B87=0," ",COUNTRY_INFO!B87) -> TONKPI | C90: =IF(COUNTRY_INFO!C87=0," ",COUNTRY_INFO!C87) -> DANANE | D90: =IF(COUNTRY_INFO!$T$9:$T$997="MDA2 (DEC+ALB)", COUNTRY_INFO!$T$9:$T$997, " ") ->  | I90: 0 | M90: 0
A91: =IF(COUNTRY_INFO!A88=0," ",COUNTRY_INFO!A88) -> CÔTE D'IVOIRE | B91: =IF(COUNTRY_INFO!B88=0," ",COUNTRY_INFO!B88) -> TONKPI | C91: =IF(COUNTRY_INFO!C88=0," ",COUNTRY_INFO!C88) -> MAN | D91: =IF(COUNTRY_INFO!$T$9:$T$997="MDA2 (DEC+ALB)", COUNTRY_INFO!$T$9:$T$997, " ") ->  | I91: 0 | M91: 0
A92: =IF(COUNTRY_INFO!A89=0," ",COUNTRY_INFO!A89) -> CÔTE D'IVOIRE | B92: =IF(COUNTRY_INFO!B89=0," ",COUNTRY_INFO!B89) -> TONKPI | C92: =IF(COUNTRY_INFO!C89=0," ",COUNTRY_INFO!C89) -> ZOUAN-HOUNIEN | D92: =IF(COUNTRY_INFO!$T$9:$T$997="MDA2 (DEC+ALB)", COUNTRY_INFO!$T$9:$T$997, " ") ->  | I92: 0 | M92: 0
A93: =IF(COUNTRY_INFO!A90=0," ",COUNTRY_INFO!A90) -> CÔTE D'IVOIRE | B93: =IF(COUNTRY_INFO!B90=0," ",COUNTRY_INFO!B90) -> WORODOUGOU-BERE | C93: =IF(COUNTRY_INFO!C90=0," ",COUNTRY_INFO!C90) -> MANKONO | D93: =IF(COUNTRY_INFO!$T$9:$T$997="MDA2 (DEC+ALB)", COUNTRY_INFO!$T$9:$T$997, " ") ->  | I93: 0 | M93: 0
A94: =IF(COUNTRY_INFO!A91=0," ",COUNTRY_INFO!A91) -> CÔTE D'IVOIRE | B94: =IF(COUNTRY_INFO!B91=0," ",COUNTRY_INFO!B91) -> WORODOUGOU-BERE | C94: =IF(COUNTRY_INFO!C91=0," ",COUNTRY_INFO!C91) -> SEGUELA | D94: =IF(COUNTRY_INFO!$T$9:$T$997="MDA2 (DEC+ALB)", COUNTRY_INFO!$T$9:$T$997, " ") ->  | I94: 0 | M94: 0

Sheet MDA3
A1: MDA 3 - Ivermectine (IVM)
A2: Structure administrative, population nécessitant une chimioprévention par groupe d'âge, population traitée par groupe d'âge et couverture
A4: TOTAL | F4: =SUM(F$9:F$997) -> 166645 | G4: 416611 | H4: 583256 | I4: 156589.7143 | J4: 391474.2857 | K4: 548064 | L4: 0 | M4: 0 | N4: 0 | O4: 156589.7143 | P4: 391474.2857 | Q4: 548064 | R4: =IF(F4<>0, IF(O4/F4*100=0, "-", O4/F4*100), " ") -> 93.96604416 | S4: =IF(G4<>0, IF(P4/G4*100=0, "-", P4/G4*100), " ") -> 93.96638248 | T4: =IF(H4<>0, IF(Q4/H4*100=0, "-", Q4/H4*100), " ") -> 93.96628582
A6: Structure administrative du pays | D6: Mise en oeuvre de la CP | E6: Date | F6: Population ciblée pour MDA 3 | I6: Population traitée - tournée 1 | L6: Population traitée - tournée 2 | O6: Population traitée | R6: Couverture du Programme (%)
A7: Pays | B7: Région/Département | C7: District | F7: EAS | G7: Adultes | H7: Total | I7: EAS | J7: Adultes | K7: Total | L7: EAS | M7: Adultes | N7: Total | O7: EAS | P7: Adultes | Q7: Total | R7: EAS | S7: Adultes | T7: Total
A9: =IF(COUNTRY_INFO!A9=0," ",COUNTRY_INFO!A9) -> CÔTE D'IVOIRE | B9: =IF(COUNTRY_INFO!B9=0," ",COUNTRY_INFO!B9) -> ABIDJAN 1 GRANDS PONTS | C9: =IF(COUNTRY_INFO!C9=0," ",COUNTRY_INFO!C9) -> ADJAME-PLATEAU-ATTECOUBE | D9: =IF(COUNTRY_INFO!$T$9:$T$997="MDA3 (IVM)", COUNTRY_INFO!$T$9:$T$997, " ") ->  | H9: =SUM(F9:G9) -> 0 | K9: =SUM(I9:J9) -> 0 | N9: =SUM(L9:M9) -> 0 | O9: =MAX(I9,L9) -> 0 | P9: =MAX(J9,M9) -> 0 | Q9: =SUM(O9:P9) -> 0 | R9: =IF(F9<>0, IF(MAX(I9,L9)/F9*100=0, "-", MAX(I9,L9)/F9*100), " ") ->  | S9: =IF(G9<>0, IF(MAX(J9,M9)/G9*100=0, "-", MAX(J9,M9)/G9*100), " ") ->  | T9: =IF(H9<>0, IF((MAX(I9,L9)+MAX(J9,M9))/H9*100=0, "-",(MAX(I9,L9)+MAX(J9,M9))/H9*100), " ") -> 
A10: =IF(COUNTRY_INFO!A10=0," ",COUNTRY_INFO!A10) -> CÔTE D'IVOIRE | B10: =IF(COUNTRY_INFO!B10=0," ",COUNTRY_INFO!B10) -> ABIDJAN 1 GRANDS PONTS | C10: =IF(COUNTRY_INFO!C10=0," ",COUNTRY_INFO!C10) -> DABOU | D10: =IF(COUNTRY_INFO!$T$9:$T$997="MDA3 (IVM)", COUNTRY_INFO!$T$9:$T$997, " ") ->  | H10: =SUM(F10:G10) -> 0 | K10: =SUM(I10:J10) -> 0 | N10: =SUM(L10:M10) -> 0 | O10: =MAX(I10,L10) -> 0 | P10: =MAX(J10,M10) -> 0 | Q10: =SUM(O10:P10) -> 0 | R10: =IF(F10<>0, IF(MAX(I10,L10)/F10*100=0, "-", MAX(I10,L10)/F10*100), " ") ->  | S10: =IF(G10<>0, IF(MAX(J10,M10)/G10*100=0, "-", MAX(J10,M10)/G10*100), " ") ->  | T10: =IF(H10<>0, IF((MAX(I10,L10)+MAX(J10,M10))/H10*100=0, "-",(MAX(I10,L10)+MAX(J10,M10))/H10*100), " ") -> 
A11: =IF(COUNTRY_INFO!A11=0," ",COUNTRY_INFO!A11) -> CÔTE D'IVOIRE | B11: =IF(COUNTRY_INFO!B11=0," ",COUNTRY_INFO!B11) -> ABIDJAN 1 GRANDS PONTS | C11: =IF(COUNTRY_INFO!C11=0," ",COUNTRY_INFO!C11) -> GRAND-LAHOU | D11: =IF(COUNTRY_INFO!$T$9:$T$997="MDA3 (IVM)", COUNTRY_INFO!$T$9:$T$997, " ") ->  | H11: 0 | K11: 0 | N11: 0 | O11: 0 | P11: 0 | Q11: 0
A12: =IF(COUNTRY_INFO!A12=0," ",COUNTRY_INFO!A12) -> CÔTE D'IVOIRE | B12: =IF(COUNTRY_INFO!B12=0," ",COUNTRY_INFO!B12) -> ABIDJAN 1 GRANDS PONTS | C12: =IF(COUNTRY_INFO!C12=0," ",COUNTRY_INFO!C12) -> JACQUEVILLE | D12: =IF(COUNTRY_INFO!$T$9:$T$997="MDA3 (IVM)", COUNTRY_INFO!$T$9:$T$997, " ") ->  | H12: 0 | K12: 0 | N12: 0 | O12: 0 | P12: 0 | Q12: 0
A13: =IF(COUNTRY_INFO!A13=0," ",COUNTRY_INFO!A13) -> CÔTE D'IVOIRE | B13: =IF(COUNTRY_INFO!B13=0," ",COUNTRY_INFO!B13) -> ABIDJAN 1 GRANDS PONTS | C13: =IF(COUNTRY_INFO!C13=0," ",COUNTRY_INFO!C13) -> YOPOUGON EST | D13: =IF(COUNTRY_INFO!$T$9:$T$997="MDA3 (IVM)", COUNTRY_INFO!$T$9:$T$997, " ") ->  | H13: 0 | K13: 0 | N13: 0 | O13: 0 | P13: 0 | Q13: 0
A14: =IF(COUNTRY_INFO!A14=0," ",COUNTRY_INFO!A14) -> CÔTE D'IVOIRE | B14: =IF(COUNTRY_INFO!B14=0," ",COUNTRY_INFO!B14) -> ABIDJAN 1 GRANDS PONTS | C14: =IF(COUNTRY_INFO!C14=0," ",COUNTRY_INFO!C14) -> YOPOUGON OUEST | D14: =IF(COUNTRY_INFO!$T$9:$T$997="MDA3 (IVM)", COUNTRY_INFO!$T$9:$T$997, " ") ->  | H14: 0 | K14: 0 | N14: 0 | O14: 0 | P14: 0 | Q14: 0
A15: =IF(COUNTRY_INFO!A15=0," ",COUNTRY_INFO!A15) -> CÔTE D'IVOIRE | B15: =IF(COUNTRY_INFO!B15=0," ",COUNTRY_INFO!B15) -> ABIDJAN 2 | C15: =IF(COUNTRY_INFO!C15=0," ",COUNTRY_INFO!C15) -> ABOBO EST | D15: =IF(COUNTRY_INFO!$T$9:$T$997="MDA3 (IVM)", COUNTRY_INFO!$T$9:$T$997, " ") ->  | H15: 0 | K15: 0 | N15: 0 | O15: 0 | P15: 0 | Q15: 0
A16: =IF(COUNTRY_INFO!A16=0," ",COUNTRY_INFO!A16) -> CÔTE D'IVOIRE | B16: =IF(COUNTRY_INFO!B16=0," ",COUNTRY_INFO!B16) -> ABIDJAN 2 | C16: =IF(COUNTRY_INFO!C16=0," ",COUNTRY_INFO!C16) -> ABOBO OUEST | D16: =IF(COUNTRY_INFO!$T$9:$T$997="MDA3 (IVM)", COUNTRY_INFO!$T$9:$T$997, " ") ->  | H16: 0 | K16: 0 | N16: 0 | O16: 0 | P16: 0 | Q16: 0
A17: =IF(COUNTRY_INFO!A17=0," ",COUNTRY_INFO!A17) -> CÔTE D'IVOIRE | B17: =IF(COUNTRY_INFO!B17=0," ",COUNTRY_INFO!B17) -> ABIDJAN 2 | C17: =IF(COUNTRY_INFO!C17=0," ",COUNTRY_INFO!C17) -> ANYAMA | D17: =IF(COUNTRY_INFO!$T$9:$T$997="MDA3 (IVM)", COUNTRY_INFO!$T$9:$T$997, " ") ->  | H17: 0 | K17: 0 | N17: 0 | O17: 0 | P17: 0 | Q17: 0
A18: =IF(COUNTRY_INFO!A18=0," ",COUNTRY_INFO!A18) -> CÔTE D'IVOIRE | B18: =IF(COUNTRY_INFO!B18=0," ",COUNTRY_INFO!B18) -> ABIDJAN 2 | C18: =IF(COUNTRY_INFO!C18=0," ",COUNTRY_INFO!C18) -> COCODY-BINGERVILLE | D18: =IF(COUNTRY_INFO!$T$9:$T$997="MDA3 (IVM)", COUNTRY_INFO!$T$9:$T$997, " ") ->  | H18: 0 | K18: 0 | N18: 0 | O18: 0 | P18: 0 | Q18: 0
A19: =IF(COUNTRY_INFO!A19=0," ",COUNTRY_INFO!A19) -> CÔTE D'IVOIRE | B19: =IF(COUNTRY_INFO!B19=0," ",COUNTRY_INFO!B19) -> ABIDJAN 2 | C19: =IF(COUNTRY_INFO!C19=0," ",COUNTRY_INFO!C19) -> KOUMASSI-PORT BOUET-VRIDI | D19: =IF(COUNTRY_INFO!$T$9:$T$997="MDA3 (IVM)", COUNTRY_INFO!$T$9:$T$997, " ") ->  | H19: 0 | K19: 0 | N19: 0 | O19: 0 | P19: 0 | Q19: 0
A20: =IF(COUNTRY_INFO!A20=0," ",COUNTRY_INFO!A20) -> CÔTE D'IVOIRE | B20: =IF(COUNTRY_INFO!B20=0," ",COUNTRY_INFO!B20) -> ABIDJAN 2 | C20: =IF(COUNTRY_INFO!C20=0," ",COUNTRY_INFO!C20) -> MARCORY-TREICHVILLE | D20: =IF(COUNTRY_INFO!$T$9:$T$997="MDA3 (IVM)", COUNTRY_INFO!$T$9:$T$997, " ") ->  | H20: 0 | K20: 0 | N20: 0 | O20: 0 | P20: 0 | Q20: 0
A21: =IF(COUNTRY_INFO!A21=0," ",COUNTRY_INFO!A21) -> CÔTE D'IVOIRE | B21: =IF(COUNTRY_INFO!B21=0," ",COUNTRY_INFO!B21) -> AGNEBY-TIASSA-ME | C21: =IF(COUNTRY_INFO!C21=0," ",COUNTRY_INFO!C21) -> ADZOPE | D21: =IF(COUNTRY_INFO!$T$9:$T$997="MDA3 (IVM)", COUNTRY_INFO!$T$9:$T$997, " ") ->  | H21: 0 | K21: 0 | N21: 0 | O21: 0 | P21: 0 | Q21: 0
A22: =IF(COUNTRY_INFO!A22=0," ",COUNTRY_INFO!A22) -> CÔTE D'IVOIRE | B22: =IF(COUNTRY_INFO!B22=0," ",COUNTRY_INFO!B22) -> AGNEBY-TIASSA-ME | C22: =IF(COUNTRY_INFO!C22=0," ",COUNTRY_INFO!C22) -> AGBOVILLE | D22: =IF(COUNTRY_INFO!$T$9:$T$997="MDA3 (IVM)", COUNTRY_INFO!$T$9:$T$997, " ") ->  | H22: 0 | K22: 0 | N22: 0 | O22: 0 | P22: 0 | Q22: 0
A23: =IF(COUNTRY_INFO!A23=0," ",COUNTRY_INFO!A23) -> CÔTE D'IVOIRE | B23: =IF(COUNTRY_INFO!B23=0," ",COUNTRY_INFO!B23) -> AGNEBY-TIASSA-ME | C23: =IF(COUNTRY_INFO!C23=0," ",COUNTRY_INFO!C23) -> AKOUPE | D23: =IF(COUNTRY_INFO!$T$9:$T$997="MDA3 (IVM)", COUNTRY_INFO!$T$9:$T$997, " ") ->  | H23: 0 | K23: 0 | N23: 0 | O23: 0 | P23: 0 | Q23: 0
A24: =IF(COUNTRY_INFO!A24=0," ",COUNTRY_INFO!A24) -> CÔTE D'IVOIRE | B24: =IF(COUNTRY_INFO!B24=0," ",COUNTRY_INFO!B24) -> AGNEBY-TIASSA-ME | C24: =IF(COUNTRY_INFO!C24=0," ",COUNTRY_INFO!C24) -> ALEPE | D24: =IF(COUNTRY_INFO!$T$9:$T$997="MDA3 (IVM)", COUNTRY_INFO!$T$9:$T$997, " ") ->  | H24: 0 | K24: 0 | N24: 0 | O24: 0 | P24: 0 | Q24: 0
A25: =IF(COUNTRY_INFO!A25=0," ",COUNTRY_INFO!A25) -> CÔTE D'IVOIRE | B25: =IF(COUNTRY_INFO!B25=0," ",COUNTRY_INFO!B25) -> AGNEBY-TIASSA-ME | C25: =IF(COUNTRY_INFO!C25=0," ",COUNTRY_INFO!C25) -> SIKENSI | D25: =IF(COUNTRY_INFO!$T$9:$T$997="MDA3 (IVM)", COUNTRY_INFO!$T$9:$T$997, " ") ->  | H25: 0 | K25: 0 | N25: 0 | O25: 0 | P25: 0 | Q25: 0
A26: =IF(COUNTRY_INFO!A26=0," ",COUNTRY_INFO!A26) -> CÔTE D'IVOIRE | B26: =IF(COUNTRY_INFO!B26=0," ",COUNTRY_INFO!B26) -> AGNEBY-TIASSA-ME | C26: =IF(COUNTRY_INFO!C26=0," ",COUNTRY_INFO!C26) -> TIASSALE | D26: =IF(COUNTRY_INFO!$T$9:$T$997="MDA3 (IVM)", COUNTRY_INFO!$T$9:$T$997, " ") ->  | H26: 0 | K26: 0 | N26: 0 | O26: 0 | P26: 0 | Q26: 0
A27: =IF(COUNTRY_INFO!A27=0," ",COUNTRY_INFO!A27) -> CÔTE D'IVOIRE | B27: =IF(COUNTRY_INFO!B27=0," ",COUNTRY_INFO!B27) -> BELIER | C27: =IF(COUNTRY_INFO!C27=0," ",COUNTRY_INFO!C27) -> DIDIEVI | D27: =IF(COUNTRY_INFO!$T$9:$T$997="MDA3 (IVM)", COUNTRY_INFO!$T$9:$T$997, " ") ->  | H27: 0 | K27: 0 | N27: 0 | O27: 0 | P27: 0 | Q27: 0
A28: =IF(COUNTRY_INFO!A28=0," ",COUNTRY_INFO!A28) -> CÔTE D'IVOIRE | B28: =IF(COUNTRY_INFO!B28=0," ",COUNTRY_INFO!B28) -> BELIER | C28: =IF(COUNTRY_INFO!C28=0," ",COUNTRY_INFO!C28) -> TIEBISSOU | D28: =IF(COUNTRY_INFO!$T$9:$T$997="MDA3 (IVM)", COUNTRY_INFO!$T$9:$T$997, " ") ->  | H28: 0 | K28: 0 | N28: 0 | O28: 0 | P28: 0 | Q28: 0
A29: =IF(COUNTRY_INFO!A29=0," ",COUNTRY_INFO!A29) -> CÔTE D'IVOIRE | B29: =IF(COUNTRY_INFO!B29=0," ",COUNTRY_INFO!B29) -> BELIER | C29: =IF(COUNTRY_INFO!C29=0," ",COUNTRY_INFO!C29) -> TOUMODI | D29: =IF(COUNTRY_INFO!$T$9:$T$997="MDA3 (IVM)", COUNTRY_INFO!$T$9:$T$997, " ") ->  | H29: 0 | K29: 0 | N29: 0 | O29: 0 | P29: 0 | Q29: 0
A30: =IF(COUNTRY_INFO!A30=0," ",COUNTRY_INFO!A30) -> CÔTE D'IVOIRE | B30: =IF(COUNTRY_INFO!B30=0," ",COUNTRY_INFO!B30) -> BELIER | C30: =IF(COUNTRY_INFO!C30=0," ",COUNTRY_INFO!C30) -> YAMOUSSOUKRO | D30: =IF(COUNTRY_INFO!$T$9:$T$997="MDA3 (IVM)", COUNTRY_INFO!$T$9:$T$997, " ") ->  | H30: 0 | K30: 0 | N30: 0 | O30: 0 | P30: 0 | Q30: 0
A31: =IF(COUNTRY_INFO!A31=0," ",COUNTRY_INFO!A31) -> CÔTE D'IVOIRE | B31: =IF(COUNTRY_INFO!B31=0," ",COUNTRY_INFO!B31) -> BOUKANI-GONTOUGO | C31: =IF(COUNTRY_INFO!C31=0," ",COUNTRY_INFO!C31) -> BONDOUKOU | D31: =IF(COUNTRY_INFO!$T$9:$T$997="MDA3 (IVM)", COUNTRY_INFO!$T$9:$T$997, " ") ->  | H31: 0 | K31: 0 | N31: 0 | O31: 0 | P31: 0 | Q31: 0
A32: =IF(COUNTRY_INFO!A32=0," ",COUNTRY_INFO!A32) -> CÔTE D'IVOIRE | B32: =IF(COUNTRY_INFO!B32=0," ",COUNTRY_INFO!B32) -> BOUKANI-GONTOUGO | C32: =IF(COUNTRY_INFO!C32=0," ",COUNTRY_INFO!C32) -> BOUNA | D32: =IF(COUNTRY_INFO!$T$9:$T$997="MDA3 (IVM)", COUNTRY_INFO!$T$9:$T$997, " ") ->  | H32: 0 | K32: 0 | N32: 0 | O32: 0 | P32: 0 | Q32: 0
A33: =IF(COUNTRY_INFO!A33=0," ",COUNTRY_INFO!A33) -> CÔTE D'IVOIRE | B33: =IF(COUNTRY_INFO!B33=0," ",COUNTRY_INFO!B33) -> BOUKANI-GONTOUGO | C33: =IF(COUNTRY_INFO!C33=0," ",COUNTRY_INFO!C33) -> NASSIAN | D33: =IF(COUNTRY_INFO!$T$9:$T$997="MDA3 (IVM)", COUNTRY_INFO!$T$9:$T$997, " ") ->  | H33: 0 | K33: 0 | N33: 0 | O33: 0 | P33: 0 | Q33: 0
A34: =IF(COUNTRY_INFO!A34=0," ",COUNTRY_INFO!A34) -> CÔTE D'IVOIRE | B34: =IF(COUNTRY_INFO!B34=0," ",COUNTRY_INFO!B34) -> BOUKANI-GONTOUGO | C34: =IF(COUNTRY_INFO!C34=0," ",COUNTRY_INFO!C34) -> TANDA | D34: =IF(COUNTRY_INFO!$T$9:$T$997="MDA3 (IVM)", COUNTRY_INFO!$T$9:$T$997, " ") ->  | H34: 0 | K34: 0 | N34: 0 | O34: 0 | P34: 0 | Q34: 0
A35: =IF(COUNTRY_INFO!A35=0," ",COUNTRY_INFO!A35) -> CÔTE D'IVOIRE | B35: =IF(COUNTRY_INFO!B35=0," ",COUNTRY_INFO!B35) -> CAVALLY-GUEMON | C35: =IF(COUNTRY_INFO!C35=0," ",COUNTRY_INFO!C35) -> BANGOLO | D35: =IF(COUNTRY_INFO!$T$9:$T$997="MDA3 (IVM)", COUNTRY_INFO!$T$9:$T$997, " ") ->  | H35: 0 | K35: 0 | N35: 0 | O35: 0 | P35: 0 | Q35: 0
A36: =IF(COUNTRY_INFO!A36=0," ",COUNTRY_INFO!A36) -> CÔTE D'IVOIRE | B36: =IF(COUNTRY_INFO!B36=0," ",COUNTRY_INFO!B36) -> CAVALLY-GUEMON | C36: =IF(COUNTRY_INFO!C36=0," ",COUNTRY_INFO!C36) -> BLOLEQUIN | D36: =IF(COUNTRY_INFO!$T$9:$T$997="MDA3 (IVM)", COUNTRY_INFO!$T$9:$T$997, " ") ->  | H36: 0 | K36: 0 | N36: 0 | O36: 0 | P36: 0 | Q36: 0
A37: =IF(COUNTRY_INFO!A37=0," ",COUNTRY_INFO!A37) -> CÔTE D'IVOIRE | B37: =IF(COUNTRY_INFO!B37=0," ",COUNTRY_INFO!B37) -> CAVALLY-GUEMON | C37: =IF(COUNTRY_INFO!C37=0," ",COUNTRY_INFO!C37) -> DUEKOUE | D37: =IF(COUNTRY_INFO!$T$9:$T$997="MDA3 (IVM)", COUNTRY_INFO!$T$9:$T$997, " ") ->  | H37: 0 | K37: 0 | N37: 0 | O37: 0 | P37: 0 | Q37: 0
A38: =IF(COUNTRY_INFO!A38=0," ",COUNTRY_INFO!A38) -> CÔTE D'IVOIRE | B38: =IF(COUNTRY_INFO!B38=0," ",COUNTRY_INFO!B38) -> CAVALLY-GUEMON | C38: =IF(COUNTRY_INFO!C38=0," ",COUNTRY_INFO!C38) -> GUIGLO | D38: =IF(COUNTRY_INFO!$T$9:$T$997="MDA3 (IVM)", COUNTRY_INFO!$T$9:$T$997, " ") ->  | H38: 0 | K38: 0 | N38: 0 | O38: 0 | P38: 0 | Q38: 0
A39: =IF(COUNTRY_INFO!A39=0," ",COUNTRY_INFO!A39) -> CÔTE D'IVOIRE | B39: =IF(COUNTRY_INFO!B39=0," ",COUNTRY_INFO!B39) -> CAVALLY-GUEMON | C39: =IF(COUNTRY_INFO!C39=0," ",COUNTRY_INFO!C39) -> KOUIBLY | D39: =IF(COUNTRY_INFO!$T$9:$T$997="MDA3 (IVM)", COUNTRY_INFO!$T$9:$T$997, " ") ->  | H39: 0 | K39: 0 | N39: 0 | O39: 0 | P39: 0 | Q39: 0
A40: =IF(COUNTRY_INFO!A40=0," ",COUNTRY_INFO!A40) -> CÔTE D'IVOIRE | B40: =IF(COUNTRY_INFO!B40=0," ",COUNTRY_INFO!B40) -> CAVALLY-GUEMON | C40: =IF(COUNTRY_INFO!C40=0," ",COUNTRY_INFO!C40) -> TOULEPLEU | D40: =IF(COUNTRY_INFO!$T$9:$T$997="MDA3 (IVM)", COUNTRY_INFO!$T$9:$T$997, " ") ->  | H40: 0 | K40: 0 | N40: 0 | O40: 0 | P40: 0 | Q40: 0
A41: =IF(COUNTRY_INFO!A41=0," ",COUNTRY_INFO!A41) -> CÔTE D'IVOIRE | B41: =IF(COUNTRY_INFO!B41=0," ",COUNTRY_INFO!B41) -> GBEKE | C41: =IF(COUNTRY_INFO!C41=0," ",COUNTRY_INFO!C41) -> BEOUMI | D41: =IF(COUNTRY_INFO!$T$9:$T$997="MDA3 (IVM)", COUNTRY_INFO!$T$9:$T$997, " ") ->  | H41: 0 | K41: 0 | N41: 0 | O41: 0 | P41: 0 | Q41: 0
A42: =IF(COUNTRY_INFO!A42=0," ",COUNTRY_INFO!A42) -> CÔTE D'IVOIRE | B42: =IF(COUNTRY_INFO!B42=0," ",COUNTRY_INFO!B42) -> GBEKE | C42: =IF(COUNTRY_INFO!C42=0," ",COUNTRY_INFO!C42) -> BOUAKE NORD-EST | D42: =IF(COUNTRY_INFO!$T$9:$T$997="MDA3 (IVM)", COUNTRY_INFO!$T$9:$T$997, " ") ->  | H42: 0 | K42: 0 | N42: 0 | O42: 0 | P42: 0 | Q42: 0
A43: =IF(COUNTRY_INFO!A43=0," ",COUNTRY_INFO!A43) -> CÔTE D'IVOIRE | B43: =IF(COUNTRY_INFO!B43=0," ",COUNTRY_INFO!B43) -> GBEKE | C43: =IF(COUNTRY_INFO!C43=0," ",COUNTRY_INFO!C43) -> BOUAKE NORD-OUEST | D43: =IF(COUNTRY_INFO!$T$9:$T$997="MDA3 (IVM)", COUNTRY_INFO!$T$9:$T$997, " ") ->  | H43: 0 | K43: 0 | N43: 0 | O43: 0 | P43: 0 | Q43: 0
A44: =IF(COUNTRY_INFO!A44=0," ",COUNTRY_INFO!A44) -> CÔTE D'IVOIRE | B44: =IF(COUNTRY_INFO!B44=0," ",COUNTRY_INFO!B44) -> GBEKE | C44: =IF(COUNTRY_INFO!C44=0," ",COUNTRY_INFO!C44) -> BOUAKE SUD | D44: =IF(COUNTRY_INFO!$T$9:$T$997="MDA3 (IVM)", COUNTRY_INFO!$T$9:$T$997, " ") ->  | H44: 0 | K44: 0 | N44: 0 | O44: 0 | P44: 0 | Q44: 0
A45: =IF(COUNTRY_INFO!A45=0," ",COUNTRY_INFO!A45) -> CÔTE D'IVOIRE | B45: =IF(COUNTRY_INFO!B45=0," ",COUNTRY_INFO!B45) -> GBEKE | C45: =IF(COUNTRY_INFO!C45=0," ",COUNTRY_INFO!C45) -> SAKASSOU | D45: =IF(COUNTRY_INFO!$T$9:$T$997="MDA3 (IVM)", COUNTRY_INFO!$T$9:$T$997, " ") ->  | H45: 0 | K45: 0 | N45: 0 | O45: 0 | P45: 0 | Q45: 0
A46: =IF(COUNTRY_INFO!A46=0," ",COUNTRY_INFO!A46) -> CÔTE D'IVOIRE | B46: =IF(COUNTRY_INFO!B46=0," ",COUNTRY_INFO!B46) -> GBOKLE-NAWA-SAN-PEDRO | C46: =IF(COUNTRY_INFO!C46=0," ",COUNTRY_INFO!C46) -> GUEYO | D46: =IF(COUNTRY_INFO!$T$9:$T$997="MDA3 (IVM)", COUNTRY_INFO!$T$9:$T$997, " ") ->  | H46: 0 | K46: 0 | N46: 0 | O46: 0 | P46: 0 | Q46: 0
A47: =IF(COUNTRY_INFO!A47=0," ",COUNTRY_INFO!A47) -> CÔTE D'IVOIRE | B47: =IF(COUNTRY_INFO!B47=0," ",COUNTRY_INFO!B47) -> GBOKLE-NAWA-SAN-PEDRO | C47: =IF(COUNTRY_INFO!C47=0," ",COUNTRY_INFO!C47) -> SAN PEDRO | D47: =IF(COUNTRY_INFO!$T$9:$T$997="MDA3 (IVM)", COUNTRY_INFO!$T$9:$T$997, " ") ->  | H47: 0 | K47: 0 | N47: 0 | O47: 0 | P47: 0 | Q47: 0
A48: =IF(COUNTRY_INFO!A48=0," ",COUNTRY_INFO!A48) -> CÔTE D'IVOIRE | B48: =IF(COUNTRY_INFO!B48=0," ",COUNTRY_INFO!B48) -> GBOKLE-NAWA-SAN-PEDRO | C48: =IF(COUNTRY_INFO!C48=0," ",COUNTRY_INFO!C48) -> SASSANDRA | D48: =IF(COUNTRY_INFO!$T$9:$T$997="MDA3 (IVM)", COUNTRY_INFO!$T$9:$T$997, " ") ->  | H48: 0 | K48: 0 | N48: 0 | O48: 0 | P48: 0 | Q48: 0
A49: =IF(COUNTRY_INFO!A49=0," ",COUNTRY_INFO!A49) -> CÔTE D'IVOIRE | B49: =IF(COUNTRY_INFO!B49=0," ",COUNTRY_INFO!B49) -> GBOKLE-NAWA-SAN-PEDRO | C49: =IF(COUNTRY_INFO!C49=0," ",COUNTRY_INFO!C49) -> SOUBRE | D49: =IF(COUNTRY_INFO!$T$9:$T$997="MDA3 (IVM)", COUNTRY_INFO!$T$9:$T$997, " ") ->  | H49: 0 | K49: 0 | N49: 0 | O49: 0 | P49: 0 | Q49: 0
A50: =IF(COUNTRY_INFO!A50=0," ",COUNTRY_INFO!A50) -> CÔTE D'IVOIRE | B50: =IF(COUNTRY_INFO!B50=0," ",COUNTRY_INFO!B50) -> GBOKLE-NAWA-SAN-PEDRO | C50: =IF(COUNTRY_INFO!C50=0," ",COUNTRY_INFO!C50) -> TABOU | D50: =IF(COUNTRY_INFO!$T$9:$T$997="MDA3 (IVM)", COUNTRY_INFO!$T$9:$T$997, " ") ->  | H50: 0 | K50: 0 | N50: 0 | O50: 0 | P50: 0 | Q50: 0
A51: =IF(COUNTRY_INFO!A51=0," ",COUNTRY_INFO!A51) -> CÔTE D'IVOIRE | B51: =IF(COUNTRY_INFO!B51=0," ",COUNTRY_INFO!B51) -> GOH | C51: =IF(COUNTRY_INFO!C51=0," ",COUNTRY_INFO!C51) -> GAGNOA | D51: =IF(COUNTRY_INFO!$T$9:$T$997="MDA3 (IVM)", COUNTRY_INFO!$T$9:$T$997, " ") ->  | H51: 0 | K51: 0 | N51: 0 | O51: 0 | P51: 0 | Q51: 0
A52: =IF(COUNTRY_INFO!A52=0," ",COUNTRY_INFO!A52) -> CÔTE D'IVOIRE | B52: =IF(COUNTRY_INFO!B52=0," ",COUNTRY_INFO!B52) -> GOH | C52: =IF(COUNTRY_INFO!C52=0," ",COUNTRY_INFO!C52) -> OUME | D52: =IF(COUNTRY_INFO!$T$9:$T$997="MDA3 (IVM)", COUNTRY_INFO!$T$9:$T$997, " ") ->  | H52: 0 | K52: 0 | N52: 0 | O52: 0 | P52: 0 | Q52: 0
A53: =IF(COUNTRY_INFO!A53=0," ",COUNTRY_INFO!A53) -> CÔTE D'IVOIRE | B53: =IF(COUNTRY_INFO!B53=0," ",COUNTRY_INFO!B53) -> HAMBOL | C53: =IF(COUNTRY_INFO!C53=0," ",COUNTRY_INFO!C53) -> DABAKALA | D53: =IF(COUNTRY_INFO!$T$9:$T$997="MDA3 (IVM)", COUNTRY_INFO!$T$9:$T$997, " ") ->  | H53: 0 | K53: 0 | N53: 0 | O53: 0 | P53: 0 | Q53: 0
A54: =IF(COUNTRY_INFO!A54=0," ",COUNTRY_INFO!A54) -> CÔTE D'IVOIRE | B54: =IF(COUNTRY_INFO!B54=0," ",COUNTRY_INFO!B54) -> HAMBOL | C54: =IF(COUNTRY_INFO!C54=0," ",COUNTRY_INFO!C54) -> KATIOLA | D54: =IF(COUNTRY_INFO!$T$9:$T$997="MDA3 (IVM)", COUNTRY_INFO!$T$9:$T$997, " ") ->  | H54: 0 | K54: 0 | N54: 0 | O54: 0 | P54: 0 | Q54: 0
A55: =IF(COUNTRY_INFO!A55=0," ",COUNTRY_INFO!A55) -> CÔTE D'IVOIRE | B55: =IF(COUNTRY_INFO!B55=0," ",COUNTRY_INFO!B55) -> HAMBOL | C55: =IF(COUNTRY_INFO!C55=0," ",COUNTRY_INFO!C55) -> NIAKARA | D55: =IF(COUNTRY_INFO!$T$9:$T$997="MDA3 (IVM)", COUNTRY_INFO!$T$9:$T$997, " ") ->  | H55: 0 | K55: 0 | N55: 0 | O55: 0 | P55: 0 | Q55: 0
A56: =IF(COUNTRY_INFO!A56=0," ",COUNTRY_INFO!A56) -> CÔTE D'IVOIRE | B56: =IF(COUNTRY_INFO!B56=0," ",COUNTRY_INFO!B56) -> HAUT SASSANDRA | C56: =IF(COUNTRY_INFO!C56=0," ",COUNTRY_INFO!C56) -> DALOA | D56: =IF(COUNTRY_INFO!$T$9:$T$997="MDA3 (IVM)", COUNTRY_INFO!$T$9:$T$997, " ") ->  | H56: 0 | K56: 0 | N56: 0 | O56: 0 | P56: 0 | Q56: 0
A57: =IF(COUNTRY_INFO!A57=0," ",COUNTRY_INFO!A57) -> CÔTE D'IVOIRE | B57: =IF(COUNTRY_INFO!B57=0," ",COUNTRY_INFO!B57) -> HAUT SASSANDRA | C57: =IF(COUNTRY_INFO!C57=0," ",COUNTRY_INFO!C57) -> ISSIA | D57: =IF(COUNTRY_INFO!$T$9:$T$997="MDA3 (IVM)", COUNTRY_INFO!$T$9:$T$997, " ") ->  | H57: 0 | K57: 0 | N57: 0 | O57: 0 | P57: 0 | Q57: 0
A58: =IF(COUNTRY_INFO!A58=0," ",COUNTRY_INFO!A58) -> CÔTE D'IVOIRE | B58: =IF(COUNTRY_INFO!B58=0," ",COUNTRY_INFO!B58) -> HAUT SASSANDRA | C58: =IF(COUNTRY_INFO!C58=0," ",COUNTRY_INFO!C58) -> VAVOUA | D58: =IF(COUNTRY_INFO!$T$9:$T$997="MDA3 (IVM)", COUNTRY_INFO!$T$9:$T$997, " ") ->  | H58: 0 | K58: 0 | N58: 0 | O58: 0 | P58: 0 | Q58: 0
A59: =IF(COUNTRY_INFO!A59=0," ",COUNTRY_INFO!A59) -> CÔTE D'IVOIRE | B59: =IF(COUNTRY_INFO!B59=0," ",COUNTRY_INFO!B59) -> INDENIE-DJUABLIN | C59: =IF(COUNTRY_INFO!C59=0," ",COUNTRY_INFO!C59) -> ABENGOUROU | D59: =IF(COUNTRY_INFO!$T$9:$T$997="MDA3 (IVM)", COUNTRY_INFO!$T$9:$T$997, " ") ->  | H59: 0 | K59: 0 | N59: 0 | O59: 0 | P59: 0 | Q59: 0
A60: =IF(COUNTRY_INFO!A60=0," ",COUNTRY_INFO!A60) -> CÔTE D'IVOIRE | B60: =IF(COUNTRY_INFO!B60=0," ",COUNTRY_INFO!B60) -> INDENIE-DJUABLIN | C60: =IF(COUNTRY_INFO!C60=0," ",COUNTRY_INFO!C60) -> AGNIBILEKRO | D60: =IF(COUNTRY_INFO!$T$9:$T$997="MDA3 (IVM)", COUNTRY_INFO!$T$9:$T$997, " ") ->  | H60: 0 | K60: 0 | N60: 0 | O60: 0 | P60: 0 | Q60: 0
A61: =IF(COUNTRY_INFO!A61=0," ",COUNTRY_INFO!A61) -> CÔTE D'IVOIRE | B61: =IF(COUNTRY_INFO!B61=0," ",COUNTRY_INFO!B61) -> INDENIE-DJUABLIN | C61: =IF(COUNTRY_INFO!C61=0," ",COUNTRY_INFO!C61) -> BETTIE | D61: =IF(COUNTRY_INFO!$T$9:$T$997="MDA3 (IVM)", COUNTRY_INFO!$T$9:$T$997, " ") ->  | H61: 0 | K61: 0 | N61: 0 | O61: 0 | P61: 0 | Q61: 0
A62: =IF(COUNTRY_INFO!A62=0," ",COUNTRY_INFO!A62) -> CÔTE D'IVOIRE | B62: =IF(COUNTRY_INFO!B62=0," ",COUNTRY_INFO!B62) -> KABADOUGOU-BAFING-FOLON | C62: =IF(COUNTRY_INFO!C62=0," ",COUNTRY_INFO!C62) -> MINIGNAN | D62: =IF(COUNTRY_INFO!$T$9:$T$997="MDA3 (IVM)", COUNTRY_INFO!$T$9:$T$997, " ") -> MDA3 (IVM) | E62: Avril 2019 | F62: =H62-G62 -> 24999 | G62: =ROUND(H62*COUNTRY_INFO!G62/(COUNTRY_INFO!G62+COUNTRY_INFO!F62),0) -> 62498 | H62: 87497 | I62: 24138 | J62: 60345 | K62: 84483 | N62: 0 | O62: 24138 | P62: 60345 | Q62: 84483 | R62: 96.55586223 | S62: 96.55508976 | T62: =IF(H62<>0, IF((MAX(I62,L62)+MAX(J62,M62))/H62*100=0, "-",(MAX(I62,L62)+MAX(J62,M62))/H62*100), " ") -> 96.55531047
A63: =IF(COUNTRY_INFO!A63=0," ",COUNTRY_INFO!A63) -> CÔTE D'IVOIRE | B63: =IF(COUNTRY_INFO!B63=0," ",COUNTRY_INFO!B63) -> KABADOUGOU-BAFING-FOLON | C63: =IF(COUNTRY_INFO!C63=0," ",COUNTRY_INFO!C63) -> ODIENNE | D63: =IF(COUNTRY_INFO!$T$9:$T$997="MDA3 (IVM)", COUNTRY_INFO!$T$9:$T$997, " ") ->  | H63: 0 | K63: 0 | N63: 0 | O63: 0 | P63: 0 | Q63: 0
A64: =IF(COUNTRY_INFO!A64=0," ",COUNTRY_INFO!A64) -> CÔTE D'IVOIRE | B64: =IF(COUNTRY_INFO!B64=0," ",COUNTRY_INFO!B64) -> KABADOUGOU-BAFING-FOLON | C64: =IF(COUNTRY_INFO!C64=0," ",COUNTRY_INFO!C64) -> TOUBA | D64: =IF(COUNTRY_INFO!$T$9:$T$997="MDA3 (IVM)", COUNTRY_INFO!$T$9:$T$997, " ") ->  | H64: 0 | K64: 0 | N64: 0 | O64: 0 | P64: 0 | Q64: 0
A65: =IF(COUNTRY_INFO!A65=0," ",COUNTRY_INFO!A65) -> CÔTE D'IVOIRE | B65: =IF(COUNTRY_INFO!B65=0," ",COUNTRY_INFO!B65) -> LOH-DJIBOUA | C65: =IF(COUNTRY_INFO!C65=0," ",COUNTRY_INFO!C65) -> DIVO | D65: =IF(COUNTRY_INFO!$T$9:$T$997="MDA3 (IVM)", COUNTRY_INFO!$T$9:$T$997, " ") ->  | H65: 0 | K65: 0 | N65: 0 | O65: 0 | P65: 0 | Q65: 0
A66: =IF(COUNTRY_INFO!A66=0," ",COUNTRY_INFO!A66) -> CÔTE D'IVOIRE | B66: =IF(COUNTRY_INFO!B66=0," ",COUNTRY_INFO!B66) -> LOH-DJIBOUA | C66: =IF(COUNTRY_INFO!C66=0," ",COUNTRY_INFO!C66) -> FRESCO | D66: =IF(COUNTRY_INFO!$T$9:$T$997="MDA3 (IVM)", COUNTRY_INFO!$T$9:$T$997, " ") ->  | H66: 0 | K66: 0 | N66: 0 | O66: 0 | P66: 0 | Q66: 0
A67: =IF(COUNTRY_INFO!A67=0," ",COUNTRY_INFO!A67) -> CÔTE D'IVOIRE | B67: =IF(COUNTRY_INFO!B67=0," ",COUNTRY_INFO!B67) -> LOH-DJIBOUA | C67: =IF(COUNTRY_INFO!C67=0," ",COUNTRY_INFO!C67) -> GUITRY | D67: =IF(COUNTRY_INFO!$T$9:$T$997="MDA3 (IVM)", COUNTRY_INFO!$T$9:$T$997, " ") ->  | H67: 0 | K67: 0 | N67: 0 | O67: 0 | P67: 0 | Q67: 0
A68: =IF(COUNTRY_INFO!A68=0," ",COUNTRY_INFO!A68) -> CÔTE D'IVOIRE | B68: =IF(COUNTRY_INFO!B68=0," ",COUNTRY_INFO!B68) -> LOH-DJIBOUA | C68: =IF(COUNTRY_INFO!C68=0," ",COUNTRY_INFO!C68) -> LAKOTA | D68: =IF(COUNTRY_INFO!$T$9:$T$997="MDA3 (IVM)", COUNTRY_INFO!$T$9:$T$997, " ") ->  | H68: 0 | K68: 0 | N68: 0 | O68: 0 | P68: 0 | Q68: 0
A69: =IF(COUNTRY_INFO!A69=0," ",COUNTRY_INFO!A69) -> CÔTE D'IVOIRE | B69: =IF(COUNTRY_INFO!B69=0," ",COUNTRY_INFO!B69) -> MARAHOUE | C69: =IF(COUNTRY_INFO!C69=0," ",COUNTRY_INFO!C69) -> BOUAFLE | D69: =IF(COUNTRY_INFO!$T$9:$T$997="MDA3 (IVM)", COUNTRY_INFO!$T$9:$T$997, " ") ->  | H69: 0 | K69: 0 | N69: 0 | O69: 0 | P69: 0 | Q69: 0
A70: =IF(COUNTRY_INFO!A70=0," ",COUNTRY_INFO!A70) -> CÔTE D'IVOIRE | B70: =IF(COUNTRY_INFO!B70=0," ",COUNTRY_INFO!B70) -> MARAHOUE | C70: =IF(COUNTRY_INFO!C70=0," ",COUNTRY_INFO!C70) -> SINFRA | D70: =IF(COUNTRY_INFO!$T$9:$T$997="MDA3 (IVM)", COUNTRY_INFO!$T$9:$T$997, " ") ->  | H70: 0 | K70: 0 | N70: 0 | O70: 0 | P70: 0 | Q70: 0
A71: =IF(COUNTRY_INFO!A71=0," ",COUNTRY_INFO!A71) -> CÔTE D'IVOIRE | B71: =IF(COUNTRY_INFO!B71=0," ",COUNTRY_INFO!B71) -> MARAHOUE | C71: =IF(COUNTRY_INFO!C71=0," ",COUNTRY_INFO!C71) -> ZUENOULA | D71: =IF(COUNTRY_INFO!$T$9:$T$997="MDA3 (IVM)", COUNTRY_INFO!$T$9:$T$997, " ") ->  | H71: 0 | K71: 0 | N71: 0 | O71: 0 | P71: 0 | Q71: 0
A72: =IF(COUNTRY_INFO!A72=0," ",COUNTRY_INFO!A72) -> CÔTE D'IVOIRE | B72: =IF(COUNTRY_INFO!B72=0," ",COUNTRY_INFO!B72) -> N'ZI-IFOU | C72: =IF(COUNTRY_INFO!C72=0," ",COUNTRY_INFO!C72) -> BOCANDA | D72: =IF(COUNTRY_INFO!$T$9:$T$997="MDA3 (IVM)", COUNTRY_INFO!$T$9:$T$997, " ") -> MDA3 (IVM) | E72: Avril 2019 | F72: =H72-G72 -> 40585 | G72: =ROUND(H72*COUNTRY_INFO!G72/(COUNTRY_INFO!G72+COUNTRY_INFO!F72),0) -> 101462 | H72: 142047 | I72: 35405.42857 | J72: 88513.57143 | K72: 123919 | N72: =SUM(L72:M72) -> 0 | O72: =MAX(I72,L72) -> 35405.42857 | P72: =MAX(J72,M72) -> 88513.57143 | Q72: =SUM(O72:P72) -> 123919 | R72: =IF(F72<>0, IF(MAX(I72,L72)/F72*100=0, "-", MAX(I72,L72)/F72*100), " ") -> 87.23771978 | S72: =IF(G72<>0, IF(MAX(J72,M72)/G72*100=0, "-", MAX(J72,M72)/G72*100), " ") -> 87.23814968 | T72: =IF(H72<>0, IF((MAX(I72,L72)+MAX(J72,M72))/H72*100=0, "-",(MAX(I72,L72)+MAX(J72,M72))/H72*100), " ") -> 87.23802685
A73: =IF(COUNTRY_INFO!A73=0," ",COUNTRY_INFO!A73) -> CÔTE D'IVOIRE | B73: =IF(COUNTRY_INFO!B73=0," ",COUNTRY_INFO!B73) -> N'ZI-IFOU | C73: =IF(COUNTRY_INFO!C73=0," ",COUNTRY_INFO!C73) -> BONGOUANOU | D73: =IF(COUNTRY_INFO!$T$9:$T$997="MDA3 (IVM)", COUNTRY_INFO!$T$9:$T$997, " ") ->  | H73: =SUM(F73:G73) -> 0 | K73: =SUM(I73:J73) -> 0 | N73: 0 | O73: 0 | P73: 0 | Q73: 0
A74: =IF(COUNTRY_INFO!A74=0," ",COUNTRY_INFO!A74) -> CÔTE D'IVOIRE | B74: =IF(COUNTRY_INFO!B74=0," ",COUNTRY_INFO!B74) -> N'ZI-IFOU | C74: =IF(COUNTRY_INFO!C74=0," ",COUNTRY_INFO!C74) -> DAOUKRO | D74: =IF(COUNTRY_INFO!$T$9:$T$997="MDA3 (IVM)", COUNTRY_INFO!$T$9:$T$997, " ") ->  | H74: 0 | K74: 0 | N74: 0 | O74: 0 | P74: 0 | Q74: 0
A75: =IF(COUNTRY_INFO!A75=0," ",COUNTRY_INFO!A75) -> CÔTE D'IVOIRE | B75: =IF(COUNTRY_INFO!B75=0," ",COUNTRY_INFO!B75) -> N'ZI-IFOU | C75: =IF(COUNTRY_INFO!C75=0," ",COUNTRY_INFO!C75) -> DIMBOKRO | D75: =IF(COUNTRY_INFO!$T$9:$T$997="MDA3 (IVM)", COUNTRY_INFO!$T$9:$T$997, " ") ->  | H75: 0 | K75: 0 | N75: 0 | O75: 0 | P75: 0 | Q75: 0
A76: =IF(COUNTRY_INFO!A76=0," ",COUNTRY_INFO!A76) -> CÔTE D'IVOIRE | B76: =IF(COUNTRY_INFO!B76=0," ",COUNTRY_INFO!B76) -> N'ZI-IFOU | C76: =IF(COUNTRY_INFO!C76=0," ",COUNTRY_INFO!C76) -> M'BAHIAKRO | D76: =IF(COUNTRY_INFO!$T$9:$T$997="MDA3 (IVM)", COUNTRY_INFO!$T$9:$T$997, " ") ->  | H76: 0 | K76: 0 | N76: 0 | O76: 0 | P76: 0 | Q76: 0
A77: =IF(COUNTRY_INFO!A77=0," ",COUNTRY_INFO!A77) -> CÔTE D'IVOIRE | B77: =IF(COUNTRY_INFO!B77=0," ",COUNTRY_INFO!B77) -> N'ZI-IFOU | C77: =IF(COUNTRY_INFO!C77=0," ",COUNTRY_INFO!C77) -> PRIKRO | D77: =IF(COUNTRY_INFO!$T$9:$T$997="MDA3 (IVM)", COUNTRY_INFO!$T$9:$T$997, " ") ->  | H77: 0 | K77: 0 | N77: 0 | O77: 0 | P77: 0 | Q77: 0
A78: =IF(COUNTRY_INFO!A78=0," ",COUNTRY_INFO!A78) -> CÔTE D'IVOIRE | B78: =IF(COUNTRY_INFO!B78=0," ",COUNTRY_INFO!B78) -> PORO-TCHOLOGO-BAGOUE | C78: =IF(COUNTRY_INFO!C78=0," ",COUNTRY_INFO!C78) -> BOUNDIALI | D78: =IF(COUNTRY_INFO!$T$9:$T$997="MDA3 (IVM)", COUNTRY_INFO!$T$9:$T$997, " ") ->  | H78: 0 | K78: 0 | N78: 0 | O78: 0 | P78: 0 | Q78: 0
A79: =IF(COUNTRY_INFO!A79=0," ",COUNTRY_INFO!A79) -> CÔTE D'IVOIRE | B79: =IF(COUNTRY_INFO!B79=0," ",COUNTRY_INFO!B79) -> PORO-TCHOLOGO-BAGOUE | C79: =IF(COUNTRY_INFO!C79=0," ",COUNTRY_INFO!C79) -> FERKESSEDOUGOU | D79: =IF(COUNTRY_INFO!$T$9:$T$997="MDA3 (IVM)", COUNTRY_INFO!$T$9:$T$997, " ") ->  | H79: 0 | K79: 0 | N79: 0 | O79: 0 | P79: 0 | Q79: 0
A80: =IF(COUNTRY_INFO!A80=0," ",COUNTRY_INFO!A80) -> CÔTE D'IVOIRE | B80: =IF(COUNTRY_INFO!B80=0," ",COUNTRY_INFO!B80) -> PORO-TCHOLOGO-BAGOUE | C80: =IF(COUNTRY_INFO!C80=0," ",COUNTRY_INFO!C80) -> KORHOGO | D80: =IF(COUNTRY_INFO!$T$9:$T$997="MDA3 (IVM)", COUNTRY_INFO!$T$9:$T$997, " ") ->  | H80: 0 | K80: 0 | N80: 0 | O80: 0 | P80: 0 | Q80: 0
A81: =IF(COUNTRY_INFO!A81=0," ",COUNTRY_INFO!A81) -> CÔTE D'IVOIRE | B81: =IF(COUNTRY_INFO!B81=0," ",COUNTRY_INFO!B81) -> PORO-TCHOLOGO-BAGOUE | C81: =IF(COUNTRY_INFO!C81=0," ",COUNTRY_INFO!C81) -> OUANGOLODOUGOU | D81: =IF(COUNTRY_INFO!$T$9:$T$997="MDA3 (IVM)", COUNTRY_INFO!$T$9:$T$997, " ") ->  | H81: 0 | K81: 0 | N81: 0 | O81: 0 | P81: 0 | Q81: 0
A82: =IF(COUNTRY_INFO!A82=0," ",COUNTRY_INFO!A82) -> CÔTE D'IVOIRE | B82: =IF(COUNTRY_INFO!B82=0," ",COUNTRY_INFO!B82) -> PORO-TCHOLOGO-BAGOUE | C82: =IF(COUNTRY_INFO!C82=0," ",COUNTRY_INFO!C82) -> TENGRELA | D82: =IF(COUNTRY_INFO!$T$9:$T$997="MDA3 (IVM)", COUNTRY_INFO!$T$9:$T$997, " ") ->  | H82: 0 | K82: 0 | N82: 0 | O82: 0 | P82: 0 | Q82: 0
A83: =IF(COUNTRY_INFO!A83=0," ",COUNTRY_INFO!A83) -> CÔTE D'IVOIRE | B83: =IF(COUNTRY_INFO!B83=0," ",COUNTRY_INFO!B83) -> SUD-COMOE | C83: =IF(COUNTRY_INFO!C83=0," ",COUNTRY_INFO!C83) -> ABOISSO | D83: =IF(COUNTRY_INFO!$T$9:$T$997="MDA3 (IVM)", COUNTRY_INFO!$T$9:$T$997, " ") ->  | H83: 0 | K83: 0 | N83: 0 | O83: 0 | P83: 0 | Q83: 0
A84: =IF(COUNTRY_INFO!A84=0," ",COUNTRY_INFO!A84) -> CÔTE D'IVOIRE | B84: =IF(COUNTRY_INFO!B84=0," ",COUNTRY_INFO!B84) -> SUD-COMOE | C84: =IF(COUNTRY_INFO!C84=0," ",COUNTRY_INFO!C84) -> ADIAKE | D84: =IF(COUNTRY_INFO!$T$9:$T$997="MDA3 (IVM)", COUNTRY_INFO!$T$9:$T$997, " ") ->  | H84: 0 | K84: 0 | N84: 0 | O84: 0 | P84: 0 | Q84: 0
A85: =IF(COUNTRY_INFO!A85=0," ",COUNTRY_INFO!A85) -> CÔTE D'IVOIRE | B85: =IF(COUNTRY_INFO!B85=0," ",COUNTRY_INFO!B85) -> SUD-COMOE | C85: =IF(COUNTRY_INFO!C85=0," ",COUNTRY_INFO!C85) -> GRAND-BASSAM | D85: =IF(COUNTRY_INFO!$T$9:$T$997="MDA3 (IVM)", COUNTRY_INFO!$T$9:$T$997, " ") ->  | H85: 0 | K85: 0 | N85: 0 | O85: 0 | P85: 0 | Q85: 0
A86: =IF(COUNTRY_INFO!A86=0," ",COUNTRY_INFO!A86) -> CÔTE D'IVOIRE | B86: =IF(COUNTRY_INFO!B86=0," ",COUNTRY_INFO!B86) -> TONKPI | C86: =IF(COUNTRY_INFO!C86=0," ",COUNTRY_INFO!C86) -> BIANKOUMA | D86: =IF(COUNTRY_INFO!$T$9:$T$997="MDA3 (IVM)", COUNTRY_INFO!$T$9:$T$997, " ") ->  | H86: 0 | K86: 0 | N86: 0 | O86: 0 | P86: 0 | Q86: 0
A87: =IF(COUNTRY_INFO!A87=0," ",COUNTRY_INFO!A87) -> CÔTE D'IVOIRE | B87: =IF(COUNTRY_INFO!B87=0," ",COUNTRY_INFO!B87) -> TONKPI | C87: =IF(COUNTRY_INFO!C87=0," ",COUNTRY_INFO!C87) -> DANANE | D87: =IF(COUNTRY_INFO!$T$9:$T$997="MDA3 (IVM)", COUNTRY_INFO!$T$9:$T$997, " ") ->  | H87: 0 | K87: 0 | N87: 0 | O87: 0 | P87: 0 | Q87: 0
A88: =IF(COUNTRY_INFO!A88=0," ",COUNTRY_INFO!A88) -> CÔTE D'IVOIRE | B88: =IF(COUNTRY_INFO!B88=0," ",COUNTRY_INFO!B88) -> TONKPI | C88: =IF(COUNTRY_INFO!C88=0," ",COUNTRY_INFO!C88) -> MAN | D88: =IF(COUNTRY_INFO!$T$9:$T$997="MDA3 (IVM)", COUNTRY_INFO!$T$9:$T$997, " ") ->  | H88: 0 | K88: 0 | N88: 0 | O88: 0 | P88: 0 | Q88: 0
A89: =IF(COUNTRY_INFO!A89=0," ",COUNTRY_INFO!A89) -> CÔTE D'IVOIRE | B89: =IF(COUNTRY_INFO!B89=0," ",COUNTRY_INFO!B89) -> TONKPI | C89: =IF(COUNTRY_INFO!C89=0," ",COUNTRY_INFO!C89) -> ZOUAN-HOUNIEN | D89: =IF(COUNTRY_INFO!$T$9:$T$997="MDA3 (IVM)", COUNTRY_INFO!$T$9:$T$997, " ") ->  | H89: 0 | K89: 0 | N89: 0 | O89: 0 | P89: 0 | Q89: 0
A90: =IF(COUNTRY_INFO!A90=0," ",COUNTRY_INFO!A90) -> CÔTE D'IVOIRE | B90: =IF(COUNTRY_INFO!B90=0," ",COUNTRY_INFO!B90) -> WORODOUGOU-BERE | C90: =IF(COUNTRY_INFO!C90=0," ",COUNTRY_INFO!C90) -> MANKONO | D90: =IF(COUNTRY_INFO!$T$9:$T$997="MDA3 (IVM)", COUNTRY_INFO!$T$9:$T$997, " ") -> MDA3 (IVM) | E90: Avril 2019 | F90: =H90-G90 -> 101061 | G90: =ROUND(H90*COUNTRY_INFO!G90/(COUNTRY_INFO!G90+COUNTRY_INFO!F90),0) -> 252651 | H90: 353712 | I90: 97046.28571 | J90: 242615.7143 | K90: 339662 | N90: 0 | O90: 97046.28571 | P90: 242615.7143 | Q90: 339662 | R90: 96.02743463 | S90: 96.02800475 | T90: 96.02784186
A91: =IF(COUNTRY_INFO!A91=0," ",COUNTRY_INFO!A91) -> CÔTE D'IVOIRE | B91: =IF(COUNTRY_INFO!B91=0," ",COUNTRY_INFO!B91) -> WORODOUGOU-BERE | C91: =IF(COUNTRY_INFO!C91=0," ",COUNTRY_INFO!C91) -> SEGUELA | D91: =IF(COUNTRY_INFO!$T$9:$T$997="MDA3 (IVM)", COUNTRY_INFO!$T$9:$T$997, " ") ->  | H91: 0 | K91: 0 | N91: 0 | O91: 0 | P91: 0 | Q91: 0

Sheet T1
A1: T 1 - Praziquantel (PZQ) et Albendazole (ALB) ou Mebendazole (MBD)
A2: Structure administrative, population nécessitant une chimioprévention par groupe d'âge, population traitée par groupe d'âge et couverture
A4: TOTAL | G4: =SUM(G$9:G$997) -> 0 | H4: 0 | I4: 0 | J4: 0 | K4: 0 | L4: 0 | M4: 0 | N4: 0 | O4: 0 | P4: =IF(G4<>0, IF(L4/G4*100=0, "-", L4/G4*100), " ") ->  | Q4: =IF(OR(I4<>0,H4<>0), IF(M4/MAX(H4,I4)*100=0, "-", M4/MAX(H4,I4)*100), " ") ->  | R4: =IF(J4<>0, IF(N4/J4*100=0, "-", N4/J4*100), " ") ->  | S4: =IF(K4<>0, IF(O4/K4*100=0, "-", O4/K4*100), " ") -> 
A6: Structure administrative du pays | D6: Mise en oeuvre de la CP | E6: Médica-ment | F6: Date | G6: Population ciblée pour T1 | L6: Population traitée | P6: Couverture du Programme (%)
A7: Pays | B7: Région/Département | C7: District | G7: EAPréS (ALB) | H7: EAS (ALB) | I7: EAS (PZQ) | J7: Adultes (PZQ) | K7: Total | L7: EAPréS | M7: EAS | N7: Adultes | O7: Total | P7: EAPréS | Q7: EAS | R7: Adultes | S7: Total
A9: =IF(COUNTRY_INFO!A9=0," ",COUNTRY_INFO!A9) -> CÔTE D'IVOIRE | B9: =IF(COUNTRY_INFO!B9=0," ",COUNTRY_INFO!B9) -> ABIDJAN 1 GRANDS PONTS | C9: =IF(COUNTRY_INFO!C9=0," ",COUNTRY_INFO!C9) -> ADJAME-PLATEAU-ATTECOUBE | D9: =IF(OR(COUNTRY_INFO!$T$9:$T$997="T1 (PZQ+ALB/MBD)",COUNTRY_INFO!$U$9:$U$997="T1 (PZQ+ALB/MBD)"), "T1 (PZQ+ALB/MBD)", " ") ->  | K9: =MAX(H9:I9)+G9+J9 -> 0 | O9: =SUM(L9:N9) -> 0 | P9: =IF(G9<>0, IF(L9/G9*100=0, "-", L9/G9*100), " ") ->  | Q9: =IF(OR(I9<>0,H9<>0), IF(M9/MAX(H9,I9)*100=0, "-", M9/MAX(H9,I9)*100), " ") ->  | R9: =IF(J9<>0, IF(N9/J9*100=0, "-", N9/J9*100), " ") ->  | S9: =IF(K9<>0, IF(O9/K9*100=0, "-", O9/K9*100), " ") -> 
A10: =IF(COUNTRY_INFO!A10=0," ",COUNTRY_INFO!A10) -> CÔTE D'IVOIRE | B10: =IF(COUNTRY_INFO!B10=0," ",COUNTRY_INFO!B10) -> ABIDJAN 1 GRANDS PONTS | C10: =IF(COUNTRY_INFO!C10=0," ",COUNTRY_INFO!C10) -> DABOU | D10: =IF(OR(COUNTRY_INFO!$T$9:$T$997="T1 (PZQ+ALB/MBD)",COUNTRY_INFO!$U$9:$U$997="T1 (PZQ+ALB/MBD)"), "T1 (PZQ+ALB/MBD)", " ") ->  | K10: =MAX(H10:I10)+G10+J10 -> 0 | O10: =SUM(L10:N10) -> 0 | P10: =IF(G10<>0, IF(L10/G10*100=0, "-", L10/G10*100), " ") ->  | Q10: =IF(OR(I10<>0,H10<>0), IF(M10/MAX(H10,I10)*100=0, "-", M10/MAX(H10,I10)*100), " ") ->  | R10: =IF(J10<>0, IF(N10/J10*100=0, "-", N10/J10*100), " ") ->  | S10: =IF(K10<>0, IF(O10/K10*100=0, "-", O10/K10*100), " ") -> 
A11: =IF(COUNTRY_INFO!A11=0," ",COUNTRY_INFO!A11) -> CÔTE D'IVOIRE | B11: =IF(COUNTRY_INFO!B11=0," ",COUNTRY_INFO!B11) -> ABIDJAN 1 GRANDS PONTS | C11: =IF(COUNTRY_INFO!C11=0," ",COUNTRY_INFO!C11) -> GRAND-LAHOU | D11: =IF(OR(COUNTRY_INFO!$T$9:$T$997="T1 (PZQ+ALB/MBD)",COUNTRY_INFO!$U$9:$U$997="T1 (PZQ+ALB/MBD)"), "T1 (PZQ+ALB/MBD)", " ") ->  | K11: 0 | O11: 0
A12: =IF(COUNTRY_INFO!A12=0," ",COUNTRY_INFO!A12) -> CÔTE D'IVOIRE | B12: =IF(COUNTRY_INFO!B12=0," ",COUNTRY_INFO!B12) -> ABIDJAN 1 GRANDS PONTS | C12: =IF(COUNTRY_INFO!C12=0," ",COUNTRY_INFO!C12) -> JACQUEVILLE | D12: =IF(OR(COUNTRY_INFO!$T$9:$T$997="T1 (PZQ+ALB/MBD)",COUNTRY_INFO!$U$9:$U$997="T1 (PZQ+ALB/MBD)"), "T1 (PZQ+ALB/MBD)", " ") ->  | K12: 0 | O12: 0
A13: =IF(COUNTRY_INFO!A13=0," ",COUNTRY_INFO!A13) -> CÔTE D'IVOIRE | B13: =IF(COUNTRY_INFO!B13=0," ",COUNTRY_INFO!B13) -> ABIDJAN 1 GRANDS PONTS | C13: =IF(COUNTRY_INFO!C13=0," ",COUNTRY_INFO!C13) -> YOPOUGON EST | D13: =IF(OR(COUNTRY_INFO!$T$9:$T$997="T1 (PZQ+ALB/MBD)",COUNTRY_INFO!$U$9:$U$997="T1 (PZQ+ALB/MBD)"), "T1 (PZQ+ALB/MBD)", " ") ->  | K13: 0 | O13: 0
A14: =IF(COUNTRY_INFO!A14=0," ",COUNTRY_INFO!A14) -> CÔTE D'IVOIRE | B14: =IF(COUNTRY_INFO!B14=0," ",COUNTRY_INFO!B14) -> ABIDJAN 1 GRANDS PONTS | C14: =IF(COUNTRY_INFO!C14=0," ",COUNTRY_INFO!C14) -> YOPOUGON OUEST | D14: =IF(OR(COUNTRY_INFO!$T$9:$T$997="T1 (PZQ+ALB/MBD)",COUNTRY_INFO!$U$9:$U$997="T1 (PZQ+ALB/MBD)"), "T1 (PZQ+ALB/MBD)", " ") ->  | K14: 0 | O14: 0
A15: =IF(COUNTRY_INFO!A15=0," ",COUNTRY_INFO!A15) -> CÔTE D'IVOIRE | B15: =IF(COUNTRY_INFO!B15=0," ",COUNTRY_INFO!B15) -> ABIDJAN 2 | C15: =IF(COUNTRY_INFO!C15=0," ",COUNTRY_INFO!C15) -> ABOBO EST | D15: =IF(OR(COUNTRY_INFO!$T$9:$T$997="T1 (PZQ+ALB/MBD)",COUNTRY_INFO!$U$9:$U$997="T1 (PZQ+ALB/MBD)"), "T1 (PZQ+ALB/MBD)", " ") ->  | K15: 0 | O15: 0
A16: =IF(COUNTRY_INFO!A16=0," ",COUNTRY_INFO!A16) -> CÔTE D'IVOIRE | B16: =IF(COUNTRY_INFO!B16=0," ",COUNTRY_INFO!B16) -> ABIDJAN 2 | C16: =IF(COUNTRY_INFO!C16=0," ",COUNTRY_INFO!C16) -> ABOBO OUEST | D16: =IF(OR(COUNTRY_INFO!$T$9:$T$997="T1 (PZQ+ALB/MBD)",COUNTRY_INFO!$U$9:$U$997="T1 (PZQ+ALB/MBD)"), "T1 (PZQ+ALB/MBD)", " ") ->  | K16: 0 | O16: 0
A17: =IF(COUNTRY_INFO!A17=0," ",COUNTRY_INFO!A17) -> CÔTE D'IVOIRE | B17: =IF(COUNTRY_INFO!B17=0," ",COUNTRY_INFO!B17) -> ABIDJAN 2 | C17: =IF(COUNTRY_INFO!C17=0," ",COUNTRY_INFO!C17) -> ANYAMA | D17: =IF(OR(COUNTRY_INFO!$T$9:$T$997="T1 (PZQ+ALB/MBD)",COUNTRY_INFO!$U$9:$U$997="T1 (PZQ+ALB/MBD)"), "T1 (PZQ+ALB/MBD)", " ") ->  | K17: 0 | O17: 0
A18: =IF(COUNTRY_INFO!A18=0," ",COUNTRY_INFO!A18) -> CÔTE D'IVOIRE | B18: =IF(COUNTRY_INFO!B18=0," ",COUNTRY_INFO!B18) -> ABIDJAN 2 | C18: =IF(COUNTRY_INFO!C18=0," ",COUNTRY_INFO!C18) -> COCODY-BINGERVILLE | D18: =IF(OR(COUNTRY_INFO!$T$9:$T$997="T1 (PZQ+ALB/MBD)",COUNTRY_INFO!$U$9:$U$997="T1 (PZQ+ALB/MBD)"), "T1 (PZQ+ALB/MBD)", " ") ->  | K18: 0 | O18: 0
A19: =IF(COUNTRY_INFO!A19=0," ",COUNTRY_INFO!A19) -> CÔTE D'IVOIRE | B19: =IF(COUNTRY_INFO!B19=0," ",COUNTRY_INFO!B19) -> ABIDJAN 2 | C19: =IF(COUNTRY_INFO!C19=0," ",COUNTRY_INFO!C19) -> KOUMASSI-PORT BOUET-VRIDI | D19: =IF(OR(COUNTRY_INFO!$T$9:$T$997="T1 (PZQ+ALB/MBD)",COUNTRY_INFO!$U$9:$U$997="T1 (PZQ+ALB/MBD)"), "T1 (PZQ+ALB/MBD)", " ") ->  | K19: 0 | O19: 0
A20: =IF(COUNTRY_INFO!A20=0," ",COUNTRY_INFO!A20) -> CÔTE D'IVOIRE | B20: =IF(COUNTRY_INFO!B20=0," ",COUNTRY_INFO!B20) -> ABIDJAN 2 | C20: =IF(COUNTRY_INFO!C20=0," ",COUNTRY_INFO!C20) -> MARCORY-TREICHVILLE | D20: =IF(OR(COUNTRY_INFO!$T$9:$T$997="T1 (PZQ+ALB/MBD)",COUNTRY_INFO!$U$9:$U$997="T1 (PZQ+ALB/MBD)"), "T1 (PZQ+ALB/MBD)", " ") ->  | K20: 0 | O20: 0
A21: =IF(COUNTRY_INFO!A21=0," ",COUNTRY_INFO!A21) -> CÔTE D'IVOIRE | B21: =IF(COUNTRY_INFO!B21=0," ",COUNTRY_INFO!B21) -> AGNEBY-TIASSA-ME | C21: =IF(COUNTRY_INFO!C21=0," ",COUNTRY_INFO!C21) -> ADZOPE | D21: =IF(OR(COUNTRY_INFO!$T$9:$T$997="T1 (PZQ+ALB/MBD)",COUNTRY_INFO!$U$9:$U$997="T1 (PZQ+ALB/MBD)"), "T1 (PZQ+ALB/MBD)", " ") ->  | K21: 0 | O21: 0
A22: =IF(COUNTRY_INFO!A22=0," ",COUNTRY_INFO!A22) -> CÔTE D'IVOIRE | B22: =IF(COUNTRY_INFO!B22=0," ",COUNTRY_INFO!B22) -> AGNEBY-TIASSA-ME | C22: =IF(COUNTRY_INFO!C22=0," ",COUNTRY_INFO!C22) -> AGBOVILLE | D22: =IF(OR(COUNTRY_INFO!$T$9:$T$997="T1 (PZQ+ALB/MBD)",COUNTRY_INFO!$U$9:$U$997="T1 (PZQ+ALB/MBD)"), "T1 (PZQ+ALB/MBD)", " ") ->  | K22: 0 | O22: 0
A23: =IF(COUNTRY_INFO!A23=0," ",COUNTRY_INFO!A23) -> CÔTE D'IVOIRE | B23: =IF(COUNTRY_INFO!B23=0," ",COUNTRY_INFO!B23) -> AGNEBY-TIASSA-ME | C23: =IF(COUNTRY_INFO!C23=0," ",COUNTRY_INFO!C23) -> AKOUPE | D23: =IF(OR(COUNTRY_INFO!$T$9:$T$997="T1 (PZQ+ALB/MBD)",COUNTRY_INFO!$U$9:$U$997="T1 (PZQ+ALB/MBD)"), "T1 (PZQ+ALB/MBD)", " ") ->  | K23: 0 | O23: 0
A24: =IF(COUNTRY_INFO!A24=0," ",COUNTRY_INFO!A24) -> CÔTE D'IVOIRE | B24: =IF(COUNTRY_INFO!B24=0," ",COUNTRY_INFO!B24) -> AGNEBY-TIASSA-ME | C24: =IF(COUNTRY_INFO!C24=0," ",COUNTRY_INFO!C24) -> ALEPE | D24: =IF(OR(COUNTRY_INFO!$T$9:$T$997="T1 (PZQ+ALB/MBD)",COUNTRY_INFO!$U$9:$U$997="T1 (PZQ+ALB/MBD)"), "T1 (PZQ+ALB/MBD)", " ") ->  | K24: 0 | O24: 0
A25: =IF(COUNTRY_INFO!A25=0," ",COUNTRY_INFO!A25) -> CÔTE D'IVOIRE | B25: =IF(COUNTRY_INFO!B25=0," ",COUNTRY_INFO!B25) -> AGNEBY-TIASSA-ME | C25: =IF(COUNTRY_INFO!C25=0," ",COUNTRY_INFO!C25) -> SIKENSI | D25: =IF(OR(COUNTRY_INFO!$T$9:$T$997="T1 (PZQ+ALB/MBD)",COUNTRY_INFO!$U$9:$U$997="T1 (PZQ+ALB/MBD)"), "T1 (PZQ+ALB/MBD)", " ") ->  | K25: 0 | O25: 0
A26: =IF(COUNTRY_INFO!A26=0," ",COUNTRY_INFO!A26) -> CÔTE D'IVOIRE | B26: =IF(COUNTRY_INFO!B26=0," ",COUNTRY_INFO!B26) -> AGNEBY-TIASSA-ME | C26: =IF(COUNTRY_INFO!C26=0," ",COUNTRY_INFO!C26) -> TIASSALE | D26: =IF(OR(COUNTRY_INFO!$T$9:$T$997="T1 (PZQ+ALB/MBD)",COUNTRY_INFO!$U$9:$U$997="T1 (PZQ+ALB/MBD)"), "T1 (PZQ+ALB/MBD)", " ") ->  | K26: 0 | O26: 0
A27: =IF(COUNTRY_INFO!A27=0," ",COUNTRY_INFO!A27) -> CÔTE D'IVOIRE | B27: =IF(COUNTRY_INFO!B27=0," ",COUNTRY_INFO!B27) -> BELIER | C27: =IF(COUNTRY_INFO!C27=0," ",COUNTRY_INFO!C27) -> DIDIEVI | D27: =IF(OR(COUNTRY_INFO!$T$9:$T$997="T1 (PZQ+ALB/MBD)",COUNTRY_INFO!$U$9:$U$997="T1 (PZQ+ALB/MBD)"), "T1 (PZQ+ALB/MBD)", " ") ->  | K27: 0 | O27: 0
A28: =IF(COUNTRY_INFO!A28=0," ",COUNTRY_INFO!A28) -> CÔTE D'IVOIRE | B28: =IF(COUNTRY_INFO!B28=0," ",COUNTRY_INFO!B28) -> BELIER | C28: =IF(COUNTRY_INFO!C28=0," ",COUNTRY_INFO!C28) -> TIEBISSOU | D28: =IF(OR(COUNTRY_INFO!$T$9:$T$997="T1 (PZQ+ALB/MBD)",COUNTRY_INFO!$U$9:$U$997="T1 (PZQ+ALB/MBD)"), "T1 (PZQ+ALB/MBD)", " ") ->  | K28: 0 | O28: 0
A29: =IF(COUNTRY_INFO!A29=0," ",COUNTRY_INFO!A29) -> CÔTE D'IVOIRE | B29: =IF(COUNTRY_INFO!B29=0," ",COUNTRY_INFO!B29) -> BELIER | C29: =IF(COUNTRY_INFO!C29=0," ",COUNTRY_INFO!C29) -> TOUMODI | D29: =IF(OR(COUNTRY_INFO!$T$9:$T$997="T1 (PZQ+ALB/MBD)",COUNTRY_INFO!$U$9:$U$997="T1 (PZQ+ALB/MBD)"), "T1 (PZQ+ALB/MBD)", " ") ->  | K29: 0 | O29: 0
A30: =IF(COUNTRY_INFO!A30=0," ",COUNTRY_INFO!A30) -> CÔTE D'IVOIRE | B30: =IF(COUNTRY_INFO!B30=0," ",COUNTRY_INFO!B30) -> BELIER | C30: =IF(COUNTRY_INFO!C30=0," ",COUNTRY_INFO!C30) -> YAMOUSSOUKRO | D30: =IF(OR(COUNTRY_INFO!$T$9:$T$997="T1 (PZQ+ALB/MBD)",COUNTRY_INFO!$U$9:$U$997="T1 (PZQ+ALB/MBD)"), "T1 (PZQ+ALB/MBD)", " ") ->  | K30: 0 | O30: 0
A31: =IF(COUNTRY_INFO!A31=0," ",COUNTRY_INFO!A31) -> CÔTE D'IVOIRE | B31: =IF(COUNTRY_INFO!B31=0," ",COUNTRY_INFO!B31) -> BOUKANI-GONTOUGO | C31: =IF(COUNTRY_INFO!C31=0," ",COUNTRY_INFO!C31) -> BONDOUKOU | D31: =IF(OR(COUNTRY_INFO!$T$9:$T$997="T1 (PZQ+ALB/MBD)",COUNTRY_INFO!$U$9:$U$997="T1 (PZQ+ALB/MBD)"), "T1 (PZQ+ALB/MBD)", " ") ->  | K31: 0 | O31: 0
A32: =IF(COUNTRY_INFO!A32=0," ",COUNTRY_INFO!A32) -> CÔTE D'IVOIRE | B32: =IF(COUNTRY_INFO!B32=0," ",COUNTRY_INFO!B32) -> BOUKANI-GONTOUGO | C32: =IF(COUNTRY_INFO!C32=0," ",COUNTRY_INFO!C32) -> BOUNA | D32: =IF(OR(COUNTRY_INFO!$T$9:$T$997="T1 (PZQ+ALB/MBD)",COUNTRY_INFO!$U$9:$U$997="T1 (PZQ+ALB/MBD)"), "T1 (PZQ+ALB/MBD)", " ") ->  | K32: 0 | O32: 0
A33: =IF(COUNTRY_INFO!A33=0," ",COUNTRY_INFO!A33) -> CÔTE D'IVOIRE | B33: =IF(COUNTRY_INFO!B33=0," ",COUNTRY_INFO!B33) -> BOUKANI-GONTOUGO | C33: =IF(COUNTRY_INFO!C33=0," ",COUNTRY_INFO!C33) -> NASSIAN | D33: =IF(OR(COUNTRY_INFO!$T$9:$T$997="T1 (PZQ+ALB/MBD)",COUNTRY_INFO!$U$9:$U$997="T1 (PZQ+ALB/MBD)"), "T1 (PZQ+ALB/MBD)", " ") ->  | K33: 0 | O33: 0
A34: =IF(COUNTRY_INFO!A34=0," ",COUNTRY_INFO!A34) -> CÔTE D'IVOIRE | B34: =IF(COUNTRY_INFO!B34=0," ",COUNTRY_INFO!B34) -> BOUKANI-GONTOUGO | C34: =IF(COUNTRY_INFO!C34=0," ",COUNTRY_INFO!C34) -> TANDA | D34: =IF(OR(COUNTRY_INFO!$T$9:$T$997="T1 (PZQ+ALB/MBD)",COUNTRY_INFO!$U$9:$U$997="T1 (PZQ+ALB/MBD)"), "T1 (PZQ+ALB/MBD)", " ") ->  | K34: 0 | O34: 0
A35: =IF(COUNTRY_INFO!A35=0," ",COUNTRY_INFO!A35) -> CÔTE D'IVOIRE | B35: =IF(COUNTRY_INFO!B35=0," ",COUNTRY_INFO!B35) -> CAVALLY-GUEMON | C35: =IF(COUNTRY_INFO!C35=0," ",COUNTRY_INFO!C35) -> BANGOLO | D35: =IF(OR(COUNTRY_INFO!$T$9:$T$997="T1 (PZQ+ALB/MBD)",COUNTRY_INFO!$U$9:$U$997="T1 (PZQ+ALB/MBD)"), "T1 (PZQ+ALB/MBD)", " ") ->  | K35: 0 | O35: 0
A36: =IF(COUNTRY_INFO!A36=0," ",COUNTRY_INFO!A36) -> CÔTE D'IVOIRE | B36: =IF(COUNTRY_INFO!B36=0," ",COUNTRY_INFO!B36) -> CAVALLY-GUEMON | C36: =IF(COUNTRY_INFO!C36=0," ",COUNTRY_INFO!C36) -> BLOLEQUIN | D36: =IF(OR(COUNTRY_INFO!$T$9:$T$997="T1 (PZQ+ALB/MBD)",COUNTRY_INFO!$U$9:$U$997="T1 (PZQ+ALB/MBD)"), "T1 (PZQ+ALB/MBD)", " ") ->  | K36: 0 | O36: 0
A37: =IF(COUNTRY_INFO!A37=0," ",COUNTRY_INFO!A37) -> CÔTE D'IVOIRE | B37: =IF(COUNTRY_INFO!B37=0," ",COUNTRY_INFO!B37) -> CAVALLY-GUEMON | C37: =IF(COUNTRY_INFO!C37=0," ",COUNTRY_INFO!C37) -> DUEKOUE | D37: =IF(OR(COUNTRY_INFO!$T$9:$T$997="T1 (PZQ+ALB/MBD)",COUNTRY_INFO!$U$9:$U$997="T1 (PZQ+ALB/MBD)"), "T1 (PZQ+ALB/MBD)", " ") ->  | K37: 0 | O37: 0
A38: =IF(COUNTRY_INFO!A38=0," ",COUNTRY_INFO!A38) -> CÔTE D'IVOIRE | B38: =IF(COUNTRY_INFO!B38=0," ",COUNTRY_INFO!B38) -> CAVALLY-GUEMON | C38: =IF(COUNTRY_INFO!C38=0," ",COUNTRY_INFO!C38) -> GUIGLO | D38: =IF(OR(COUNTRY_INFO!$T$9:$T$997="T1 (PZQ+ALB/MBD)",COUNTRY_INFO!$U$9:$U$997="T1 (PZQ+ALB/MBD)"), "T1 (PZQ+ALB/MBD)", " ") ->  | K38: 0 | O38: 0
A39: =IF(COUNTRY_INFO!A39=0," ",COUNTRY_INFO!A39) -> CÔTE D'IVOIRE | B39: =IF(COUNTRY_INFO!B39=0," ",COUNTRY_INFO!B39) -> CAVALLY-GUEMON | C39: =IF(COUNTRY_INFO!C39=0," ",COUNTRY_INFO!C39) -> KOUIBLY | D39: =IF(OR(COUNTRY_INFO!$T$9:$T$997="T1 (PZQ+ALB/MBD)",COUNTRY_INFO!$U$9:$U$997="T1 (PZQ+ALB/MBD)"), "T1 (PZQ+ALB/MBD)", " ") ->  | K39: 0 | O39: 0
A40: =IF(COUNTRY_INFO!A40=0," ",COUNTRY_INFO!A40) -> CÔTE D'IVOIRE | B40: =IF(COUNTRY_INFO!B40=0," ",COUNTRY_INFO!B40) -> CAVALLY-GUEMON | C40: =IF(COUNTRY_INFO!C40=0," ",COUNTRY_INFO!C40) -> TOULEPLEU | D40: =IF(OR(COUNTRY_INFO!$T$9:$T$997="T1 (PZQ+ALB/MBD)",COUNTRY_INFO!$U$9:$U$997="T1 (PZQ+ALB/MBD)"), "T1 (PZQ+ALB/MBD)", " ") ->  | K40: 0 | O40: 0
A41: =IF(COUNTRY_INFO!A41=0," ",COUNTRY_INFO!A41) -> CÔTE D'IVOIRE | B41: =IF(COUNTRY_INFO!B41=0," ",COUNTRY_INFO!B41) -> GBEKE | C41: =IF(COUNTRY_INFO!C41=0," ",COUNTRY_INFO!C41) -> BEOUMI | D41: =IF(OR(COUNTRY_INFO!$T$9:$T$997="T1 (PZQ+ALB/MBD)",COUNTRY_INFO!$U$9:$U$997="T1 (PZQ+ALB/MBD)"), "T1 (PZQ+ALB/MBD)", " ") ->  | K41: 0 | O41: 0
A42: =IF(COUNTRY_INFO!A42=0," ",COUNTRY_INFO!A42) -> CÔTE D'IVOIRE | B42: =IF(COUNTRY_INFO!B42=0," ",COUNTRY_INFO!B42) -> GBEKE | C42: =IF(COUNTRY_INFO!C42=0," ",COUNTRY_INFO!C42) -> BOUAKE NORD-EST | D42: =IF(OR(COUNTRY_INFO!$T$9:$T$997="T1 (PZQ+ALB/MBD)",COUNTRY_INFO!$U$9:$U$997="T1 (PZQ+ALB/MBD)"), "T1 (PZQ+ALB/MBD)", " ") ->  | K42: 0 | O42: 0
A43: =IF(COUNTRY_INFO!A43=0," ",COUNTRY_INFO!A43) -> CÔTE D'IVOIRE | B43: =IF(COUNTRY_INFO!B43=0," ",COUNTRY_INFO!B43) -> GBEKE | C43: =IF(COUNTRY_INFO!C43=0," ",COUNTRY_INFO!C43) -> BOUAKE NORD-OUEST | D43: =IF(OR(COUNTRY_INFO!$T$9:$T$997="T1 (PZQ+ALB/MBD)",COUNTRY_INFO!$U$9:$U$997="T1 (PZQ+ALB/MBD)"), "T1 (PZQ+ALB/MBD)", " ") ->  | K43: 0 | O43: 0
A44: =IF(COUNTRY_INFO!A44=0," ",COUNTRY_INFO!A44) -> CÔTE D'IVOIRE | B44: =IF(COUNTRY_INFO!B44=0," ",COUNTRY_INFO!B44) -> GBEKE | C44: =IF(COUNTRY_INFO!C44=0," ",COUNTRY_INFO!C44) -> BOUAKE SUD | D44: =IF(OR(COUNTRY_INFO!$T$9:$T$997="T1 (PZQ+ALB/MBD)",COUNTRY_INFO!$U$9:$U$997="T1 (PZQ+ALB/MBD)"), "T1 (PZQ+ALB/MBD)", " ") ->  | K44: 0 | O44: 0
A45: =IF(COUNTRY_INFO!A45=0," ",COUNTRY_INFO!A45) -> CÔTE D'IVOIRE | B45: =IF(COUNTRY_INFO!B45=0," ",COUNTRY_INFO!B45) -> GBEKE | C45: =IF(COUNTRY_INFO!C45=0," ",COUNTRY_INFO!C45) -> SAKASSOU | D45: =IF(OR(COUNTRY_INFO!$T$9:$T$997="T1 (PZQ+ALB/MBD)",COUNTRY_INFO!$U$9:$U$997="T1 (PZQ+ALB/MBD)"), "T1 (PZQ+ALB/MBD)", " ") ->  | K45: 0 | O45: 0
A46: =IF(COUNTRY_INFO!A46=0," ",COUNTRY_INFO!A46) -> CÔTE D'IVOIRE | B46: =IF(COUNTRY_INFO!B46=0," ",COUNTRY_INFO!B46) -> GBOKLE-NAWA-SAN-PEDRO | C46: =IF(COUNTRY_INFO!C46=0," ",COUNTRY_INFO!C46) -> GUEYO | D46: =IF(OR(COUNTRY_INFO!$T$9:$T$997="T1 (PZQ+ALB/MBD)",COUNTRY_INFO!$U$9:$U$997="T1 (PZQ+ALB/MBD)"), "T1 (PZQ+ALB/MBD)", " ") ->  | K46: 0 | O46: 0
A47: =IF(COUNTRY_INFO!A47=0," ",COUNTRY_INFO!A47) -> CÔTE D'IVOIRE | B47: =IF(COUNTRY_INFO!B47=0," ",COUNTRY_INFO!B47) -> GBOKLE-NAWA-SAN-PEDRO | C47: =IF(COUNTRY_INFO!C47=0," ",COUNTRY_INFO!C47) -> SAN PEDRO | D47: =IF(OR(COUNTRY_INFO!$T$9:$T$997="T1 (PZQ+ALB/MBD)",COUNTRY_INFO!$U$9:$U$997="T1 (PZQ+ALB/MBD)"), "T1 (PZQ+ALB/MBD)", " ") ->  | K47: 0 | O47: 0
A48: =IF(COUNTRY_INFO!A48=0," ",COUNTRY_INFO!A48) -> CÔTE D'IVOIRE | B48: =IF(COUNTRY_INFO!B48=0," ",COUNTRY_INFO!B48) -> GBOKLE-NAWA-SAN-PEDRO | C48: =IF(COUNTRY_INFO!C48=0," ",COUNTRY_INFO!C48) -> SASSANDRA | D48: =IF(OR(COUNTRY_INFO!$T$9:$T$997="T1 (PZQ+ALB/MBD)",COUNTRY_INFO!$U$9:$U$997="T1 (PZQ+ALB/MBD)"), "T1 (PZQ+ALB/MBD)", " ") ->  | K48: 0 | O48: 0
A49: =IF(COUNTRY_INFO!A49=0," ",COUNTRY_INFO!A49) -> CÔTE D'IVOIRE | B49: =IF(COUNTRY_INFO!B49=0," ",COUNTRY_INFO!B49) -> GBOKLE-NAWA-SAN-PEDRO | C49: =IF(COUNTRY_INFO!C49=0," ",COUNTRY_INFO!C49) -> SOUBRE | D49: =IF(OR(COUNTRY_INFO!$T$9:$T$997="T1 (PZQ+ALB/MBD)",COUNTRY_INFO!$U$9:$U$997="T1 (PZQ+ALB/MBD)"), "T1 (PZQ+ALB/MBD)", " ") ->  | K49: 0 | O49: 0
A50: =IF(COUNTRY_INFO!A50=0," ",COUNTRY_INFO!A50) -> CÔTE D'IVOIRE | B50: =IF(COUNTRY_INFO!B50=0," ",COUNTRY_INFO!B50) -> GBOKLE-NAWA-SAN-PEDRO | C50: =IF(COUNTRY_INFO!C50=0," ",COUNTRY_INFO!C50) -> TABOU | D50: =IF(OR(COUNTRY_INFO!$T$9:$T$997="T1 (PZQ+ALB/MBD)",COUNTRY_INFO!$U$9:$U$997="T1 (PZQ+ALB/MBD)"), "T1 (PZQ+ALB/MBD)", " ") ->  | K50: 0 | O50: 0
A51: =IF(COUNTRY_INFO!A51=0," ",COUNTRY_INFO!A51) -> CÔTE D'IVOIRE | B51: =IF(COUNTRY_INFO!B51=0," ",COUNTRY_INFO!B51) -> GOH | C51: =IF(COUNTRY_INFO!C51=0," ",COUNTRY_INFO!C51) -> GAGNOA | D51: =IF(OR(COUNTRY_INFO!$T$9:$T$997="T1 (PZQ+ALB/MBD)",COUNTRY_INFO!$U$9:$U$997="T1 (PZQ+ALB/MBD)"), "T1 (PZQ+ALB/MBD)", " ") ->  | K51: 0 | O51: 0
A52: =IF(COUNTRY_INFO!A52=0," ",COUNTRY_INFO!A52) -> CÔTE D'IVOIRE | B52: =IF(COUNTRY_INFO!B52=0," ",COUNTRY_INFO!B52) -> GOH | C52: =IF(COUNTRY_INFO!C52=0," ",COUNTRY_INFO!C52) -> OUME | D52: =IF(OR(COUNTRY_INFO!$T$9:$T$997="T1 (PZQ+ALB/MBD)",COUNTRY_INFO!$U$9:$U$997="T1 (PZQ+ALB/MBD)"), "T1 (PZQ+ALB/MBD)", " ") ->  | K52: 0 | O52: 0
A53: =IF(COUNTRY_INFO!A53=0," ",COUNTRY_INFO!A53) -> CÔTE D'IVOIRE | B53: =IF(COUNTRY_INFO!B53=0," ",COUNTRY_INFO!B53) -> HAMBOL | C53: =IF(COUNTRY_INFO!C53=0," ",COUNTRY_INFO!C53) -> DABAKALA | D53: =IF(OR(COUNTRY_INFO!$T$9:$T$997="T1 (PZQ+ALB/MBD)",COUNTRY_INFO!$U$9:$U$997="T1 (PZQ+ALB/MBD)"), "T1 (PZQ+ALB/MBD)", " ") ->  | K53: 0 | O53: 0
A54: =IF(COUNTRY_INFO!A54=0," ",COUNTRY_INFO!A54) -> CÔTE D'IVOIRE | B54: =IF(COUNTRY_INFO!B54=0," ",COUNTRY_INFO!B54) -> HAMBOL | C54: =IF(COUNTRY_INFO!C54=0," ",COUNTRY_INFO!C54) -> KATIOLA | D54: =IF(OR(COUNTRY_INFO!$T$9:$T$997="T1 (PZQ+ALB/MBD)",COUNTRY_INFO!$U$9:$U$997="T1 (PZQ+ALB/MBD)"), "T1 (PZQ+ALB/MBD)", " ") ->  | K54: 0 | O54: 0
A55: =IF(COUNTRY_INFO!A55=0," ",COUNTRY_INFO!A55) -> CÔTE D'IVOIRE | B55: =IF(COUNTRY_INFO!B55=0," ",COUNTRY_INFO!B55) -> HAMBOL | C55: =IF(COUNTRY_INFO!C55=0," ",COUNTRY_INFO!C55) -> NIAKARA | D55: =IF(OR(COUNTRY_INFO!$T$9:$T$997="T1 (PZQ+ALB/MBD)",COUNTRY_INFO!$U$9:$U$997="T1 (PZQ+ALB/MBD)"), "T1 (PZQ+ALB/MBD)", " ") ->  | K55: 0 | O55: 0
A56: =IF(COUNTRY_INFO!A56=0," ",COUNTRY_INFO!A56) -> CÔTE D'IVOIRE | B56: =IF(COUNTRY_INFO!B56=0," ",COUNTRY_INFO!B56) -> HAUT SASSANDRA | C56: =IF(COUNTRY_INFO!C56=0," ",COUNTRY_INFO!C56) -> DALOA | D56: =IF(OR(COUNTRY_INFO!$T$9:$T$997="T1 (PZQ+ALB/MBD)",COUNTRY_INFO!$U$9:$U$997="T1 (PZQ+ALB/MBD)"), "T1 (PZQ+ALB/MBD)", " ") ->  | K56: 0 | O56: 0
A57: =IF(COUNTRY_INFO!A57=0," ",COUNTRY_INFO!A57) -> CÔTE D'IVOIRE | B57: =IF(COUNTRY_INFO!B57=0," ",COUNTRY_INFO!B57) -> HAUT SASSANDRA | C57: =IF(COUNTRY_INFO!C57=0," ",COUNTRY_INFO!C57) -> ISSIA | D57: =IF(OR(COUNTRY_INFO!$T$9:$T$997="T1 (PZQ+ALB/MBD)",COUNTRY_INFO!$U$9:$U$997="T1 (PZQ+ALB/MBD)"), "T1 (PZQ+ALB/MBD)", " ") ->  | K57: 0 | O57: 0
A58: =IF(COUNTRY_INFO!A58=0," ",COUNTRY_INFO!A58) -> CÔTE D'IVOIRE | B58: =IF(COUNTRY_INFO!B58=0," ",COUNTRY_INFO!B58) -> HAUT SASSANDRA | C58: =IF(COUNTRY_INFO!C58=0," ",COUNTRY_INFO!C58) -> VAVOUA | D58: =IF(OR(COUNTRY_INFO!$T$9:$T$997="T1 (PZQ+ALB/MBD)",COUNTRY_INFO!$U$9:$U$997="T1 (PZQ+ALB/MBD)"), "T1 (PZQ+ALB/MBD)", " ") ->  | K58: 0 | O58: 0
A59: =IF(COUNTRY_INFO!A59=0," ",COUNTRY_INFO!A59) -> CÔTE D'IVOIRE | B59: =IF(COUNTRY_INFO!B59=0," ",COUNTRY_INFO!B59) -> INDENIE-DJUABLIN | C59: =IF(COUNTRY_INFO!C59=0," ",COUNTRY_INFO!C59) -> ABENGOUROU | D59: =IF(OR(COUNTRY_INFO!$T$9:$T$997="T1 (PZQ+ALB/MBD)",COUNTRY_INFO!$U$9:$U$997="T1 (PZQ+ALB/MBD)"), "T1 (PZQ+ALB/MBD)", " ") ->  | K59: 0 | O59: 0
A60: =IF(COUNTRY_INFO!A60=0," ",COUNTRY_INFO!A60) -> CÔTE D'IVOIRE | B60: =IF(COUNTRY_INFO!B60=0," ",COUNTRY_INFO!B60) -> INDENIE-DJUABLIN | C60: =IF(COUNTRY_INFO!C60=0," ",COUNTRY_INFO!C60) -> AGNIBILEKRO | D60: =IF(OR(COUNTRY_INFO!$T$9:$T$997="T1 (PZQ+ALB/MBD)",COUNTRY_INFO!$U$9:$U$997="T1 (PZQ+ALB/MBD)"), "T1 (PZQ+ALB/MBD)", " ") ->  | K60: 0 | O60: 0
A61: =IF(COUNTRY_INFO!A61=0," ",COUNTRY_INFO!A61) -> CÔTE D'IVOIRE | B61: =IF(COUNTRY_INFO!B61=0," ",COUNTRY_INFO!B61) -> INDENIE-DJUABLIN | C61: =IF(COUNTRY_INFO!C61=0," ",COUNTRY_INFO!C61) -> BETTIE | D61: =IF(OR(COUNTRY_INFO!$T$9:$T$997="T1 (PZQ+ALB/MBD)",COUNTRY_INFO!$U$9:$U$997="T1 (PZQ+ALB/MBD)"), "T1 (PZQ+ALB/MBD)", " ") ->  | K61: 0 | O61: 0
A62: =IF(COUNTRY_INFO!A62=0," ",COUNTRY_INFO!A62) -> CÔTE D'IVOIRE | B62: =IF(COUNTRY_INFO!B62=0," ",COUNTRY_INFO!B62) -> KABADOUGOU-BAFING-FOLON | C62: =IF(COUNTRY_INFO!C62=0," ",COUNTRY_INFO!C62) -> MINIGNAN | D62: =IF(OR(COUNTRY_INFO!$T$9:$T$997="T1 (PZQ+ALB/MBD)",COUNTRY_INFO!$U$9:$U$997="T1 (PZQ+ALB/MBD)"), "T1 (PZQ+ALB/MBD)", " ") ->  | K62: 0 | O62: 0
A63: =IF(COUNTRY_INFO!A63=0," ",COUNTRY_INFO!A63) -> CÔTE D'IVOIRE | B63: =IF(COUNTRY_INFO!B63=0," ",COUNTRY_INFO!B63) -> KABADOUGOU-BAFING-FOLON | C63: =IF(COUNTRY_INFO!C63=0," ",COUNTRY_INFO!C63) -> ODIENNE | D63: =IF(OR(COUNTRY_INFO!$T$9:$T$997="T1 (PZQ+ALB/MBD)",COUNTRY_INFO!$U$9:$U$997="T1 (PZQ+ALB/MBD)"), "T1 (PZQ+ALB/MBD)", " ") ->  | K63: 0 | O63: 0
A64: =IF(COUNTRY_INFO!A64=0," ",COUNTRY_INFO!A64) -> CÔTE D'IVOIRE | B64: =IF(COUNTRY_INFO!B64=0," ",COUNTRY_INFO!B64) -> KABADOUGOU-BAFING-FOLON | C64: =IF(COUNTRY_INFO!C64=0," ",COUNTRY_INFO!C64) -> TOUBA | D64: =IF(OR(COUNTRY_INFO!$T$9:$T$997="T1 (PZQ+ALB/MBD)",COUNTRY_INFO!$U$9:$U$997="T1 (PZQ+ALB/MBD)"), "T1 (PZQ+ALB/MBD)", " ") ->  | K64: 0 | O64: 0
A65: =IF(COUNTRY_INFO!A65=0," ",COUNTRY_INFO!A65) -> CÔTE D'IVOIRE | B65: =IF(COUNTRY_INFO!B65=0," ",COUNTRY_INFO!B65) -> LOH-DJIBOUA | C65: =IF(COUNTRY_INFO!C65=0," ",COUNTRY_INFO!C65) -> DIVO | D65: =IF(OR(COUNTRY_INFO!$T$9:$T$997="T1 (PZQ+ALB/MBD)",COUNTRY_INFO!$U$9:$U$997="T1 (PZQ+ALB/MBD)"), "T1 (PZQ+ALB/MBD)", " ") ->  | K65: 0 | O65: 0
A66: =IF(COUNTRY_INFO!A66=0," ",COUNTRY_INFO!A66) -> CÔTE D'IVOIRE | B66: =IF(COUNTRY_INFO!B66=0," ",COUNTRY_INFO!B66) -> LOH-DJIBOUA | C66: =IF(COUNTRY_INFO!C66=0," ",COUNTRY_INFO!C66) -> FRESCO | D66: =IF(OR(COUNTRY_INFO!$T$9:$T$997="T1 (PZQ+ALB/MBD)",COUNTRY_INFO!$U$9:$U$997="T1 (PZQ+ALB/MBD)"), "T1 (PZQ+ALB/MBD)", " ") ->  | K66: 0 | O66: 0
A67: =IF(COUNTRY_INFO!A67=0," ",COUNTRY_INFO!A67) -> CÔTE D'IVOIRE | B67: =IF(COUNTRY_INFO!B67=0," ",COUNTRY_INFO!B67) -> LOH-DJIBOUA | C67: =IF(COUNTRY_INFO!C67=0," ",COUNTRY_INFO!C67) -> GUITRY | D67: =IF(OR(COUNTRY_INFO!$T$9:$T$997="T1 (PZQ+ALB/MBD)",COUNTRY_INFO!$U$9:$U$997="T1 (PZQ+ALB/MBD)"), "T1 (PZQ+ALB/MBD)", " ") ->  | K67: 0 | O67: 0
A68: =IF(COUNTRY_INFO!A68=0," ",COUNTRY_INFO!A68) -> CÔTE D'IVOIRE | B68: =IF(COUNTRY_INFO!B68=0," ",COUNTRY_INFO!B68) -> LOH-DJIBOUA | C68: =IF(COUNTRY_INFO!C68=0," ",COUNTRY_INFO!C68) -> LAKOTA | D68: =IF(OR(COUNTRY_INFO!$T$9:$T$997="T1 (PZQ+ALB/MBD)",COUNTRY_INFO!$U$9:$U$997="T1 (PZQ+ALB/MBD)"), "T1 (PZQ+ALB/MBD)", " ") ->  | K68: 0 | O68: 0
A69: =IF(COUNTRY_INFO!A69=0," ",COUNTRY_INFO!A69) -> CÔTE D'IVOIRE | B69: =IF(COUNTRY_INFO!B69=0," ",COUNTRY_INFO!B69) -> MARAHOUE | C69: =IF(COUNTRY_INFO!C69=0," ",COUNTRY_INFO!C69) -> BOUAFLE | D69: =IF(OR(COUNTRY_INFO!$T$9:$T$997="T1 (PZQ+ALB/MBD)",COUNTRY_INFO!$U$9:$U$997="T1 (PZQ+ALB/MBD)"), "T1 (PZQ+ALB/MBD)", " ") ->  | K69: 0 | O69: 0
A70: =IF(COUNTRY_INFO!A70=0," ",COUNTRY_INFO!A70) -> CÔTE D'IVOIRE | B70: =IF(COUNTRY_INFO!B70=0," ",COUNTRY_INFO!B70) -> MARAHOUE | C70: =IF(COUNTRY_INFO!C70=0," ",COUNTRY_INFO!C70) -> SINFRA | D70: =IF(OR(COUNTRY_INFO!$T$9:$T$997="T1 (PZQ+ALB/MBD)",COUNTRY_INFO!$U$9:$U$997="T1 (PZQ+ALB/MBD)"), "T1 (PZQ+ALB/MBD)", " ") ->  | K70: 0 | O70: 0
A71: =IF(COUNTRY_INFO!A71=0," ",COUNTRY_INFO!A71) -> CÔTE D'IVOIRE | B71: =IF(COUNTRY_INFO!B71=0," ",COUNTRY_INFO!B71) -> MARAHOUE | C71: =IF(COUNTRY_INFO!C71=0," ",COUNTRY_INFO!C71) -> ZUENOULA | D71: =IF(OR(COUNTRY_INFO!$T$9:$T$997="T1 (PZQ+ALB/MBD)",COUNTRY_INFO!$U$9:$U$997="T1 (PZQ+ALB/MBD)"), "T1 (PZQ+ALB/MBD)", " ") ->  | K71: 0 | O71: 0
A72: =IF(COUNTRY_INFO!A72=0," ",COUNTRY_INFO!A72) -> CÔTE D'IVOIRE | B72: =IF(COUNTRY_INFO!B72=0," ",COUNTRY_INFO!B72) -> N'ZI-IFOU | C72: =IF(COUNTRY_INFO!C72=0," ",COUNTRY_INFO!C72) -> BOCANDA | D72: =IF(OR(COUNTRY_INFO!$T$9:$T$997="T1 (PZQ+ALB/MBD)",COUNTRY_INFO!$U$9:$U$997="T1 (PZQ+ALB/MBD)"), "T1 (PZQ+ALB/MBD)", " ") ->  | K72: =MAX(H72:I72)+G72+J72 -> 0 | O72: =SUM(L72:N72) -> 0 | P72: =IF(G72<>0, IF(L72/G72*100=0, "-", L72/G72*100), " ") ->  | Q72: =IF(OR(I72<>0,H72<>0), IF(M72/MAX(H72,I72)*100=0, "-", M72/MAX(H72,I72)*100), " ") ->  | R72: =IF(J72<>0, IF(N72/J72*100=0, "-", N72/J72*100), " ") ->  | S72: =IF(K72<>0, IF(O72/K72*100=0, "-", O72/K72*100), " ") -> 
A73: =IF(COUNTRY_INFO!A73=0," ",COUNTRY_INFO!A73) -> CÔTE D'IVOIRE | B73: =IF(COUNTRY_INFO!B73=0," ",COUNTRY_INFO!B73) -> N'ZI-IFOU | C73: =IF(COUNTRY_INFO!C73=0," ",COUNTRY_INFO!C73) -> BONGOUANOU | D73: =IF(OR(COUNTRY_INFO!$T$9:$T$997="T1 (PZQ+ALB/MBD)",COUNTRY_INFO!$U$9:$U$997="T1 (PZQ+ALB/MBD)"), "T1 (PZQ+ALB/MBD)", " ") ->  | K73: 0 | O73: 0
A74: =IF(COUNTRY_INFO!A74=0," ",COUNTRY_INFO!A74) -> CÔTE D'IVOIRE | B74: =IF(COUNTRY_INFO!B74=0," ",COUNTRY_INFO!B74) -> N'ZI-IFOU | C74: =IF(COUNTRY_INFO!C74=0," ",COUNTRY_INFO!C74) -> DAOUKRO | D74: =IF(OR(COUNTRY_INFO!$T$9:$T$997="T1 (PZQ+ALB/MBD)",COUNTRY_INFO!$U$9:$U$997="T1 (PZQ+ALB/MBD)"), "T1 (PZQ+ALB/MBD)", " ") ->  | K74: 0 | O74: 0
A75: =IF(COUNTRY_INFO!A75=0," ",COUNTRY_INFO!A75) -> CÔTE D'IVOIRE | B75: =IF(COUNTRY_INFO!B75=0," ",COUNTRY_INFO!B75) -> N'ZI-IFOU | C75: =IF(COUNTRY_INFO!C75=0," ",COUNTRY_INFO!C75) -> DIMBOKRO | D75: =IF(OR(COUNTRY_INFO!$T$9:$T$997="T1 (PZQ+ALB/MBD)",COUNTRY_INFO!$U$9:$U$997="T1 (PZQ+ALB/MBD)"), "T1 (PZQ+ALB/MBD)", " ") ->  | K75: 0 | O75: 0
A76: =IF(COUNTRY_INFO!A76=0," ",COUNTRY_INFO!A76) -> CÔTE D'IVOIRE | B76: =IF(COUNTRY_INFO!B76=0," ",COUNTRY_INFO!B76) -> N'ZI-IFOU | C76: =IF(COUNTRY_INFO!C76=0," ",COUNTRY_INFO!C76) -> M'BAHIAKRO | D76: =IF(OR(COUNTRY_INFO!$T$9:$T$997="T1 (PZQ+ALB/MBD)",COUNTRY_INFO!$U$9:$U$997="T1 (PZQ+ALB/MBD)"), "T1 (PZQ+ALB/MBD)", " ") ->  | K76: 0 | O76: 0
A77: =IF(COUNTRY_INFO!A77=0," ",COUNTRY_INFO!A77) -> CÔTE D'IVOIRE | B77: =IF(COUNTRY_INFO!B77=0," ",COUNTRY_INFO!B77) -> N'ZI-IFOU | C77: =IF(COUNTRY_INFO!C77=0," ",COUNTRY_INFO!C77) -> PRIKRO | D77: =IF(OR(COUNTRY_INFO!$T$9:$T$997="T1 (PZQ+ALB/MBD)",COUNTRY_INFO!$U$9:$U$997="T1 (PZQ+ALB/MBD)"), "T1 (PZQ+ALB/MBD)", " ") ->  | K77: 0 | O77: 0
A78: =IF(COUNTRY_INFO!A78=0," ",COUNTRY_INFO!A78) -> CÔTE D'IVOIRE | B78: =IF(COUNTRY_INFO!B78=0," ",COUNTRY_INFO!B78) -> PORO-TCHOLOGO-BAGOUE | C78: =IF(COUNTRY_INFO!C78=0," ",COUNTRY_INFO!C78) -> BOUNDIALI | D78: =IF(OR(COUNTRY_INFO!$T$9:$T$997="T1 (PZQ+ALB/MBD)",COUNTRY_INFO!$U$9:$U$997="T1 (PZQ+ALB/MBD)"), "T1 (PZQ+ALB/MBD)", " ") ->  | K78: 0 | O78: 0
A79: =IF(COUNTRY_INFO!A79=0," ",COUNTRY_INFO!A79) -> CÔTE D'IVOIRE | B79: =IF(COUNTRY_INFO!B79=0," ",COUNTRY_INFO!B79) -> PORO-TCHOLOGO-BAGOUE | C79: =IF(COUNTRY_INFO!C79=0," ",COUNTRY_INFO!C79) -> FERKESSEDOUGOU | D79: =IF(OR(COUNTRY_INFO!$T$9:$T$997="T1 (PZQ+ALB/MBD)",COUNTRY_INFO!$U$9:$U$997="T1 (PZQ+ALB/MBD)"), "T1 (PZQ+ALB/MBD)", " ") ->  | K79: 0 | O79: 0
A80: =IF(COUNTRY_INFO!A80=0," ",COUNTRY_INFO!A80) -> CÔTE D'IVOIRE | B80: =IF(COUNTRY_INFO!B80=0," ",COUNTRY_INFO!B80) -> PORO-TCHOLOGO-BAGOUE | C80: =IF(COUNTRY_INFO!C80=0," ",COUNTRY_INFO!C80) -> KORHOGO | D80: =IF(OR(COUNTRY_INFO!$T$9:$T$997="T1 (PZQ+ALB/MBD)",COUNTRY_INFO!$U$9:$U$997="T1 (PZQ+ALB/MBD)"), "T1 (PZQ+ALB/MBD)", " ") ->  | K80: 0 | O80: 0
A81: =IF(COUNTRY_INFO!A81=0," ",COUNTRY_INFO!A81) -> CÔTE D'IVOIRE | B81: =IF(COUNTRY_INFO!B81=0," ",COUNTRY_INFO!B81) -> PORO-TCHOLOGO-BAGOUE | C81: =IF(COUNTRY_INFO!C81=0," ",COUNTRY_INFO!C81) -> OUANGOLODOUGOU | D81: =IF(OR(COUNTRY_INFO!$T$9:$T$997="T1 (PZQ+ALB/MBD)",COUNTRY_INFO!$U$9:$U$997="T1 (PZQ+ALB/MBD)"), "T1 (PZQ+ALB/MBD)", " ") ->  | K81: 0 | O81: 0
A82: =IF(COUNTRY_INFO!A82=0," ",COUNTRY_INFO!A82) -> CÔTE D'IVOIRE | B82: =IF(COUNTRY_INFO!B82=0," ",COUNTRY_INFO!B82) -> PORO-TCHOLOGO-BAGOUE | C82: =IF(COUNTRY_INFO!C82=0," ",COUNTRY_INFO!C82) -> TENGRELA | D82: =IF(OR(COUNTRY_INFO!$T$9:$T$997="T1 (PZQ+ALB/MBD)",COUNTRY_INFO!$U$9:$U$997="T1 (PZQ+ALB/MBD)"), "T1 (PZQ+ALB/MBD)", " ") ->  | K82: 0 | O82: 0
A83: =IF(COUNTRY_INFO!A83=0," ",COUNTRY_INFO!A83) -> CÔTE D'IVOIRE | B83: =IF(COUNTRY_INFO!B83=0," ",COUNTRY_INFO!B83) -> SUD-COMOE | C83: =IF(COUNTRY_INFO!C83=0," ",COUNTRY_INFO!C83) -> ABOISSO | D83: =IF(OR(COUNTRY_INFO!$T$9:$T$997="T1 (PZQ+ALB/MBD)",COUNTRY_INFO!$U$9:$U$997="T1 (PZQ+ALB/MBD)"), "T1 (PZQ+ALB/MBD)", " ") ->  | K83: 0 | O83: 0
A84: =IF(COUNTRY_INFO!A84=0," ",COUNTRY_INFO!A84) -> CÔTE D'IVOIRE | B84: =IF(COUNTRY_INFO!B84=0," ",COUNTRY_INFO!B84) -> SUD-COMOE | C84: =IF(COUNTRY_INFO!C84=0," ",COUNTRY_INFO!C84) -> ADIAKE | D84: =IF(OR(COUNTRY_INFO!$T$9:$T$997="T1 (PZQ+ALB/MBD)",COUNTRY_INFO!$U$9:$U$997="T1 (PZQ+ALB/MBD)"), "T1 (PZQ+ALB/MBD)", " ") ->  | K84: 0 | O84: 0
A85: =IF(COUNTRY_INFO!A85=0," ",COUNTRY_INFO!A85) -> CÔTE D'IVOIRE | B85: =IF(COUNTRY_INFO!B85=0," ",COUNTRY_INFO!B85) -> SUD-COMOE | C85: =IF(COUNTRY_INFO!C85=0," ",COUNTRY_INFO!C85) -> GRAND-BASSAM | D85: =IF(OR(COUNTRY_INFO!$T$9:$T$997="T1 (PZQ+ALB/MBD)",COUNTRY_INFO!$U$9:$U$997="T1 (PZQ+ALB/MBD)"), "T1 (PZQ+ALB/MBD)", " ") ->  | K85: 0 | O85: 0
A86: =IF(COUNTRY_INFO!A86=0," ",COUNTRY_INFO!A86) -> CÔTE D'IVOIRE | B86: =IF(COUNTRY_INFO!B86=0," ",COUNTRY_INFO!B86) -> TONKPI | C86: =IF(COUNTRY_INFO!C86=0," ",COUNTRY_INFO!C86) -> BIANKOUMA | D86: =IF(OR(COUNTRY_INFO!$T$9:$T$997="T1 (PZQ+ALB/MBD)",COUNTRY_INFO!$U$9:$U$997="T1 (PZQ+ALB/MBD)"), "T1 (PZQ+ALB/MBD)", " ") ->  | K86: 0 | O86: 0
A87: =IF(COUNTRY_INFO!A87=0," ",COUNTRY_INFO!A87) -> CÔTE D'IVOIRE | B87: =IF(COUNTRY_INFO!B87=0," ",COUNTRY_INFO!B87) -> TONKPI | C87: =IF(COUNTRY_INFO!C87=0," ",COUNTRY_INFO!C87) -> DANANE | D87: =IF(OR(COUNTRY_INFO!$T$9:$T$997="T1 (PZQ+ALB/MBD)",COUNTRY_INFO!$U$9:$U$997="T1 (PZQ+ALB/MBD)"), "T1 (PZQ+ALB/MBD)", " ") ->  | K87: 0 | O87: 0
A88: =IF(COUNTRY_INFO!A88=0," ",COUNTRY_INFO!A88) -> CÔTE D'IVOIRE | B88: =IF(COUNTRY_INFO!B88=0," ",COUNTRY_INFO!B88) -> TONKPI | C88: =IF(COUNTRY_INFO!C88=0," ",COUNTRY_INFO!C88) -> MAN | D88: =IF(OR(COUNTRY_INFO!$T$9:$T$997="T1 (PZQ+ALB/MBD)",COUNTRY_INFO!$U$9:$U$997="T1 (PZQ+ALB/MBD)"), "T1 (PZQ+ALB/MBD)", " ") ->  | K88: 0 | O88: 0
A89: =IF(COUNTRY_INFO!A89=0," ",COUNTRY_INFO!A89) -> CÔTE D'IVOIRE | B89: =IF(COUNTRY_INFO!B89=0," ",COUNTRY_INFO!B89) -> TONKPI | C89: =IF(COUNTRY_INFO!C89=0," ",COUNTRY_INFO!C89) -> ZOUAN-HOUNIEN | D89: =IF(OR(COUNTRY_INFO!$T$9:$T$997="T1 (PZQ+ALB/MBD)",COUNTRY_INFO!$U$9:$U$997="T1 (PZQ+ALB/MBD)"), "T1 (PZQ+ALB/MBD)", " ") ->  | K89: 0 | O89: 0
A90: =IF(COUNTRY_INFO!A90=0," ",COUNTRY_INFO!A90) -> CÔTE D'IVOIRE | B90: =IF(COUNTRY_INFO!B90=0," ",COUNTRY_INFO!B90) -> WORODOUGOU-BERE | C90: =IF(COUNTRY_INFO!C90=0," ",COUNTRY_INFO!C90) -> MANKONO | D90: =IF(OR(COUNTRY_INFO!$T$9:$T$997="T1 (PZQ+ALB/MBD)",COUNTRY_INFO!$U$9:$U$997="T1 (PZQ+ALB/MBD)"), "T1 (PZQ+ALB/MBD)", " ") ->  | K90: 0 | O90: 0
A91: =IF(COUNTRY_INFO!A91=0," ",COUNTRY_INFO!A91) -> CÔTE D'IVOIRE | B91: =IF(COUNTRY_INFO!B91=0," ",COUNTRY_INFO!B91) -> WORODOUGOU-BERE | C91: =IF(COUNTRY_INFO!C91=0," ",COUNTRY_INFO!C91) -> SEGUELA | D91: =IF(OR(COUNTRY_INFO!$T$9:$T$997="T1 (PZQ+ALB/MBD)",COUNTRY_INFO!$U$9:$U$997="T1 (PZQ+ALB/MBD)"), "T1 (PZQ+ALB/MBD)", " ") ->  | K91: 0 | O91: 0

Sheet T2
A1: T 2 - Praziquantel (PZQ)
A2: Structure administrative, population nécessitant une chimioprévention par groupe d'âge, population traitée par groupe d'âge et couverture
A4: TOTAL | F4: =SUM(F$9:F$997) -> 0 | G4: 1552171 | H4: 473901 | I4: 2026072 | J4: 0 | K4: 1419714 | L4: 362711 | M4: 1782425 | N4: =IF(F4<>0, IF(J4/F4*100=0, "-", J4/F4*100), " ") ->  | O4: =IF(G4<>0, IF(K4/G4*100=0, "-", K4/G4*100), " ") -> 91.46633973 | P4: =IF(H4<>0, IF(L4/H4*100=0, "-", L4/H4*100), " ") -> 76.53729365 | Q4: =IF(I4<>0, IF(M4/I4*100=0, "-", M4/I4*100), " ") -> 87.97441552
A6: Structure administrative du pays | D6: Mise en oeuvre de la CP | E6: Date | F6: Population ciblée pour T2 | J6: Population traitée | N6: Couverture du Programme (%)
A7: Pays | B7: Région/Département | C7: District | F7: EAPréS | G7: EAS | H7: Adultes | I7: Total | J7: EAPréS | K7: EAS | L7: Adultes | M7: Total | N7: EAPréS | O7: EAS | P7: Adultes | Q7: Total
A9: =IF(COUNTRY_INFO!A9=0," ",COUNTRY_INFO!A9) -> CÔTE D'IVOIRE | B9: =IF(COUNTRY_INFO!B9=0," ",COUNTRY_INFO!B9) -> ABIDJAN 1 GRANDS PONTS | C9: =IF(COUNTRY_INFO!C9=0," ",COUNTRY_INFO!C9) -> ADJAME-PLATEAU-ATTECOUBE | D9: =IF(OR(COUNTRY_INFO!$T$9:$T$997="T2 (PZQ)",COUNTRY_INFO!$U$9:$U$997="T2 (PZQ)"), "T2 (PZQ)", " ") ->  | I9: =SUM(F9:H9) -> 0 | M9: =SUM(J9:L9) -> 0 | N9: =IF(F9<>0, IF(J9/F9*100=0, "-", J9/F9*100), " ") ->  | O9: =IF(G9<>0, IF(K9/G9*100=0, "-", K9/G9*100), " ") ->  | P9: =IF(H9<>0, IF(L9/H9*100=0, "-", L9/H9*100), " ") ->  | Q9: =IF(I9<>0, IF(M9/I9*100=0, "-", M9/I9*100), " ") -> 
A10: =IF(COUNTRY_INFO!A10=0," ",COUNTRY_INFO!A10) -> CÔTE D'IVOIRE | B10: =IF(COUNTRY_INFO!B10=0," ",COUNTRY_INFO!B10) -> ABIDJAN 1 GRANDS PONTS | C10: =IF(COUNTRY_INFO!C10=0," ",COUNTRY_INFO!C10) -> DABOU | D10: =IF(OR(COUNTRY_INFO!$T$9:$T$997="T2 (PZQ)",COUNTRY_INFO!$U$9:$U$997="T2 (PZQ)"), "T2 (PZQ)", " ") ->  | I10: =SUM(F10:H10) -> 0 | M10: =SUM(J10:L10) -> 0 | N10: =IF(F10<>0, IF(J10/F10*100=0, "-", J10/F10*100), " ") ->  | O10: =IF(G10<>0, IF(K10/G10*100=0, "-", K10/G10*100), " ") ->  | P10: =IF(H10<>0, IF(L10/H10*100=0, "-", L10/H10*100), " ") ->  | Q10: =IF(I10<>0, IF(M10/I10*100=0, "-", M10/I10*100), " ") -> 
A11: =IF(COUNTRY_INFO!A11=0," ",COUNTRY_INFO!A11) -> CÔTE D'IVOIRE | B11: =IF(COUNTRY_INFO!B11=0," ",COUNTRY_INFO!B11) -> ABIDJAN 1 GRANDS PONTS | C11: =IF(COUNTRY_INFO!C11=0," ",COUNTRY_INFO!C11) -> GRAND-LAHOU | D11: =IF(OR(COUNTRY_INFO!$T$9:$T$997="T2 (PZQ)",COUNTRY_INFO!$U$9:$U$997="T2 (PZQ)"), "T2 (PZQ)", " ") ->  | I11: 0 | M11: 0
A12: =IF(COUNTRY_INFO!A12=0," ",COUNTRY_INFO!A12) -> CÔTE D'IVOIRE | B12: =IF(COUNTRY_INFO!B12=0," ",COUNTRY_INFO!B12) -> ABIDJAN 1 GRANDS PONTS | C12: =IF(COUNTRY_INFO!C12=0," ",COUNTRY_INFO!C12) -> JACQUEVILLE | D12: =IF(OR(COUNTRY_INFO!$T$9:$T$997="T2 (PZQ)",COUNTRY_INFO!$U$9:$U$997="T2 (PZQ)"), "T2 (PZQ)", " ") ->  | I12: 0 | M12: 0
A13: =IF(COUNTRY_INFO!A13=0," ",COUNTRY_INFO!A13) -> CÔTE D'IVOIRE | B13: =IF(COUNTRY_INFO!B13=0," ",COUNTRY_INFO!B13) -> ABIDJAN 1 GRANDS PONTS | C13: =IF(COUNTRY_INFO!C13=0," ",COUNTRY_INFO!C13) -> YOPOUGON EST | D13: =IF(OR(COUNTRY_INFO!$T$9:$T$997="T2 (PZQ)",COUNTRY_INFO!$U$9:$U$997="T2 (PZQ)"), "T2 (PZQ)", " ") ->  | I13: 0 | M13: 0
A14: =IF(COUNTRY_INFO!A14=0," ",COUNTRY_INFO!A14) -> CÔTE D'IVOIRE | B14: =IF(COUNTRY_INFO!B14=0," ",COUNTRY_INFO!B14) -> ABIDJAN 1 GRANDS PONTS | C14: =IF(COUNTRY_INFO!C14=0," ",COUNTRY_INFO!C14) -> YOPOUGON OUEST | D14: =IF(OR(COUNTRY_INFO!$T$9:$T$997="T2 (PZQ)",COUNTRY_INFO!$U$9:$U$997="T2 (PZQ)"), "T2 (PZQ)", " ") ->  | I14: 0 | M14: 0
A15: =IF(COUNTRY_INFO!A15=0," ",COUNTRY_INFO!A15) -> CÔTE D'IVOIRE | B15: =IF(COUNTRY_INFO!B15=0," ",COUNTRY_INFO!B15) -> ABIDJAN 2 | C15: =IF(COUNTRY_INFO!C15=0," ",COUNTRY_INFO!C15) -> ABOBO EST | D15: =IF(OR(COUNTRY_INFO!$T$9:$T$997="T2 (PZQ)",COUNTRY_INFO!$U$9:$U$997="T2 (PZQ)"), "T2 (PZQ)", " ") ->  | I15: 0 | M15: 0
A16: =IF(COUNTRY_INFO!A16=0," ",COUNTRY_INFO!A16) -> CÔTE D'IVOIRE | B16: =IF(COUNTRY_INFO!B16=0," ",COUNTRY_INFO!B16) -> ABIDJAN 2 | C16: =IF(COUNTRY_INFO!C16=0," ",COUNTRY_INFO!C16) -> ABOBO OUEST | D16: =IF(OR(COUNTRY_INFO!$T$9:$T$997="T2 (PZQ)",COUNTRY_INFO!$U$9:$U$997="T2 (PZQ)"), "T2 (PZQ)", " ") ->  | I16: 0 | M16: 0
A17: =IF(COUNTRY_INFO!A17=0," ",COUNTRY_INFO!A17) -> CÔTE D'IVOIRE | B17: =IF(COUNTRY_INFO!B17=0," ",COUNTRY_INFO!B17) -> ABIDJAN 2 | C17: =IF(COUNTRY_INFO!C17=0," ",COUNTRY_INFO!C17) -> ANYAMA | D17: =IF(OR(COUNTRY_INFO!$T$9:$T$997="T2 (PZQ)",COUNTRY_INFO!$U$9:$U$997="T2 (PZQ)"), "T2 (PZQ)", " ") ->  | I17: 0 | M17: 0
A18: =IF(COUNTRY_INFO!A18=0," ",COUNTRY_INFO!A18) -> CÔTE D'IVOIRE | B18: =IF(COUNTRY_INFO!B18=0," ",COUNTRY_INFO!B18) -> ABIDJAN 2 | C18: =IF(COUNTRY_INFO!C18=0," ",COUNTRY_INFO!C18) -> COCODY-BINGERVILLE | D18: =IF(OR(COUNTRY_INFO!$T$9:$T$997="T2 (PZQ)",COUNTRY_INFO!$U$9:$U$997="T2 (PZQ)"), "T2 (PZQ)", " ") ->  | I18: 0 | M18: 0
A19: =IF(COUNTRY_INFO!A19=0," ",COUNTRY_INFO!A19) -> CÔTE D'IVOIRE | B19: =IF(COUNTRY_INFO!B19=0," ",COUNTRY_INFO!B19) -> ABIDJAN 2 | C19: =IF(COUNTRY_INFO!C19=0," ",COUNTRY_INFO!C19) -> KOUMASSI-PORT BOUET-VRIDI | D19: =IF(OR(COUNTRY_INFO!$T$9:$T$997="T2 (PZQ)",COUNTRY_INFO!$U$9:$U$997="T2 (PZQ)"), "T2 (PZQ)", " ") ->  | I19: 0 | M19: 0
A20: =IF(COUNTRY_INFO!A20=0," ",COUNTRY_INFO!A20) -> CÔTE D'IVOIRE | B20: =IF(COUNTRY_INFO!B20=0," ",COUNTRY_INFO!B20) -> ABIDJAN 2 | C20: =IF(COUNTRY_INFO!C20=0," ",COUNTRY_INFO!C20) -> MARCORY-TREICHVILLE | D20: =IF(OR(COUNTRY_INFO!$T$9:$T$997="T2 (PZQ)",COUNTRY_INFO!$U$9:$U$997="T2 (PZQ)"), "T2 (PZQ)", " ") ->  | I20: 0 | M20: 0
A21: =IF(COUNTRY_INFO!A21=0," ",COUNTRY_INFO!A21) -> CÔTE D'IVOIRE | B21: =IF(COUNTRY_INFO!B21=0," ",COUNTRY_INFO!B21) -> AGNEBY-TIASSA-ME | C21: =IF(COUNTRY_INFO!C21=0," ",COUNTRY_INFO!C21) -> ADZOPE | D21: =IF(OR(COUNTRY_INFO!$T$9:$T$997="T2 (PZQ)",COUNTRY_INFO!$U$9:$U$997="T2 (PZQ)"), "T2 (PZQ)", " ") ->  | I21: 0 | M21: 0
A22: =IF(COUNTRY_INFO!A22=0," ",COUNTRY_INFO!A22) -> CÔTE D'IVOIRE | B22: =IF(COUNTRY_INFO!B22=0," ",COUNTRY_INFO!B22) -> AGNEBY-TIASSA-ME | C22: =IF(COUNTRY_INFO!C22=0," ",COUNTRY_INFO!C22) -> AGBOVILLE | D22: =IF(OR(COUNTRY_INFO!$T$9:$T$997="T2 (PZQ)",COUNTRY_INFO!$U$9:$U$997="T2 (PZQ)"), "T2 (PZQ)", " ") ->  | I22: 0 | M22: 0
A23: =IF(COUNTRY_INFO!A23=0," ",COUNTRY_INFO!A23) -> CÔTE D'IVOIRE | B23: =IF(COUNTRY_INFO!B23=0," ",COUNTRY_INFO!B23) -> AGNEBY-TIASSA-ME | C23: =IF(COUNTRY_INFO!C23=0," ",COUNTRY_INFO!C23) -> AKOUPE | D23: =IF(OR(COUNTRY_INFO!$T$9:$T$997="T2 (PZQ)",COUNTRY_INFO!$U$9:$U$997="T2 (PZQ)"), "T2 (PZQ)", " ") ->  | I23: 0 | M23: 0
A24: =IF(COUNTRY_INFO!A24=0," ",COUNTRY_INFO!A24) -> CÔTE D'IVOIRE | B24: =IF(COUNTRY_INFO!B24=0," ",COUNTRY_INFO!B24) -> AGNEBY-TIASSA-ME | C24: =IF(COUNTRY_INFO!C24=0," ",COUNTRY_INFO!C24) -> ALEPE | D24: =IF(OR(COUNTRY_INFO!$T$9:$T$997="T2 (PZQ)",COUNTRY_INFO!$U$9:$U$997="T2 (PZQ)"), "T2 (PZQ)", " ") ->  | I24: 0 | M24: 0
A25: =IF(COUNTRY_INFO!A25=0," ",COUNTRY_INFO!A25) -> CÔTE D'IVOIRE | B25: =IF(COUNTRY_INFO!B25=0," ",COUNTRY_INFO!B25) -> AGNEBY-TIASSA-ME | C25: =IF(COUNTRY_INFO!C25=0," ",COUNTRY_INFO!C25) -> SIKENSI | D25: =IF(OR(COUNTRY_INFO!$T$9:$T$997="T2 (PZQ)",COUNTRY_INFO!$U$9:$U$997="T2 (PZQ)"), "T2 (PZQ)", " ") ->  | I25: 0 | M25: 0
A26: =IF(COUNTRY_INFO!A26=0," ",COUNTRY_INFO!A26) -> CÔTE D'IVOIRE | B26: =IF(COUNTRY_INFO!B26=0," ",COUNTRY_INFO!B26) -> AGNEBY-TIASSA-ME | C26: =IF(COUNTRY_INFO!C26=0," ",COUNTRY_INFO!C26) -> TIASSALE | D26: =IF(OR(COUNTRY_INFO!$T$9:$T$997="T2 (PZQ)",COUNTRY_INFO!$U$9:$U$997="T2 (PZQ)"), "T2 (PZQ)", " ") -> T2 (PZQ) | E26: Novembre 2019 | G26: 66463 | I26: 66463 | K26: 45525 | M26: 45525 | O26: 68.49675759 | Q26: 68.49675759
A27: =IF(COUNTRY_INFO!A27=0," ",COUNTRY_INFO!A27) -> CÔTE D'IVOIRE | B27: =IF(COUNTRY_INFO!B27=0," ",COUNTRY_INFO!B27) -> BELIER | C27: =IF(COUNTRY_INFO!C27=0," ",COUNTRY_INFO!C27) -> DIDIEVI | D27: =IF(OR(COUNTRY_INFO!$T$9:$T$997="T2 (PZQ)",COUNTRY_INFO!$U$9:$U$997="T2 (PZQ)"), "T2 (PZQ)", " ") ->  | I27: 0 | M27: 0
A28: =IF(COUNTRY_INFO!A28=0," ",COUNTRY_INFO!A28) -> CÔTE D'IVOIRE | B28: =IF(COUNTRY_INFO!B28=0," ",COUNTRY_INFO!B28) -> BELIER | C28: =IF(COUNTRY_INFO!C28=0," ",COUNTRY_INFO!C28) -> TIEBISSOU | D28: =IF(OR(COUNTRY_INFO!$T$9:$T$997="T2 (PZQ)",COUNTRY_INFO!$U$9:$U$997="T2 (PZQ)"), "T2 (PZQ)", " ") -> T2 (PZQ) | E28: Novembre 2019 | G28: 24868 | I28: 24868 | K28: 24768 | M28: 24768 | O28: 99.59787679 | Q28: 99.59787679
A29: =IF(COUNTRY_INFO!A29=0," ",COUNTRY_INFO!A29) -> CÔTE D'IVOIRE | B29: =IF(COUNTRY_INFO!B29=0," ",COUNTRY_INFO!B29) -> BELIER | C29: =IF(COUNTRY_INFO!C29=0," ",COUNTRY_INFO!C29) -> TOUMODI | D29: =IF(OR(COUNTRY_INFO!$T$9:$T$997="T2 (PZQ)",COUNTRY_INFO!$U$9:$U$997="T2 (PZQ)"), "T2 (PZQ)", " ") ->  | I29: 0 | M29: 0
A30: =IF(COUNTRY_INFO!A30=0," ",COUNTRY_INFO!A30) -> CÔTE D'IVOIRE | B30: =IF(COUNTRY_INFO!B30=0," ",COUNTRY_INFO!B30) -> BELIER | C30: =IF(COUNTRY_INFO!C30=0," ",COUNTRY_INFO!C30) -> YAMOUSSOUKRO | D30: =IF(OR(COUNTRY_INFO!$T$9:$T$997="T2 (PZQ)",COUNTRY_INFO!$U$9:$U$997="T2 (PZQ)"), "T2 (PZQ)", " ") -> T2 (PZQ) | E30: Novembre 2019 | G30: 96807 | I30: 96807 | K30: 91998 | M30: 91998 | O30: 95.03238402 | Q30: 95.03238402
A31: =IF(COUNTRY_INFO!A31=0," ",COUNTRY_INFO!A31) -> CÔTE D'IVOIRE | B31: =IF(COUNTRY_INFO!B31=0," ",COUNTRY_INFO!B31) -> BOUKANI-GONTOUGO | C31: =IF(COUNTRY_INFO!C31=0," ",COUNTRY_INFO!C31) -> BONDOUKOU | D31: =IF(OR(COUNTRY_INFO!$T$9:$T$997="T2 (PZQ)",COUNTRY_INFO!$U$9:$U$997="T2 (PZQ)"), "T2 (PZQ)", " ") ->  | I31: 0 | M31: 0
A32: =IF(COUNTRY_INFO!A32=0," ",COUNTRY_INFO!A32) -> CÔTE D'IVOIRE | B32: =IF(COUNTRY_INFO!B32=0," ",COUNTRY_INFO!B32) -> BOUKANI-GONTOUGO | C32: =IF(COUNTRY_INFO!C32=0," ",COUNTRY_INFO!C32) -> BOUNA | D32: =IF(OR(COUNTRY_INFO!$T$9:$T$997="T2 (PZQ)",COUNTRY_INFO!$U$9:$U$997="T2 (PZQ)"), "T2 (PZQ)", " ") -> T2 (PZQ) | E32: Novembre 2019 | G32: 60615 | I32: 60615 | K32: 55459 | M32: 55459 | O32: 91.49385466 | Q32: 91.49385466
A33: =IF(COUNTRY_INFO!A33=0," ",COUNTRY_INFO!A33) -> CÔTE D'IVOIRE | B33: =IF(COUNTRY_INFO!B33=0," ",COUNTRY_INFO!B33) -> BOUKANI-GONTOUGO | C33: =IF(COUNTRY_INFO!C33=0," ",COUNTRY_INFO!C33) -> NASSIAN | D33: =IF(OR(COUNTRY_INFO!$T$9:$T$997="T2 (PZQ)",COUNTRY_INFO!$U$9:$U$997="T2 (PZQ)"), "T2 (PZQ)", " ") ->  | I33: 0 | M33: 0
A34: =IF(COUNTRY_INFO!A34=0," ",COUNTRY_INFO!A34) -> CÔTE D'IVOIRE | B34: =IF(COUNTRY_INFO!B34=0," ",COUNTRY_INFO!B34) -> BOUKANI-GONTOUGO | C34: =IF(COUNTRY_INFO!C34=0," ",COUNTRY_INFO!C34) -> TANDA | D34: =IF(OR(COUNTRY_INFO!$T$9:$T$997="T2 (PZQ)",COUNTRY_INFO!$U$9:$U$997="T2 (PZQ)"), "T2 (PZQ)", " ") ->  | I34: 0 | M34: 0
A35: =IF(COUNTRY_INFO!A35=0," ",COUNTRY_INFO!A35) -> CÔTE D'IVOIRE | B35: =IF(COUNTRY_INFO!B35=0," ",COUNTRY_INFO!B35) -> CAVALLY-GUEMON | C35: =IF(COUNTRY_INFO!C35=0," ",COUNTRY_INFO!C35) -> BANGOLO | D35: =IF(OR(COUNTRY_INFO!$T$9:$T$997="T2 (PZQ)",COUNTRY_INFO!$U$9:$U$997="T2 (PZQ)"), "T2 (PZQ)", " ") -> T2 (PZQ) | E35: Novembre 2019 | G35: 86612 | H35: 216531 | I35: 303143 | K35: 83002 | L35: 162891 | M35: 245893 | O35: 95.83198633 | P35: 75.22756557 | Q35: 81.11452351
A36: =IF(COUNTRY_INFO!A36=0," ",COUNTRY_INFO!A36) -> CÔTE D'IVOIRE | B36: =IF(COUNTRY_INFO!B36=0," ",COUNTRY_INFO!B36) -> CAVALLY-GUEMON | C36: =IF(COUNTRY_INFO!C36=0," ",COUNTRY_INFO!C36) -> BLOLEQUIN | D36: =IF(OR(COUNTRY_INFO!$T$9:$T$997="T2 (PZQ)",COUNTRY_INFO!$U$9:$U$997="T2 (PZQ)"), "T2 (PZQ)", " ") -> T2 (PZQ) | E36: Novembre 2019 | G36: 33579 | I36: 33579 | K36: 32446 | M36: 32446 | O36: 96.62586736 | Q36: 96.62586736
A37: =IF(COUNTRY_INFO!A37=0," ",COUNTRY_INFO!A37) -> CÔTE D'IVOIRE | B37: =IF(COUNTRY_INFO!B37=0," ",COUNTRY_INFO!B37) -> CAVALLY-GUEMON | C37: =IF(COUNTRY_INFO!C37=0," ",COUNTRY_INFO!C37) -> DUEKOUE | D37: =IF(OR(COUNTRY_INFO!$T$9:$T$997="T2 (PZQ)",COUNTRY_INFO!$U$9:$U$997="T2 (PZQ)"), "T2 (PZQ)", " ") ->  | I37: 0 | M37: 0
A38: =IF(COUNTRY_INFO!A38=0," ",COUNTRY_INFO!A38) -> CÔTE D'IVOIRE | B38: =IF(COUNTRY_INFO!B38=0," ",COUNTRY_INFO!B38) -> CAVALLY-GUEMON | C38: =IF(COUNTRY_INFO!C38=0," ",COUNTRY_INFO!C38) -> GUIGLO | D38: =IF(OR(COUNTRY_INFO!$T$9:$T$997="T2 (PZQ)",COUNTRY_INFO!$U$9:$U$997="T2 (PZQ)"), "T2 (PZQ)", " ") ->  | I38: 0 | M38: 0
A39: =IF(COUNTRY_INFO!A39=0," ",COUNTRY_INFO!A39) -> CÔTE D'IVOIRE | B39: =IF(COUNTRY_INFO!B39=0," ",COUNTRY_INFO!B39) -> CAVALLY-GUEMON | C39: =IF(COUNTRY_INFO!C39=0," ",COUNTRY_INFO!C39) -> KOUIBLY | D39: =IF(OR(COUNTRY_INFO!$T$9:$T$997="T2 (PZQ)",COUNTRY_INFO!$U$9:$U$997="T2 (PZQ)"), "T2 (PZQ)", " ") ->  | I39: 0 | M39: 0
A40: =IF(COUNTRY_INFO!A40=0," ",COUNTRY_INFO!A40) -> CÔTE D'IVOIRE | B40: =IF(COUNTRY_INFO!B40=0," ",COUNTRY_INFO!B40) -> CAVALLY-GUEMON | C40: =IF(COUNTRY_INFO!C40=0," ",COUNTRY_INFO!C40) -> TOULEPLEU | D40: =IF(OR(COUNTRY_INFO!$T$9:$T$997="T2 (PZQ)",COUNTRY_INFO!$U$9:$U$997="T2 (PZQ)"), "T2 (PZQ)", " ") ->  | I40: 0 | M40: 0
A41: =IF(COUNTRY_INFO!A41=0," ",COUNTRY_INFO!A41) -> CÔTE D'IVOIRE | B41: =IF(COUNTRY_INFO!B41=0," ",COUNTRY_INFO!B41) -> GBEKE | C41: =IF(COUNTRY_INFO!C41=0," ",COUNTRY_INFO!C41) -> BEOUMI | D41: =IF(OR(COUNTRY_INFO!$T$9:$T$997="T2 (PZQ)",COUNTRY_INFO!$U$9:$U$997="T2 (PZQ)"), "T2 (PZQ)", " ") -> T2 (PZQ) | E41: Novembre 2019 | G41: 41983 | I41: 41983 | K41: 40152 | M41: 40152 | O41: 95.63871091 | Q41: 95.63871091
A42: =IF(COUNTRY_INFO!A42=0," ",COUNTRY_INFO!A42) -> CÔTE D'IVOIRE | B42: =IF(COUNTRY_INFO!B42=0," ",COUNTRY_INFO!B42) -> GBEKE | C42: =IF(COUNTRY_INFO!C42=0," ",COUNTRY_INFO!C42) -> BOUAKE NORD-EST | D42: =IF(OR(COUNTRY_INFO!$T$9:$T$997="T2 (PZQ)",COUNTRY_INFO!$U$9:$U$997="T2 (PZQ)"), "T2 (PZQ)", " ") -> T2 (PZQ) | E42: Novembre 2019 | G42: 70422 | I42: 70422 | K42: 65398 | M42: 65398 | O42: 92.86586578 | Q42: 92.86586578
A43: =IF(COUNTRY_INFO!A43=0," ",COUNTRY_INFO!A43) -> CÔTE D'IVOIRE | B43: =IF(COUNTRY_INFO!B43=0," ",COUNTRY_INFO!B43) -> GBEKE | C43: =IF(COUNTRY_INFO!C43=0," ",COUNTRY_INFO!C43) -> BOUAKE NORD-OUEST | D43: =IF(OR(COUNTRY_INFO!$T$9:$T$997="T2 (PZQ)",COUNTRY_INFO!$U$9:$U$997="T2 (PZQ)"), "T2 (PZQ)", " ") -> T2 (PZQ) | E43: Novembre 2019 | G43: 72207 | I43: 72207 | K43: 70439 | M43: 70439 | O43: 97.55148393 | Q43: 97.55148393
A44: =IF(COUNTRY_INFO!A44=0," ",COUNTRY_INFO!A44) -> CÔTE D'IVOIRE | B44: =IF(COUNTRY_INFO!B44=0," ",COUNTRY_INFO!B44) -> GBEKE | C44: =IF(COUNTRY_INFO!C44=0," ",COUNTRY_INFO!C44) -> BOUAKE SUD | D44: =IF(OR(COUNTRY_INFO!$T$9:$T$997="T2 (PZQ)",COUNTRY_INFO!$U$9:$U$997="T2 (PZQ)"), "T2 (PZQ)", " ") -> T2 (PZQ) | E44: Novembre 2019 | G44: 64862 | I44: 64862 | K44: 56743 | M44: 56743 | O44: 87.48265548 | Q44: 87.48265548
A45: =IF(COUNTRY_INFO!A45=0," ",COUNTRY_INFO!A45) -> CÔTE D'IVOIRE | B45: =IF(COUNTRY_INFO!B45=0," ",COUNTRY_INFO!B45) -> GBEKE | C45: =IF(COUNTRY_INFO!C45=0," ",COUNTRY_INFO!C45) -> SAKASSOU | D45: =IF(OR(COUNTRY_INFO!$T$9:$T$997="T2 (PZQ)",COUNTRY_INFO!$U$9:$U$997="T2 (PZQ)"), "T2 (PZQ)", " ") -> T2 (PZQ) | E45: Novembre 2019 | G45: 25735 | I45: 25735 | K45: 22700 | M45: 22700 | O45: 88.20672236 | Q45: 88.20672236
A46: =IF(COUNTRY_INFO!A46=0," ",COUNTRY_INFO!A46) -> CÔTE D'IVOIRE | B46: =IF(COUNTRY_INFO!B46=0," ",COUNTRY_INFO!B46) -> GBOKLE-NAWA-SAN-PEDRO | C46: =IF(COUNTRY_INFO!C46=0," ",COUNTRY_INFO!C46) -> GUEYO | D46: =IF(OR(COUNTRY_INFO!$T$9:$T$997="T2 (PZQ)",COUNTRY_INFO!$U$9:$U$997="T2 (PZQ)"), "T2 (PZQ)", " ") ->  | I46: 0 | M46: 0
A47: =IF(COUNTRY_INFO!A47=0," ",COUNTRY_INFO!A47) -> CÔTE D'IVOIRE | B47: =IF(COUNTRY_INFO!B47=0," ",COUNTRY_INFO!B47) -> GBOKLE-NAWA-SAN-PEDRO | C47: =IF(COUNTRY_INFO!C47=0," ",COUNTRY_INFO!C47) -> SAN PEDRO | D47: =IF(OR(COUNTRY_INFO!$T$9:$T$997="T2 (PZQ)",COUNTRY_INFO!$U$9:$U$997="T2 (PZQ)"), "T2 (PZQ)", " ") ->  | I47: 0 | M47: 0
A48: =IF(COUNTRY_INFO!A48=0," ",COUNTRY_INFO!A48) -> CÔTE D'IVOIRE | B48: =IF(COUNTRY_INFO!B48=0," ",COUNTRY_INFO!B48) -> GBOKLE-NAWA-SAN-PEDRO | C48: =IF(COUNTRY_INFO!C48=0," ",COUNTRY_INFO!C48) -> SASSANDRA | D48: =IF(OR(COUNTRY_INFO!$T$9:$T$997="T2 (PZQ)",COUNTRY_INFO!$U$9:$U$997="T2 (PZQ)"), "T2 (PZQ)", " ") ->  | I48: 0 | M48: 0
A49: =IF(COUNTRY_INFO!A49=0," ",COUNTRY_INFO!A49) -> CÔTE D'IVOIRE | B49: =IF(COUNTRY_INFO!B49=0," ",COUNTRY_INFO!B49) -> GBOKLE-NAWA-SAN-PEDRO | C49: =IF(COUNTRY_INFO!C49=0," ",COUNTRY_INFO!C49) -> SOUBRE | D49: =IF(OR(COUNTRY_INFO!$T$9:$T$997="T2 (PZQ)",COUNTRY_INFO!$U$9:$U$997="T2 (PZQ)"), "T2 (PZQ)", " ") ->  | I49: 0 | M49: 0
A50: =IF(COUNTRY_INFO!A50=0," ",COUNTRY_INFO!A50) -> CÔTE D'IVOIRE | B50: =IF(COUNTRY_INFO!B50=0," ",COUNTRY_INFO!B50) -> GBOKLE-NAWA-SAN-PEDRO | C50: =IF(COUNTRY_INFO!C50=0," ",COUNTRY_INFO!C50) -> TABOU | D50: =IF(OR(COUNTRY_INFO!$T$9:$T$997="T2 (PZQ)",COUNTRY_INFO!$U$9:$U$997="T2 (PZQ)"), "T2 (PZQ)", " ") ->  | I50: 0 | M50: 0
A51: =IF(COUNTRY_INFO!A51=0," ",COUNTRY_INFO!A51) -> CÔTE D'IVOIRE | B51: =IF(COUNTRY_INFO!B51=0," ",COUNTRY_INFO!B51) -> GOH | C51: =IF(COUNTRY_INFO!C51=0," ",COUNTRY_INFO!C51) -> GAGNOA | D51: =IF(OR(COUNTRY_INFO!$T$9:$T$997="T2 (PZQ)",COUNTRY_INFO!$U$9:$U$997="T2 (PZQ)"), "T2 (PZQ)", " ") ->  | I51: 0 | M51: 0
A52: =IF(COUNTRY_INFO!A52=0," ",COUNTRY_INFO!A52) -> CÔTE D'IVOIRE | B52: =IF(COUNTRY_INFO!B52=0," ",COUNTRY_INFO!B52) -> GOH | C52: =IF(COUNTRY_INFO!C52=0," ",COUNTRY_INFO!C52) -> OUME | D52: =IF(OR(COUNTRY_INFO!$T$9:$T$997="T2 (PZQ)",COUNTRY_INFO!$U$9:$U$997="T2 (PZQ)"), "T2 (PZQ)", " ") ->  | I52: 0 | M52: 0
A53: =IF(COUNTRY_INFO!A53=0," ",COUNTRY_INFO!A53) -> CÔTE D'IVOIRE | B53: =IF(COUNTRY_INFO!B53=0," ",COUNTRY_INFO!B53) -> HAMBOL | C53: =IF(COUNTRY_INFO!C53=0," ",COUNTRY_INFO!C53) -> DABAKALA | D53: =IF(OR(COUNTRY_INFO!$T$9:$T$997="T2 (PZQ)",COUNTRY_INFO!$U$9:$U$997="T2 (PZQ)"), "T2 (PZQ)", " ") -> T2 (PZQ) | E53: Novembre 2019 | G53: 51525 | I53: 51525 | K53: 44897 | M53: 44897 | O53: 87.13634158 | Q53: 87.13634158
A54: =IF(COUNTRY_INFO!A54=0," ",COUNTRY_INFO!A54) -> CÔTE D'IVOIRE | B54: =IF(COUNTRY_INFO!B54=0," ",COUNTRY_INFO!B54) -> HAMBOL | C54: =IF(COUNTRY_INFO!C54=0," ",COUNTRY_INFO!C54) -> KATIOLA | D54: =IF(OR(COUNTRY_INFO!$T$9:$T$997="T2 (PZQ)",COUNTRY_INFO!$U$9:$U$997="T2 (PZQ)"), "T2 (PZQ)", " ") -> T2 (PZQ) | E54: Novembre 2019 | G54: 29106 | I54: 29106 | K54: 27840 | M54: 27840 | O54: 95.65038136 | Q54: 95.65038136
A55: =IF(COUNTRY_INFO!A55=0," ",COUNTRY_INFO!A55) -> CÔTE D'IVOIRE | B55: =IF(COUNTRY_INFO!B55=0," ",COUNTRY_INFO!B55) -> HAMBOL | C55: =IF(COUNTRY_INFO!C55=0," ",COUNTRY_INFO!C55) -> NIAKARA | D55: =IF(OR(COUNTRY_INFO!$T$9:$T$997="T2 (PZQ)",COUNTRY_INFO!$U$9:$U$997="T2 (PZQ)"), "T2 (PZQ)", " ") -> T2 (PZQ) | E55: Novembre 2019 | G55: 36432 | I55: 36432 | K55: 33406 | M55: 33406 | O55: 91.69411506 | Q55: 91.69411506
A56: =IF(COUNTRY_INFO!A56=0," ",COUNTRY_INFO!A56) -> CÔTE D'IVOIRE | B56: =IF(COUNTRY_INFO!B56=0," ",COUNTRY_INFO!B56) -> HAUT SASSANDRA | C56: =IF(COUNTRY_INFO!C56=0," ",COUNTRY_INFO!C56) -> DALOA | D56: =IF(OR(COUNTRY_INFO!$T$9:$T$997="T2 (PZQ)",COUNTRY_INFO!$U$9:$U$997="T2 (PZQ)"), "T2 (PZQ)", " ") ->  | I56: 0 | M56: 0
A57: =IF(COUNTRY_INFO!A57=0," ",COUNTRY_INFO!A57) -> CÔTE D'IVOIRE | B57: =IF(COUNTRY_INFO!B57=0," ",COUNTRY_INFO!B57) -> HAUT SASSANDRA | C57: =IF(COUNTRY_INFO!C57=0," ",COUNTRY_INFO!C57) -> ISSIA | D57: =IF(OR(COUNTRY_INFO!$T$9:$T$997="T2 (PZQ)",COUNTRY_INFO!$U$9:$U$997="T2 (PZQ)"), "T2 (PZQ)", " ") -> T2 (PZQ) | E57: Novembre 2019 | G57: 89273 | I57: 89273 | K57: 72151 | M57: 72151 | O57: 80.82062886 | Q57: 80.82062886
A58: =IF(COUNTRY_INFO!A58=0," ",COUNTRY_INFO!A58) -> CÔTE D'IVOIRE | B58: =IF(COUNTRY_INFO!B58=0," ",COUNTRY_INFO!B58) -> HAUT SASSANDRA | C58: =IF(COUNTRY_INFO!C58=0," ",COUNTRY_INFO!C58) -> VAVOUA | D58: =IF(OR(COUNTRY_INFO!$T$9:$T$997="T2 (PZQ)",COUNTRY_INFO!$U$9:$U$997="T2 (PZQ)"), "T2 (PZQ)", " ") ->  | I58: 0 | M58: 0
A59: =IF(COUNTRY_INFO!A59=0," ",COUNTRY_INFO!A59) -> CÔTE D'IVOIRE | B59: =IF(COUNTRY_INFO!B59=0," ",COUNTRY_INFO!B59) -> INDENIE-DJUABLIN | C59: =IF(COUNTRY_INFO!C59=0," ",COUNTRY_INFO!C59) -> ABENGOUROU | D59: =IF(OR(COUNTRY_INFO!$T$9:$T$997="T2 (PZQ)",COUNTRY_INFO!$U$9:$U$997="T2 (PZQ)"), "T2 (PZQ)", " ") -> T2 (PZQ) | E59: Novembre 2019 | G59: 91518 | I59: 91518 | K59: 90364 | M59: 90364 | O59: 98.73904587 | Q59: 98.73904587
A60: =IF(COUNTRY_INFO!A60=0," ",COUNTRY_INFO!A60) -> CÔTE D'IVOIRE | B60: =IF(COUNTRY_INFO!B60=0," ",COUNTRY_INFO!B60) -> INDENIE-DJUABLIN | C60: =IF(COUNTRY_INFO!C60=0," ",COUNTRY_INFO!C60) -> AGNIBILEKRO | D60: =IF(OR(COUNTRY_INFO!$T$9:$T$997="T2 (PZQ)",COUNTRY_INFO!$U$9:$U$997="T2 (PZQ)"), "T2 (PZQ)", " ") ->  | I60: 0 | M60: 0
A61: =IF(COUNTRY_INFO!A61=0," ",COUNTRY_INFO!A61) -> CÔTE D'IVOIRE | B61: =IF(COUNTRY_INFO!B61=0," ",COUNTRY_INFO!B61) -> INDENIE-DJUABLIN | C61: =IF(COUNTRY_INFO!C61=0," ",COUNTRY_INFO!C61) -> BETTIE | D61: =IF(OR(COUNTRY_INFO!$T$9:$T$997="T2 (PZQ)",COUNTRY_INFO!$U$9:$U$997="T2 (PZQ)"), "T2 (PZQ)", " ") ->  | I61: 0 | M61: 0
A62: =IF(COUNTRY_INFO!A62=0," ",COUNTRY_INFO!A62) -> CÔTE D'IVOIRE | B62: =IF(COUNTRY_INFO!B62=0," ",COUNTRY_INFO!B62) -> KABADOUGOU-BAFING-FOLON | C62: =IF(COUNTRY_INFO!C62=0," ",COUNTRY_INFO!C62) -> MINIGNAN | D62: =IF(OR(COUNTRY_INFO!$T$9:$T$997="T2 (PZQ)",COUNTRY_INFO!$U$9:$U$997="T2 (PZQ)"), "T2 (PZQ)", " ") ->  | I62: 0 | M62: 0
A63: =IF(COUNTRY_INFO!A63=0," ",COUNTRY_INFO!A63) -> CÔTE D'IVOIRE | B63: =IF(COUNTRY_INFO!B63=0," ",COUNTRY_INFO!B63) -> KABADOUGOU-BAFING-FOLON | C63: =IF(COUNTRY_INFO!C63=0," ",COUNTRY_INFO!C63) -> ODIENNE | D63: =IF(OR(COUNTRY_INFO!$T$9:$T$997="T2 (PZQ)",COUNTRY_INFO!$U$9:$U$997="T2 (PZQ)"), "T2 (PZQ)", " ") -> T2 (PZQ) | E63: Novembre 2019 | G63: 52644 | I63: 52644 | K63: 48747 | M63: 48747 | O63: 92.597447 | Q63: 92.597447
A64: =IF(COUNTRY_INFO!A64=0," ",COUNTRY_INFO!A64) -> CÔTE D'IVOIRE | B64: =IF(COUNTRY_INFO!B64=0," ",COUNTRY_INFO!B64) -> KABADOUGOU-BAFING-FOLON | C64: =IF(COUNTRY_INFO!C64=0," ",COUNTRY_INFO!C64) -> TOUBA | D64: =IF(OR(COUNTRY_INFO!$T$9:$T$997="T2 (PZQ)",COUNTRY_INFO!$U$9:$U$997="T2 (PZQ)"), "T2 (PZQ)", " ") -> T2 (PZQ) | E64: Novembre 2019 | G64: 49836 | H64: 124589 | I64: 174425 | K64: 38833 | L64: 99666 | M64: 138499 | O64: 77.92158279 | P64: 79.99582628 | Q64: 79.40318188
A65: =IF(COUNTRY_INFO!A65=0," ",COUNTRY_INFO!A65) -> CÔTE D'IVOIRE | B65: =IF(COUNTRY_INFO!B65=0," ",COUNTRY_INFO!B65) -> LOH-DJIBOUA | C65: =IF(COUNTRY_INFO!C65=0," ",COUNTRY_INFO!C65) -> DIVO | D65: =IF(OR(COUNTRY_INFO!$T$9:$T$997="T2 (PZQ)",COUNTRY_INFO!$U$9:$U$997="T2 (PZQ)"), "T2 (PZQ)", " ") ->  | I65: 0 | M65: 0
A66: =IF(COUNTRY_INFO!A66=0," ",COUNTRY_INFO!A66) -> CÔTE D'IVOIRE | B66: =IF(COUNTRY_INFO!B66=0," ",COUNTRY_INFO!B66) -> LOH-DJIBOUA | C66: =IF(COUNTRY_INFO!C66=0," ",COUNTRY_INFO!C66) -> FRESCO | D66: =IF(OR(COUNTRY_INFO!$T$9:$T$997="T2 (PZQ)",COUNTRY_INFO!$U$9:$U$997="T2 (PZQ)"), "T2 (PZQ)", " ") ->  | I66: 0 | M66: 0
A67: =IF(COUNTRY_INFO!A67=0," ",COUNTRY_INFO!A67) -> CÔTE D'IVOIRE | B67: =IF(COUNTRY_INFO!B67=0," ",COUNTRY_INFO!B67) -> LOH-DJIBOUA | C67: =IF(COUNTRY_INFO!C67=0," ",COUNTRY_INFO!C67) -> GUITRY | D67: =IF(OR(COUNTRY_INFO!$T$9:$T$997="T2 (PZQ)",COUNTRY_INFO!$U$9:$U$997="T2 (PZQ)"), "T2 (PZQ)", " ") ->  | I67: 0 | M67: 0
A68: =IF(COUNTRY_INFO!A68=0," ",COUNTRY_INFO!A68) -> CÔTE D'IVOIRE | B68: =IF(COUNTRY_INFO!B68=0," ",COUNTRY_INFO!B68) -> LOH-DJIBOUA | C68: =IF(COUNTRY_INFO!C68=0," ",COUNTRY_INFO!C68) -> LAKOTA | D68: =IF(OR(COUNTRY_INFO!$T$9:$T$997="T2 (PZQ)",COUNTRY_INFO!$U$9:$U$997="T2 (PZQ)"), "T2 (PZQ)", " ") ->  | I68: 0 | M68: 0
A69: =IF(COUNTRY_INFO!A69=0," ",COUNTRY_INFO!A69) -> CÔTE D'IVOIRE | B69: =IF(COUNTRY_INFO!B69=0," ",COUNTRY_INFO!B69) -> MARAHOUE | C69: =IF(COUNTRY_INFO!C69=0," ",COUNTRY_INFO!C69) -> BOUAFLE | D69: =IF(OR(COUNTRY_INFO!$T$9:$T$997="T2 (PZQ)",COUNTRY_INFO!$U$9:$U$997="T2 (PZQ)"), "T2 (PZQ)", " ") -> T2 (PZQ) | E69: Novembre 2019 | G69: 111537 | I69: 111537 | K69: 107070 | M69: 107070 | O69: 95.99505097 | Q69: 95.99505097
A70: =IF(COUNTRY_INFO!A70=0," ",COUNTRY_INFO!A70) -> CÔTE D'IVOIRE | B70: =IF(COUNTRY_INFO!B70=0," ",COUNTRY_INFO!B70) -> MARAHOUE | C70: =IF(COUNTRY_INFO!C70=0," ",COUNTRY_INFO!C70) -> SINFRA | D70: =IF(OR(COUNTRY_INFO!$T$9:$T$997="T2 (PZQ)",COUNTRY_INFO!$U$9:$U$997="T2 (PZQ)"), "T2 (PZQ)", " ") ->  | I70: 0 | M70: 0
A71: =IF(COUNTRY_INFO!A71=0," ",COUNTRY_INFO!A71) -> CÔTE D'IVOIRE | B71: =IF(COUNTRY_INFO!B71=0," ",COUNTRY_INFO!B71) -> MARAHOUE | C71: =IF(COUNTRY_INFO!C71=0," ",COUNTRY_INFO!C71) -> ZUENOULA | D71: =IF(OR(COUNTRY_INFO!$T$9:$T$997="T2 (PZQ)",COUNTRY_INFO!$U$9:$U$997="T2 (PZQ)"), "T2 (PZQ)", " ") -> T2 (PZQ) | E71: Novembre 2019 | G71: 58439 | I71: 58439 | K71: 56431 | M71: 56431 | O71: 96.56393847 | Q71: 96.56393847
A72: =IF(COUNTRY_INFO!A72=0," ",COUNTRY_INFO!A72) -> CÔTE D'IVOIRE | B72: =IF(COUNTRY_INFO!B72=0," ",COUNTRY_INFO!B72) -> N'ZI-IFOU | C72: =IF(COUNTRY_INFO!C72=0," ",COUNTRY_INFO!C72) -> BOCANDA | D72: =IF(OR(COUNTRY_INFO!$T$9:$T$997="T2 (PZQ)",COUNTRY_INFO!$U$9:$U$997="T2 (PZQ)"), "T2 (PZQ)", " ") ->  | I72: =SUM(F72:H72) -> 0 | M72: =SUM(J72:L72) -> 0 | N72: =IF(F72<>0, IF(J72/F72*100=0, "-", J72/F72*100), " ") ->  | O72: =IF(G72<>0, IF(K72/G72*100=0, "-", K72/G72*100), " ") ->  | P72: =IF(H72<>0, IF(L72/H72*100=0, "-", L72/H72*100), " ") ->  | Q72: =IF(I72<>0, IF(M72/I72*100=0, "-", M72/I72*100), " ") -> 
A73: =IF(COUNTRY_INFO!A73=0," ",COUNTRY_INFO!A73) -> CÔTE D'IVOIRE | B73: =IF(COUNTRY_INFO!B73=0," ",COUNTRY_INFO!B73) -> N'ZI-IFOU | C73: =IF(COUNTRY_INFO!C73=0," ",COUNTRY_INFO!C73) -> BONGOUANOU | D73: =IF(OR(COUNTRY_INFO!$T$9:$T$997="T2 (PZQ)",COUNTRY_INFO!$U$9:$U$997="T2 (PZQ)"), "T2 (PZQ)", " ") ->  | I73: 0 | M73: 0
A74: =IF(COUNTRY_INFO!A74=0," ",COUNTRY_INFO!A74) -> CÔTE D'IVOIRE | B74: =IF(COUNTRY_INFO!B74=0," ",COUNTRY_INFO!B74) -> N'ZI-IFOU | C74: =IF(COUNTRY_INFO!C74=0," ",COUNTRY_INFO!C74) -> DAOUKRO | D74: =IF(OR(COUNTRY_INFO!$T$9:$T$997="T2 (PZQ)",COUNTRY_INFO!$U$9:$U$997="T2 (PZQ)"), "T2 (PZQ)", " ") -> T2 (PZQ) | E74: Novembre 2019 | G74: 43312 | I74: 43312 | K74: 39436 | M74: 39436 | O74: 91.05097894 | Q74: 91.05097894
A75: =IF(COUNTRY_INFO!A75=0," ",COUNTRY_INFO!A75) -> CÔTE D'IVOIRE | B75: =IF(COUNTRY_INFO!B75=0," ",COUNTRY_INFO!B75) -> N'ZI-IFOU | C75: =IF(COUNTRY_INFO!C75=0," ",COUNTRY_INFO!C75) -> DIMBOKRO | D75: =IF(OR(COUNTRY_INFO!$T$9:$T$997="T2 (PZQ)",COUNTRY_INFO!$U$9:$U$997="T2 (PZQ)"), "T2 (PZQ)", " ") -> T2 (PZQ) | E75: Novembre 2019 | G75: 24790 | I75: 24790 | K75: 24040 | M75: 24040 | O75: 96.97458653 | Q75: 96.97458653
A76: =IF(COUNTRY_INFO!A76=0," ",COUNTRY_INFO!A76) -> CÔTE D'IVOIRE | B76: =IF(COUNTRY_INFO!B76=0," ",COUNTRY_INFO!B76) -> N'ZI-IFOU | C76: =IF(COUNTRY_INFO!C76=0," ",COUNTRY_INFO!C76) -> M'BAHIAKRO | D76: =IF(OR(COUNTRY_INFO!$T$9:$T$997="T2 (PZQ)",COUNTRY_INFO!$U$9:$U$997="T2 (PZQ)"), "T2 (PZQ)", " ") -> T2 (PZQ) | E76: Novembre 2019 | G76: 21718 | I76: 21718 | K76: 18055 | M76: 18055 | O76: 83.13380606 | Q76: 83.13380606
A77: =IF(COUNTRY_INFO!A77=0," ",COUNTRY_INFO!A77) -> CÔTE D'IVOIRE | B77: =IF(COUNTRY_INFO!B77=0," ",COUNTRY_INFO!B77) -> N'ZI-IFOU | C77: =IF(COUNTRY_INFO!C77=0," ",COUNTRY_INFO!C77) -> PRIKRO | D77: =IF(OR(COUNTRY_INFO!$T$9:$T$997="T2 (PZQ)",COUNTRY_INFO!$U$9:$U$997="T2 (PZQ)"), "T2 (PZQ)", " ") -> T2 (PZQ) | E77: Novembre 2019 | G77: 19818 | I77: 19818 | K77: 18093 | M77: 18093 | O77: 91.2957917 | Q77: 91.2957917
A78: =IF(COUNTRY_INFO!A78=0," ",COUNTRY_INFO!A78) -> CÔTE D'IVOIRE | B78: =IF(COUNTRY_INFO!B78=0," ",COUNTRY_INFO!B78) -> PORO-TCHOLOGO-BAGOUE | C78: =IF(COUNTRY_INFO!C78=0," ",COUNTRY_INFO!C78) -> BOUNDIALI | D78: =IF(OR(COUNTRY_INFO!$T$9:$T$997="T2 (PZQ)",COUNTRY_INFO!$U$9:$U$997="T2 (PZQ)"), "T2 (PZQ)", " ") ->  | I78: 0 | M78: 0
A79: =IF(COUNTRY_INFO!A79=0," ",COUNTRY_INFO!A79) -> CÔTE D'IVOIRE | B79: =IF(COUNTRY_INFO!B79=0," ",COUNTRY_INFO!B79) -> PORO-TCHOLOGO-BAGOUE | C79: =IF(COUNTRY_INFO!C79=0," ",COUNTRY_INFO!C79) -> FERKESSEDOUGOU | D79: =IF(OR(COUNTRY_INFO!$T$9:$T$997="T2 (PZQ)",COUNTRY_INFO!$U$9:$U$997="T2 (PZQ)"), "T2 (PZQ)", " ") ->  | I79: 0 | M79: 0
A80: =IF(COUNTRY_INFO!A80=0," ",COUNTRY_INFO!A80) -> CÔTE D'IVOIRE | B80: =IF(COUNTRY_INFO!B80=0," ",COUNTRY_INFO!B80) -> PORO-TCHOLOGO-BAGOUE | C80: =IF(COUNTRY_INFO!C80=0," ",COUNTRY_INFO!C80) -> KORHOGO | D80: =IF(OR(COUNTRY_INFO!$T$9:$T$997="T2 (PZQ)",COUNTRY_INFO!$U$9:$U$997="T2 (PZQ)"), "T2 (PZQ)", " ") ->  | I80: 0 | M80: 0
A81: =IF(COUNTRY_INFO!A81=0," ",COUNTRY_INFO!A81) -> CÔTE D'IVOIRE | B81: =IF(COUNTRY_INFO!B81=0," ",COUNTRY_INFO!B81) -> PORO-TCHOLOGO-BAGOUE | C81: =IF(COUNTRY_INFO!C81=0," ",COUNTRY_INFO!C81) -> OUANGOLODOUGOU | D81: =IF(OR(COUNTRY_INFO!$T$9:$T$997="T2 (PZQ)",COUNTRY_INFO!$U$9:$U$997="T2 (PZQ)"), "T2 (PZQ)", " ") ->  | I81: 0 | M81: 0
A82: =IF(COUNTRY_INFO!A82=0," ",COUNTRY_INFO!A82) -> CÔTE D'IVOIRE | B82: =IF(COUNTRY_INFO!B82=0," ",COUNTRY_INFO!B82) -> PORO-TCHOLOGO-BAGOUE | C82: =IF(COUNTRY_INFO!C82=0," ",COUNTRY_INFO!C82) -> TENGRELA | D82: =IF(OR(COUNTRY_INFO!$T$9:$T$997="T2 (PZQ)",COUNTRY_INFO!$U$9:$U$997="T2 (PZQ)"), "T2 (PZQ)", " ") ->  | I82: 0 | M82: 0
A83: =IF(COUNTRY_INFO!A83=0," ",COUNTRY_INFO!A83) -> CÔTE D'IVOIRE | B83: =IF(COUNTRY_INFO!B83=0," ",COUNTRY_INFO!B83) -> SUD-COMOE | C83: =IF(COUNTRY_INFO!C83=0," ",COUNTRY_INFO!C83) -> ABOISSO | D83: =IF(OR(COUNTRY_INFO!$T$9:$T$997="T2 (PZQ)",COUNTRY_INFO!$U$9:$U$997="T2 (PZQ)"), "T2 (PZQ)", " ") -> T2 (PZQ) | E83: Novembre 2019 | G83: 83815 | I83: 83815 | K83: 79840 | M83: 79840 | O83: 95.25741216 | Q83: 95.25741216
A84: =IF(COUNTRY_INFO!A84=0," ",COUNTRY_INFO!A84) -> CÔTE D'IVOIRE | B84: =IF(COUNTRY_INFO!B84=0," ",COUNTRY_INFO!B84) -> SUD-COMOE | C84: =IF(COUNTRY_INFO!C84=0," ",COUNTRY_INFO!C84) -> ADIAKE | D84: =IF(OR(COUNTRY_INFO!$T$9:$T$997="T2 (PZQ)",COUNTRY_INFO!$U$9:$U$997="T2 (PZQ)"), "T2 (PZQ)", " ") -> T2 (PZQ) | E84: Novembre 2019 | G84: 42391 | I84: 42391 | K84: 39238 | M84: 39238 | O84: 92.56210045 | Q84: 92.56210045
A85: =IF(COUNTRY_INFO!A85=0," ",COUNTRY_INFO!A85) -> CÔTE D'IVOIRE | B85: =IF(COUNTRY_INFO!B85=0," ",COUNTRY_INFO!B85) -> SUD-COMOE | C85: =IF(COUNTRY_INFO!C85=0," ",COUNTRY_INFO!C85) -> GRAND-BASSAM | D85: =IF(OR(COUNTRY_INFO!$T$9:$T$997="T2 (PZQ)",COUNTRY_INFO!$U$9:$U$997="T2 (PZQ)"), "T2 (PZQ)", " ") -> T2 (PZQ) | E85: Novembre 2019 | G85: 48752 | I85: 48752 | K85: 46549 | M85: 46549 | O85: 95.48121103 | Q85: 95.48121103
A86: =IF(COUNTRY_INFO!A86=0," ",COUNTRY_INFO!A86) -> CÔTE D'IVOIRE | B86: =IF(COUNTRY_INFO!B86=0," ",COUNTRY_INFO!B86) -> TONKPI | C86: =IF(COUNTRY_INFO!C86=0," ",COUNTRY_INFO!C86) -> BIANKOUMA | D86: =IF(OR(COUNTRY_INFO!$T$9:$T$997="T2 (PZQ)",COUNTRY_INFO!$U$9:$U$997="T2 (PZQ)"), "T2 (PZQ)", " ") ->  | I86: 0 | M86: 0
A87: =IF(COUNTRY_INFO!A87=0," ",COUNTRY_INFO!A87) -> CÔTE D'IVOIRE | B87: =IF(COUNTRY_INFO!B87=0," ",COUNTRY_INFO!B87) -> TONKPI | C87: =IF(COUNTRY_INFO!C87=0," ",COUNTRY_INFO!C87) -> DANANE | D87: =IF(OR(COUNTRY_INFO!$T$9:$T$997="T2 (PZQ)",COUNTRY_INFO!$U$9:$U$997="T2 (PZQ)"), "T2 (PZQ)", " ") ->  | I87: 0 | M87: 0
A88: =IF(COUNTRY_INFO!A88=0," ",COUNTRY_INFO!A88) -> CÔTE D'IVOIRE | B88: =IF(COUNTRY_INFO!B88=0," ",COUNTRY_INFO!B88) -> TONKPI | C88: =IF(COUNTRY_INFO!C88=0," ",COUNTRY_INFO!C88) -> MAN | D88: =IF(OR(COUNTRY_INFO!$T$9:$T$997="T2 (PZQ)",COUNTRY_INFO!$U$9:$U$997="T2 (PZQ)"), "T2 (PZQ)", " ") ->  | I88: 0 | M88: 0
A89: =IF(COUNTRY_INFO!A89=0," ",COUNTRY_INFO!A89) -> CÔTE D'IVOIRE | B89: =IF(COUNTRY_INFO!B89=0," ",COUNTRY_INFO!B89) -> TONKPI | C89: =IF(COUNTRY_INFO!C89=0," ",COUNTRY_INFO!C89) -> ZOUAN-HOUNIEN | D89: =IF(OR(COUNTRY_INFO!$T$9:$T$997="T2 (PZQ)",COUNTRY_INFO!$U$9:$U$997="T2 (PZQ)"), "T2 (PZQ)", " ") -> T2 (PZQ) | E89: Novembre 2019 | G89: 53112 | H89: 132781 | I89: 185893 | K89: 46094 | L89: 100154 | M89: 146248 | O89: 86.78641362 | P89: 75.42796033 | Q89: 78.67321524
A90: =IF(COUNTRY_INFO!A90=0," ",COUNTRY_INFO!A90) -> CÔTE D'IVOIRE | B90: =IF(COUNTRY_INFO!B90=0," ",COUNTRY_INFO!B90) -> WORODOUGOU-BERE | C90: =IF(COUNTRY_INFO!C90=0," ",COUNTRY_INFO!C90) -> MANKONO | D90: =IF(OR(COUNTRY_INFO!$T$9:$T$997="T2 (PZQ)",COUNTRY_INFO!$U$9:$U$997="T2 (PZQ)"), "T2 (PZQ)", " ") ->  | I90: 0 | M90: 0
A91: =IF(COUNTRY_INFO!A91=0," ",COUNTRY_INFO!A91) -> CÔTE D'IVOIRE | B91: =IF(COUNTRY_INFO!B91=0," ",COUNTRY_INFO!B91) -> WORODOUGOU-BERE | C91: =IF(COUNTRY_INFO!C91=0," ",COUNTRY_INFO!C91) -> SEGUELA | D91: =IF(OR(COUNTRY_INFO!$T$9:$T$997="T2 (PZQ)",COUNTRY_INFO!$U$9:$U$997="T2 (PZQ)"), "T2 (PZQ)", " ") ->  | I91: 0 | M91: 0

Sheet T3_R1
A1: T 3 - Albendazole (ALB) ou Mebendazole (MBD) - Tournée 1
A2: Structure administrative, population nécessitant une chimioprévention par groupe d'âge, population traitée par groupe d'âge et couverture
A4: TOTAL | G4: =SUM(G$9:G$997) -> 0 | H4: 148728 | I4: 0 | J4: 148728 | K4: 0 | L4: 133364 | M4: 0 | N4: 133364 | O4: =IF(G4<>0, IF(K4/G4*100=0, "-", K4/G4*100), " ") ->  | P4: =IF(H4<>0, IF(L4/H4*100=0, "-", L4/H4*100), " ") -> 89.66973267 | Q4: =IF(I4<>0, IF(M4/I4*100=0, "-", M4/I4*100), " ") ->  | R4: =IF(J4<>0, IF(N4/J4*100=0, "-", N4/J4*100), " ") -> 89.66973267
A6: Structure administrative du pays | D6: Mise en oeuvre de la CP | E6: Médica-ment | F6: Date | G6: Population ciblée pour T3 | K6: Population traitée | O6: Couverture du Programme (%)
A7: Pays | B7: Région/Département | C7: District | G7: EAPréS | H7: EAS | I7: Adultes | J7: Total | K7: EAPréS | L7: EAS | M7: Adultes | N7: Total | O7: EAPréS | P7: EAS | Q7: Adultes | R7: Total
A9: =IF(COUNTRY_INFO!A9=0," ",COUNTRY_INFO!A9) -> CÔTE D'IVOIRE | B9: =IF(COUNTRY_INFO!B9=0," ",COUNTRY_INFO!B9) -> ABIDJAN 1 GRANDS PONTS | C9: =IF(COUNTRY_INFO!C9=0," ",COUNTRY_INFO!C9) -> ADJAME-PLATEAU-ATTECOUBE | D9: =IF(OR(COUNTRY_INFO!$T$9:$T$997="T3 (ALB/MBD)",COUNTRY_INFO!$U$9:$U$997="T3 (ALB/MBD)"), "T3 (ALB/MBD)", " ") ->  | J9: =SUM(G9:I9) -> 0 | N9: =SUM(K9:M9) -> 0 | O9: =IF(G9<>0, IF(K9/G9*100=0, "-", K9/G9*100), " ") ->  | P9: =IF(H9<>0, IF(L9/H9*100=0, "-", L9/H9*100), " ") ->  | Q9: =IF(I9<>0, IF(M9/I9*100=0, "-", M9/I9*100), " ") ->  | R9: =IF(J9<>0, IF(N9/J9*100=0, "-", N9/J9*100), " ") -> 
A10: =IF(COUNTRY_INFO!A10=0," ",COUNTRY_INFO!A10) -> CÔTE D'IVOIRE | B10: =IF(COUNTRY_INFO!B10=0," ",COUNTRY_INFO!B10) -> ABIDJAN 1 GRANDS PONTS | C10: =IF(COUNTRY_INFO!C10=0," ",COUNTRY_INFO!C10) -> DABOU | D10: =IF(OR(COUNTRY_INFO!$T$9:$T$997="T3 (ALB/MBD)",COUNTRY_INFO!$U$9:$U$997="T3 (ALB/MBD)"), "T3 (ALB/MBD)", " ") ->  | J10: =SUM(G10:I10) -> 0 | N10: =SUM(K10:M10) -> 0 | O10: =IF(G10<>0, IF(K10/G10*100=0, "-", K10/G10*100), " ") ->  | P10: =IF(H10<>0, IF(L10/H10*100=0, "-", L10/H10*100), " ") ->  | Q10: =IF(I10<>0, IF(M10/I10*100=0, "-", M10/I10*100), " ") ->  | R10: =IF(J10<>0, IF(N10/J10*100=0, "-", N10/J10*100), " ") -> 
A11: =IF(COUNTRY_INFO!A11=0," ",COUNTRY_INFO!A11) -> CÔTE D'IVOIRE | B11: =IF(COUNTRY_INFO!B11=0," ",COUNTRY_INFO!B11) -> ABIDJAN 1 GRANDS PONTS | C11: =IF(COUNTRY_INFO!C11=0," ",COUNTRY_INFO!C11) -> GRAND-LAHOU | D11: =IF(OR(COUNTRY_INFO!$T$9:$T$997="T3 (ALB/MBD)",COUNTRY_INFO!$U$9:$U$997="T3 (ALB/MBD)"), "T3 (ALB/MBD)", " ") ->  | J11: 0 | N11: 0
A12: =IF(COUNTRY_INFO!A12=0," ",COUNTRY_INFO!A12) -> CÔTE D'IVOIRE | B12: =IF(COUNTRY_INFO!B12=0," ",COUNTRY_INFO!B12) -> ABIDJAN 1 GRANDS PONTS | C12: =IF(COUNTRY_INFO!C12=0," ",COUNTRY_INFO!C12) -> JACQUEVILLE | D12: =IF(OR(COUNTRY_INFO!$T$9:$T$997="T3 (ALB/MBD)",COUNTRY_INFO!$U$9:$U$997="T3 (ALB/MBD)"), "T3 (ALB/MBD)", " ") ->  | J12: 0 | N12: 0
A13: =IF(COUNTRY_INFO!A13=0," ",COUNTRY_INFO!A13) -> CÔTE D'IVOIRE | B13: =IF(COUNTRY_INFO!B13=0," ",COUNTRY_INFO!B13) -> ABIDJAN 1 GRANDS PONTS | C13: =IF(COUNTRY_INFO!C13=0," ",COUNTRY_INFO!C13) -> YOPOUGON EST | D13: =IF(OR(COUNTRY_INFO!$T$9:$T$997="T3 (ALB/MBD)",COUNTRY_INFO!$U$9:$U$997="T3 (ALB/MBD)"), "T3 (ALB/MBD)", " ") ->  | J13: 0 | N13: 0
A14: =IF(COUNTRY_INFO!A14=0," ",COUNTRY_INFO!A14) -> CÔTE D'IVOIRE | B14: =IF(COUNTRY_INFO!B14=0," ",COUNTRY_INFO!B14) -> ABIDJAN 1 GRANDS PONTS | C14: =IF(COUNTRY_INFO!C14=0," ",COUNTRY_INFO!C14) -> YOPOUGON OUEST | D14: =IF(OR(COUNTRY_INFO!$T$9:$T$997="T3 (ALB/MBD)",COUNTRY_INFO!$U$9:$U$997="T3 (ALB/MBD)"), "T3 (ALB/MBD)", " ") ->  | J14: 0 | N14: 0
A15: =IF(COUNTRY_INFO!A15=0," ",COUNTRY_INFO!A15) -> CÔTE D'IVOIRE | B15: =IF(COUNTRY_INFO!B15=0," ",COUNTRY_INFO!B15) -> ABIDJAN 2 | C15: =IF(COUNTRY_INFO!C15=0," ",COUNTRY_INFO!C15) -> ABOBO EST | D15: =IF(OR(COUNTRY_INFO!$T$9:$T$997="T3 (ALB/MBD)",COUNTRY_INFO!$U$9:$U$997="T3 (ALB/MBD)"), "T3 (ALB/MBD)", " ") ->  | J15: 0 | N15: 0
A16: =IF(COUNTRY_INFO!A16=0," ",COUNTRY_INFO!A16) -> CÔTE D'IVOIRE | B16: =IF(COUNTRY_INFO!B16=0," ",COUNTRY_INFO!B16) -> ABIDJAN 2 | C16: =IF(COUNTRY_INFO!C16=0," ",COUNTRY_INFO!C16) -> ABOBO OUEST | D16: =IF(OR(COUNTRY_INFO!$T$9:$T$997="T3 (ALB/MBD)",COUNTRY_INFO!$U$9:$U$997="T3 (ALB/MBD)"), "T3 (ALB/MBD)", " ") ->  | J16: 0 | N16: 0
A17: =IF(COUNTRY_INFO!A17=0," ",COUNTRY_INFO!A17) -> CÔTE D'IVOIRE | B17: =IF(COUNTRY_INFO!B17=0," ",COUNTRY_INFO!B17) -> ABIDJAN 2 | C17: =IF(COUNTRY_INFO!C17=0," ",COUNTRY_INFO!C17) -> ANYAMA | D17: =IF(OR(COUNTRY_INFO!$T$9:$T$997="T3 (ALB/MBD)",COUNTRY_INFO!$U$9:$U$997="T3 (ALB/MBD)"), "T3 (ALB/MBD)", " ") ->  | J17: 0 | N17: 0
A18: =IF(COUNTRY_INFO!A18=0," ",COUNTRY_INFO!A18) -> CÔTE D'IVOIRE | B18: =IF(COUNTRY_INFO!B18=0," ",COUNTRY_INFO!B18) -> ABIDJAN 2 | C18: =IF(COUNTRY_INFO!C18=0," ",COUNTRY_INFO!C18) -> COCODY-BINGERVILLE | D18: =IF(OR(COUNTRY_INFO!$T$9:$T$997="T3 (ALB/MBD)",COUNTRY_INFO!$U$9:$U$997="T3 (ALB/MBD)"), "T3 (ALB/MBD)", " ") ->  | J18: 0 | N18: 0
A19: =IF(COUNTRY_INFO!A19=0," ",COUNTRY_INFO!A19) -> CÔTE D'IVOIRE | B19: =IF(COUNTRY_INFO!B19=0," ",COUNTRY_INFO!B19) -> ABIDJAN 2 | C19: =IF(COUNTRY_INFO!C19=0," ",COUNTRY_INFO!C19) -> KOUMASSI-PORT BOUET-VRIDI | D19: =IF(OR(COUNTRY_INFO!$T$9:$T$997="T3 (ALB/MBD)",COUNTRY_INFO!$U$9:$U$997="T3 (ALB/MBD)"), "T3 (ALB/MBD)", " ") ->  | J19: 0 | N19: 0
A20: =IF(COUNTRY_INFO!A20=0," ",COUNTRY_INFO!A20) -> CÔTE D'IVOIRE | B20: =IF(COUNTRY_INFO!B20=0," ",COUNTRY_INFO!B20) -> ABIDJAN 2 | C20: =IF(COUNTRY_INFO!C20=0," ",COUNTRY_INFO!C20) -> MARCORY-TREICHVILLE | D20: =IF(OR(COUNTRY_INFO!$T$9:$T$997="T3 (ALB/MBD)",COUNTRY_INFO!$U$9:$U$997="T3 (ALB/MBD)"), "T3 (ALB/MBD)", " ") ->  | J20: 0 | N20: 0
A21: =IF(COUNTRY_INFO!A21=0," ",COUNTRY_INFO!A21) -> CÔTE D'IVOIRE | B21: =IF(COUNTRY_INFO!B21=0," ",COUNTRY_INFO!B21) -> AGNEBY-TIASSA-ME | C21: =IF(COUNTRY_INFO!C21=0," ",COUNTRY_INFO!C21) -> ADZOPE | D21: =IF(OR(COUNTRY_INFO!$T$9:$T$997="T3 (ALB/MBD)",COUNTRY_INFO!$U$9:$U$997="T3 (ALB/MBD)"), "T3 (ALB/MBD)", " ") ->  | J21: 0 | N21: 0
A22: =IF(COUNTRY_INFO!A22=0," ",COUNTRY_INFO!A22) -> CÔTE D'IVOIRE | B22: =IF(COUNTRY_INFO!B22=0," ",COUNTRY_INFO!B22) -> AGNEBY-TIASSA-ME | C22: =IF(COUNTRY_INFO!C22=0," ",COUNTRY_INFO!C22) -> AGBOVILLE | D22: =IF(OR(COUNTRY_INFO!$T$9:$T$997="T3 (ALB/MBD)",COUNTRY_INFO!$U$9:$U$997="T3 (ALB/MBD)"), "T3 (ALB/MBD)", " ") ->  | J22: 0 | N22: 0
A23: =IF(COUNTRY_INFO!A23=0," ",COUNTRY_INFO!A23) -> CÔTE D'IVOIRE | B23: =IF(COUNTRY_INFO!B23=0," ",COUNTRY_INFO!B23) -> AGNEBY-TIASSA-ME | C23: =IF(COUNTRY_INFO!C23=0," ",COUNTRY_INFO!C23) -> AKOUPE | D23: =IF(OR(COUNTRY_INFO!$T$9:$T$997="T3 (ALB/MBD)",COUNTRY_INFO!$U$9:$U$997="T3 (ALB/MBD)"), "T3 (ALB/MBD)", " ") ->  | J23: 0 | N23: 0
A24: =IF(COUNTRY_INFO!A24=0," ",COUNTRY_INFO!A24) -> CÔTE D'IVOIRE | B24: =IF(COUNTRY_INFO!B24=0," ",COUNTRY_INFO!B24) -> AGNEBY-TIASSA-ME | C24: =IF(COUNTRY_INFO!C24=0," ",COUNTRY_INFO!C24) -> ALEPE | D24: =IF(OR(COUNTRY_INFO!$T$9:$T$997="T3 (ALB/MBD)",COUNTRY_INFO!$U$9:$U$997="T3 (ALB/MBD)"), "T3 (ALB/MBD)", " ") ->  | J24: 0 | N24: 0
A25: =IF(COUNTRY_INFO!A25=0," ",COUNTRY_INFO!A25) -> CÔTE D'IVOIRE | B25: =IF(COUNTRY_INFO!B25=0," ",COUNTRY_INFO!B25) -> AGNEBY-TIASSA-ME | C25: =IF(COUNTRY_INFO!C25=0," ",COUNTRY_INFO!C25) -> SIKENSI | D25: =IF(OR(COUNTRY_INFO!$T$9:$T$997="T3 (ALB/MBD)",COUNTRY_INFO!$U$9:$U$997="T3 (ALB/MBD)"), "T3 (ALB/MBD)", " ") ->  | J25: 0 | N25: 0
A26: =IF(COUNTRY_INFO!A26=0," ",COUNTRY_INFO!A26) -> CÔTE D'IVOIRE | B26: =IF(COUNTRY_INFO!B26=0," ",COUNTRY_INFO!B26) -> AGNEBY-TIASSA-ME | C26: =IF(COUNTRY_INFO!C26=0," ",COUNTRY_INFO!C26) -> TIASSALE | D26: =IF(OR(COUNTRY_INFO!$T$9:$T$997="T3 (ALB/MBD)",COUNTRY_INFO!$U$9:$U$997="T3 (ALB/MBD)"), "T3 (ALB/MBD)", " ") ->  | J26: 0 | N26: 0
A27: =IF(COUNTRY_INFO!A27=0," ",COUNTRY_INFO!A27) -> CÔTE D'IVOIRE | B27: =IF(COUNTRY_INFO!B27=0," ",COUNTRY_INFO!B27) -> BELIER | C27: =IF(COUNTRY_INFO!C27=0," ",COUNTRY_INFO!C27) -> DIDIEVI | D27: =IF(OR(COUNTRY_INFO!$T$9:$T$997="T3 (ALB/MBD)",COUNTRY_INFO!$U$9:$U$997="T3 (ALB/MBD)"), "T3 (ALB/MBD)", " ") ->  | J27: 0 | N27: 0
A28: =IF(COUNTRY_INFO!A28=0," ",COUNTRY_INFO!A28) -> CÔTE D'IVOIRE | B28: =IF(COUNTRY_INFO!B28=0," ",COUNTRY_INFO!B28) -> BELIER | C28: =IF(COUNTRY_INFO!C28=0," ",COUNTRY_INFO!C28) -> TIEBISSOU | D28: =IF(OR(COUNTRY_INFO!$T$9:$T$997="T3 (ALB/MBD)",COUNTRY_INFO!$U$9:$U$997="T3 (ALB/MBD)"), "T3 (ALB/MBD)", " ") ->  | J28: 0 | N28: 0
A29: =IF(COUNTRY_INFO!A29=0," ",COUNTRY_INFO!A29) -> CÔTE D'IVOIRE | B29: =IF(COUNTRY_INFO!B29=0," ",COUNTRY_INFO!B29) -> BELIER | C29: =IF(COUNTRY_INFO!C29=0," ",COUNTRY_INFO!C29) -> TOUMODI | D29: =IF(OR(COUNTRY_INFO!$T$9:$T$997="T3 (ALB/MBD)",COUNTRY_INFO!$U$9:$U$997="T3 (ALB/MBD)"), "T3 (ALB/MBD)", " ") ->  | J29: 0 | N29: 0
A30: =IF(COUNTRY_INFO!A30=0," ",COUNTRY_INFO!A30) -> CÔTE D'IVOIRE | B30: =IF(COUNTRY_INFO!B30=0," ",COUNTRY_INFO!B30) -> BELIER | C30: =IF(COUNTRY_INFO!C30=0," ",COUNTRY_INFO!C30) -> YAMOUSSOUKRO | D30: =IF(OR(COUNTRY_INFO!$T$9:$T$997="T3 (ALB/MBD)",COUNTRY_INFO!$U$9:$U$997="T3 (ALB/MBD)"), "T3 (ALB/MBD)", " ") ->  | J30: 0 | N30: 0
A31: =IF(COUNTRY_INFO!A31=0," ",COUNTRY_INFO!A31) -> CÔTE D'IVOIRE | B31: =IF(COUNTRY_INFO!B31=0," ",COUNTRY_INFO!B31) -> BOUKANI-GONTOUGO | C31: =IF(COUNTRY_INFO!C31=0," ",COUNTRY_INFO!C31) -> BONDOUKOU | D31: =IF(OR(COUNTRY_INFO!$T$9:$T$997="T3 (ALB/MBD)",COUNTRY_INFO!$U$9:$U$997="T3 (ALB/MBD)"), "T3 (ALB/MBD)", " ") ->  | J31: 0 | N31: 0
A32: =IF(COUNTRY_INFO!A32=0," ",COUNTRY_INFO!A32) -> CÔTE D'IVOIRE | B32: =IF(COUNTRY_INFO!B32=0," ",COUNTRY_INFO!B32) -> BOUKANI-GONTOUGO | C32: =IF(COUNTRY_INFO!C32=0," ",COUNTRY_INFO!C32) -> BOUNA | D32: =IF(OR(COUNTRY_INFO!$T$9:$T$997="T3 (ALB/MBD)",COUNTRY_INFO!$U$9:$U$997="T3 (ALB/MBD)"), "T3 (ALB/MBD)", " ") ->  | J32: 0 | N32: 0
A33: =IF(COUNTRY_INFO!A33=0," ",COUNTRY_INFO!A33) -> CÔTE D'IVOIRE | B33: =IF(COUNTRY_INFO!B33=0," ",COUNTRY_INFO!B33) -> BOUKANI-GONTOUGO | C33: =IF(COUNTRY_INFO!C33=0," ",COUNTRY_INFO!C33) -> NASSIAN | D33: =IF(OR(COUNTRY_INFO!$T$9:$T$997="T3 (ALB/MBD)",COUNTRY_INFO!$U$9:$U$997="T3 (ALB/MBD)"), "T3 (ALB/MBD)", " ") ->  | J33: 0 | N33: 0
A34: =IF(COUNTRY_INFO!A34=0," ",COUNTRY_INFO!A34) -> CÔTE D'IVOIRE | B34: =IF(COUNTRY_INFO!B34=0," ",COUNTRY_INFO!B34) -> BOUKANI-GONTOUGO | C34: =IF(COUNTRY_INFO!C34=0," ",COUNTRY_INFO!C34) -> TANDA | D34: =IF(OR(COUNTRY_INFO!$T$9:$T$997="T3 (ALB/MBD)",COUNTRY_INFO!$U$9:$U$997="T3 (ALB/MBD)"), "T3 (ALB/MBD)", " ") ->  | J34: 0 | N34: 0
A35: =IF(COUNTRY_INFO!A35=0," ",COUNTRY_INFO!A35) -> CÔTE D'IVOIRE | B35: =IF(COUNTRY_INFO!B35=0," ",COUNTRY_INFO!B35) -> CAVALLY-GUEMON | C35: =IF(COUNTRY_INFO!C35=0," ",COUNTRY_INFO!C35) -> BANGOLO | D35: =IF(OR(COUNTRY_INFO!$T$9:$T$997="T3 (ALB/MBD)",COUNTRY_INFO!$U$9:$U$997="T3 (ALB/MBD)"), "T3 (ALB/MBD)", " ") ->  | J35: 0 | N35: 0
A36: =IF(COUNTRY_INFO!A36=0," ",COUNTRY_INFO!A36) -> CÔTE D'IVOIRE | B36: =IF(COUNTRY_INFO!B36=0," ",COUNTRY_INFO!B36) -> CAVALLY-GUEMON | C36: =IF(COUNTRY_INFO!C36=0," ",COUNTRY_INFO!C36) -> BLOLEQUIN | D36: =IF(OR(COUNTRY_INFO!$T$9:$T$997="T3 (ALB/MBD)",COUNTRY_INFO!$U$9:$U$997="T3 (ALB/MBD)"), "T3 (ALB/MBD)", " ") ->  | J36: 0 | N36: 0
A37: =IF(COUNTRY_INFO!A37=0," ",COUNTRY_INFO!A37) -> CÔTE D'IVOIRE | B37: =IF(COUNTRY_INFO!B37=0," ",COUNTRY_INFO!B37) -> CAVALLY-GUEMON | C37: =IF(COUNTRY_INFO!C37=0," ",COUNTRY_INFO!C37) -> DUEKOUE | D37: =IF(OR(COUNTRY_INFO!$T$9:$T$997="T3 (ALB/MBD)",COUNTRY_INFO!$U$9:$U$997="T3 (ALB/MBD)"), "T3 (ALB/MBD)", " ") ->  | J37: 0 | N37: 0
A38: =IF(COUNTRY_INFO!A38=0," ",COUNTRY_INFO!A38) -> CÔTE D'IVOIRE | B38: =IF(COUNTRY_INFO!B38=0," ",COUNTRY_INFO!B38) -> CAVALLY-GUEMON | C38: =IF(COUNTRY_INFO!C38=0," ",COUNTRY_INFO!C38) -> GUIGLO | D38: =IF(OR(COUNTRY_INFO!$T$9:$T$997="T3 (ALB/MBD)",COUNTRY_INFO!$U$9:$U$997="T3 (ALB/MBD)"), "T3 (ALB/MBD)", " ") ->  | J38: 0 | N38: 0
A39: =IF(COUNTRY_INFO!A39=0," ",COUNTRY_INFO!A39) -> CÔTE D'IVOIRE | B39: =IF(COUNTRY_INFO!B39=0," ",COUNTRY_INFO!B39) -> CAVALLY-GUEMON | C39: =IF(COUNTRY_INFO!C39=0," ",COUNTRY_INFO!C39) -> KOUIBLY | D39: =IF(OR(COUNTRY_INFO!$T$9:$T$997="T3 (ALB/MBD)",COUNTRY_INFO!$U$9:$U$997="T3 (ALB/MBD)"), "T3 (ALB/MBD)", " ") ->  | J39: 0 | N39: 0
A40: =IF(COUNTRY_INFO!A40=0," ",COUNTRY_INFO!A40) -> CÔTE D'IVOIRE | B40: =IF(COUNTRY_INFO!B40=0," ",COUNTRY_INFO!B40) -> CAVALLY-GUEMON | C40: =IF(COUNTRY_INFO!C40=0," ",COUNTRY_INFO!C40) -> TOULEPLEU | D40: =IF(OR(COUNTRY_INFO!$T$9:$T$997="T3 (ALB/MBD)",COUNTRY_INFO!$U$9:$U$997="T3 (ALB/MBD)"), "T3 (ALB/MBD)", " ") ->  | J40: 0 | N40: 0
A41: =IF(COUNTRY_INFO!A41=0," ",COUNTRY_INFO!A41) -> CÔTE D'IVOIRE | B41: =IF(COUNTRY_INFO!B41=0," ",COUNTRY_INFO!B41) -> GBEKE | C41: =IF(COUNTRY_INFO!C41=0," ",COUNTRY_INFO!C41) -> BEOUMI | D41: =IF(OR(COUNTRY_INFO!$T$9:$T$997="T3 (ALB/MBD)",COUNTRY_INFO!$U$9:$U$997="T3 (ALB/MBD)"), "T3 (ALB/MBD)", " ") ->  | J41: 0 | N41: 0
A42: =IF(COUNTRY_INFO!A42=0," ",COUNTRY_INFO!A42) -> CÔTE D'IVOIRE | B42: =IF(COUNTRY_INFO!B42=0," ",COUNTRY_INFO!B42) -> GBEKE | C42: =IF(COUNTRY_INFO!C42=0," ",COUNTRY_INFO!C42) -> BOUAKE NORD-EST | D42: =IF(OR(COUNTRY_INFO!$T$9:$T$997="T3 (ALB/MBD)",COUNTRY_INFO!$U$9:$U$997="T3 (ALB/MBD)"), "T3 (ALB/MBD)", " ") ->  | J42: 0 | N42: 0
A43: =IF(COUNTRY_INFO!A43=0," ",COUNTRY_INFO!A43) -> CÔTE D'IVOIRE | B43: =IF(COUNTRY_INFO!B43=0," ",COUNTRY_INFO!B43) -> GBEKE | C43: =IF(COUNTRY_INFO!C43=0," ",COUNTRY_INFO!C43) -> BOUAKE NORD-OUEST | D43: =IF(OR(COUNTRY_INFO!$T$9:$T$997="T3 (ALB/MBD)",COUNTRY_INFO!$U$9:$U$997="T3 (ALB/MBD)"), "T3 (ALB/MBD)", " ") ->  | J43: 0 | N43: 0
A44: =IF(COUNTRY_INFO!A44=0," ",COUNTRY_INFO!A44) -> CÔTE D'IVOIRE | B44: =IF(COUNTRY_INFO!B44=0," ",COUNTRY_INFO!B44) -> GBEKE | C44: =IF(COUNTRY_INFO!C44=0," ",COUNTRY_INFO!C44) -> BOUAKE SUD | D44: =IF(OR(COUNTRY_INFO!$T$9:$T$997="T3 (ALB/MBD)",COUNTRY_INFO!$U$9:$U$997="T3 (ALB/MBD)"), "T3 (ALB/MBD)", " ") ->  | J44: 0 | N44: 0
A45: =IF(COUNTRY_INFO!A45=0," ",COUNTRY_INFO!A45) -> CÔTE D'IVOIRE | B45: =IF(COUNTRY_INFO!B45=0," ",COUNTRY_INFO!B45) -> GBEKE | C45: =IF(COUNTRY_INFO!C45=0," ",COUNTRY_INFO!C45) -> SAKASSOU | D45: =IF(OR(COUNTRY_INFO!$T$9:$T$997="T3 (ALB/MBD)",COUNTRY_INFO!$U$9:$U$997="T3 (ALB/MBD)"), "T3 (ALB/MBD)", " ") ->  | J45: 0 | N45: 0
A46: =IF(COUNTRY_INFO!A46=0," ",COUNTRY_INFO!A46) -> CÔTE D'IVOIRE | B46: =IF(COUNTRY_INFO!B46=0," ",COUNTRY_INFO!B46) -> GBOKLE-NAWA-SAN-PEDRO | C46: =IF(COUNTRY_INFO!C46=0," ",COUNTRY_INFO!C46) -> GUEYO | D46: =IF(OR(COUNTRY_INFO!$T$9:$T$997="T3 (ALB/MBD)",COUNTRY_INFO!$U$9:$U$997="T3 (ALB/MBD)"), "T3 (ALB/MBD)", " ") ->  | J46: 0 | N46: 0
A47: =IF(COUNTRY_INFO!A47=0," ",COUNTRY_INFO!A47) -> CÔTE D'IVOIRE | B47: =IF(COUNTRY_INFO!B47=0," ",COUNTRY_INFO!B47) -> GBOKLE-NAWA-SAN-PEDRO | C47: =IF(COUNTRY_INFO!C47=0," ",COUNTRY_INFO!C47) -> SAN PEDRO | D47: =IF(OR(COUNTRY_INFO!$T$9:$T$997="T3 (ALB/MBD)",COUNTRY_INFO!$U$9:$U$997="T3 (ALB/MBD)"), "T3 (ALB/MBD)", " ") ->  | J47: 0 | N47: 0
A48: =IF(COUNTRY_INFO!A48=0," ",COUNTRY_INFO!A48) -> CÔTE D'IVOIRE | B48: =IF(COUNTRY_INFO!B48=0," ",COUNTRY_INFO!B48) -> GBOKLE-NAWA-SAN-PEDRO | C48: =IF(COUNTRY_INFO!C48=0," ",COUNTRY_INFO!C48) -> SASSANDRA | D48: =IF(OR(COUNTRY_INFO!$T$9:$T$997="T3 (ALB/MBD)",COUNTRY_INFO!$U$9:$U$997="T3 (ALB/MBD)"), "T3 (ALB/MBD)", " ") ->  | J48: 0 | N48: 0
A49: =IF(COUNTRY_INFO!A49=0," ",COUNTRY_INFO!A49) -> CÔTE D'IVOIRE | B49: =IF(COUNTRY_INFO!B49=0," ",COUNTRY_INFO!B49) -> GBOKLE-NAWA-SAN-PEDRO | C49: =IF(COUNTRY_INFO!C49=0," ",COUNTRY_INFO!C49) -> SOUBRE | D49: =IF(OR(COUNTRY_INFO!$T$9:$T$997="T3 (ALB/MBD)",COUNTRY_INFO!$U$9:$U$997="T3 (ALB/MBD)"), "T3 (ALB/MBD)", " ") ->  | J49: 0 | N49: 0
A50: =IF(COUNTRY_INFO!A50=0," ",COUNTRY_INFO!A50) -> CÔTE D'IVOIRE | B50: =IF(COUNTRY_INFO!B50=0," ",COUNTRY_INFO!B50) -> GBOKLE-NAWA-SAN-PEDRO | C50: =IF(COUNTRY_INFO!C50=0," ",COUNTRY_INFO!C50) -> TABOU | D50: =IF(OR(COUNTRY_INFO!$T$9:$T$997="T3 (ALB/MBD)",COUNTRY_INFO!$U$9:$U$997="T3 (ALB/MBD)"), "T3 (ALB/MBD)", " ") ->  | J50: 0 | N50: 0
A51: =IF(COUNTRY_INFO!A51=0," ",COUNTRY_INFO!A51) -> CÔTE D'IVOIRE | B51: =IF(COUNTRY_INFO!B51=0," ",COUNTRY_INFO!B51) -> GOH | C51: =IF(COUNTRY_INFO!C51=0," ",COUNTRY_INFO!C51) -> GAGNOA | D51: =IF(OR(COUNTRY_INFO!$T$9:$T$997="T3 (ALB/MBD)",COUNTRY_INFO!$U$9:$U$997="T3 (ALB/MBD)"), "T3 (ALB/MBD)", " ") ->  | J51: 0 | N51: 0
A52: =IF(COUNTRY_INFO!A52=0," ",COUNTRY_INFO!A52) -> CÔTE D'IVOIRE | B52: =IF(COUNTRY_INFO!B52=0," ",COUNTRY_INFO!B52) -> GOH | C52: =IF(COUNTRY_INFO!C52=0," ",COUNTRY_INFO!C52) -> OUME | D52: =IF(OR(COUNTRY_INFO!$T$9:$T$997="T3 (ALB/MBD)",COUNTRY_INFO!$U$9:$U$997="T3 (ALB/MBD)"), "T3 (ALB/MBD)", " ") ->  | J52: 0 | N52: 0
A53: =IF(COUNTRY_INFO!A53=0," ",COUNTRY_INFO!A53) -> CÔTE D'IVOIRE | B53: =IF(COUNTRY_INFO!B53=0," ",COUNTRY_INFO!B53) -> HAMBOL | C53: =IF(COUNTRY_INFO!C53=0," ",COUNTRY_INFO!C53) -> DABAKALA | D53: =IF(OR(COUNTRY_INFO!$T$9:$T$997="T3 (ALB/MBD)",COUNTRY_INFO!$U$9:$U$997="T3 (ALB/MBD)"), "T3 (ALB/MBD)", " ") ->  | J53: 0 | N53: 0
A54: =IF(COUNTRY_INFO!A54=0," ",COUNTRY_INFO!A54) -> CÔTE D'IVOIRE | B54: =IF(COUNTRY_INFO!B54=0," ",COUNTRY_INFO!B54) -> HAMBOL | C54: =IF(COUNTRY_INFO!C54=0," ",COUNTRY_INFO!C54) -> KATIOLA | D54: =IF(OR(COUNTRY_INFO!$T$9:$T$997="T3 (ALB/MBD)",COUNTRY_INFO!$U$9:$U$997="T3 (ALB/MBD)"), "T3 (ALB/MBD)", " ") ->  | J54: 0 | N54: 0
A55: =IF(COUNTRY_INFO!A55=0," ",COUNTRY_INFO!A55) -> CÔTE D'IVOIRE | B55: =IF(COUNTRY_INFO!B55=0," ",COUNTRY_INFO!B55) -> HAMBOL | C55: =IF(COUNTRY_INFO!C55=0," ",COUNTRY_INFO!C55) -> NIAKARA | D55: =IF(OR(COUNTRY_INFO!$T$9:$T$997="T3 (ALB/MBD)",COUNTRY_INFO!$U$9:$U$997="T3 (ALB/MBD)"), "T3 (ALB/MBD)", " ") ->  | J55: 0 | N55: 0
A56: =IF(COUNTRY_INFO!A56=0," ",COUNTRY_INFO!A56) -> CÔTE D'IVOIRE | B56: =IF(COUNTRY_INFO!B56=0," ",COUNTRY_INFO!B56) -> HAUT SASSANDRA | C56: =IF(COUNTRY_INFO!C56=0," ",COUNTRY_INFO!C56) -> DALOA | D56: =IF(OR(COUNTRY_INFO!$T$9:$T$997="T3 (ALB/MBD)",COUNTRY_INFO!$U$9:$U$997="T3 (ALB/MBD)"), "T3 (ALB/MBD)", " ") ->  | J56: 0 | N56: 0
A57: =IF(COUNTRY_INFO!A57=0," ",COUNTRY_INFO!A57) -> CÔTE D'IVOIRE | B57: =IF(COUNTRY_INFO!B57=0," ",COUNTRY_INFO!B57) -> HAUT SASSANDRA | C57: =IF(COUNTRY_INFO!C57=0," ",COUNTRY_INFO!C57) -> ISSIA | D57: =IF(OR(COUNTRY_INFO!$T$9:$T$997="T3 (ALB/MBD)",COUNTRY_INFO!$U$9:$U$997="T3 (ALB/MBD)"), "T3 (ALB/MBD)", " ") ->  | J57: 0 | N57: 0
A58: =IF(COUNTRY_INFO!A58=0," ",COUNTRY_INFO!A58) -> CÔTE D'IVOIRE | B58: =IF(COUNTRY_INFO!B58=0," ",COUNTRY_INFO!B58) -> HAUT SASSANDRA | C58: =IF(COUNTRY_INFO!C58=0," ",COUNTRY_INFO!C58) -> VAVOUA | D58: =IF(OR(COUNTRY_INFO!$T$9:$T$997="T3 (ALB/MBD)",COUNTRY_INFO!$U$9:$U$997="T3 (ALB/MBD)"), "T3 (ALB/MBD)", " ") ->  | J58: 0 | N58: 0
A59: =IF(COUNTRY_INFO!A59=0," ",COUNTRY_INFO!A59) -> CÔTE D'IVOIRE | B59: =IF(COUNTRY_INFO!B59=0," ",COUNTRY_INFO!B59) -> INDENIE-DJUABLIN | C59: =IF(COUNTRY_INFO!C59=0," ",COUNTRY_INFO!C59) -> ABENGOUROU | D59: =IF(OR(COUNTRY_INFO!$T$9:$T$997="T3 (ALB/MBD)",COUNTRY_INFO!$U$9:$U$997="T3 (ALB/MBD)"), "T3 (ALB/MBD)", " ") ->  | J59: 0 | N59: 0
A60: =IF(COUNTRY_INFO!A60=0," ",COUNTRY_INFO!A60) -> CÔTE D'IVOIRE | B60: =IF(COUNTRY_INFO!B60=0," ",COUNTRY_INFO!B60) -> INDENIE-DJUABLIN | C60: =IF(COUNTRY_INFO!C60=0," ",COUNTRY_INFO!C60) -> AGNIBILEKRO | D60: =IF(OR(COUNTRY_INFO!$T$9:$T$997="T3 (ALB/MBD)",COUNTRY_INFO!$U$9:$U$997="T3 (ALB/MBD)"), "T3 (ALB/MBD)", " ") ->  | J60: 0 | N60: 0
A61: =IF(COUNTRY_INFO!A61=0," ",COUNTRY_INFO!A61) -> CÔTE D'IVOIRE | B61: =IF(COUNTRY_INFO!B61=0," ",COUNTRY_INFO!B61) -> INDENIE-DJUABLIN | C61: =IF(COUNTRY_INFO!C61=0," ",COUNTRY_INFO!C61) -> BETTIE | D61: =IF(OR(COUNTRY_INFO!$T$9:$T$997="T3 (ALB/MBD)",COUNTRY_INFO!$U$9:$U$997="T3 (ALB/MBD)"), "T3 (ALB/MBD)", " ") ->  | J61: 0 | N61: 0
A62: =IF(COUNTRY_INFO!A62=0," ",COUNTRY_INFO!A62) -> CÔTE D'IVOIRE | B62: =IF(COUNTRY_INFO!B62=0," ",COUNTRY_INFO!B62) -> KABADOUGOU-BAFING-FOLON | C62: =IF(COUNTRY_INFO!C62=0," ",COUNTRY_INFO!C62) -> MINIGNAN | D62: =IF(OR(COUNTRY_INFO!$T$9:$T$997="T3 (ALB/MBD)",COUNTRY_INFO!$U$9:$U$997="T3 (ALB/MBD)"), "T3 (ALB/MBD)", " ") ->  | J62: 0 | N62: 0
A63: =IF(COUNTRY_INFO!A63=0," ",COUNTRY_INFO!A63) -> CÔTE D'IVOIRE | B63: =IF(COUNTRY_INFO!B63=0," ",COUNTRY_INFO!B63) -> KABADOUGOU-BAFING-FOLON | C63: =IF(COUNTRY_INFO!C63=0," ",COUNTRY_INFO!C63) -> ODIENNE | D63: =IF(OR(COUNTRY_INFO!$T$9:$T$997="T3 (ALB/MBD)",COUNTRY_INFO!$U$9:$U$997="T3 (ALB/MBD)"), "T3 (ALB/MBD)", " ") ->  | J63: 0 | N63: 0
A64: =IF(COUNTRY_INFO!A64=0," ",COUNTRY_INFO!A64) -> CÔTE D'IVOIRE | B64: =IF(COUNTRY_INFO!B64=0," ",COUNTRY_INFO!B64) -> KABADOUGOU-BAFING-FOLON | C64: =IF(COUNTRY_INFO!C64=0," ",COUNTRY_INFO!C64) -> TOUBA | D64: =IF(OR(COUNTRY_INFO!$T$9:$T$997="T3 (ALB/MBD)",COUNTRY_INFO!$U$9:$U$997="T3 (ALB/MBD)"), "T3 (ALB/MBD)", " ") ->  | J64: 0 | N64: 0
A65: =IF(COUNTRY_INFO!A65=0," ",COUNTRY_INFO!A65) -> CÔTE D'IVOIRE | B65: =IF(COUNTRY_INFO!B65=0," ",COUNTRY_INFO!B65) -> LOH-DJIBOUA | C65: =IF(COUNTRY_INFO!C65=0," ",COUNTRY_INFO!C65) -> DIVO | D65: =IF(OR(COUNTRY_INFO!$T$9:$T$997="T3 (ALB/MBD)",COUNTRY_INFO!$U$9:$U$997="T3 (ALB/MBD)"), "T3 (ALB/MBD)", " ") ->  | J65: 0 | N65: 0
A66: =IF(COUNTRY_INFO!A66=0," ",COUNTRY_INFO!A66) -> CÔTE D'IVOIRE | B66: =IF(COUNTRY_INFO!B66=0," ",COUNTRY_INFO!B66) -> LOH-DJIBOUA | C66: =IF(COUNTRY_INFO!C66=0," ",COUNTRY_INFO!C66) -> FRESCO | D66: =IF(OR(COUNTRY_INFO!$T$9:$T$997="T3 (ALB/MBD)",COUNTRY_INFO!$U$9:$U$997="T3 (ALB/MBD)"), "T3 (ALB/MBD)", " ") ->  | J66: 0 | N66: 0
A67: =IF(COUNTRY_INFO!A67=0," ",COUNTRY_INFO!A67) -> CÔTE D'IVOIRE | B67: =IF(COUNTRY_INFO!B67=0," ",COUNTRY_INFO!B67) -> LOH-DJIBOUA | C67: =IF(COUNTRY_INFO!C67=0," ",COUNTRY_INFO!C67) -> GUITRY | D67: =IF(OR(COUNTRY_INFO!$T$9:$T$997="T3 (ALB/MBD)",COUNTRY_INFO!$U$9:$U$997="T3 (ALB/MBD)"), "T3 (ALB/MBD)", " ") ->  | J67: 0 | N67: 0
A68: =IF(COUNTRY_INFO!A68=0," ",COUNTRY_INFO!A68) -> CÔTE D'IVOIRE | B68: =IF(COUNTRY_INFO!B68=0," ",COUNTRY_INFO!B68) -> LOH-DJIBOUA | C68: =IF(COUNTRY_INFO!C68=0," ",COUNTRY_INFO!C68) -> LAKOTA | D68: =IF(OR(COUNTRY_INFO!$T$9:$T$997="T3 (ALB/MBD)",COUNTRY_INFO!$U$9:$U$997="T3 (ALB/MBD)"), "T3 (ALB/MBD)", " ") ->  | J68: 0 | N68: 0
A69: =IF(COUNTRY_INFO!A69=0," ",COUNTRY_INFO!A69) -> CÔTE D'IVOIRE | B69: =IF(COUNTRY_INFO!B69=0," ",COUNTRY_INFO!B69) -> MARAHOUE | C69: =IF(COUNTRY_INFO!C69=0," ",COUNTRY_INFO!C69) -> BOUAFLE | D69: =IF(OR(COUNTRY_INFO!$T$9:$T$997="T3 (ALB/MBD)",COUNTRY_INFO!$U$9:$U$997="T3 (ALB/MBD)"), "T3 (ALB/MBD)", " ") ->  | J69: 0 | N69: 0
A70: =IF(COUNTRY_INFO!A70=0," ",COUNTRY_INFO!A70) -> CÔTE D'IVOIRE | B70: =IF(COUNTRY_INFO!B70=0," ",COUNTRY_INFO!B70) -> MARAHOUE | C70: =IF(COUNTRY_INFO!C70=0," ",COUNTRY_INFO!C70) -> SINFRA | D70: =IF(OR(COUNTRY_INFO!$T$9:$T$997="T3 (ALB/MBD)",COUNTRY_INFO!$U$9:$U$997="T3 (ALB/MBD)"), "T3 (ALB/MBD)", " ") ->  | J70: 0 | N70: 0
A71: =IF(COUNTRY_INFO!A71=0," ",COUNTRY_INFO!A71) -> CÔTE D'IVOIRE | B71: =IF(COUNTRY_INFO!B71=0," ",COUNTRY_INFO!B71) -> MARAHOUE | C71: =IF(COUNTRY_INFO!C71=0," ",COUNTRY_INFO!C71) -> ZUENOULA | D71: =IF(OR(COUNTRY_INFO!$T$9:$T$997="T3 (ALB/MBD)",COUNTRY_INFO!$U$9:$U$997="T3 (ALB/MBD)"), "T3 (ALB/MBD)", " ") ->  | J71: 0 | N71: 0
A72: =IF(COUNTRY_INFO!A72=0," ",COUNTRY_INFO!A72) -> CÔTE D'IVOIRE | B72: =IF(COUNTRY_INFO!B72=0," ",COUNTRY_INFO!B72) -> N'ZI-IFOU | C72: =IF(COUNTRY_INFO!C72=0," ",COUNTRY_INFO!C72) -> BOCANDA | D72: =IF(OR(COUNTRY_INFO!$T$9:$T$997="T3 (ALB/MBD)",COUNTRY_INFO!$U$9:$U$997="T3 (ALB/MBD)"), "T3 (ALB/MBD)", " ") -> T3 (ALB/MBD) | E72: ALB | F72: Novembre 2019 | H72: 42614 | J72: =SUM(G72:I72) -> 42614 | L72: 34920 | N72: =SUM(K72:M72) -> 34920 | O72: =IF(G72<>0, IF(K72/G72*100=0, "-", K72/G72*100), " ") ->  | P72: =IF(H72<>0, IF(L72/H72*100=0, "-", L72/H72*100), " ") -> 81.94490074 | Q72: =IF(I72<>0, IF(M72/I72*100=0, "-", M72/I72*100), " ") ->  | R72: =IF(J72<>0, IF(N72/J72*100=0, "-", N72/J72*100), " ") -> 81.94490074
A73: =IF(COUNTRY_INFO!A73=0," ",COUNTRY_INFO!A73) -> CÔTE D'IVOIRE | B73: =IF(COUNTRY_INFO!B73=0," ",COUNTRY_INFO!B73) -> N'ZI-IFOU | C73: =IF(COUNTRY_INFO!C73=0," ",COUNTRY_INFO!C73) -> BONGOUANOU | D73: =IF(OR(COUNTRY_INFO!$T$9:$T$997="T3 (ALB/MBD)",COUNTRY_INFO!$U$9:$U$997="T3 (ALB/MBD)"), "T3 (ALB/MBD)", " ") ->  | J73: =SUM(G73:I73) -> 0 | N73: 0
A74: =IF(COUNTRY_INFO!A74=0," ",COUNTRY_INFO!A74) -> CÔTE D'IVOIRE | B74: =IF(COUNTRY_INFO!B74=0," ",COUNTRY_INFO!B74) -> N'ZI-IFOU | C74: =IF(COUNTRY_INFO!C74=0," ",COUNTRY_INFO!C74) -> DAOUKRO | D74: =IF(OR(COUNTRY_INFO!$T$9:$T$997="T3 (ALB/MBD)",COUNTRY_INFO!$U$9:$U$997="T3 (ALB/MBD)"), "T3 (ALB/MBD)", " ") ->  | J74: 0 | N74: 0
A75: =IF(COUNTRY_INFO!A75=0," ",COUNTRY_INFO!A75) -> CÔTE D'IVOIRE | B75: =IF(COUNTRY_INFO!B75=0," ",COUNTRY_INFO!B75) -> N'ZI-IFOU | C75: =IF(COUNTRY_INFO!C75=0," ",COUNTRY_INFO!C75) -> DIMBOKRO | D75: =IF(OR(COUNTRY_INFO!$T$9:$T$997="T3 (ALB/MBD)",COUNTRY_INFO!$U$9:$U$997="T3 (ALB/MBD)"), "T3 (ALB/MBD)", " ") ->  | J75: 0 | N75: 0
A76: =IF(COUNTRY_INFO!A76=0," ",COUNTRY_INFO!A76) -> CÔTE D'IVOIRE | B76: =IF(COUNTRY_INFO!B76=0," ",COUNTRY_INFO!B76) -> N'ZI-IFOU | C76: =IF(COUNTRY_INFO!C76=0," ",COUNTRY_INFO!C76) -> M'BAHIAKRO | D76: =IF(OR(COUNTRY_INFO!$T$9:$T$997="T3 (ALB/MBD)",COUNTRY_INFO!$U$9:$U$997="T3 (ALB/MBD)"), "T3 (ALB/MBD)", " ") ->  | J76: 0 | N76: 0
A77: =IF(COUNTRY_INFO!A77=0," ",COUNTRY_INFO!A77) -> CÔTE D'IVOIRE | B77: =IF(COUNTRY_INFO!B77=0," ",COUNTRY_INFO!B77) -> N'ZI-IFOU | C77: =IF(COUNTRY_INFO!C77=0," ",COUNTRY_INFO!C77) -> PRIKRO | D77: =IF(OR(COUNTRY_INFO!$T$9:$T$997="T3 (ALB/MBD)",COUNTRY_INFO!$U$9:$U$997="T3 (ALB/MBD)"), "T3 (ALB/MBD)", " ") ->  | J77: 0 | N77: 0
A78: =IF(COUNTRY_INFO!A78=0," ",COUNTRY_INFO!A78) -> CÔTE D'IVOIRE | B78: =IF(COUNTRY_INFO!B78=0," ",COUNTRY_INFO!B78) -> PORO-TCHOLOGO-BAGOUE | C78: =IF(COUNTRY_INFO!C78=0," ",COUNTRY_INFO!C78) -> BOUNDIALI | D78: =IF(OR(COUNTRY_INFO!$T$9:$T$997="T3 (ALB/MBD)",COUNTRY_INFO!$U$9:$U$997="T3 (ALB/MBD)"), "T3 (ALB/MBD)", " ") ->  | J78: 0 | N78: 0
A79: =IF(COUNTRY_INFO!A79=0," ",COUNTRY_INFO!A79) -> CÔTE D'IVOIRE | B79: =IF(COUNTRY_INFO!B79=0," ",COUNTRY_INFO!B79) -> PORO-TCHOLOGO-BAGOUE | C79: =IF(COUNTRY_INFO!C79=0," ",COUNTRY_INFO!C79) -> FERKESSEDOUGOU | D79: =IF(OR(COUNTRY_INFO!$T$9:$T$997="T3 (ALB/MBD)",COUNTRY_INFO!$U$9:$U$997="T3 (ALB/MBD)"), "T3 (ALB/MBD)", " ") ->  | J79: 0 | N79: 0
A80: =IF(COUNTRY_INFO!A80=0," ",COUNTRY_INFO!A80) -> CÔTE D'IVOIRE | B80: =IF(COUNTRY_INFO!B80=0," ",COUNTRY_INFO!B80) -> PORO-TCHOLOGO-BAGOUE | C80: =IF(COUNTRY_INFO!C80=0," ",COUNTRY_INFO!C80) -> KORHOGO | D80: =IF(OR(COUNTRY_INFO!$T$9:$T$997="T3 (ALB/MBD)",COUNTRY_INFO!$U$9:$U$997="T3 (ALB/MBD)"), "T3 (ALB/MBD)", " ") ->  | J80: 0 | N80: 0
A81: =IF(COUNTRY_INFO!A81=0," ",COUNTRY_INFO!A81) -> CÔTE D'IVOIRE | B81: =IF(COUNTRY_INFO!B81=0," ",COUNTRY_INFO!B81) -> PORO-TCHOLOGO-BAGOUE | C81: =IF(COUNTRY_INFO!C81=0," ",COUNTRY_INFO!C81) -> OUANGOLODOUGOU | D81: =IF(OR(COUNTRY_INFO!$T$9:$T$997="T3 (ALB/MBD)",COUNTRY_INFO!$U$9:$U$997="T3 (ALB/MBD)"), "T3 (ALB/MBD)", " ") ->  | J81: 0 | N81: 0
A82: =IF(COUNTRY_INFO!A82=0," ",COUNTRY_INFO!A82) -> CÔTE D'IVOIRE | B82: =IF(COUNTRY_INFO!B82=0," ",COUNTRY_INFO!B82) -> PORO-TCHOLOGO-BAGOUE | C82: =IF(COUNTRY_INFO!C82=0," ",COUNTRY_INFO!C82) -> TENGRELA | D82: =IF(OR(COUNTRY_INFO!$T$9:$T$997="T3 (ALB/MBD)",COUNTRY_INFO!$U$9:$U$997="T3 (ALB/MBD)"), "T3 (ALB/MBD)", " ") ->  | J82: 0 | N82: 0
A83: =IF(COUNTRY_INFO!A83=0," ",COUNTRY_INFO!A83) -> CÔTE D'IVOIRE | B83: =IF(COUNTRY_INFO!B83=0," ",COUNTRY_INFO!B83) -> SUD-COMOE | C83: =IF(COUNTRY_INFO!C83=0," ",COUNTRY_INFO!C83) -> ABOISSO | D83: =IF(OR(COUNTRY_INFO!$T$9:$T$997="T3 (ALB/MBD)",COUNTRY_INFO!$U$9:$U$997="T3 (ALB/MBD)"), "T3 (ALB/MBD)", " ") ->  | J83: 0 | N83: 0
A84: =IF(COUNTRY_INFO!A84=0," ",COUNTRY_INFO!A84) -> CÔTE D'IVOIRE | B84: =IF(COUNTRY_INFO!B84=0," ",COUNTRY_INFO!B84) -> SUD-COMOE | C84: =IF(COUNTRY_INFO!C84=0," ",COUNTRY_INFO!C84) -> ADIAKE | D84: =IF(OR(COUNTRY_INFO!$T$9:$T$997="T3 (ALB/MBD)",COUNTRY_INFO!$U$9:$U$997="T3 (ALB/MBD)"), "T3 (ALB/MBD)", " ") ->  | J84: 0 | N84: 0
A85: =IF(COUNTRY_INFO!A85=0," ",COUNTRY_INFO!A85) -> CÔTE D'IVOIRE | B85: =IF(COUNTRY_INFO!B85=0," ",COUNTRY_INFO!B85) -> SUD-COMOE | C85: =IF(COUNTRY_INFO!C85=0," ",COUNTRY_INFO!C85) -> GRAND-BASSAM | D85: =IF(OR(COUNTRY_INFO!$T$9:$T$997="T3 (ALB/MBD)",COUNTRY_INFO!$U$9:$U$997="T3 (ALB/MBD)"), "T3 (ALB/MBD)", " ") ->  | J85: 0 | N85: 0
A86: =IF(COUNTRY_INFO!A86=0," ",COUNTRY_INFO!A86) -> CÔTE D'IVOIRE | B86: =IF(COUNTRY_INFO!B86=0," ",COUNTRY_INFO!B86) -> TONKPI | C86: =IF(COUNTRY_INFO!C86=0," ",COUNTRY_INFO!C86) -> BIANKOUMA | D86: =IF(OR(COUNTRY_INFO!$T$9:$T$997="T3 (ALB/MBD)",COUNTRY_INFO!$U$9:$U$997="T3 (ALB/MBD)"), "T3 (ALB/MBD)", " ") ->  | J86: 0 | N86: 0
A87: =IF(COUNTRY_INFO!A87=0," ",COUNTRY_INFO!A87) -> CÔTE D'IVOIRE | B87: =IF(COUNTRY_INFO!B87=0," ",COUNTRY_INFO!B87) -> TONKPI | C87: =IF(COUNTRY_INFO!C87=0," ",COUNTRY_INFO!C87) -> DANANE | D87: =IF(OR(COUNTRY_INFO!$T$9:$T$997="T3 (ALB/MBD)",COUNTRY_INFO!$U$9:$U$997="T3 (ALB/MBD)"), "T3 (ALB/MBD)", " ") ->  | J87: 0 | N87: 0
A88: =IF(COUNTRY_INFO!A88=0," ",COUNTRY_INFO!A88) -> CÔTE D'IVOIRE | B88: =IF(COUNTRY_INFO!B88=0," ",COUNTRY_INFO!B88) -> TONKPI | C88: =IF(COUNTRY_INFO!C88=0," ",COUNTRY_INFO!C88) -> MAN | D88: =IF(OR(COUNTRY_INFO!$T$9:$T$997="T3 (ALB/MBD)",COUNTRY_INFO!$U$9:$U$997="T3 (ALB/MBD)"), "T3 (ALB/MBD)", " ") ->  | J88: 0 | N88: 0
A89: =IF(COUNTRY_INFO!A89=0," ",COUNTRY_INFO!A89) -> CÔTE D'IVOIRE | B89: =IF(COUNTRY_INFO!B89=0," ",COUNTRY_INFO!B89) -> TONKPI | C89: =IF(COUNTRY_INFO!C89=0," ",COUNTRY_INFO!C89) -> ZOUAN-HOUNIEN | D89: =IF(OR(COUNTRY_INFO!$T$9:$T$997="T3 (ALB/MBD)",COUNTRY_INFO!$U$9:$U$997="T3 (ALB/MBD)"), "T3 (ALB/MBD)", " ") ->  | J89: 0 | N89: 0
A90: =IF(COUNTRY_INFO!A90=0," ",COUNTRY_INFO!A90) -> CÔTE D'IVOIRE | B90: =IF(COUNTRY_INFO!B90=0," ",COUNTRY_INFO!B90) -> WORODOUGOU-BERE | C90: =IF(COUNTRY_INFO!C90=0," ",COUNTRY_INFO!C90) -> MANKONO | D90: =IF(OR(COUNTRY_INFO!$T$9:$T$997="T3 (ALB/MBD)",COUNTRY_INFO!$U$9:$U$997="T3 (ALB/MBD)"), "T3 (ALB/MBD)", " ") -> T3 (ALB/MBD) | E90: ALB | F90: Novembre 2019 | H90: 106114 | J90: 106114 | L90: 98444 | N90: 98444 | P90: 92.77192453 | R90: 92.77192453
A91: =IF(COUNTRY_INFO!A91=0," ",COUNTRY_INFO!A91) -> CÔTE D'IVOIRE | B91: =IF(COUNTRY_INFO!B91=0," ",COUNTRY_INFO!B91) -> WORODOUGOU-BERE | C91: =IF(COUNTRY_INFO!C91=0," ",COUNTRY_INFO!C91) -> SEGUELA | D91: =IF(OR(COUNTRY_INFO!$T$9:$T$997="T3 (ALB/MBD)",COUNTRY_INFO!$U$9:$U$997="T3 (ALB/MBD)"), "T3 (ALB/MBD)", " ") ->  | J91: 0 | N91: 0

Sheet T3_R2
A1: T 3 - Albendazole (ALB) ou Mebendazole (MBD) - Tournée 2
A2: Structure administrative, population nécessitant une chimioprévention par groupe d'âge, population traitée par groupe d'âge et couverture
A4: TOTAL | G4: =SUM(G$9:G$997) -> 0 | H4: 0 | I4: 0 | J4: 0 | K4: 0 | L4: 0 | M4: 0 | N4: 0 | O4: =IF(G4<>0, IF(K4/G4*100=0, "-", K4/G4*100), " ") ->  | P4: =IF(H4<>0, IF(L4/H4*100=0, "-", L4/H4*100), " ") ->  | Q4: =IF(I4<>0, IF(M4/I4*100=0, "-", M4/I4*100), " ") ->  | R4: =IF(J4<>0, IF(N4/J4*100=0, "-", N4/J4*100), " ") -> 
A6: Structure administrative du pays | D6: Mise en oeuvre de la CP | E6: Médica-ment | F6: Date | G6: Population ciblée pour T3 | K6: Population traitée | O6: Couverture du Programme (%)
A7: Pays | B7: Région/Département | C7: District | G7: EAPréS | H7: EAS | I7: Adultes | J7: Total | K7: EAPréS | L7: EAS | M7: Adultes | N7: Total | O7: EAPréS | P7: EAS | Q7: Adultes | R7: Total
A9: =IF(COUNTRY_INFO!A9=0," ",COUNTRY_INFO!A9) -> CÔTE D'IVOIRE | B9: =IF(COUNTRY_INFO!B9=0," ",COUNTRY_INFO!B9) -> ABIDJAN 1 GRANDS PONTS | C9: =IF(COUNTRY_INFO!C9=0," ",COUNTRY_INFO!C9) -> ADJAME-PLATEAU-ATTECOUBE | D9: =IF(AND(COUNTRY_INFO!$T$9:$T$997="T3 (ALB/MBD)",COUNTRY_INFO!$U$9:$U$997="T3 (ALB/MBD)"), "T3 (ALB/MBD)", " ") ->  | J9: =SUM(G9:I9) -> 0 | N9: =SUM(K9:M9) -> 0 | O9: =IF(G9<>0, IF(K9/G9*100=0, "-", K9/G9*100), " ") ->  | P9: =IF(H9<>0, IF(L9/H9*100=0, "-", L9/H9*100), " ") ->  | Q9: =IF(I9<>0, IF(M9/I9*100=0, "-", M9/I9*100), " ") ->  | R9: =IF(J9<>0, IF(N9/J9*100=0, "-", N9/J9*100), " ") -> 
A10: =IF(COUNTRY_INFO!A10=0," ",COUNTRY_INFO!A10) -> CÔTE D'IVOIRE | B10: =IF(COUNTRY_INFO!B10=0," ",COUNTRY_INFO!B10) -> ABIDJAN 1 GRANDS PONTS | C10: =IF(COUNTRY_INFO!C10=0," ",COUNTRY_INFO!C10) -> DABOU | D10: =IF(AND(COUNTRY_INFO!$T$9:$T$997="T3 (ALB/MBD)",COUNTRY_INFO!$U$9:$U$997="T3 (ALB/MBD)"), "T3 (ALB/MBD)", " ") ->  | J10: =SUM(G10:I10) -> 0 | N10: =SUM(K10:M10) -> 0 | O10: =IF(G10<>0, IF(K10/G10*100=0, "-", K10/G10*100), " ") ->  | P10: =IF(H10<>0, IF(L10/H10*100=0, "-", L10/H10*100), " ") ->  | Q10: =IF(I10<>0, IF(M10/I10*100=0, "-", M10/I10*100), " ") ->  | R10: =IF(J10<>0, IF(N10/J10*100=0, "-", N10/J10*100), " ") -> 
A11: =IF(COUNTRY_INFO!A11=0," ",COUNTRY_INFO!A11) -> CÔTE D'IVOIRE | B11: =IF(COUNTRY_INFO!B11=0," ",COUNTRY_INFO!B11) -> ABIDJAN 1 GRANDS PONTS | C11: =IF(COUNTRY_INFO!C11=0," ",COUNTRY_INFO!C11) -> GRAND-LAHOU | D11: =IF(AND(COUNTRY_INFO!$T$9:$T$997="T3 (ALB/MBD)",COUNTRY_INFO!$U$9:$U$997="T3 (ALB/MBD)"), "T3 (ALB/MBD)", " ") ->  | J11: 0 | N11: 0
A12: =IF(COUNTRY_INFO!A12=0," ",COUNTRY_INFO!A12) -> CÔTE D'IVOIRE | B12: =IF(COUNTRY_INFO!B12=0," ",COUNTRY_INFO!B12) -> ABIDJAN 1 GRANDS PONTS | C12: =IF(COUNTRY_INFO!C12=0," ",COUNTRY_INFO!C12) -> JACQUEVILLE | D12: =IF(AND(COUNTRY_INFO!$T$9:$T$997="T3 (ALB/MBD)",COUNTRY_INFO!$U$9:$U$997="T3 (ALB/MBD)"), "T3 (ALB/MBD)", " ") ->  | J12: 0 | N12: 0
A13: =IF(COUNTRY_INFO!A13=0," ",COUNTRY_INFO!A13) -> CÔTE D'IVOIRE | B13: =IF(COUNTRY_INFO!B13=0," ",COUNTRY_INFO!B13) -> ABIDJAN 1 GRANDS PONTS | C13: =IF(COUNTRY_INFO!C13=0," ",COUNTRY_INFO!C13) -> YOPOUGON EST | D13: =IF(AND(COUNTRY_INFO!$T$9:$T$997="T3 (ALB/MBD)",COUNTRY_INFO!$U$9:$U$997="T3 (ALB/MBD)"), "T3 (ALB/MBD)", " ") ->  | J13: 0 | N13: 0
A14: =IF(COUNTRY_INFO!A14=0," ",COUNTRY_INFO!A14) -> CÔTE D'IVOIRE | B14: =IF(COUNTRY_INFO!B14=0," ",COUNTRY_INFO!B14) -> ABIDJAN 1 GRANDS PONTS | C14: =IF(COUNTRY_INFO!C14=0," ",COUNTRY_INFO!C14) -> YOPOUGON OUEST | D14: =IF(AND(COUNTRY_INFO!$T$9:$T$997="T3 (ALB/MBD)",COUNTRY_INFO!$U$9:$U$997="T3 (ALB/MBD)"), "T3 (ALB/MBD)", " ") ->  | J14: 0 | N14: 0
A15: =IF(COUNTRY_INFO!A15=0," ",COUNTRY_INFO!A15) -> CÔTE D'IVOIRE | B15: =IF(COUNTRY_INFO!B15=0," ",COUNTRY_INFO!B15) -> ABIDJAN 2 | C15: =IF(COUNTRY_INFO!C15=0," ",COUNTRY_INFO!C15) -> ABOBO EST | D15: =IF(AND(COUNTRY_INFO!$T$9:$T$997="T3 (ALB/MBD)",COUNTRY_INFO!$U$9:$U$997="T3 (ALB/MBD)"), "T3 (ALB/MBD)", " ") ->  | J15: 0 | N15: 0
A16: =IF(COUNTRY_INFO!A16=0," ",COUNTRY_INFO!A16) -> CÔTE D'IVOIRE | B16: =IF(COUNTRY_INFO!B16=0," ",COUNTRY_INFO!B16) -> ABIDJAN 2 | C16: =IF(COUNTRY_INFO!C16=0," ",COUNTRY_INFO!C16) -> ABOBO OUEST | D16: =IF(AND(COUNTRY_INFO!$T$9:$T$997="T3 (ALB/MBD)",COUNTRY_INFO!$U$9:$U$997="T3 (ALB/MBD)"), "T3 (ALB/MBD)", " ") ->  | J16: 0 | N16: 0
A17: =IF(COUNTRY_INFO!A17=0," ",COUNTRY_INFO!A17) -> CÔTE D'IVOIRE | B17: =IF(COUNTRY_INFO!B17=0," ",COUNTRY_INFO!B17) -> ABIDJAN 2 | C17: =IF(COUNTRY_INFO!C17=0," ",COUNTRY_INFO!C17) -> ANYAMA | D17: =IF(AND(COUNTRY_INFO!$T$9:$T$997="T3 (ALB/MBD)",COUNTRY_INFO!$U$9:$U$997="T3 (ALB/MBD)"), "T3 (ALB/MBD)", " ") ->  | J17: 0 | N17: 0
A18: =IF(COUNTRY_INFO!A18=0," ",COUNTRY_INFO!A18) -> CÔTE D'IVOIRE | B18: =IF(COUNTRY_INFO!B18=0," ",COUNTRY_INFO!B18) -> ABIDJAN 2 | C18: =IF(COUNTRY_INFO!C18=0," ",COUNTRY_INFO!C18) -> COCODY-BINGERVILLE | D18: =IF(AND(COUNTRY_INFO!$T$9:$T$997="T3 (ALB/MBD)",COUNTRY_INFO!$U$9:$U$997="T3 (ALB/MBD)"), "T3 (ALB/MBD)", " ") ->  | J18: 0 | N18: 0
A19: =IF(COUNTRY_INFO!A19=0," ",COUNTRY_INFO!A19) -> CÔTE D'IVOIRE | B19: =IF(COUNTRY_INFO!B19=0," ",COUNTRY_INFO!B19) -> ABIDJAN 2 | C19: =IF(COUNTRY_INFO!C19=0," ",COUNTRY_INFO!C19) -> KOUMASSI-PORT BOUET-VRIDI | D19: =IF(AND(COUNTRY_INFO!$T$9:$T$997="T3 (ALB/MBD)",COUNTRY_INFO!$U$9:$U$997="T3 (ALB/MBD)"), "T3 (ALB/MBD)", " ") ->  | J19: 0 | N19: 0
A20: =IF(COUNTRY_INFO!A20=0," ",COUNTRY_INFO!A20) -> CÔTE D'IVOIRE | B20: =IF(COUNTRY_INFO!B20=0," ",COUNTRY_INFO!B20) -> ABIDJAN 2 | C20: =IF(COUNTRY_INFO!C20=0," ",COUNTRY_INFO!C20) -> MARCORY-TREICHVILLE | D20: =IF(AND(COUNTRY_INFO!$T$9:$T$997="T3 (ALB/MBD)",COUNTRY_INFO!$U$9:$U$997="T3 (ALB/MBD)"), "T3 (ALB/MBD)", " ") ->  | J20: 0 | N20: 0
A21: =IF(COUNTRY_INFO!A21=0," ",COUNTRY_INFO!A21) -> CÔTE D'IVOIRE | B21: =IF(COUNTRY_INFO!B21=0," ",COUNTRY_INFO!B21) -> AGNEBY-TIASSA-ME | C21: =IF(COUNTRY_INFO!C21=0," ",COUNTRY_INFO!C21) -> ADZOPE | D21: =IF(AND(COUNTRY_INFO!$T$9:$T$997="T3 (ALB/MBD)",COUNTRY_INFO!$U$9:$U$997="T3 (ALB/MBD)"), "T3 (ALB/MBD)", " ") ->  | J21: 0 | N21: 0
A22: =IF(COUNTRY_INFO!A22=0," ",COUNTRY_INFO!A22) -> CÔTE D'IVOIRE | B22: =IF(COUNTRY_INFO!B22=0," ",COUNTRY_INFO!B22) -> AGNEBY-TIASSA-ME | C22: =IF(COUNTRY_INFO!C22=0," ",COUNTRY_INFO!C22) -> AGBOVILLE | D22: =IF(AND(COUNTRY_INFO!$T$9:$T$997="T3 (ALB/MBD)",COUNTRY_INFO!$U$9:$U$997="T3 (ALB/MBD)"), "T3 (ALB/MBD)", " ") ->  | J22: 0 | N22: 0
A23: =IF(COUNTRY_INFO!A23=0," ",COUNTRY_INFO!A23) -> CÔTE D'IVOIRE | B23: =IF(COUNTRY_INFO!B23=0," ",COUNTRY_INFO!B23) -> AGNEBY-TIASSA-ME | C23: =IF(COUNTRY_INFO!C23=0," ",COUNTRY_INFO!C23) -> AKOUPE | D23: =IF(AND(COUNTRY_INFO!$T$9:$T$997="T3 (ALB/MBD)",COUNTRY_INFO!$U$9:$U$997="T3 (ALB/MBD)"), "T3 (ALB/MBD)", " ") ->  | J23: 0 | N23: 0
A24: =IF(COUNTRY_INFO!A24=0," ",COUNTRY_INFO!A24) -> CÔTE D'IVOIRE | B24: =IF(COUNTRY_INFO!B24=0," ",COUNTRY_INFO!B24) -> AGNEBY-TIASSA-ME | C24: =IF(COUNTRY_INFO!C24=0," ",COUNTRY_INFO!C24) -> ALEPE | D24: =IF(AND(COUNTRY_INFO!$T$9:$T$997="T3 (ALB/MBD)",COUNTRY_INFO!$U$9:$U$997="T3 (ALB/MBD)"), "T3 (ALB/MBD)", " ") ->  | J24: 0 | N24: 0
A25: =IF(COUNTRY_INFO!A25=0," ",COUNTRY_INFO!A25) -> CÔTE D'IVOIRE | B25: =IF(COUNTRY_INFO!B25=0," ",COUNTRY_INFO!B25) -> AGNEBY-TIASSA-ME | C25: =IF(COUNTRY_INFO!C25=0," ",COUNTRY_INFO!C25) -> SIKENSI | D25: =IF(AND(COUNTRY_INFO!$T$9:$T$997="T3 (ALB/MBD)",COUNTRY_INFO!$U$9:$U$997="T3 (ALB/MBD)"), "T3 (ALB/MBD)", " ") ->  | J25: 0 | N25: 0
A26: =IF(COUNTRY_INFO!A26=0," ",COUNTRY_INFO!A26) -> CÔTE D'IVOIRE | B26: =IF(COUNTRY_INFO!B26=0," ",COUNTRY_INFO!B26) -> AGNEBY-TIASSA-ME | C26: =IF(COUNTRY_INFO!C26=0," ",COUNTRY_INFO!C26) -> TIASSALE | D26: =IF(AND(COUNTRY_INFO!$T$9:$T$997="T3 (ALB/MBD)",COUNTRY_INFO!$U$9:$U$997="T3 (ALB/MBD)"), "T3 (ALB/MBD)", " ") ->  | J26: 0 | N26: 0
A27: =IF(COUNTRY_INFO!A27=0," ",COUNTRY_INFO!A27) -> CÔTE D'IVOIRE | B27: =IF(COUNTRY_INFO!B27=0," ",COUNTRY_INFO!B27) -> BELIER | C27: =IF(COUNTRY_INFO!C27=0," ",COUNTRY_INFO!C27) -> DIDIEVI | D27: =IF(AND(COUNTRY_INFO!$T$9:$T$997="T3 (ALB/MBD)",COUNTRY_INFO!$U$9:$U$997="T3 (ALB/MBD)"), "T3 (ALB/MBD)", " ") ->  | J27: 0 | N27: 0
A28: =IF(COUNTRY_INFO!A28=0," ",COUNTRY_INFO!A28) -> CÔTE D'IVOIRE | B28: =IF(COUNTRY_INFO!B28=0," ",COUNTRY_INFO!B28) -> BELIER | C28: =IF(COUNTRY_INFO!C28=0," ",COUNTRY_INFO!C28) -> TIEBISSOU | D28: =IF(AND(COUNTRY_INFO!$T$9:$T$997="T3 (ALB/MBD)",COUNTRY_INFO!$U$9:$U$997="T3 (ALB/MBD)"), "T3 (ALB/MBD)", " ") ->  | J28: 0 | N28: 0
A29: =IF(COUNTRY_INFO!A29=0," ",COUNTRY_INFO!A29) -> CÔTE D'IVOIRE | B29: =IF(COUNTRY_INFO!B29=0," ",COUNTRY_INFO!B29) -> BELIER | C29: =IF(COUNTRY_INFO!C29=0," ",COUNTRY_INFO!C29) -> TOUMODI | D29: =IF(AND(COUNTRY_INFO!$T$9:$T$997="T3 (ALB/MBD)",COUNTRY_INFO!$U$9:$U$997="T3 (ALB/MBD)"), "T3 (ALB/MBD)", " ") ->  | J29: 0 | N29: 0
A30: =IF(COUNTRY_INFO!A30=0," ",COUNTRY_INFO!A30) -> CÔTE D'IVOIRE | B30: =IF(COUNTRY_INFO!B30=0," ",COUNTRY_INFO!B30) -> BELIER | C30: =IF(COUNTRY_INFO!C30=0," ",COUNTRY_INFO!C30) -> YAMOUSSOUKRO | D30: =IF(AND(COUNTRY_INFO!$T$9:$T$997="T3 (ALB/MBD)",COUNTRY_INFO!$U$9:$U$997="T3 (ALB/MBD)"), "T3 (ALB/MBD)", " ") ->  | J30: 0 | N30: 0
A31: =IF(COUNTRY_INFO!A31=0," ",COUNTRY_INFO!A31) -> CÔTE D'IVOIRE | B31: =IF(COUNTRY_INFO!B31=0," ",COUNTRY_INFO!B31) -> BOUKANI-GONTOUGO | C31: =IF(COUNTRY_INFO!C31=0," ",COUNTRY_INFO!C31) -> BONDOUKOU | D31: =IF(AND(COUNTRY_INFO!$T$9:$T$997="T3 (ALB/MBD)",COUNTRY_INFO!$U$9:$U$997="T3 (ALB/MBD)"), "T3 (ALB/MBD)", " ") ->  | J31: 0 | N31: 0
A32: =IF(COUNTRY_INFO!A32=0," ",COUNTRY_INFO!A32) -> CÔTE D'IVOIRE | B32: =IF(COUNTRY_INFO!B32=0," ",COUNTRY_INFO!B32) -> BOUKANI-GONTOUGO | C32: =IF(COUNTRY_INFO!C32=0," ",COUNTRY_INFO!C32) -> BOUNA | D32: =IF(AND(COUNTRY_INFO!$T$9:$T$997="T3 (ALB/MBD)",COUNTRY_INFO!$U$9:$U$997="T3 (ALB/MBD)"), "T3 (ALB/MBD)", " ") ->  | J32: 0 | N32: 0
A33: =IF(COUNTRY_INFO!A33=0," ",COUNTRY_INFO!A33) -> CÔTE D'IVOIRE | B33: =IF(COUNTRY_INFO!B33=0," ",COUNTRY_INFO!B33) -> BOUKANI-GONTOUGO | C33: =IF(COUNTRY_INFO!C33=0," ",COUNTRY_INFO!C33) -> NASSIAN | D33: =IF(AND(COUNTRY_INFO!$T$9:$T$997="T3 (ALB/MBD)",COUNTRY_INFO!$U$9:$U$997="T3 (ALB/MBD)"), "T3 (ALB/MBD)", " ") ->  | J33: 0 | N33: 0
A34: =IF(COUNTRY_INFO!A34=0," ",COUNTRY_INFO!A34) -> CÔTE D'IVOIRE | B34: =IF(COUNTRY_INFO!B34=0," ",COUNTRY_INFO!B34) -> BOUKANI-GONTOUGO | C34: =IF(COUNTRY_INFO!C34=0," ",COUNTRY_INFO!C34) -> TANDA | D34: =IF(AND(COUNTRY_INFO!$T$9:$T$997="T3 (ALB/MBD)",COUNTRY_INFO!$U$9:$U$997="T3 (ALB/MBD)"), "T3 (ALB/MBD)", " ") ->  | J34: 0 | N34: 0
A35: =IF(COUNTRY_INFO!A35=0," ",COUNTRY_INFO!A35) -> CÔTE D'IVOIRE | B35: =IF(COUNTRY_INFO!B35=0," ",COUNTRY_INFO!B35) -> CAVALLY-GUEMON | C35: =IF(COUNTRY_INFO!C35=0," ",COUNTRY_INFO!C35) -> BANGOLO | D35: =IF(AND(COUNTRY_INFO!$T$9:$T$997="T3 (ALB/MBD)",COUNTRY_INFO!$U$9:$U$997="T3 (ALB/MBD)"), "T3 (ALB/MBD)", " ") ->  | J35: 0 | N35: 0
A36: =IF(COUNTRY_INFO!A36=0," ",COUNTRY_INFO!A36) -> CÔTE D'IVOIRE | B36: =IF(COUNTRY_INFO!B36=0," ",COUNTRY_INFO!B36) -> CAVALLY-GUEMON | C36: =IF(COUNTRY_INFO!C36=0," ",COUNTRY_INFO!C36) -> BLOLEQUIN | D36: =IF(AND(COUNTRY_INFO!$T$9:$T$997="T3 (ALB/MBD)",COUNTRY_INFO!$U$9:$U$997="T3 (ALB/MBD)"), "T3 (ALB/MBD)", " ") ->  | J36: 0 | N36: 0
A37: =IF(COUNTRY_INFO!A37=0," ",COUNTRY_INFO!A37) -> CÔTE D'IVOIRE | B37: =IF(COUNTRY_INFO!B37=0," ",COUNTRY_INFO!B37) -> CAVALLY-GUEMON | C37: =IF(COUNTRY_INFO!C37=0," ",COUNTRY_INFO!C37) -> DUEKOUE | D37: =IF(AND(COUNTRY_INFO!$T$9:$T$997="T3 (ALB/MBD)",COUNTRY_INFO!$U$9:$U$997="T3 (ALB/MBD)"), "T3 (ALB/MBD)", " ") ->  | J37: 0 | N37: 0
A38: =IF(COUNTRY_INFO!A38=0," ",COUNTRY_INFO!A38) -> CÔTE D'IVOIRE | B38: =IF(COUNTRY_INFO!B38=0," ",COUNTRY_INFO!B38) -> CAVALLY-GUEMON | C38: =IF(COUNTRY_INFO!C38=0," ",COUNTRY_INFO!C38) -> GUIGLO | D38: =IF(AND(COUNTRY_INFO!$T$9:$T$997="T3 (ALB/MBD)",COUNTRY_INFO!$U$9:$U$997="T3 (ALB/MBD)"), "T3 (ALB/MBD)", " ") ->  | J38: 0 | N38: 0
A39: =IF(COUNTRY_INFO!A39=0," ",COUNTRY_INFO!A39) -> CÔTE D'IVOIRE | B39: =IF(COUNTRY_INFO!B39=0," ",COUNTRY_INFO!B39) -> CAVALLY-GUEMON | C39: =IF(COUNTRY_INFO!C39=0," ",COUNTRY_INFO!C39) -> KOUIBLY | D39: =IF(AND(COUNTRY_INFO!$T$9:$T$997="T3 (ALB/MBD)",COUNTRY_INFO!$U$9:$U$997="T3 (ALB/MBD)"), "T3 (ALB/MBD)", " ") ->  | J39: 0 | N39: 0
A40: =IF(COUNTRY_INFO!A40=0," ",COUNTRY_INFO!A40) -> CÔTE D'IVOIRE | B40: =IF(COUNTRY_INFO!B40=0," ",COUNTRY_INFO!B40) -> CAVALLY-GUEMON | C40: =IF(COUNTRY_INFO!C40=0," ",COUNTRY_INFO!C40) -> TOULEPLEU | D40: =IF(AND(COUNTRY_INFO!$T$9:$T$997="T3 (ALB/MBD)",COUNTRY_INFO!$U$9:$U$997="T3 (ALB/MBD)"), "T3 (ALB/MBD)", " ") ->  | J40: 0 | N40: 0
A41: =IF(COUNTRY_INFO!A41=0," ",COUNTRY_INFO!A41) -> CÔTE D'IVOIRE | B41: =IF(COUNTRY_INFO!B41=0," ",COUNTRY_INFO!B41) -> GBEKE | C41: =IF(COUNTRY_INFO!C41=0," ",COUNTRY_INFO!C41) -> BEOUMI | D41: =IF(AND(COUNTRY_INFO!$T$9:$T$997="T3 (ALB/MBD)",COUNTRY_INFO!$U$9:$U$997="T3 (ALB/MBD)"), "T3 (ALB/MBD)", " ") ->  | J41: 0 | N41: 0
A42: =IF(COUNTRY_INFO!A42=0," ",COUNTRY_INFO!A42) -> CÔTE D'IVOIRE | B42: =IF(COUNTRY_INFO!B42=0," ",COUNTRY_INFO!B42) -> GBEKE | C42: =IF(COUNTRY_INFO!C42=0," ",COUNTRY_INFO!C42) -> BOUAKE NORD-EST | D42: =IF(AND(COUNTRY_INFO!$T$9:$T$997="T3 (ALB/MBD)",COUNTRY_INFO!$U$9:$U$997="T3 (ALB/MBD)"), "T3 (ALB/MBD)", " ") ->  | J42: 0 | N42: 0
A43: =IF(COUNTRY_INFO!A43=0," ",COUNTRY_INFO!A43) -> CÔTE D'IVOIRE | B43: =IF(COUNTRY_INFO!B43=0," ",COUNTRY_INFO!B43) -> GBEKE | C43: =IF(COUNTRY_INFO!C43=0," ",COUNTRY_INFO!C43) -> BOUAKE NORD-OUEST | D43: =IF(AND(COUNTRY_INFO!$T$9:$T$997="T3 (ALB/MBD)",COUNTRY_INFO!$U$9:$U$997="T3 (ALB/MBD)"), "T3 (ALB/MBD)", " ") ->  | J43: 0 | N43: 0
A44: =IF(COUNTRY_INFO!A44=0," ",COUNTRY_INFO!A44) -> CÔTE D'IVOIRE | B44: =IF(COUNTRY_INFO!B44=0," ",COUNTRY_INFO!B44) -> GBEKE | C44: =IF(COUNTRY_INFO!C44=0," ",COUNTRY_INFO!C44) -> BOUAKE SUD | D44: =IF(AND(COUNTRY_INFO!$T$9:$T$997="T3 (ALB/MBD)",COUNTRY_INFO!$U$9:$U$997="T3 (ALB/MBD)"), "T3 (ALB/MBD)", " ") ->  | J44: 0 | N44: 0
A45: =IF(COUNTRY_INFO!A45=0," ",COUNTRY_INFO!A45) -> CÔTE D'IVOIRE | B45: =IF(COUNTRY_INFO!B45=0," ",COUNTRY_INFO!B45) -> GBEKE | C45: =IF(COUNTRY_INFO!C45=0," ",COUNTRY_INFO!C45) -> SAKASSOU | D45: =IF(AND(COUNTRY_INFO!$T$9:$T$997="T3 (ALB/MBD)",COUNTRY_INFO!$U$9:$U$997="T3 (ALB/MBD)"), "T3 (ALB/MBD)", " ") ->  | J45: 0 | N45: 0
A46: =IF(COUNTRY_INFO!A46=0," ",COUNTRY_INFO!A46) -> CÔTE D'IVOIRE | B46: =IF(COUNTRY_INFO!B46=0," ",COUNTRY_INFO!B46) -> GBOKLE-NAWA-SAN-PEDRO | C46: =IF(COUNTRY_INFO!C46=0," ",COUNTRY_INFO!C46) -> GUEYO | D46: =IF(AND(COUNTRY_INFO!$T$9:$T$997="T3 (ALB/MBD)",COUNTRY_INFO!$U$9:$U$997="T3 (ALB/MBD)"), "T3 (ALB/MBD)", " ") ->  | J46: 0 | N46: 0
A47: =IF(COUNTRY_INFO!A47=0," ",COUNTRY_INFO!A47) -> CÔTE D'IVOIRE | B47: =IF(COUNTRY_INFO!B47=0," ",COUNTRY_INFO!B47) -> GBOKLE-NAWA-SAN-PEDRO | C47: =IF(COUNTRY_INFO!C47=0," ",COUNTRY_INFO!C47) -> SAN PEDRO | D47: =IF(AND(COUNTRY_INFO!$T$9:$T$997="T3 (ALB/MBD)",COUNTRY_INFO!$U$9:$U$997="T3 (ALB/MBD)"), "T3 (ALB/MBD)", " ") ->  | J47: 0 | N47: 0
A48: =IF(COUNTRY_INFO!A48=0," ",COUNTRY_INFO!A48) -> CÔTE D'IVOIRE | B48: =IF(COUNTRY_INFO!B48=0," ",COUNTRY_INFO!B48) -> GBOKLE-NAWA-SAN-PEDRO | C48: =IF(COUNTRY_INFO!C48=0," ",COUNTRY_INFO!C48) -> SASSANDRA | D48: =IF(AND(COUNTRY_INFO!$T$9:$T$997="T3 (ALB/MBD)",COUNTRY_INFO!$U$9:$U$997="T3 (ALB/MBD)"), "T3 (ALB/MBD)", " ") ->  | J48: 0 | N48: 0
A49: =IF(COUNTRY_INFO!A49=0," ",COUNTRY_INFO!A49) -> CÔTE D'IVOIRE | B49: =IF(COUNTRY_INFO!B49=0," ",COUNTRY_INFO!B49) -> GBOKLE-NAWA-SAN-PEDRO | C49: =IF(COUNTRY_INFO!C49=0," ",COUNTRY_INFO!C49) -> SOUBRE | D49: =IF(AND(COUNTRY_INFO!$T$9:$T$997="T3 (ALB/MBD)",COUNTRY_INFO!$U$9:$U$997="T3 (ALB/MBD)"), "T3 (ALB/MBD)", " ") ->  | J49: 0 | N49: 0
A50: =IF(COUNTRY_INFO!A50=0," ",COUNTRY_INFO!A50) -> CÔTE D'IVOIRE | B50: =IF(COUNTRY_INFO!B50=0," ",COUNTRY_INFO!B50) -> GBOKLE-NAWA-SAN-PEDRO | C50: =IF(COUNTRY_INFO!C50=0," ",COUNTRY_INFO!C50) -> TABOU | D50: =IF(AND(COUNTRY_INFO!$T$9:$T$997="T3 (ALB/MBD)",COUNTRY_INFO!$U$9:$U$997="T3 (ALB/MBD)"), "T3 (ALB/MBD)", " ") ->  | J50: 0 | N50: 0
A51: =IF(COUNTRY_INFO!A51=0," ",COUNTRY_INFO!A51) -> CÔTE D'IVOIRE | B51: =IF(COUNTRY_INFO!B51=0," ",COUNTRY_INFO!B51) -> GOH | C51: =IF(COUNTRY_INFO!C51=0," ",COUNTRY_INFO!C51) -> GAGNOA | D51: =IF(AND(COUNTRY_INFO!$T$9:$T$997="T3 (ALB/MBD)",COUNTRY_INFO!$U$9:$U$997="T3 (ALB/MBD)"), "T3 (ALB/MBD)", " ") ->  | J51: 0 | N51: 0
A52: =IF(COUNTRY_INFO!A52=0," ",COUNTRY_INFO!A52) -> CÔTE D'IVOIRE | B52: =IF(COUNTRY_INFO!B52=0," ",COUNTRY_INFO!B52) -> GOH | C52: =IF(COUNTRY_INFO!C52=0," ",COUNTRY_INFO!C52) -> OUME | D52: =IF(AND(COUNTRY_INFO!$T$9:$T$997="T3 (ALB/MBD)",COUNTRY_INFO!$U$9:$U$997="T3 (ALB/MBD)"), "T3 (ALB/MBD)", " ") ->  | J52: 0 | N52: 0
A53: =IF(COUNTRY_INFO!A53=0," ",COUNTRY_INFO!A53) -> CÔTE D'IVOIRE | B53: =IF(COUNTRY_INFO!B53=0," ",COUNTRY_INFO!B53) -> HAMBOL | C53: =IF(COUNTRY_INFO!C53=0," ",COUNTRY_INFO!C53) -> DABAKALA | D53: =IF(AND(COUNTRY_INFO!$T$9:$T$997="T3 (ALB/MBD)",COUNTRY_INFO!$U$9:$U$997="T3 (ALB/MBD)"), "T3 (ALB/MBD)", " ") ->  | J53: 0 | N53: 0
A54: =IF(COUNTRY_INFO!A54=0," ",COUNTRY_INFO!A54) -> CÔTE D'IVOIRE | B54: =IF(COUNTRY_INFO!B54=0," ",COUNTRY_INFO!B54) -> HAMBOL | C54: =IF(COUNTRY_INFO!C54=0," ",COUNTRY_INFO!C54) -> KATIOLA | D54: =IF(AND(COUNTRY_INFO!$T$9:$T$997="T3 (ALB/MBD)",COUNTRY_INFO!$U$9:$U$997="T3 (ALB/MBD)"), "T3 (ALB/MBD)", " ") ->  | J54: 0 | N54: 0
A55: =IF(COUNTRY_INFO!A55=0," ",COUNTRY_INFO!A55) -> CÔTE D'IVOIRE | B55: =IF(COUNTRY_INFO!B55=0," ",COUNTRY_INFO!B55) -> HAMBOL | C55: =IF(COUNTRY_INFO!C55=0," ",COUNTRY_INFO!C55) -> NIAKARA | D55: =IF(AND(COUNTRY_INFO!$T$9:$T$997="T3 (ALB/MBD)",COUNTRY_INFO!$U$9:$U$997="T3 (ALB/MBD)"), "T3 (ALB/MBD)", " ") ->  | J55: 0 | N55: 0
A56: =IF(COUNTRY_INFO!A56=0," ",COUNTRY_INFO!A56) -> CÔTE D'IVOIRE | B56: =IF(COUNTRY_INFO!B56=0," ",COUNTRY_INFO!B56) -> HAUT SASSANDRA | C56: =IF(COUNTRY_INFO!C56=0," ",COUNTRY_INFO!C56) -> DALOA | D56: =IF(AND(COUNTRY_INFO!$T$9:$T$997="T3 (ALB/MBD)",COUNTRY_INFO!$U$9:$U$997="T3 (ALB/MBD)"), "T3 (ALB/MBD)", " ") ->  | J56: 0 | N56: 0
A57: =IF(COUNTRY_INFO!A57=0," ",COUNTRY_INFO!A57) -> CÔTE D'IVOIRE | B57: =IF(COUNTRY_INFO!B57=0," ",COUNTRY_INFO!B57) -> HAUT SASSANDRA | C57: =IF(COUNTRY_INFO!C57=0," ",COUNTRY_INFO!C57) -> ISSIA | D57: =IF(AND(COUNTRY_INFO!$T$9:$T$997="T3 (ALB/MBD)",COUNTRY_INFO!$U$9:$U$997="T3 (ALB/MBD)"), "T3 (ALB/MBD)", " ") ->  | J57: 0 | N57: 0
A58: =IF(COUNTRY_INFO!A58=0," ",COUNTRY_INFO!A58) -> CÔTE D'IVOIRE | B58: =IF(COUNTRY_INFO!B58=0," ",COUNTRY_INFO!B58) -> HAUT SASSANDRA | C58: =IF(COUNTRY_INFO!C58=0," ",COUNTRY_INFO!C58) -> VAVOUA | D58: =IF(AND(COUNTRY_INFO!$T$9:$T$997="T3 (ALB/MBD)",COUNTRY_INFO!$U$9:$U$997="T3 (ALB/MBD)"), "T3 (ALB/MBD)", " ") ->  | J58: 0 | N58: 0
A59: =IF(COUNTRY_INFO!A59=0," ",COUNTRY_INFO!A59) -> CÔTE D'IVOIRE | B59: =IF(COUNTRY_INFO!B59=0," ",COUNTRY_INFO!B59) -> INDENIE-DJUABLIN | C59: =IF(COUNTRY_INFO!C59=0," ",COUNTRY_INFO!C59) -> ABENGOUROU | D59: =IF(AND(COUNTRY_INFO!$T$9:$T$997="T3 (ALB/MBD)",COUNTRY_INFO!$U$9:$U$997="T3 (ALB/MBD)"), "T3 (ALB/MBD)", " ") ->  | J59: 0 | N59: 0
A60: =IF(COUNTRY_INFO!A60=0," ",COUNTRY_INFO!A60) -> CÔTE D'IVOIRE | B60: =IF(COUNTRY_INFO!B60=0," ",COUNTRY_INFO!B60) -> INDENIE-DJUABLIN | C60: =IF(COUNTRY_INFO!C60=0," ",COUNTRY_INFO!C60) -> AGNIBILEKRO | D60: =IF(AND(COUNTRY_INFO!$T$9:$T$997="T3 (ALB/MBD)",COUNTRY_INFO!$U$9:$U$997="T3 (ALB/MBD)"), "T3 (ALB/MBD)", " ") ->  | J60: 0 | N60: 0
A61: =IF(COUNTRY_INFO!A61=0," ",COUNTRY_INFO!A61) -> CÔTE D'IVOIRE | B61: =IF(COUNTRY_INFO!B61=0," ",COUNTRY_INFO!B61) -> INDENIE-DJUABLIN | C61: =IF(COUNTRY_INFO!C61=0," ",COUNTRY_INFO!C61) -> BETTIE | D61: =IF(AND(COUNTRY_INFO!$T$9:$T$997="T3 (ALB/MBD)",COUNTRY_INFO!$U$9:$U$997="T3 (ALB/MBD)"), "T3 (ALB/MBD)", " ") ->  | J61: 0 | N61: 0
A62: =IF(COUNTRY_INFO!A62=0," ",COUNTRY_INFO!A62) -> CÔTE D'IVOIRE | B62: =IF(COUNTRY_INFO!B62=0," ",COUNTRY_INFO!B62) -> KABADOUGOU-BAFING-FOLON | C62: =IF(COUNTRY_INFO!C62=0," ",COUNTRY_INFO!C62) -> MINIGNAN | D62: =IF(AND(COUNTRY_INFO!$T$9:$T$997="T3 (ALB/MBD)",COUNTRY_INFO!$U$9:$U$997="T3 (ALB/MBD)"), "T3 (ALB/MBD)", " ") ->  | J62: 0 | N62: 0
A63: =IF(COUNTRY_INFO!A63=0," ",COUNTRY_INFO!A63) -> CÔTE D'IVOIRE | B63: =IF(COUNTRY_INFO!B63=0," ",COUNTRY_INFO!B63) -> KABADOUGOU-BAFING-FOLON | C63: =IF(COUNTRY_INFO!C63=0," ",COUNTRY_INFO!C63) -> ODIENNE | D63: =IF(AND(COUNTRY_INFO!$T$9:$T$997="T3 (ALB/MBD)",COUNTRY_INFO!$U$9:$U$997="T3 (ALB/MBD)"), "T3 (ALB/MBD)", " ") ->  | J63: 0 | N63: 0
A64: =IF(COUNTRY_INFO!A64=0," ",COUNTRY_INFO!A64) -> CÔTE D'IVOIRE | B64: =IF(COUNTRY_INFO!B64=0," ",COUNTRY_INFO!B64) -> KABADOUGOU-BAFING-FOLON | C64: =IF(COUNTRY_INFO!C64=0," ",COUNTRY_INFO!C64) -> TOUBA | D64: =IF(AND(COUNTRY_INFO!$T$9:$T$997="T3 (ALB/MBD)",COUNTRY_INFO!$U$9:$U$997="T3 (ALB/MBD)"), "T3 (ALB/MBD)", " ") ->  | J64: 0 | N64: 0
A65: =IF(COUNTRY_INFO!A65=0," ",COUNTRY_INFO!A65) -> CÔTE D'IVOIRE | B65: =IF(COUNTRY_INFO!B65=0," ",COUNTRY_INFO!B65) -> LOH-DJIBOUA | C65: =IF(COUNTRY_INFO!C65=0," ",COUNTRY_INFO!C65) -> DIVO | D65: =IF(AND(COUNTRY_INFO!$T$9:$T$997="T3 (ALB/MBD)",COUNTRY_INFO!$U$9:$U$997="T3 (ALB/MBD)"), "T3 (ALB/MBD)", " ") ->  | J65: 0 | N65: 0
A66: =IF(COUNTRY_INFO!A66=0," ",COUNTRY_INFO!A66) -> CÔTE D'IVOIRE | B66: =IF(COUNTRY_INFO!B66=0," ",COUNTRY_INFO!B66) -> LOH-DJIBOUA | C66: =IF(COUNTRY_INFO!C66=0," ",COUNTRY_INFO!C66) -> FRESCO | D66: =IF(AND(COUNTRY_INFO!$T$9:$T$997="T3 (ALB/MBD)",COUNTRY_INFO!$U$9:$U$997="T3 (ALB/MBD)"), "T3 (ALB/MBD)", " ") ->  | J66: 0 | N66: 0
A67: =IF(COUNTRY_INFO!A67=0," ",COUNTRY_INFO!A67) -> CÔTE D'IVOIRE | B67: =IF(COUNTRY_INFO!B67=0," ",COUNTRY_INFO!B67) -> LOH-DJIBOUA | C67: =IF(COUNTRY_INFO!C67=0," ",COUNTRY_INFO!C67) -> GUITRY | D67: =IF(AND(COUNTRY_INFO!$T$9:$T$997="T3 (ALB/MBD)",COUNTRY_INFO!$U$9:$U$997="T3 (ALB/MBD)"), "T3 (ALB/MBD)", " ") ->  | J67: 0 | N67: 0
A68: =IF(COUNTRY_INFO!A68=0," ",COUNTRY_INFO!A68) -> CÔTE D'IVOIRE | B68: =IF(COUNTRY_INFO!B68=0," ",COUNTRY_INFO!B68) -> LOH-DJIBOUA | C68: =IF(COUNTRY_INFO!C68=0," ",COUNTRY_INFO!C68) -> LAKOTA | D68: =IF(AND(COUNTRY_INFO!$T$9:$T$997="T3 (ALB/MBD)",COUNTRY_INFO!$U$9:$U$997="T3 (ALB/MBD)"), "T3 (ALB/MBD)", " ") ->  | J68: 0 | N68: 0
A69: =IF(COUNTRY_INFO!A69=0," ",COUNTRY_INFO!A69) -> CÔTE D'IVOIRE | B69: =IF(COUNTRY_INFO!B69=0," ",COUNTRY_INFO!B69) -> MARAHOUE | C69: =IF(COUNTRY_INFO!C69=0," ",COUNTRY_INFO!C69) -> BOUAFLE | D69: =IF(AND(COUNTRY_INFO!$T$9:$T$997="T3 (ALB/MBD)",COUNTRY_INFO!$U$9:$U$997="T3 (ALB/MBD)"), "T3 (ALB/MBD)", " ") ->  | J69: 0 | N69: 0
A70: =IF(COUNTRY_INFO!A70=0," ",COUNTRY_INFO!A70) -> CÔTE D'IVOIRE | B70: =IF(COUNTRY_INFO!B70=0," ",COUNTRY_INFO!B70) -> MARAHOUE | C70: =IF(COUNTRY_INFO!C70=0," ",COUNTRY_INFO!C70) -> SINFRA | D70: =IF(AND(COUNTRY_INFO!$T$9:$T$997="T3 (ALB/MBD)",COUNTRY_INFO!$U$9:$U$997="T3 (ALB/MBD)"), "T3 (ALB/MBD)", " ") ->  | J70: 0 | N70: 0
A71: =IF(COUNTRY_INFO!A71=0," ",COUNTRY_INFO!A71) -> CÔTE D'IVOIRE | B71: =IF(COUNTRY_INFO!B71=0," ",COUNTRY_INFO!B71) -> MARAHOUE | C71: =IF(COUNTRY_INFO!C71=0," ",COUNTRY_INFO!C71) -> ZUENOULA | D71: =IF(AND(COUNTRY_INFO!$T$9:$T$997="T3 (ALB/MBD)",COUNTRY_INFO!$U$9:$U$997="T3 (ALB/MBD)"), "T3 (ALB/MBD)", " ") ->  | J71: 0 | N71: 0
A72: =IF(COUNTRY_INFO!A72=0," ",COUNTRY_INFO!A72) -> CÔTE D'IVOIRE | B72: =IF(COUNTRY_INFO!B72=0," ",COUNTRY_INFO!B72) -> N'ZI-IFOU | C72: =IF(COUNTRY_INFO!C72=0," ",COUNTRY_INFO!C72) -> BOCANDA | D72: =IF(AND(COUNTRY_INFO!$T$9:$T$997="T3 (ALB/MBD)",COUNTRY_INFO!$U$9:$U$997="T3 (ALB/MBD)"), "T3 (ALB/MBD)", " ") ->  | J72: =SUM(G72:I72) -> 0 | N72: =SUM(K72:M72) -> 0 | O72: =IF(G72<>0, IF(K72/G72*100=0, "-", K72/G72*100), " ") ->  | P72: =IF(H72<>0, IF(L72/H72*100=0, "-", L72/H72*100), " ") ->  | Q72: =IF(I72<>0, IF(M72/I72*100=0, "-", M72/I72*100), " ") ->  | R72: =IF(J72<>0, IF(N72/J72*100=0, "-", N72/J72*100), " ") -> 
A73: =IF(COUNTRY_INFO!A73=0," ",COUNTRY_INFO!A73) -> CÔTE D'IVOIRE | B73: =IF(COUNTRY_INFO!B73=0," ",COUNTRY_INFO!B73) -> N'ZI-IFOU | C73: =IF(COUNTRY_INFO!C73=0," ",COUNTRY_INFO!C73) -> BONGOUANOU | D73: =IF(AND(COUNTRY_INFO!$T$9:$T$997="T3 (ALB/MBD)",COUNTRY_INFO!$U$9:$U$997="T3 (ALB/MBD)"), "T3 (ALB/MBD)", " ") ->  | J73: 0 | N73: 0
A74: =IF(COUNTRY_INFO!A74=0," ",COUNTRY_INFO!A74) -> CÔTE D'IVOIRE | B74: =IF(COUNTRY_INFO!B74=0," ",COUNTRY_INFO!B74) -> N'ZI-IFOU | C74: =IF(COUNTRY_INFO!C74=0," ",COUNTRY_INFO!C74) -> DAOUKRO | D74: =IF(AND(COUNTRY_INFO!$T$9:$T$997="T3 (ALB/MBD)",COUNTRY_INFO!$U$9:$U$997="T3 (ALB/MBD)"), "T3 (ALB/MBD)", " ") ->  | J74: 0 | N74: 0
A75: =IF(COUNTRY_INFO!A75=0," ",COUNTRY_INFO!A75) -> CÔTE D'IVOIRE | B75: =IF(COUNTRY_INFO!B75=0," ",COUNTRY_INFO!B75) -> N'ZI-IFOU | C75: =IF(COUNTRY_INFO!C75=0," ",COUNTRY_INFO!C75) -> DIMBOKRO | D75: =IF(AND(COUNTRY_INFO!$T$9:$T$997="T3 (ALB/MBD)",COUNTRY_INFO!$U$9:$U$997="T3 (ALB/MBD)"), "T3 (ALB/MBD)", " ") ->  | J75: 0 | N75: 0
A76: =IF(COUNTRY_INFO!A76=0," ",COUNTRY_INFO!A76) -> CÔTE D'IVOIRE | B76: =IF(COUNTRY_INFO!B76=0," ",COUNTRY_INFO!B76) -> N'ZI-IFOU | C76: =IF(COUNTRY_INFO!C76=0," ",COUNTRY_INFO!C76) -> M'BAHIAKRO | D76: =IF(AND(COUNTRY_INFO!$T$9:$T$997="T3 (ALB/MBD)",COUNTRY_INFO!$U$9:$U$997="T3 (ALB/MBD)"), "T3 (ALB/MBD)", " ") ->  | J76: 0 | N76: 0
A77: =IF(COUNTRY_INFO!A77=0," ",COUNTRY_INFO!A77) -> CÔTE D'IVOIRE | B77: =IF(COUNTRY_INFO!B77=0," ",COUNTRY_INFO!B77) -> N'ZI-IFOU | C77: =IF(COUNTRY_INFO!C77=0," ",COUNTRY_INFO!C77) -> PRIKRO | D77: =IF(AND(COUNTRY_INFO!$T$9:$T$997="T3 (ALB/MBD)",COUNTRY_INFO!$U$9:$U$997="T3 (ALB/MBD)"), "T3 (ALB/MBD)", " ") ->  | J77: 0 | N77: 0
A78: =IF(COUNTRY_INFO!A78=0," ",COUNTRY_INFO!A78) -> CÔTE D'IVOIRE | B78: =IF(COUNTRY_INFO!B78=0," ",COUNTRY_INFO!B78) -> PORO-TCHOLOGO-BAGOUE | C78: =IF(COUNTRY_INFO!C78=0," ",COUNTRY_INFO!C78) -> BOUNDIALI | D78: =IF(AND(COUNTRY_INFO!$T$9:$T$997="T3 (ALB/MBD)",COUNTRY_INFO!$U$9:$U$997="T3 (ALB/MBD)"), "T3 (ALB/MBD)", " ") ->  | J78: 0 | N78: 0
A79: =IF(COUNTRY_INFO!A79=0," ",COUNTRY_INFO!A79) -> CÔTE D'IVOIRE | B79: =IF(COUNTRY_INFO!B79=0," ",COUNTRY_INFO!B79) -> PORO-TCHOLOGO-BAGOUE | C79: =IF(COUNTRY_INFO!C79=0," ",COUNTRY_INFO!C79) -> FERKESSEDOUGOU | D79: =IF(AND(COUNTRY_INFO!$T$9:$T$997="T3 (ALB/MBD)",COUNTRY_INFO!$U$9:$U$997="T3 (ALB/MBD)"), "T3 (ALB/MBD)", " ") ->  | J79: 0 | N79: 0
A80: =IF(COUNTRY_INFO!A80=0," ",COUNTRY_INFO!A80) -> CÔTE D'IVOIRE | B80: =IF(COUNTRY_INFO!B80=0," ",COUNTRY_INFO!B80) -> PORO-TCHOLOGO-BAGOUE | C80: =IF(COUNTRY_INFO!C80=0," ",COUNTRY_INFO!C80) -> KORHOGO | D80: =IF(AND(COUNTRY_INFO!$T$9:$T$997="T3 (ALB/MBD)",COUNTRY_INFO!$U$9:$U$997="T3 (ALB/MBD)"), "T3 (ALB/MBD)", " ") ->  | J80: 0 | N80: 0
A81: =IF(COUNTRY_INFO!A81=0," ",COUNTRY_INFO!A81) -> CÔTE D'IVOIRE | B81: =IF(COUNTRY_INFO!B81=0," ",COUNTRY_INFO!B81) -> PORO-TCHOLOGO-BAGOUE | C81: =IF(COUNTRY_INFO!C81=0," ",COUNTRY_INFO!C81) -> OUANGOLODOUGOU | D81: =IF(AND(COUNTRY_INFO!$T$9:$T$997="T3 (ALB/MBD)",COUNTRY_INFO!$U$9:$U$997="T3 (ALB/MBD)"), "T3 (ALB/MBD)", " ") ->  | J81: 0 | N81: 0
A82: =IF(COUNTRY_INFO!A82=0," ",COUNTRY_INFO!A82) -> CÔTE D'IVOIRE | B82: =IF(COUNTRY_INFO!B82=0," ",COUNTRY_INFO!B82) -> PORO-TCHOLOGO-BAGOUE | C82: =IF(COUNTRY_INFO!C82=0," ",COUNTRY_INFO!C82) -> TENGRELA | D82: =IF(AND(COUNTRY_INFO!$T$9:$T$997="T3 (ALB/MBD)",COUNTRY_INFO!$U$9:$U$997="T3 (ALB/MBD)"), "T3 (ALB/MBD)", " ") ->  | J82: 0 | N82: 0
